Workbook

Sheet Template G (hidden)
B2: APPENDIX 1: SUMMARY OF PROFIT & LOSS ACCOUNTS UNDER GENERAL INSURANCE BUSINESS FOR THE YEAR ENDED 31.12.2014
B3: Company | C3: Profit Transferred from Revenue | D3: Investment Income | E3: Other Income | F3: Total Income | G3: Loss Transferred From Revenue | H3: Management Expenses | I3: Total Outgo | J3: Profit / (Loss) Before Taxation | K3: Provision for Taxation | L3: Profit/(Loss) After Taxation | M3: Unappropriated Profit/(Loss) BF | N3: Transfer To Reserves | O3: Other Appropriations | P3: Dividend | Q3: Unappropriated Profit /(Loss) CF
B4: INSURERS
B5: AAR INSURANCE KENYA | C5: 130234 | D5: 0 | E5: 0 | F5: 130234 | G5: 0 | H5: 0 | I5: 0 | J5: 130234 | K5: 46204 | L5: 84030 | M5: 44501 | N5: 634323 | O5: 0 | P5: 0 | Q5: -505792
B6: AFRICAN MERCHANT ASSURANCE | C6: 142654 | D6: 0 | E6: 0 | F6: 142654 | G6: 0 | H6: 0 | I6: 0 | J6: 142654 | K6: 39308 | L6: 103346 | M6: 318291 | N6: 0 | O6: 0 | P6: 0 | Q6: 421637
B7: AIG INSURANCE COMPANY | C7: 170766 | D7: 670630 | E7: 0 | F7: 841396 | G7: 0 | H7: 0 | I7: 0 | J7: 841396 | K7: 146702 | L7: 694694 | M7: 954171 | N7: 0 | O7: 0 | P7: 400000 | Q7: 1248865
B8: ALLIANZ INSURANCE COMPANY
B9: APA INSURANCE COMPANY | C9: 38749 | D9: 1034052 | E9: 0 | F9: 1072800 | G9: 0 | H9: -2138 | I9: 234936 | J9: 837864 | K9: 61671 | L9: 776193 | M9: 2283021 | N9: 0 | O9: 0 | P9: 80000 | Q9: 2979214
B10: BRITISH AMERICAN INSURANCE | C10: 339613 | D10: 251553 | E10: 0 | F10: 591166 | G10: 0 | H10: 0 | I10: 0 | J10: 591166 | K10: 78039 | L10: 513127 | M10: 825170 | N10: 0 | O10: 0 | P10: 0 | Q10: 1338298
B11: CANNON ASSURANCE COMPANY | C11: 74763 | D11: 0 | E11: 46931 | F11: 191885 | G11: 0 | H11: 0 | I11: 70189 | J11: 121695 | K11: 1928 | L11: 119767 | M11: 1084652 | N11: 0 | O11: 0 | P11: 781269 | Q11: 423150
B12: CIC GENERAL INSURANCE COMPANY | C12: 125132 | D12: 719643 | E12: 0 | F12: 844775 | G12: 0 | H12: 0 | I12: 0 | J12: 844775 | K12: 241425 | L12: 603350 | M12: 1877149 | N12: 0 | O12: 0 | P12: 405000 | Q12: 2075499
B13: CORPORATE INSURANCE COMPANY | C13: 205038 | D13: 0 | E13: 0 | F13: 205038 | G13: 0 | H13: 0 | I13: 0 | J13: 205038 | K13: 46383 | L13: 158655 | M13: 385905 | N13: 0 | O13: 0 | P13: 39000 | Q13: 505560
B14: DIRECTLINE ASSURANCE COMPANY | C14: 0 | D14: 638364 | E14: 0 | F14: 638365 | G14: 79947 | H14: 24146 | I14: 187546 | J14: 450818 | K14: 70096 | L14: 380723 | M14: 0 | N14: 0 | O14: 0 | P14: 0 | Q14: 380723
B15: FIDELITY SHIELD INSURANCE | C15: 101808 | D15: 179215 | E15: 7034 | F15: 288058 | G15: 0 | H15: 29416 | I15: 86512 | J15: 201545 | K15: 51745 | L15: 149800 | M15: 537207 | N15: 149548 | O15: 0 | P15: 45000 | Q15: 492459
B16: FIRST ASSURANCE COMPANY | C16: 67728 | D16: 447203 | E16: 0 | F16: 514930 | G16: 0 | H16: 0 | I16: 0 | J16: 514930 | K16: 98026 | L16: 416904 | M16: 827541 | N16: 0 | O16: 8093 | P16: 80251 | Q16: 1156101
B17: GA INSURANCE COMPANY | C17: 603861 | D17: 0 | E17: 0 | F17: 603861 | G17: 0 | H17: 0 | I17: 0 | J17: 603861 | K17: 158971 | L17: 444890 | M17: 677157 | N17: 6241 | O17: 0 | P17: 225000 | Q17: 890806
B18: GATEWAY INSURANCE COMPANY | C18: 25450 | D18: 0 | E18: 0 | F18: 25450 | G18: 0 | H18: 0 | I18: 0 | J18: 25450 | K18: 5318 | L18: 20132 | M18: 279570 | N18: 0 | O18: 0 | P18: 0 | Q18: 299702
B19: GEMINIA INSURANCE COMPANY | C19: 345161 | D19: 0 | E19: 291 | F19: 345452 | G19: 0 | H19: 633 | I19: 6435 | J19: 339017 | K19: 103330 | L19: 235686 | M19: 409368 | N19: 0 | O19: 2886 | P19: 90000 | Q19: 552169
B20: HERITAGE INSURANCE COMPANY | C20: 714803 | D20: 0 | E20: 1654 | F20: 716456 | G20: 0 | H20: 4023 | I20: 14466 | J20: 701990 | K20: 187852 | L20: 514138 | M20: 1285450 | N20: 0 | O20: 0 | P20: 230000 | Q20: 1569588
B21: ICEA LION GENERAL INSURANCE | C21: 300512 | D21: 742458 | E21: 0 | F21: 1042969 | G21: 0 | H21: 174555 | I21: 216797 | J21: 826173 | K21: 242956 | L21: 583217 | M21: 1850557 | N21: 0 | O21: 0 | P21: 200000 | Q21: 2233774
B22: INTRA-AFRICA ASSURANCE | C22: 0 | D22: 25075 | E22: 35589 | F22: 60664 | G22: 11756 | H22: 6540 | I22: 44468 | J22: 16196 | K22: 1648 | L22: 14548 | M22: 137625 | N22: 28100 | O22: -21036 | P22: 7500 | Q22: 137608
B23: INVESCO ASSURANCE COMPANY | C23: 0 | D23: 31010 | E23: 1443 | F23: 32453 | G23: 28200 | H23: 0 | I23: 101914 | J23: -69461 | K23: 26760 | L23: -96221 | M23: -1210798 | N23: 0 | O23: 0 | P23: 0 | Q23: -1307019
B24: JUBILEE INSURANCE COMPANY | C24: 1732918 | D24: 0 | E24: 139646 | F24: 1872564 | G24: 0 | H24: 0 | I24: 0 | J24: 1872564 | K24: 412337 | L24: 1460227 | M24: 3374754 | N24: -48 | O24: 1200000 | P24: 1000000 | Q24: 2635029
B25: KENINDIA ASSURANCE COMPANY | C25: 0 | D25: 0 | E25: 7636 | F25: 7636 | G25: 273201 | H25: 14741 | I25: 368270 | J25: -360634 | K25: -107940 | L25: -252694 | M25: 1172502 | N25: 0 | O25: -3585 | P25: 28069 | Q25: 895324
B26: KENYA ORIENT INSURANCE | C26: 237761 | D26: 0 | E26: 2666 | F26: 240427 | G26: 0 | H26: 98497 | I26: 98497 | J26: 141930 | K26: 52814 | L26: 89116 | M26: -17547 | N26: 0 | O26: 0 | P26: 0 | Q26: 71569
B27: MADISON INSURANCE COMPANY | C27: 12753 | D27: 0 | E27: 21396 | F27: 34149 | G27: 0 | H27: 0 | I27: 0 | J27: 34149 | K27: 0 | L27: 34149 | M27: 381408 | N27: 0 | O27: 0 | P27: 0 | Q27: 415557
B28: MAYFAIR INSURANCE COMPANY | C28: 188190 | D28: 192898 | E28: 1359 | F28: 382447 | G28: 0 | H28: 1286 | I28: 22336 | J28: 360110 | K28: 102410 | L28: 257701 | M28: 275513 | N28: 0 | O28: 0 | P28: 20000 | Q28: 513214
B29: OCCIDENTAL INSURANCE COMPANY | C29: 311911 | D29: 0 | E29: 34062 | F29: 345973 | G29: 0 | H29: 32976 | I29: 34373 | J29: 311600 | K29: 67905 | L29: 243695 | M29: 323724 | N29: 0 | O29: 0 | P29: 79695 | Q29: 487724
B30: PACIS INSURANCE COMPANY | C30: 119902 | D30: 0 | E30: 70627 | F30: 190529 | G30: 0 | H30: 19908 | I30: 19908 | J30: 170621 | K30: 50513 | L30: 120108 | M30: 352876 | N30: 0 | O30: 0 | P30: 0 | Q30: 472984
B31: PHOENIX OF EAST AFRICA | C31: 0 | D31: 113772 | E31: 943479 | F31: 1057251 | G31: 179641 | H31: 77166 | I31: 256807 | J31: 800444 | K31: 21357 | L31: 779087 | M31: 647918 | N31: 0 | O31: 0 | P31: 305000 | Q31: 1122005
B32: REAL INSURANCE COMPANY | C32: -58634 | D32: 102770 | E32: 58505 | F32: 102640 | G32: 0 | H32: 5420 | I32: 77089 | J32: 25552 | K32: 10450 | L32: 15101 | M32: 37508 | N32: 0 | O32: -8204 | P32: 25898 | Q32: 34916
B33: RESOLUTION HEALTH INSURANCE | C33: 0 | D33: 0 | E33: 0 | F33: 0 | G33: 138004 | H33: 0 | I33: 138004 | J33: -138004 | K33: -37685 | L33: -100319 | M33: 45411 | N33: 0 | O33: 0 | P33: 0 | Q33: -54908
B34: SAHAM ASSURANCE | C34: 21354 | D34: 0 | E34: 0 | F34: 21354 | G34: 0 | H34: 0 | I34: 0 | J34: 21354 | K34: 2544 | L34: 18810 | M34: 139368 | N34: 8988 | O34: 0 | P34: 9000 | Q34: 140190
B35: TAKAFUL INSURANCE OF AFRICA | C35: 0 | D35: 0 | E35: 0 | F35: 0 | G35: 20487 | H35: -22351 | I35: -1864 | J35: 1864 | K35: 4966 | L35: -3102 | M35: -139324 | N35: 0 | O35: 0 | P35: 0 | Q35: -142426
B36: TAUSI ASSURANCE COMPANY | C36: 35509 | D36: 170757 | E36: 0 | F36: 206265 | G36: 0 | H36: 5631 | I36: 19943 | J36: 186323 | K36: 53012 | L36: 133310 | M36: 176183 | N36: 0 | O36: -2999 | P36: 50224 | Q36: 262268
B37: THE KENYAN ALLIANCE INSURANCE | C37: 175734 | D37: 0 | E37: 0 | F37: 175734 | G37: 0 | H37: 0 | I37: 0 | J37: 175734 | K37: 73633 | L37: 102102 | M37: 955596 | N37: 0 | O37: 0 | P37: 10526 | Q37: 1047171
B38: THE MONARCH INSURANCE | C38: 99555 | D38: 9578 | E38: 46957 | F38: 156091 | G38: 0 | H38: 3702 | I38: 27420 | J38: 128672 | K38: 36001 | L38: 92671 | M38: 10403 | N38: 0 | O38: 0 | P38: 50000 | Q38: 53074
B39: TRIDENT INSURANCE COMPANY | C39: 47022 | D39: 155654 | E39: 21399 | F39: 224074 | G39: 0 | H39: 30356 | I39: 38052 | J39: 186022 | K39: 43613 | L39: 142409 | M39: 1246161 | N39: -4181 | O39: 0 | P39: 0 | Q39: 1392751
B40: UAP INSURANCE COMPANY | C40: 303159 | D40: 1138224 | E40: 6032 | F40: 1447415 | G40: 0 | H40: 310003 | I40: 343343 | J40: 1104072 | K40: 249503 | L40: 854569 | M40: 3178379 | N40: -1916845 | O40: -50810 | P40: 1000000 | Q40: 5000603
B41: XPLICO INSURANCE COMPANY | C41: -54329 | D41: 34591 | E41: 0 | F41: -19739 | G41: 0 | H41: 0 | I41: 0 | J41: -19739 | K41: -3519 | L41: -16220 | M41: 71835 | N41: 0 | O41: 0 | P41: 0 | Q41: 55615
B42: TOTAL | C42: =SUM(C5:C41) -> 6559077 | D42: =SUM(D5:D41) -> 6657447 | E42: =SUM(E5:E41) -> 1446706 | F42: 14733416 | G42: 731236 | H42: 814510 | I42: 2405441 | J42: 12327975 | K42: 2640276 | L42: 9687699 | M42: 24799205 | N42: -1093874 | O42: 1124345 | P42: 5161432 | Q42: 29295002
B43: REINSURERS
B44: CONTINENTAL REINSURANCE | C44: 147757 | D44: 52992 | E44: 1081 | F44: 201830 | G44: 0 | H44: 51501 | I44: 71033 | J44: 130797 | K44: 39763 | L44: 91034 | M44: 53655 | N44: 0 | O44: 0 | P44: 53215 | Q44: 91474
B45: EAST AFRICA REINSURANCE | C45: 151629 | D45: 322940 | E45: 35273 | F45: 509842 | G45: 0 | H45: 24718 | I45: 63308 | J45: 446534 | K45: 125724 | L45: 320810 | M45: 880517 | N45: 0 | O45: 0 | P45: 60000 | Q45: 1141326
B46: KENYA REINSURANCE CORPORATION | C46: 2245528 | D46: 144921 | E46: 906884 | F46: 3297333 | G46: 0 | H46: 0 | I46: 0 | J46: 3297333 | K46: 569810 | L46: 2727523 | M46: 11098665 | N46: -35689 | O46: 0 | P46: 419959 | Q46: 13441918
B47: TOTAL | C47: =SUM(C44:C46) -> 2544914 | D47: =SUM(D44:D46) -> 520853 | E47: =SUM(E44:E46) -> 943238 | F47: 4009005 | G47: 0 | H47: 76219 | I47: 134341 | J47: 3874664 | K47: 735297 | L47: 3139367 | M47: 12032837 | N47: -35689 | O47: 0 | P47: 533174 | Q47: 14674718
B48: GRAND TOTAL | C48: =C42+C47 -> 9103991 | D48: =D42+D47 -> 7178300 | E48: 2389944 | F48: 18742421 | G48: 731236 | H48: 890729 | I48: 2539782 | J48: 16202639 | K48: 3375573 | L48: 12827066 | M48: 36832042 | N48: -1129563 | O48: 1124345 | P48: 5694606 | Q48: 43969720
B49: Amounts in Thousand Shillings

Sheet Details
E6: INSURANCE REGULATORY AUTHORITY | L6: Quarterly | M6: 2010
L7: Annual | M7: 2011
M8: 2012
M9: 2013
M10: 2015
E11: TYPE OF INDUSTRY STATISTICS | F11: Annual Audited | M11: 2016
M12: 2017
M13: 2018
M14: 2019
E15: FOR THE YEAR | F15: 2017 | M15: 2020
M16: 2021
E18: PERIOD ENDED | F18: 31st December 2017 | M18: 2022
M19: 2023
M20: 2024
M21: 2025
M22: 2026
M23: 2027
M24: 2028
M25: 2029
M26: 2030
M27: 2031
M28: 2032
M29: 2033
M30: 2034
M31: 2035
M32: 2036
M33: 2037
M34: 2038
M35: 2039
M36: 2040
M37: 2041
M38: 2042
M39: 2043
M40: 2044
M41: 2045
M42: 2046
M43: 2047
M44: 2048
M45: 2049
M46: 2050
M47: 2051
M48: 2052

Sheet Reliance & Limitations
B2: RELIANCE AND LIMITATIONS
B3: The insurance information contained in this workbook has been extracted from the annual audited returns submitted to the Authority in line with Section 54 of the Insurance Act. No adjustments have been made to the returns’ data except where necessary in consultation with the affected insurer(s) or reinsurer(s). The publication of any summary of the returns in this report does not necessarily mean that the returns so summarized have satisfied all the requirements of the Insurance Act, or that the Commissioner of Insurance approves the accuracy or the contents of the returns Where necessary, figures have been adjusted to eliminate errors in totals due to rounding off, and are given in thousands Kenya shillings (‘000’ KES) except where otherwise stated.

Sheet Contents
B2: INSURANCE REGULATORY AUTHORITY
B4: 2017 DATA
B5: TABLE of CONTENTS
B6: Link | C6: Description
B8: Trends 1 | C8: Economy and Insurance Industry Trends
B9: Trends 2 | C9: Trends in Long-Term Insurance Business
B10: Trends 3 | C10: Trends in General Insurance Business
B11: Trends 4 | C11: Trends in Re-Insurance Business
B12: APPENDIX 1 | C12: Summary of Profit & Loss Accounts under General Insurance Business for the Year Ended 31.12.2017
B13: APPENDIX 2 | C13: Summary of Profit & Loss Accounts Long-Term Insurance Business for the Year Ended 31.12.2017
B14: APPENDIX 3 | C14: Summary of Net Commissions And Management Expenses for the Year Ended 31.12.2017
B15: APPENDIX 4 I | C15: Summary of Long Term Insurance Business Balance Sheets as at 31.12.2017
B16: APPENDIX 4 II | C16: Summary of Long Term Insurance Business Balance Sheets as at 31.12.2017
B17: APPENDIX 4 III | C17: Summary of Long Term Insurance Business Balance Sheets as at 31.12.2017
B18: APPENDIX 5 I | C18: Summary of General Insurance Business Balance Sheets as at 31.12.2017
B19: APPENDIX 5 II | C19: Summary of General Insurance Business Balance Sheets as at 31.12.2017
B20: APPENDIX 5 III | C20: Summary of General Insurance Business Balance Sheets as at 31.12.2017
B21: APPENDIX 5 IV | C21: Summary of General Insurance Business Balance Sheets as at 31.12.2017
B22: APPENDIX 6 | C22: Summary of Long Term Business Gross Direct Premiums for the Year Ended 31.12.2017
B23: APPENDIX 7 | C23: Summary of Long Term Business Inward Reinsurance Premiums for the Year Ended 31.12.2017
B24: APPENDIX 8 | C24: Summary of Long Term Business Outward Reinsurance Premiums for the Year Ended 31.12.2017
B25: APPENDIX 9 | C25: Summary of Life assurances Business Revenue Accounts for the Year Ended 31.12.2017
B26: APPENDIX 10 | C26: Summary of Annuities Business Revenue Accounts for the Year Ended 31.12.2017
B27: APPENDIX 11 | C27: Summary of Group Life Business Revenue Accounts for the Year Ended 31.12.2017
B28: APPENDIX 12 | C28: Summary of Pensions Business Revenue Accounts for the Year Ended 31.12.2017
B29: APPENDIX 13 | C29: Summary of Group Credit Business Revenue Accounts for the Year Ended 31.12.2017
B30: APPENDIX 14 | C30: Summary of Permanent Health Business Revenue Accounts for the Year Ended 31.12.2017
B31: APPENDIX 15 | C31: Summary of Investments Business Revenue Accounts for the Year Ended 31.12.2017
B32: APPENDIX 16 | C32: Summary of Long Term Business Combined Revenue Accounts for the Year Ended 31.12.2017
B33: APPENDIX 17 | C33: Summary of Long Term Insurance Business Actuarial Valuations as at 31.12.2017
B34: APPENDIX 18 | C34: Summary of Gross Direct Premiums under General Insurance Business for the Year Ended 31.12.2017
B35: APPENDIX 19 | C35: Summary of Inward Reinsurance Premiums under General Insurance Business for the Year Ended 31.12.2017
B36: APPENDIX 20 | C36: Summary of Gross Premium Incomes under General Insurance Business for the Year Ended 31.12.2017
B37: APPENDIX 21 | C37: Summary of Outward Reinsurance Premiums under General Insurance Business for the Year Ended 31.12.2017
B38: APPENDIX 22 | C38: Summary of Aviation Business Revenue Accounts for the Year Ended 31.12.2017
B39: APPENDIX 23 | C39: Summary of Engineering Business Revenue Accounts for the Year Ended 31.12.2017
B40: APPENDIX 24 | C40: Summary of Fire Domestic Business Revenue Accounts for the Year Ended 31.12.2017
B41: APPENDIX 25 | C41: Summary of Fire Industrial Business Revenue Accounts for the Year Ended 31.12.2017
B42: APPENDIX 26 | C42: Summary of Liability Business Revenue Accounts for the Year Ended 31.12.2017
B43: APPENDIX 27 | C43: Summary of Marine Business Revenue Accounts for the Year Ended 31.12.2017
B44: APPENDIX 28 | C44: Summary of Motor Private Business Revenue Accounts for the Year Ended 31.12.2017
B45: APPENDIX 29 | C45: Summary of Motor Commercial Business Revenue Accounts for the Year Ended 31.12.2017
B46: APPENDIX 30 | C46: Summary of Motor Psv Business Revenue Accounts for the Year Ended 31.12.2017
B47: APPENDIX 31 | C47: Summary of Personal Accident Business Revenue Accounts for the Year Ended 31.12.2017
B48: APPENDIX 32 | C48: Summary of Theft Business Revenue Accounts for the Year Ended 31.12.2017
B49: APPENDIX 33 | C49: Summary of Workmen'S Compensation Business Revenue Accounts for the Year Ended 31.12.2017
B50: APPENDIX 34 | C50: Summary of Medical Insurance Business Revenue Accounts for the Year Ended 31.12.2017
B51: APPENDIX 35 | C51: Summary of Miscellaneous Business Revenue Accounts for the Year Ended 31.12.2017
B52: APPENDIX 36 | C52: Summary of General Business Combined Revenue Accounts for the Year Ended 31.12.2017
B53: APPENDIX 37 | C53: Summary of Net Earned Premiums under General Insurance Business for the Year Ended 31.12.2017
B54: APPENDIX 38 | C54: Summary of Net Paid Claims under General Insurance Business for the Year Ended 31.12.2017
B55: APPENDIX 39 | C55: Summary of Net Incurred Claims under General Insurance Business for the Year Ended 31.12.2017
B56: APPENDIX 40 | C56: Summary of Incurred Claims Ratios under General Insurance Business for the Year Ended 31.12.2017
B57: APPENDIX 41 | C57: Summary of Underwriting Profits under General Insurance Business for the Year Ended 31.12.2017
B58: APPENDIX 42 | C58: Summary of Business in Force for General Insurers as at 31.12.2017
B59: APPENDIX 43 | C59: Summary of Business in Force for Long term Insurers as at 31.12.2017
B60: APPENDIX 44 | C60: Summary of Insurance Premium per County During the Year Ended 31.12.2017

Sheet T1
C3: Table 1: Economy and Insurance Industry Trends
C6: a) Economy and Insurance Indicators
C7: ira43505 | D7: Years
D8: 2012 | E8: 2013 | F8: 2014 | G8: 2015 | H8: 2016 | I8: 2017
C9: Gross Direct Premium (KES Bn) | D9: 111.91 | E9: 129.19 | F9: 155.8 | G9: 172.540122 | H9: 195.229647 | I9: 207.587451
C10: GDP (Market Prices) KES Bn | D10: 4261.37 | E10: 4745.1434 | F10: 5402.41 | G10: 6284.2 | H10: 7194.2 | I10: 7749.4
C11: GDP (%) growth rate (at market prices) | D11: 14.37099642 | E11: =(E10-D10)/D10*100 -> 11.35253217 | F11: =(F10-E10)/E10*100 -> 13.85135379 | G11: =(G10-F10)/F10*100 -> 16.32215992 | H11: =(H10-G10)/G10*100 -> 14.48076127 | I11: 7.717327847
C12: Insurance Penetration ratio (%) (at current prices) | D12: =(D9/D10)*100 -> 2.626150745 | E12: 2.722573147 | F12: 2.883898112 | G12: 2.745617931 | H12: 2.713708918 | I12: 2.678755142
C13: Population (Million) | D13: 40.7 | E13: 41.8 | F13: 43 | G13: 44.2 | H13: 45.4 | I13: 46.6*
C14: Insurance Density (KES) | D14: 2749.63145 | E14: =E9/E13*1000 -> 3090.669856 | F14: 3623.255814 | G14: 3903.62267 | H14: =H9/H13*1000 -> 4300.212489 | I14: 4454.6
C15: Lives Covered | D15: 0 | E15: 2.058619 | F15: 2.470662 | G15: 4.390843 | H15: 3.82463 | I15: 4.262338
C16: Policies | D16: 0 | E16: 2.77243 | F16: 3.815534 | G16: 2.702272 | H16: 3.390335 | I16: 3.139984
C17: Insurance cover (Lives/population) % | D17: 0 | E17: 4.924925837 | F17: 5.745725581 | G17: 9.934033937 | H17: 8.424295154 | I17: 9.1*
C18: Insurance Cover (policies/population) | D18: 0 | E18: 6.632607656 | F18: 8.873334884 | G18: 6.113737557 | H18: 7.467698238 | I18: 6.7*
C19: Rate of Inflation (%) | D19: 9.4 | E19: 5.7 | F19: 6.9 | G19: 6.6 | H19: 6.3 | I19: 8*
C20: Real Gross Direct Premium growth (%) | D20: 13.40835114 | E20: 9.215685297 | F20: 12.81344198 | G20: 3.88801369 | H20: 6.444298385 | I20: -1.5*
C21: Sources: KNBS and IRA statistics Note: Entries marked * are estimates
D22: =D19/100 -> 0.094 | E22: =E19/100 -> 0.057 | F22: 0.069 | G22: 0.066 | H22: 0.063 | J22: =H10*J19 -> 0
B23: GDP 2011 | C23: 90.2 | D23: 0.2407 | E23: =(E9-D9)/D9 -> 0.1544097936 | F23: =(F9-E9)/E9 -> 0.2059756947 | G23: 0.1074462259 | H23: 0.1315028918 | I23: 0.0632988083
C24: =((1+D23)/(1+D22)-1)*100 -> 13.4095064 | E24: =((1+E23)/(1+E22)-1)*100 -> 9.215685297 | F24: 12.81344198 | G24: 3.88801369 | H24: 6.444298385
C27: b) Trend in some key insurance indicators
C28: Item | D28: Years
D29: 2012 | E29: 2013 | F29: 2014 | G29: 2015 | H29: 2016 | I29: 2017
C30: Gross Premium Income | D30: 111911369.8 | E30: 135384923 | F30: 157732058 | G30: 174039164 | H30: 196635836 | I30: ='APPENDIX 6'!$J$32+'APPENDIX 36'!$D$43+'APPENDIX 36'!$E$43 -> 209001296
C31: Net Premium Written | D31: 87475982.8 | E31: 105013409 | F31: 126333481 | G31: 139377049 | H31: 158362431 | I31: ='APPENDIX 16'!$E$32+'APPENDIX 36'!$G$43 -> 165852034
C32: Claims Incurred (general business) | D32: 29465751.46 | E32: 34170145 | F32: 42677696 | G32: 48811202 | H32: 54857495 | I32: ='APPENDIX 36'!$M$43 -> 56151966
C33: Net commissions | D33: 6760077.91 | E33: 7204448 | F33: 14332657 | G33: 10833473 | H33: 12578735 | I33: ='APPENDIX 16'!$L$32+'APPENDIX 36'!$N$43 -> 12495182
C34: Expenses of Management | D34: 20239405.79 | E34: 24808273 | F34: 49249464 | G34: 35991670 | H34: 39982771 | I34: ='APPENDIX 16'!$M$32+'APPENDIX 36'!$O$43 -> 41197258
C35: Underwriting Results (general business) | D35: 3107092.704 | E35: 3402770 | F35: 1604507 | G35: -274188 | H35: -2125731 | I35: ='APPENDIX 36'!$P$43 -> -1027851
C36: Investment Income(P&L) | D36: 11119938.49 | E36: 9429214 | F36: 11095059 | G36: 6294523 | H36: 5338509 | I36: ='APPENDIX 1'!$D$48+'APPENDIX 2'!$D$38 -> 6596592
C37: Operating profit/loss after taxation | D37: 13104366.34 | E37: 20235881 | F37: 17232015 | G37: 13564434 | H37: 12835309 | I37: ='APPENDIX 1'!$L$48+'APPENDIX 2'!$L$38 -> 13642972
C38: Investments | D38: 240124681 | E38: 296336802 | F38: 355009404 | G38: 390225346 | H38: 425304138 | I38: =SUM('APPENDIX 4 III'!$L$19,'APPENDIX 4 III'!$L$21:$L$33,'APPENDIX5 IV'!$L$19,'APPENDIX5 IV'!$L$21:$L$33) -> 483799656
C39: Assets | D39: 311215873.2 | E39: 366252339 | F39: 430536097 | G39: 478752455 | H39: 528748193 | I39: ='APPENDIX 4 III'!$L$39+'APPENDIX5 IV'!$L$39 -> 590953330
C40: Shareholder’s Funds | D40: 77115760.72 | E40: 100958028 | F40: 114141212 | G40: 125830028 | H40: 134455222 | I40: ='APPENDIX 4 III'!$L$12+'APPENDIX5 IV'!$L$12 -> 147255002
C41: Amounts in Thousands

Sheet T2
C4: Table 2: Trends in Long-Term Insurance Business
C6: a) Summary of long term insurance business performance
C7: Indicators | D7: Years
D8: 2011 | E8: 2012 | F8: 2013 | G8: 2014 | H8: 2015 | I8: 2016 | J8: 2017
C9: Gross Direct Premium | D9: 31548898.45 | E9: 37185117 | F9: 44424411 | G9: 56581380 | H9: 62064805 | I9: 73519181 | J9: ='APPENDIX 16'!$D$32 -> 82807826
C10: Outward Reinsurance | D10: 2137692.297 | E10: 2480188 | F10: 2731261 | G10: 3856486 | H10: 4983380 | I10: 5666993 | J10: =J9-J11 -> 5860038
C11: Net Premiums | D11: 29411206.15 | E11: 34704929 | F11: 41693150 | G11: 52718917 | H11: 57081418 | I11: 67852188 | J11: ='APPENDIX 16'!$E$32 -> 76947788
C12: Management expenses | D12: 5630991.852 | E12: 6512656 | F12: 7637766 | G12: 28460004 | H12: 11279207 | I12: 12364010 | J12: ='APPENDIX 16'!$M$32 -> 12072033
C13: Net Commissions | D13: 2684291.114 | E13: 2961904 | F13: 3432164 | G13: 9618165 | H13: 5152743 | I13: 5474094 | J13: ='APPENDIX 16'!$L$32 -> 5448401
C14: Life Fund C/F | D14: 109053778.3 | E14: 144724941 | F14: 137229500 | G14: 193293550.3 | H14: 231885634 | I14: 255648171 | J14: ='APPENDIX 16'!$Q$32 -> 301571353
C17: b) Summary of long term insurance business performance per class
C18: Indicators | D18: Years
D19: 2013 | E19: 2014 | F19: 2015 | G19: 2016 | H19: 2017
C20: Gross Direct Premium
C21: Life Assurances | D21: 13310197 | E21: 14363846 | F21: 16783137 | G21: 18880725 | H21: ='APPENDIX 9'!$D$32 -> 21374928
C22: Annuities | D22: 1331213 | E22: 6358440 | F22: 4137425 | G22: 4698479 | H22: ='APPENDIX 10'!$D$32 -> 9834902
C23: Pensions | D23: 16089228 | E23: 14099531 | F23: 22002402 | G23: 28118598 | H23: ='APPENDIX 12'!$D$32 -> 29086157
C24: Group Life | D24: 3038834 | E24: 9331736 | F24: 9858591 | G24: 10600535 | H24: ='APPENDIX 11'!$D$32 -> 12765171
C25: Group Credit | D25: 1943 | E25: 4265352 | F25: 4816710 | G25: 6306075 | H25: ='APPENDIX 13'!$D$32 -> 5208397
C26: Permanent Health | D26: 6426533 | E26: 0 | F26: 0 | G26: 0 | H26: ='APPENDIX 14'!$D$32 -> 0
C27: Investments | D27: 4226463 | E27: 8163684 | F27: 4422409 | G27: 4914770 | H27: ='APPENDIX 15'!$D$32 -> 4538271
C28: Total | D28: =SUM(D21:D27) -> 44424411 | E28: =SUM(E21:E27) -> 56582589 | F28: =SUM(F21:F27) -> 62020674 | G28: 73519182 | H28: =SUM(H21:H27) -> 82807826
C29: Net Premiums
C30: Life Assurances | D30: 13114458 | E30: 14163998 | F30: 16562968 | G30: 18669399 | H30: ='APPENDIX 9'!$E$32 -> 21122113
C31: Annuities | D31: 1331213 | E31: 6358440 | F31: 4137425 | G31: 4698479 | H31: ='APPENDIX 10'!$E$32 -> 9834897
C32: Pensions | D32: 16089228 | E32: 14099531 | F32: 22002402 | G32: 28118598 | H32: ='APPENDIX 12'!$E$32 -> 29086157
C33: Group Life | D33: 3020236 | E33: 6020998 | F33: 5805185 | G33: 6412173 | H33: ='APPENDIX 11'!$E$32 -> 8666923
C34: Group Credit | D34: 1943 | E34: 3913711 | F34: 4106976 | G34: 5038769 | H34: ='APPENDIX 13'!$E$32 -> 3699427
C35: Permanent Health | D35: 4127806 | E35: 0 | F35: 0 | G35: 0 | H35: ='APPENDIX 14'!$E$32 -> 0
C36: Investments | D36: 4008265 | E36: 8163451 | F36: 4422331 | G36: 4914770 | H36: ='APPENDIX 15'!$E$32 -> 4538271
C37: Total | D37: =SUM(D30:D36) -> 41693149 | E37: =SUM(E30:E36) -> 52720129 | F37: =SUM(F30:F36) -> 57037287 | G37: 67852188 | H37: =SUM(H30:H36) -> 76947788
C38: Net Commissions
C39: Life Assurances | D39: 2930874 | E39: 3184836 | F39: 3760565 | G39: 4314129 | H39: ='APPENDIX 9'!$L$32 -> 4089626
C40: Annuities | D40: 18430 | E40: 137180 | F40: 103094 | G40: 71677 | H40: ='APPENDIX 10'!$L$32 -> 174395
C41: Pensions | D41: 134547 | E41: 161911 | F41: 191723 | G41: 350075 | H41: ='APPENDIX 12'!$L$32 -> 320131
C42: Group Life | D42: 128988 | E42: 92494 | F42: 222082 | G42: 89220 | H42: ='APPENDIX 11'!$L$32 -> 351110
C43: Group Credit | D43: 13 | E43: 189041 | F43: 441028 | G43: 427617 | H43: ='APPENDIX 13'!$L$32 -> 319000
C44: Permanent Health | D44: -26090 | E44: 0 | F44: 0 | G44: 0 | H44: ='APPENDIX 14'!$L$32 -> 0
C45: Investments | D45: 245399 | E45: 448182 | F45: 434248 | G45: 221377 | H45: ='APPENDIX 15'!$L$32 -> 194139
C46: Total | D46: =SUM(D39:D45) -> 3432161 | E46: =SUM(E39:E45) -> 4213644 | F46: =SUM(F39:F45) -> 5152740 | G46: 5474095 | H46: =SUM(H39:H45) -> 5448401
C47: Management Expenses
C48: Life Assurances | D48: 4061029 | E48: 5216983 | F48: 5978723 | G48: 6864778 | H48: ='APPENDIX 9'!$M$32 -> 6046834
C49: Annuities | D49: 73522 | E49: 190496 | F49: 269555 | G49: 216835 | H49: ='APPENDIX 10'!$M$32 -> 230153
C50: Pensions | D50: 955924 | E50: 1059753 | F50: 1283823 | G50: 1239403 | H50: ='APPENDIX 12'!$M$32 -> 1462202
C51: Group Life | D51: 678354 | E51: 1486792 | F51: 1578524 | G51: 1573914 | H51: ='APPENDIX 11'!$M$32 -> 1830361
C52: Group Credit | D52: 0 | E52: 937610 | F52: 1290586 | G52: 1586621 | H52: ='APPENDIX 13'!$M$32 -> 1609944
C53: Permanent Health | D53: 1037683 | E53: 0 | F53: 0 | G53: 0 | H53: ='APPENDIX 14'!$M$32 -> 0
C54: Investments | D54: 831259 | E54: 740921 | F54: 877989 | G54: 882462 | H54: ='APPENDIX 15'!$M$32 -> 892539
C55: Total | D55: =SUM(D48:D54) -> 7637771 | E55: =SUM(E48:E54) -> 9632555 | F55: =SUM(F48:F54) -> 11279200 | G55: =SUM(G48:G54) -> 12364013 | H55: =SUM(H48:H54) -> 12072033
C56: Amounts in '000' KES

Sheet T3
C4: Table 3: Trends in General Insurance Business
C7: a) Classwise GDP under general insurance business
C8: Class of business | D8: Years
D9: 2012 | E9: 2013 | F9: 2014 | G9: 2015 | H9: 2016 | I9: 2017
C10: Aviation | D10: 790955 | E10: 1127429 | F10: 1200632 | G10: 1484892 | H10: 1476801 | I10: ='APPENDIX 18'!C$43 -> 1726496
C11: Engineering | D11: 2339157.001 | E11: 2776577 | F11: 3547973 | G11: 3794202 | H11: 3473125 | I11: ='APPENDIX 18'!D$43 -> 4190323
C12: Fire Domestic | D12: 1119609.69 | E12: 1272835 | F12: 1347967 | G12: 1388204 | H12: 1482865 | I12: ='APPENDIX 18'!E$43 -> 1570425
C13: Fire industrial | D13: 6574404.945 | E13: 7637802 | F13: 8757929 | G13: 9547284 | H13: 10062935 | I13: ='APPENDIX 18'!F$43 -> 11130626
C14: Liability | D14: 1354557.883 | E14: 1560128 | F14: 1891331 | G14: 2191880 | H14: 2520106 | I14: ='APPENDIX 18'!G$43 -> 2817584
C15: Marine | D15: 2579984.172 | E15: 2775148 | F15: 2726463 | G15: 2852402 | H15: 2604270 | I15: ='APPENDIX 18'!H$43 -> 3555639
C16: Motor Private | D16: 12424520.39 | E16: 13909445 | F16: 16382944 | G16: 18430997 | H16: 20460256 | I16: ='APPENDIX 18'!I$43 -> 21484964
C17: Motor Commercial | D17: 17391014.4 | E17: 19536285 | F17: 22553021 | G17: 24091465 | H17: 24025770 | I17: ='APPENDIX 18'!J$43+'APPENDIX 18'!K$43 -> 23226291
C18: Personal Accident | D18: 3007418.967 | E18: 3250304 | F18: 3604559 | G18: 3882018 | H18: 3997282 | I18: ='APPENDIX 18'!L$43 -> 3516204
C19: Theft | D19: 2866936.43 | E19: 3289650 | F19: 3553715 | G19: 3786845 | H19: 3774820 | I19: ='APPENDIX 18'!M$43 -> 3784701
C20: Workmen's Compensation | D20: 4141555.007 | E20: 4666576 | F20: 5174648 | G20: 5346077 | H20: 5601571 | I20: ='APPENDIX 18'!N$43 -> 5675906
C21: Medical | D21: 16140768.87 | E21: 20507131 | F21: 25315035 | G21: 29516467 | H21: 38520439 | I21: ='APPENDIX 18'!O$43 -> 38337371
C22: Miscellaneous | D22: 2177179.349 | E22: 2456310 | F22: 3120075 | G22: 3487951 | H22: 3710221 | I22: ='APPENDIX 18'!P$43 -> 3763080
C23: Total | D23: =SUM(D10:D22) -> 72908062.1 | E23: =SUM(E10:E22) -> 84765620 | F23: =SUM(F10:F22) -> 99176292 | G23: =SUM(G10:G22) -> 109800684 | H23: =SUM(H10:H22) -> 121710461 | I23: =SUM(I10:I22) -> 124779610
C24: Amounts in '000' KES
C27: b) Incurred claims under general insurance business
C28: Class of business | D28: Years
D29: 2012 | E29: 2013 | F29: 2014 | G29: 2015 | H29: 2016 | I29: 2017
C30: Aviation | D30: 4377 | E30: 15144 | F30: 5915 | G30: 12888 | H30: 69815 | I30: ='APPENDIX 39'!C$43 -> -48571
C31: Engineering | D31: 263547.4979 | E31: 301706 | F31: 366679 | G31: 468625 | H31: 448796 | I31: ='APPENDIX 39'!D$43 -> 431756
C32: Fire Domestic | D32: 273635.8533 | E32: 337000 | F32: 289864 | G32: 483004 | H32: 523792 | I32: ='APPENDIX 39'!E$43 -> 309981
C33: Fire industrial | D33: 699653.0711 | E33: 803448 | F33: 801192 | G33: 1177669 | H33: 988870 | I33: ='APPENDIX 39'!F$43 -> 1100373
C34: Liability | D34: 405069.6503 | E34: 253807 | F34: 316224 | G34: 430841 | H34: 661618 | I34: ='APPENDIX 39'!G$43 -> 340822
C35: Marine | D35: 811209.1715 | E35: 560436 | F35: 566269 | G35: 631426 | H35: 503037 | I35: ='APPENDIX 39'!H$43 -> 725376
C36: Motor Private | D36: 7749039.397 | E36: 8784204 | F36: 10957919 | G36: 12723572 | H36: 14968463 | I36: ='APPENDIX 39'!I$43 -> 14181895
C37: Motor Commercial | D37: 8687281.952 | E37: 9271908 | F37: 10746378 | G37: 12858229 | H37: 12750248 | I37: ='APPENDIX 39'!J$43+'APPENDIX 39'!K$43 -> 12646816
C38: Personal Accident | D38: 747349.3958 | E38: 884041 | F38: 1296968 | G38: 672415 | H38: 1237073 | I38: ='APPENDIX 39'!L$43 -> 1081310
C39: Theft | D39: 1124063.218 | E39: 1143607 | F39: 1238056 | G39: 770640 | H39: 1192206 | I39: ='APPENDIX 39'!M$43 -> 969900
C40: Workmen's Compensation | D40: 1873413.912 | E40: 2024589 | F40: 2649305 | G40: 2666925 | H40: 2987368 | I40: ='APPENDIX 39'!N$43 -> 3126587
C41: Medical | D41: 6538485.076 | E41: 9260252 | F41: 12774064 | G41: 15063107 | H41: 18095577 | I41: ='APPENDIX 39'!O$43 -> 20632162
C42: Miscellaneous | D42: 288626.2694 | E42: 529996 | F42: 668871 | G42: 851856 | H42: 430629 | I42: ='APPENDIX 39'!P$43 -> 653554
C43: Total | D43: =SUM(D30:D42) -> 29465751.46 | E43: =SUM(E30:E42) -> 34170138 | F43: 42677704 | G43: 48811197 | H43: 54857492 | I43: 56151961
C44: Amounts in '000' KES
C47: c) Classwise underwriting results- General
C48: Class of business | D48: Years
D49: 2012 | E49: 2013 | F49: 2014 | G49: 2015 | H49: 2016 | I49: 2017
C50: Aviation | D50: 26896 | E50: 4944 | F50: -20306 | G50: -59485 | H50: -90552 | I50: ='APPENDIX 41'!C$43 -> -253123
C51: Engineering | D51: 97176.72 | E51: 80353 | F51: -121414 | G51: 75372 | H51: -58087 | I51: ='APPENDIX 41'!D$43 -> 70708
C52: Fire Domestic | D52: 211224.7679 | E52: 145523 | F52: 258437 | G52: -19648 | H52: 44379 | I52: ='APPENDIX 41'!E$43 -> 238670
C53: Fire industrial | D53: 267952.91 | E53: 337267 | F53: -24125 | G53: 16134 | H53: 37031 | I53: ='APPENDIX 41'!F$43 -> -116886
C54: Liability | D54: -98008.44771 | E54: 161704 | F54: 520157 | G54: 92095 | H54: 139993 | I54: ='APPENDIX 41'!G$43 -> 469143
C55: Marine | D55: 31458.62885 | E55: 412861 | F55: 870568 | G55: 148713 | H55: 312675 | I55: ='APPENDIX 41'!H$43 -> 322049
C56: Motor Private | D56: -97922.99026 | E56: -693880 | F56: -1732887 | G56: -3101547 | H56: -3291827 | I56: ='APPENDIX 41'!I$43 -> -2930081
C57: Motor Commercial | D57: 1597789.511 | E57: 1403051 | F57: 1408890 | G57: 725825 | H57: 820734 | I57: ='APPENDIX 41'!J$43+'APPENDIX 41'!K$43 -> 933287
C58: Personal Accident | D58: 223070.4293 | E58: 192881 | F58: 91968 | G58: 832092 | H58: -341214 | I58: ='APPENDIX 41'!L$43 -> -178485
C59: Theft | D59: 130056.2027 | E59: 185391 | F59: 396536 | G59: 617293 | H59: 180312 | I59: ='APPENDIX 41'!M$43 -> 473312
C60: Workmen's Compensation | D60: 491333.7336 | E60: 424801 | F60: 84434 | G60: 56231 | H60: -100665 | I60: ='APPENDIX 41'!N$43 -> -223460
C61: Medical | D61: -277195.6081 | E61: 282523 | F61: -396895 | G61: -118033 | H61: -621635 | I61: ='APPENDIX 41'!O$43 -> 82523
C62: Miscellaneous | D62: 503260.8467 | E62: 465349 | F62: 269146 | G62: 508677 | H62: 843122 | I62: ='APPENDIX 41'!P$43 -> 84499
C63: Total | D63: =SUM(D50:D62) -> 3107092.704 | E63: =SUM(E50:E62) -> 3402768 | F63: 1604509 | G63: -226281 | H63: -2125734 | I63: -1027844
C64: Amounts in '000' KES

Sheet T4
C5: Table 4: Trends in Re-Insurance Business
C7: a) Performance for long term reinsurers
C8: Item | D8: Years
D9: 2012 | E9: 2013 | F9: 2014 | G9: 2015 | H9: 2016 | I9: 2017
C10: Life Assurances
C11: Inward reinsurance premium | D11: 155570 | E11: 174580 | F11: 134022 | G11: 114245 | H11: 152658 | I11: ='APPENDIX 9'!$D$37 -> 179830
C12: outward reinsurance premium | D12: 24190 | E12: 18743 | F12: 1971 | G12: 4689 | H12: 17602 | I12: =I11-I13 -> 22747
C13: Net premium income | D13: 131380 | E13: 155837 | F13: 119828 | G13: 119828 | H13: 135056 | I13: ='APPENDIX 9'!$E$37 -> 157083
C14: Management expenses | D14: 15557 | E14: 29506 | F14: 71834 | G14: 54739 | H14: 18330 | I14: ='APPENDIX 9'!$M$37 -> 26601
C15: Net commissions | D15: 22836 | E15: 50521 | F15: 21550 | G15: 21550 | H15: 59375 | I15: ='APPENDIX 9'!$L$37 -> 47993
C16: Life fund c/f | D16: 1265903 | E16: 1033636 | F16: 1171464 | G16: 1177990 | H16: 1203305 | I16: ='APPENDIX 9'!Q37 -> 1241040
C17: Group Life
C18: Inward reinsurance premium | D18: 1270913 | E18: 1318142 | F18: 1485325 | G18: 1971822 | H18: 2247254 | I18: ='APPENDIX 11'!$D$37 -> 2591325
C19: outward reinsurance premium | D19: 195114 | E19: 146482 | F19: 32671 | G19: 48362 | H19: 305800 | I19: =I18-I20 -> 303096
C20: Net premium income | D20: 1075799 | E20: 1171660 | F20: 1301827 | G20: 1718421 | H20: 1941454 | I20: ='APPENDIX 11'!$E$37 -> 2288229
C21: Management expenses | D21: 115031 | E21: 218806 | F21: 558274 | G21: 699719 | H21: 249450 | I21: ='APPENDIX 11'!$M$37 -> 325124
C22: Net commissions | D22: 244731 | E22: 283922 | F22: 224720 | G22: 287252 | H22: 546986 | I22: ='APPENDIX 11'!$L$37 -> 624144
C23: Life fund | D23: 3589953 | E23: 4491195 | F23: 5121829 | G23: 5748174 | H23: 5445849 | I23: ='APPENDIX 11'!Q37 -> 5975024
C24: Amounts in '000' KES
C27: b) Underwriting results under general reinsurance business
C28: Class of business | D28: Years
D29: 2012 | E29: 2013 | F29: 2014 | G29: 2015 | H29: 2016 | I29: 2017
C30: Aviation | D30: -14178.66267 | E30: 3331 | F30: -22366 | G30: 74718 | H30: -19756 | I30: ='APPENDIX 41'!C$48 -> -12834
C31: Engineering | D31: 295653.1393 | E31: 280151 | F31: 110074 | G31: 228806 | H31: 205944 | I31: ='APPENDIX 41'!D$48 -> 172210
C32: Fire Domestic | D32: 1761.970402 | E32: -9183 | F32: 1862 | G32: 329788 | H32: -19084 | I32: ='APPENDIX 41'!E$48 -> 8328
C33: Fire industrial | D33: 132706.8731 | E33: 560765 | F33: 629912 | G33: -691401 | H33: -671791 | I33: ='APPENDIX 41'!F$48 -> -612432
C34: Liability | D34: 27148.74238 | E34: 39519 | F34: 85149 | G34: 46463 | H34: 63275 | I34: ='APPENDIX 41'!G$48 -> 51506
C35: Marine | D35: 200164.3129 | E35: 140630 | F35: 286894 | G35: 80212 | H35: 47746 | I35: ='APPENDIX 41'!H$48 -> 152505
C36: Motor Private | D36: 7146.17343 | E36: 3145 | F36: 8360 | G36: 7999 | H36: 18107 | I36: ='APPENDIX 41'!I$48 -> 48544
C37: Motor Commercial | D37: -70350.00172 | E37: 91193 | F37: 102325 | G37: 644 | H37: 120356 | I37: ='APPENDIX 41'!J$48+'APPENDIX 41'!K48 -> 269786
C38: Personal Accident | D38: -139010.4718 | E38: -109200 | F38: -379110 | G38: -93734 | H38: 583453 | I38: ='APPENDIX 41'!L$48 -> 38268
C39: Theft | D39: -104137.0311 | E39: -205259 | F39: -150893 | G39: 106261 | H39: 142121 | I39: ='APPENDIX 41'!M$48 -> 264811
C40: Workmen's Compensation | D40: 14076.58206 | E40: -4749 | F40: 9437 | G40: 234983 | H40: 3264 | I40: ='APPENDIX 41'!N$48 -> 9140
C41: Medical | D41: -457870.9511 | E41: -672213 | F41: -369149 | G41: -525036 | H41: -650108 | I41: ='APPENDIX 41'!O$48 -> -236752
C42: Miscellaneous | D42: 122190.4053 | E42: 115441 | F42: 96243 | G42: 373455 | H42: 464570 | I42: ='APPENDIX 41'!P$48 -> 230594
C43: Total | D43: =SUM(D30:D42) -> 15301.08044 | E43: =SUM(E30:E42) -> 233571 | F43: 408738 | G43: 173158 | H43: 288097 | I43: 383674
C44: Amounts in '000' KES

Sheet APPENDIX 1
B2: APPENDIX 1: SUMMARY OF PROFIT & LOSS ACCOUNTS UNDER GENERAL INSURANCE BUSINESS FOR THE YEAR ENDED 31.12.2017
B3: Company | C3: Profit Transferred from Revenue | D3: Investment Income | E3: Other Income | F3: Total Income | G3: Loss Transferred From Revenue | H3: Management Expenses | I3: Total Outgo | J3: Profit / (Loss) Before Taxation | K3: Provision for Taxation | L3: Profit/(Loss) After Taxation | M3: Unappropriated Profit/(Loss) BF | N3: Transfer To Reserves | O3: Other Appropriations | P3: Dividend | Q3: Unappropriated Profit /(Loss) CF
B4: INSURERS
B5: AAR INSURANCE KENYA | C5: 0 | D5: 241139 | E5: 50949 | F5: 292088 | G5: 709932 | H5: 0 | I5: 753366 | J5: -461279 | K5: -118796 | L5: -342483 | M5: -2354 | N5: 0 | O5: 0 | P5: 0 | Q5: -344837
B6: AFRICAN MERCHANT ASSURANCE | C6: 0 | D6: 0 | E6: 0 | F6: 0 | G6: 25421 | H6: 0 | I6: 25421 | J6: -25421 | K6: -8007 | L6: -17414 | M6: 523649 | N6: 0 | O6: 0 | P6: 0 | Q6: 506236
B7: AIG INSURANCE COMPANY | C7: 264241 | D7: 320928 | E7: -12477 | F7: 572693 | G7: 0 | H7: 0 | I7: 0 | J7: 572693 | K7: 155838 | L7: 416855 | M7: 1215782 | N7: 0 | O7: 0 | P7: 300000 | Q7: 1332637
B8: ALLIANZ INSURANCE COMPANY | C8: 0 | D8: 0 | E8: 0 | F8: 0 | G8: 176582 | H8: 0 | I8: 176582 | J8: -176582 | K8: -49525 | L8: -127057 | M8: -27606 | N8: 0 | O8: 0 | P8: 0 | Q8: -154663
B9: APA INSURANCE COMPANY | C9: 66132 | D9: 1062559 | E9: 26066 | F9: 1154757 | G9: 0 | H9: 0 | I9: 362499 | J9: 792258 | K9: 132495 | L9: 659764 | M9: 3818038 | N9: 0 | O9: 0 | P9: 200000 | Q9: 4277802
B10: BRITAM GENERAL INSURANCE | C10: 544601 | D10: 0 | E10: 0 | F10: 544601 | G10: 0 | H10: 0 | I10: 0 | J10: 544601 | K10: 74992 | L10: 469608 | M10: 246958 | N10: 0 | O10: 0 | P10: 0 | Q10: 716566
B11: CANNON ASSURANCE COMPANY | C11: 0 | D11: 102383 | E11: 0 | F11: 102383 | G11: 273201 | H11: 0 | I11: 273201 | J11: -170818 | K11: -9572 | L11: -161246 | M11: 32810 | N11: 0 | O11: 137501 | P11: 0 | Q11: -265937
B12: CIC GENERAL INSURANCE COMPANY | C12: 335212 | D12: 0 | E12: 0 | F12: 335212 | G12: 0 | H12: 0 | I12: 0 | J12: 335212 | K12: 63337 | L12: 271875 | M12: 2379582 | N12: 0 | O12: 0 | P12: 182000 | Q12: 2469456
B13: CORPORATE INSURANCE COMPANY | C13: 42883 | D13: 0 | E13: 0 | F13: 42883 | G13: 0 | H13: 0 | I13: 0 | J13: 42883 | K13: 13679 | L13: 29204 | M13: 526734 | N13: 0 | O13: 0 | P13: 8000 | Q13: 547938
B14: DIRECTLINE ASSURANCE COMPANY | C14: 103159 | D14: 137966 | E14: 35919 | F14: 277044 | G14: 0 | H14: 105331 | I14: 108268 | J14: 168776 | K14: 49103 | L14: 119673 | M14: 731479 | N14: 0 | O14: 0 | P14: 0 | Q14: 851153
B15: FIDELITY SHIELD INSURANCE | C15: 7744 | D15: 146912 | E15: 0 | F15: 154656 | G15: 0 | H15: 39778 | I15: 136910 | J15: 17746 | K15: 496 | L15: 17251 | M15: 461593 | N15: 0 | O15: 0 | P15: 0 | Q15: 478844
B16: FIRST ASSURANCE COMPANY | C16: 0 | D16: 179263 | E16: 0 | F16: 179263 | G16: 194248 | H16: 0 | I16: 194248 | J16: -14985 | K16: 41971 | L16: -56955 | M16: 811994 | N16: -160 | O16: 41328 | P16: 251477 | Q16: 462393
B17: GA INSURANCE COMPANY | C17: 1041618 | D17: 0 | E17: 0 | F17: 1041618 | G17: 0 | H17: 0 | I17: 0 | J17: 1041618 | K17: 256731 | L17: 784887 | M17: 1089453 | N17: 27776 | O17: 0 | P17: 0 | Q17: 1846564
B18: GEMINIA INSURANCE COMPANY | C18: 397677 | D18: 0 | E18: 2361 | F18: 400038 | G18: 0 | H18: 2735 | I18: 11335 | J18: 388702 | K18: 116383 | L18: 272319 | M18: 441141 | N18: 0 | O18: 0 | P18: 70000 | Q18: 643461
B19: HERITAGE INSURANCE COMPANY | C19: 889708 | D19: 0 | E19: 0 | F19: 889708 | G19: 0 | H19: 118726 | I19: 118726 | J19: 770982 | K19: 193892 | L19: 577090 | M19: 2024681 | N19: 0 | O19: 0 | P19: 0 | Q19: 2601771
B20: ICEA LION GENERAL INSURANCE | C20: 226828 | D20: 954474 | E20: 0 | F20: 1181302 | G20: 0 | H20: 86913 | I20: 137085 | J20: 1044217 | K20: 242371 | L20: 801847 | M20: 2146659 | N20: 0 | O20: 0 | P20: 200000 | Q20: 2748506
B21: INTRA-AFRICA ASSURANCE | C21: 30554 | D21: 24619 | E21: 16514 | F21: 71687 | G21: 0 | H21: 14425 | I21: 23564 | J21: 48123 | K21: 15882 | L21: 32240 | M21: 88377 | N21: 0 | O21: 0 | P21: 10000 | Q21: 110617
B22: INVESCO ASSURANCE COMPANY | C22: 0 | D22: 34827 | E22: 58 | F22: 34885 | G22: 262954 | H22: 0 | I22: 263384 | J22: -228499 | K22: -54351 | L22: -174148 | M22: -1336363 | N22: 0 | O22: 0 | P22: 0 | Q22: -1510511
B23: JUBILEE INSURANCE COMPANY | C23: 1997129 | D23: 0 | E23: 0 | F23: 1997129 | G23: 0 | H23: 0 | I23: 0 | J23: 1997129 | K23: 411472 | L23: 1585657 | M23: 3530573 | N23: 0 | O23: 0 | P23: 1000000 | Q23: 4116230
B24: KENINDIA ASSURANCE COMPANY | C24: 349183 | D24: 0 | E24: 63428 | F24: 412611 | G24: 0 | H24: 17201 | I24: 158816 | J24: 253795 | K24: 68621 | L24: 185174 | M24: 1858986 | N24: 0 | O24: -1092 | P24: 0 | Q24: 2045252
B25: KENYA ORIENT INSURANCE | C25: 0 | D25: 138198 | E25: 4876 | F25: 143074 | G25: 14696 | H25: 85327 | I25: 134356 | J25: 8718 | K25: -6555 | L25: 15273 | M25: -160259 | N25: 0 | O25: 0 | P25: 0 | Q25: -144987
B26: MADISON INSURANCE COMPANY | C26: 71608 | D26: 0 | E26: 0 | F26: 71608 | G26: 0 | H26: 0 | I26: 0 | J26: 71608 | K26: 8658 | L26: 62950 | M26: 761937 | N26: 0 | O26: 0 | P26: 0 | Q26: 824887
B27: MAYFAIR INSURANCE COMPANY | C27: 260755 | D27: 218960 | E27: -33148 | F27: 446568 | G27: 0 | H27: 3764 | I27: 37027 | J27: 409540 | K27: 139024 | L27: 270516 | M27: 884909 | N27: 0 | O27: 0 | P27: 250000 | Q27: 905425
B28: OCCIDENTAL INSURANCE COMPANY | C28: 194278 | D28: 0 | E28: 519 | F28: 194797 | G28: 0 | H28: 63544 | I28: 79768 | J28: 115029 | K28: 21618 | L28: 93411 | M28: 340918 | N28: 0 | O28: 0 | P28: 32571 | Q28: 401758
B29: PACIS INSURANCE COMPANY | C29: 69726 | D29: 0 | E29: 0 | F29: 69726 | G29: 0 | H29: 0 | I29: 0 | J29: 69726 | K29: 25800 | L29: 43926 | M29: 389461 | N29: 0 | O29: 0 | P29: 25250 | Q29: 408138
B30: PHOENIX OF EAST AFRICA | C30: 0 | D30: 0 | E30: 0 | F30: 0 | G30: 14867 | H30: 0 | I30: 14867 | J30: -14867 | K30: 0 | L30: -14867 | M30: 710314 | N30: 0 | O30: 0 | P30: 0 | Q30: 695447
B31: PIONEER GENERAL INSURANCE | C31: 0 | D31: 58645 | E31: 0 | F31: 58645 | G31: 53601 | H31: 0 | I31: 53601 | J31: 5044 | K31: 1901 | L31: 3143 | M31: 0 | N31: 0 | O31: 0 | P31: 0 | Q31: 3143
B32: RESOLUTION INSURANCE COMPANY | C32: 0 | D32: 0 | E32: 0 | F32: 0 | G32: 718628 | H32: 0 | I32: 718628 | J32: -718628 | K32: -193208 | L32: -525420 | M32: -1186931 | N32: 0 | O32: 0 | P32: 0 | Q32: -1712351
B33: SAHAM INSURANCE COMPANY | C33: 104803 | D33: 0 | E33: 0 | F33: 104803 | G33: 0 | H33: 0 | I33: 0 | J33: 104803 | K33: 26314 | L33: 78489 | M33: 149779 | N33: 0 | O33: 0 | P33: 0 | Q33: 228268
B34: SANLAM LIFE INSURANCE | C34: 102508 | D34: 0 | E34: 0 | F34: 102508 | G34: 0 | H34: 0 | I34: 0 | J34: 102508 | K34: 33669 | L34: 68839 | M34: -274293 | N34: 0 | O34: 0 | P34: 0 | Q34: -205454
B35: TAKAFUL INSURANCE OF AFRICA | C35: 0 | D35: 0 | E35: 56211 | F35: 56211 | G35: 175533 | H35: 37527 | I35: 213060 | J35: -156849 | K35: -43779 | L35: -113070 | M35: -23154 | N35: 0 | O35: 0 | P35: 0 | Q35: -136224
B36: TAUSI ASSURANCE COMPANY | C36: 106099 | D36: 200749 | E36: 23299 | F36: 330148 | G36: 0 | H36: 7065 | I36: 17250 | J36: 312898 | K36: 63962 | L36: 248936 | M36: 372332 | N36: 0 | O36: -3080 | P36: 72000 | Q36: 552348
B37: THE KENYAN ALLIANCE INSURANCE | C37: 273837 | D37: 0 | E37: 0 | F37: 273837 | G37: 0 | H37: 0 | I37: 0 | J37: 273837 | K37: 99597 | L37: 174239 | M37: 930673 | N37: 0 | O37: 0 | P37: 12884 | Q37: 1092028
B38: THE MONARCH INSURANCE | C38: 68694 | D38: 23484 | E38: 37923 | F38: 130100 | G38: 0 | H38: 9163 | I38: 66130 | J38: 63970 | K38: 10006 | L38: 53964 | M38: 57312 | N38: 0 | O38: 0 | P38: 0 | Q38: 111277
B39: TRIDENT INSURANCE COMPANY | C39: 0 | D39: 35528 | E39: 0 | F39: 35528 | G39: 119287 | H39: 39408 | I39: 158695 | J39: -123167 | K39: 19114 | L39: -142281 | M39: 1467160 | N39: -8363 | O39: 0 | P39: 0 | Q39: 1333242
B40: UAP INSURANCE COMPANY | C40: 1324148 | D40: 0 | E40: 0 | F40: 1324148 | G40: 0 | H40: 0 | I40: 0 | J40: 1324148 | K40: 354933 | L40: 969215 | M40: 4787885 | N40: 291783 | O40: 0 | P40: 780000 | Q40: 4685317
B41: XPLICO INSURANCE COMPANY | C41: 0 | D41: 0 | E41: 70800 | F41: 70800 | G41: 9169 | H41: 0 | I41: 9169 | J41: 61631 | K41: 8914 | L41: 52717 | M41: 170404 | N41: 0 | O41: 0 | P41: 0 | Q41: 223121
B42: TOTAL | C42: =SUM(C5:C41) -> 8873125 | D42: 3880634 | E42: 343298 | F42: 13097059 | G42: 2748119 | H42: 630907 | I42: 4245956 | J42: 8851100 | K42: 2166980 | L42: 6684121 | M42: 29940613 | N42: 311036 | O42: 174657 | P42: 3394182 | Q42: 32744861
B43: REINSURERS
B44: CONTINENTAL REINSURANCE | C44: 0 | D44: 44063 | E44: 0 | F44: 44063 | G44: 19215 | H44: 113572 | I44: 132786 | J44: -88723 | K44: -36418 | L44: -52305 | M44: 308578 | N44: 0 | O44: 0 | P44: 0 | Q44: 256273
B45: EAST AFRICA REINSURANCE | C45: 122595 | D45: 485631 | E45: 7788 | F45: 616013 | G45: 0 | H45: 0 | I45: 49828 | J45: 566186 | K45: 137261 | L45: 428924 | M45: 1223536 | N45: -98283 | O45: 0 | P45: 100000 | Q45: 1650744
B46: KENYA REINSURANCE CORPORATION | C46: 3022873 | D46: 1058934 | E46: 61138 | F46: 4142945 | G46: 0 | H46: 0 | I46: 0 | J46: 4142945 | K46: 764156 | L46: 3378789 | M46: 18226843 | N46: 0 | O46: 36882 | P46: 559959 | Q46: 21008791
B47: TOTAL | C47: =SUM(C44:C46) -> 3145468 | D47: =SUM(D44:D46) -> 1588628 | E47: =SUM(E44:E46) -> 68926 | F47: 4803021 | G47: 19215 | H47: 113572 | I47: 182614 | J47: 4620408 | K47: 864999 | L47: 3755408 | M47: 19758957 | N47: -98283 | O47: 36882 | P47: 659959 | Q47: 22915808
B48: GRAND TOTAL | C48: =C42+C47 -> 12018593 | D48: =D42+D47 -> 5469262 | E48: 412224 | F48: 17900080 | G48: 2767334 | H48: 744479 | I48: 4428570 | J48: 13471508 | K48: 3031979 | L48: 10439529 | M48: 49699570 | N48: 212753 | O48: 211539 | P48: 4054141 | Q48: 55660669
B49: Amounts in Thousand Shillings

Sheet APPENDIX 2
B3: APPENDIX 2: SUMMARY OF PROFIT & LOSS ACCOUNTS UNDER LONG TERM INSURANCE BUSINESS FOR THE YEAR ENDED 31.12.2017
B4: Company | C4: Profit Transferred from Revenue | D4: Investment Income | E4: Other Income | F4: Total Income | G4: Loss Transferred From Revenue | H4: Management Expenses | I4: Total Outgo | J4: Profit / (Loss) Before Taxation | K4: Provision for Taxation | L4: Profit/(Loss) After Taxation | M4: Unappropriated Profit/(Loss) BF | N4: Transfer To Reserves | O4: Other Appropriations | P4: Dividend | Q4: Unappropriated Profit /(Loss) CF
B5: INSURERS
B6: APA LIFE ASSURANCE COMPANY | C6: 13181 | D6: 37543 | E6: 0 | F6: 50724 | G6: 85000 | H6: 10740 | I6: 95740 | J6: -45016 | K6: 0 | L6: -45016 | M6: -89450 | N6: 0 | O6: 0 | P6: 0 | Q6: -134467
B7: BARCLAYS LIFE | C7: 0 | D7: 77385 | E7: 0 | F7: 77385 | G7: 0 | H7: 0 | I7: 0 | J7: 77385 | K7: -194700 | L7: 272085 | M7: 0 | N7: 0 | O7: 0 | P7: 0 | Q7: 272085
B8: BRITAM LIFE | C8: 500500 | D8: 0 | E8: 0 | F8: 500500 | G8: 0 | H8: 0 | I8: 0 | J8: 500500 | K8: 0 | L8: 500500 | M8: 0 | N8: 0 | O8: 0 | P8: 500500 | Q8: 0
B9: CANNON ASSURANCE COMPANY | C9: 0 | D9: 0 | E9: 0 | F9: 0 | G9: 0 | H9: 0 | I9: 0 | J9: 0 | K9: 4990 | L9: -4990 | M9: 461946 | N9: 0 | O9: 0 | P9: 0 | Q9: 456956
B10: CAPEX LIFE ASSURANCE COMPANY | C10: 0 | D10: 0 | E10: -12797 | F10: -12797 | G10: 0 | H10: 0 | I10: 0 | J10: -12797 | K10: 0 | L10: -12797 | M10: 45023 | N10: 0 | O10: 0 | P10: 0 | Q10: 32225
B11: CIC LIFE ASSURANCE COMPANY | C11: 115000 | D11: 0 | E11: 0 | F11: 115000 | G11: 0 | H11: 0 | I11: 0 | J11: 115000 | K11: 35000 | L11: 80000 | M11: 0 | N11: 0 | O11: 0 | P11: 80000 | Q11: 0
B12: CORPORATE INSURANCE COMPANY | C12: 6930 | D12: 0 | E12: 0 | F12: 6930 | G12: 0 | H12: 0 | I12: 0 | J12: 6930 | K12: 5992 | L12: 939 | M12: 151264 | N12: 0 | O12: 0 | P12: 0 | Q12: 152203
B13: FIRST ASSURANCE COMPANY | C13: 0 | D13: 0 | E13: 0 | F13: 0 | G13: 0 | H13: 0 | I13: 0 | J13: 0 | K13: 14540 | L13: -14540 | M13: 0 | N13: -14540 | O13: 0 | P13: 0 | Q13: 0
B14: GA LIFE ASSURANCE COMPANY | C14: 29966 | D14: 0 | E14: 9855 | F14: 39821 | G14: 0 | H14: 0 | I14: 0 | J14: 39821 | K14: 9261 | L14: 30560 | M14: 8483 | N14: 0 | O14: 0 | P14: 35000 | Q14: 4043
B15: GEMINIA INSURANCE COMPANY | C15: 0 | D15: 0 | E15: 0 | F15: 0 | G15: 0 | H15: 0 | I15: 0 | J15: 0 | K15: 2201 | L15: -2201 | M15: 0 | N15: 0 | O15: 0 | P15: 0 | Q15: -2201
B16: ICEA LION LIFE ASSURANCE | C16: 425920 | D16: 151877 | E16: 0 | F16: 577797 | G16: 0 | H16: 125 | I16: 125 | J16: 577672 | K16: 167651 | L16: 410021 | M16: 1916532 | N16: 0 | O16: 0 | P16: 0 | Q16: 2326553
B17: JUBILEE INSURANCE COMPANY | C17: 261092 | D17: 241546 | E17: 0 | F17: 502638 | G17: 0 | H17: 0 | I17: 0 | J17: 502638 | K17: 78328 | L17: 424310 | M17: 1010866 | N17: 0 | O17: 0 | P17: 0 | Q17: 1435177
B18: KENINDIA ASSURANCE COMPANY | C18: 60000 | D18: 0 | E18: 0 | F18: 60000 | G18: 0 | H18: 0 | I18: 0 | J18: 60000 | K18: 0 | L18: 60000 | M18: 69440 | N18: 0 | O18: 50922 | P18: 56139 | Q18: 22379
B19: KENYA ORIENT LIFE ASSURANCE | C19: 0 | D19: 18052 | E19: 0 | F19: 18052 | G19: 0 | H19: 5519 | I19: 5519 | J19: 12533 | K19: 6908 | L19: 5625 | M19: 0 | N19: 0 | O19: 0 | P19: 0 | Q19: 5625
B20: LIBERTY LIFE ASSURANCE COMPANY | C20: 0 | D20: 0 | E20: 428017 | F20: 428017 | G20: 0 | H20: 0 | I20: 0 | J20: 428017 | K20: 36603 | L20: 391414 | M20: -339121 | N20: 370934 | O20: 0 | P20: 0 | Q20: -318641
B21: MADISON INSURANCE COMPANY | C21: 0 | D21: 0 | E21: 0 | F21: 0 | G21: 66204 | H21: 0 | I21: 66204 | J21: -66204 | K21: 1139 | L21: -67343 | M21: 62000 | N21: -67343 | O21: 0 | P21: 0 | Q21: 62000
B22: METROPOLITAN CANNON INSURANCE | C22: 0 | D22: 0 | E22: 0 | F22: 0 | G22: 169632 | H22: 0 | I22: 169632 | J22: -169632 | K22: 13750 | L22: -183382 | M22: -921553 | N22: 0 | O22: 0 | P22: 0 | Q22: -1104935
B23: OLD MUTUAL LIFE ASSURANCE | C23: 0 | D23: 310632 | E23: 0 | F23: 310632 | G23: 287669 | H23: 8686 | I23: 296355 | J23: 14277 | K23: 43044 | L23: -28767 | M23: -2384181 | N23: 0 | O23: 0 | P23: 0 | Q23: -2412947
B24: PIONEER ASSURANCE COMPANY | C24: 56431 | D24: 0 | E24: 0 | F24: 56431 | G24: 0 | H24: 0 | I24: 0 | J24: 56431 | K24: 21837 | L24: 34595 | M24: 265300 | N24: 40637 | O24: 0 | P24: 0 | Q24: 259258
B25: PRUDENTIAL LIFE ASSURANCE | C25: 0 | D25: 0 | E25: 0 | F25: 0 | G25: 0 | H25: 279696 | I25: 294533 | J25: -294533 | K25: 31541 | L25: -326074 | M25: -877025 | N25: 0 | O25: 0 | P25: 0 | Q25: -1203100
B26: SAHAM ASSURANCE | C26: 0 | D26: 0 | E26: 0 | F26: 0 | G26: 0 | H26: 0 | I26: 0 | J26: 0 | K26: 0 | L26: 0 | M26: 0 | N26: -14360 | O26: 0 | P26: 0 | Q26: 14360
B27: SANLAM LIFE INSURANCE | C27: 800362 | D27: 0 | E27: 0 | F27: 800362 | G27: 0 | H27: 0 | I27: 0 | J27: 800362 | K27: 240109 | L27: 560253 | M27: 0 | N27: 0 | O27: 0 | P27: 0 | Q27: 560253
B28: TAKAFUL INSURANCE OF AFRICA | C28: 27432 | D28: 0 | E28: 0 | F28: 27432 | G28: 0 | H28: 11464 | I28: 17564 | J28: 9868 | K28: 2758 | L28: 7110 | M28: 34045 | N28: 0 | O28: 0 | P28: 0 | Q28: 41155
B29: THE KENYAN ALLIANCE INSURANCE | C29: 40267 | D29: 0 | E29: 0 | F29: 40267 | G29: 0 | H29: 0 | I29: 0 | J29: 40267 | K29: 12706 | L29: 27561 | M29: 12468 | N29: 0 | O29: 0 | P29: 0 | Q29: 40029
B30: THE MONARCH INSURANCE | C30: 0 | D30: 0 | E30: 0 | F30: 0 | G30: 0 | H30: 0 | I30: 0 | J30: 0 | K30: 0 | L30: 0 | M30: 151510 | N30: 0 | O30: 0 | P30: 0 | Q30: 151510
B31: UAP LIFE ASSURANCE COMPANY | C31: 0 | D31: 0 | E31: 761377 | F31: 761377 | G31: 0 | H31: 0 | I31: 0 | J31: 761377 | K31: 291323 | L31: 470054 | M31: -340309 | N31: 0 | O31: 0 | P31: 0 | Q31: 129744
B32: TOTAL | C32: =SUM(C6:C31) -> 2337081 | D32: 837035 | E32: 1186452 | F32: 4360568 | G32: 608505 | H32: 316230 | I32: 945672 | J32: 3414896 | K32: 824981 | L32: 2589917 | M32: -762762 | N32: 315328 | O32: 50922 | P32: 671639 | Q32: 789264
B33: REINSURERS
B34: CONTINENTAL REINSURANCE | C34: 64254 | D34: 0 | E34: 3829 | F34: 68083 | G34: 0 | H34: 3002 | I34: 3002 | J34: 65080 | K34: 12700 | L34: 52381 | M34: 122955 | N34: 0 | O34: 44063 | P34: 0 | Q34: 131273
B35: EAST AFRICA REINSURANCE | C35: 78202 | D35: 173083 | E35: 632 | F35: 251917 | G35: 0 | H35: 0 | I35: 704 | J35: 251213 | K35: 78570 | L35: 172643 | M35: 428292 | N35: 85586 | O35: 0 | P35: 0 | Q35: 515349
B36: KENYA REINSURANCE CORPORATION | C36: 488344 | D36: 117212 | E36: 0 | F36: 605556 | G36: 0 | H36: 0 | I36: 0 | J36: 605556 | K36: 217054 | L36: 388502 | M36: 3496869 | N36: 0 | O36: 0 | P36: 0 | Q36: 3885371
B37: TOTAL | C37: =SUM(C34:C36) -> 630800 | D37: =SUM(D34:D36) -> 290295 | E37: 4461 | F37: 925556 | G37: 0 | H37: 3002 | I37: 3706 | J37: 921849 | K37: 308324 | L37: 613526 | M37: 4048116 | N37: 85586 | O37: 44063 | P37: 0 | Q37: 4531993
B38: GRAND TOTAL | C38: =C37+C32 -> 2967881 | D38: =D37+D32 -> 1127330 | E38: 1190913 | F38: 5286124 | G38: 608505 | H38: 319232 | I38: 949378 | J38: 4336745 | K38: 1133305 | L38: 3203443 | M38: 3285354 | N38: 400914 | O38: 94985 | P38: 671639 | Q38: 5321257
B39: Amounts in Thousand Shillings

Sheet appendix 3x (hidden)
B2: APPENDIX 3: SUMMARY OF NET COMMISSIONS AND MANAGEMENT EXPENSES FOR THE YEAR ENDED 31.12.2014
C3: General Business | E3: Long Term Business
B4: INSURERS
B5: Company | C5: Commissions | D5: Management Expenses | E5: Commissions | F5: Management Expenses
B6: AAR INSURANCE KENYA | C6: 165288 | D6: 502774
B7: AFRICAN MERCHANT ASSURANCE | C7: 108669 | D7: 799815
B8: AIG INSURANCE COMPANY | C8: 91993 | D8: 808878
B9: APA INSURANCE COMPANY | C9: 497787 | D9: 1150711
B10: APA LIFE ASSURANCE COMPANY | E10: 5952 | F10: 136763
B11: BRITISH AMERICAN INSURANCE | C11: 409907 | D11: 1133785 | E11: 1393991 | F11: 1727158
B12: CANNON ASSURANCE COMPANY | C12: 87720 | D12: 319707 | E12: -13438 | F12: 67113
B13: CAPEX LIFE ASSURANCE COMPANY | E13: 926 | F13: 50788
B14: CIC GENERAL INSURANCE COMPANY | C14: 645669 | D14: 1804800
B15: CIC LIFE ASSURANCE COMPANY | E15: 186645 | F15: 1189024
B16: CORPORATE INSURANCE COMPANY | C16: 23941 | D16: 116290 | E16: 78637 | F16: 42149
B17: DIRECTLINE ASSURANCE COMPANY | C17: 219220 | D17: 739337
B18: FIDELITY SHIELD INSURANCE | C18: 81081 | D18: 304635
B19: FIRST ASSURANCE COMPANY | C19: 87720 | D19: 423394 | E19: -7079 | F19: 7511
B20: GA INSURANCE COMPANY | C20: -43764 | D20: 486215
B21: GA LIFE ASSURANCE LIMITED | E21: -3058 | F21: 13242
B22: GATEWAY INSURANCE COMPANY | C22: 27188 | D22: 339468
B23: GEMINIA INSURANCE COMPANY | C23: 49888 | D23: 283342 | E23: 1873 | F23: 7938
B24: HERITAGE INSURANCE COMPANY | C24: -25022 | D24: 1079262
B25: ICEA LION GENERAL INSURANCE | C25: 314064 | D25: 872074
B26: ICEA LION LIFE ASSURANCE COMPANY | E26: 311189 | F26: 713045
B27: INTRA-AFRICA ASSURANCE | C27: 41276 | D27: 224514
B28: INVESCO ASSURANCE COMPANY | C28: 201215 | D28: 1018143
B29: JUBILEE INSURANCE COMPANY | C29: 527610 | D29: 1145079 | E29: 612465 | F29: 719572
B30: KENINDIA ASSURANCE COMPANY | C30: 121728 | D30: 584711 | E30: 116653 | F30: 234064
B31: KENYA ORIENT INSURANCE | C31: 54696 | D31: 558149
B32: KENYA ORIENT LIFE ASSURANCE | E32: 8985 | F32: 81562
B33: LIBERTY LIFE ASSURANCE KENYA | E33: 189845 | F33: 1133473
B34: MADISON INSURANCE COMPANY | C34: 83379 | D34: 398628 | E34: 147899 | F34: 552308
B35: MAYFAIR INSURANCE COMPANY | C35: 12840 | D35: 259559
B36: METROPOLITAN LIFE ASSURANCE | E36: 38239 | F36: 153993
B37: OCCIDENTAL INSURANCE COMPANY | C37: 111840 | D37: 210299
B38: OLD MUTUAL ASSURANCE COMPANY | E38: 185386 | F38: 969433
B39: PACIS INSURANCE COMPANY | C39: 83985 | D39: 328250
B40: PAN AFRICA INSURANCE COMPANY | E40: 723713 | F40: 810331
B41: PHOENIX OF EAST AFRICA | C41: -43 | D41: 213356
B42: PIONEER ASSURANCE COMPANY | E42: 159246 | F42: 310185
B43: PRUDENTIAL LIFE ASSURANCE KENYA | E43: 20238 | F43: 72232
B44: REAL INSURANCE COMPANY | C44: 127529 | D44: 704790
B45: RESOLUTION HEALTH INSURANCE | C45: -70791 | D45: 603806
B46: SAHAM ASSURANCE | C46: -9053 | D46: 250746 | E46: 11774 | F46: 47021
B47: TAKAFUL INSURANCE OF AFRICA | C47: 61055 | D47: 265722
B48: TAUSI ASSURANCE COMPANY | C48: 57264 | D48: 172861
B49: THE KENYAN ALLIANCE INSURANCE | C49: 110974 | D49: 478426 | E49: -19313 | F49: 39504
B50: THE MONARCH INSURANCE | C50: 28626 | D50: 241389 | E50: -2682 | F50: 19233
B51: TRIDENT INSURANCE COMPANY | C51: -25524 | D51: 170220
B52: UAP INSURANCE COMPANY | C52: 427125 | D52: 1232280
B53: UAP LIFE ASSURANCE COMPANY | E53: 65555 | F53: 520521
B54: XPLICO INSURANCE COMPANY | C54: 116796 | D54: 792522
B55: TOTAL | C55: =SUM(C6:C54) -> 4803876 | D55: =SUM(D6:D54) -> 21017937 | E55: =SUM(E6:E54) -> 4213641 | F55: =SUM(F6:F54) -> 9618163
B56: REINSURERS
B57: CONTINENTAL REINSURANCE | C57: 645669 | D57: 1804800 | E57: 12636 | F57: 7066
B58: EAST AFRICA REINSURANCE | C58: 795095 | D58: 197474 | E58: 78387 | F58: 58654
B59: KENYA REINSURANCE CORPORATION | C59: 2683195 | D59: 961374 | E59: 308564 | F59: 180547
B60: TOTAL | C60: =SUM(C57:C59) -> 4123959 | D60: =SUM(D57:D59) -> 2963648 | E60: =SUM(E57:E59) -> 399587 | F60: =SUM(F57:F59) -> 246267
B61: GRAND TOTAL | C61: =C60+C55 -> 8927835 | D61: =D60+D55 -> 23981585 | E61: =E60+E55 -> 4613228 | F61: =F60+F55 -> 9864430
B62: Amounts in '000' shillings

Sheet APPENDIX 3
B3: APPENDIX 3: SUMMARY OF NET COMMISSIONS AND MANAGEMENT EXPENSES FOR THE YEAR ENDED 31.12.2017
B5: General Insurance Business | F5: Long Term Insurance Business
B6: Company | C6: Commissions | D6: Management Expenses | F6: Company | G6: Commissions | H6: Management Expenses
B7: AAR INSURANCE KENYA | C7: ='APPENDIX 36'!N6 -> 478073 | D7: ='APPENDIX 36'!O6 -> 1229204 | F7: APA LIFE ASSURANCE COMPANY | G7: 30612 | H7: 223025
B8: AFRICAN MERCHANT ASSURANCE | C8: ='APPENDIX 36'!N7 -> 104538 | D8: ='APPENDIX 36'!O7 -> 908101 | F8: BARCLAYS LIFE | G8: 126459 | H8: 346409
B9: AIG INSURANCE COMPANY | C9: ='APPENDIX 36'!N8 -> -280856 | D9: ='APPENDIX 36'!O8 -> 650855 | F9: BRITAM LIFE | G9: 1776009 | H9: 2452864
B10: ALLIANZ INSURANCE COMPANY | C10: ='APPENDIX 36'!N9 -> 26436 | D10: ='APPENDIX 36'!O9 -> 225488 | F10: CANNON ASSURANCE COMPANY | G10: 2615 | H10: 120228
B11: APA INSURANCE COMPANY | C11: ='APPENDIX 36'!N10 -> 458911 | D11: ='APPENDIX 36'!O10 -> 1465891 | F11: CAPEX LIFE ASSURANCE COMPANY | G11: 43055 | H11: 82255
B12: BRITAM GENERAL INSURANCE | C12: ='APPENDIX 36'!N11 -> 708511 | D12: ='APPENDIX 36'!O11 -> 2408293 | F12: CIC LIFE ASSURANCE COMPANY | G12: 339994 | H12: 1227511
B13: CANNON ASSURANCE COMPANY | C13: ='APPENDIX 36'!N12 -> 59820 | D13: ='APPENDIX 36'!O12 -> 463204 | F13: CORPORATE INSURANCE COMPANY | G13: 73492 | H13: 64255
B14: CIC GENERAL INSURANCE COMPANY | C14: ='APPENDIX 36'!N13 -> 893961 | D14: ='APPENDIX 36'!O13 -> 2392246 | F14: FIRST ASSURANCE COMPANY | G14: -20069 | H14: 19822
B15: CORPORATE INSURANCE COMPANY | C15: ='APPENDIX 36'!N14 -> 28486 | D15: ='APPENDIX 36'!O14 -> 142055 | F15: GA LIFE ASSURANCE COMPANY | G15: 1717 | H15: 38139
B16: DIRECTLINE ASSURANCE COMPANY | C16: ='APPENDIX 36'!N15 -> 344152 | D16: ='APPENDIX 36'!O15 -> 827424 | F16: GEMINIA INSURANCE COMPANY | G16: 4306 | H16: 48420
B17: FIDELITY SHIELD INSURANCE | C17: ='APPENDIX 36'!N16 -> 133491 | D17: ='APPENDIX 36'!O16 -> 416800 | F17: ICEA LION LIFE ASSURANCE | G17: 570324 | H17: 997908
B18: FIRST ASSURANCE COMPANY | C18: ='APPENDIX 36'!N17 -> 127378 | D18: ='APPENDIX 36'!O17 -> 757594 | F18: JUBILEE INSURANCE COMPANY | G18: 898656 | H18: 908258
B19: GA INSURANCE COMPANY | C19: ='APPENDIX 36'!N18 -> 32562 | D19: ='APPENDIX 36'!O18 -> 680585 | F19: KENINDIA ASSURANCE COMPANY | G19: 135888 | H19: 351186
B20: GEMINIA INSURANCE COMPANY | C20: ='APPENDIX 36'!N19 -> 267501 | D20: ='APPENDIX 36'!O19 -> 496063 | F20: KENYA ORIENT LIFE ASSURANCE | G20: 20362 | H20: 168892
B21: HERITAGE INSURANCE COMPANY | C21: ='APPENDIX 36'!N20 -> 25895 | D21: ='APPENDIX 36'!O20 -> 1306751 | F21: LIBERTY LIFE ASSURANCE COMPANY | G21: 196129 | H21: 1185727
B22: ICEA LION GENERAL INSURANCE | C22: ='APPENDIX 36'!N21 -> 302919 | D22: ='APPENDIX 36'!O21 -> 1007643 | F22: MADISON INSURANCE COMPANY | G22: 182805 | H22: 610718
B23: INTRA-AFRICA ASSURANCE | C23: ='APPENDIX 36'!N22 -> 62685 | D23: ='APPENDIX 36'!O22 -> 328750 | F23: METROPOLITAN CANNON INSURANCE | G23: 49863 | H23: 219919
B24: INVESCO ASSURANCE COMPANY | C24: ='APPENDIX 36'!N23 -> 217348 | D24: ='APPENDIX 36'!O23 -> 868201 | F24: OLD MUTUAL LIFE ASSURANCE | G24: 198785 | H24: 901721
B25: JUBILEE INSURANCE COMPANY | C25: ='APPENDIX 36'!N24 -> 707113 | D25: ='APPENDIX 36'!O24 -> 1846791 | F25: PIONEER ASSURANCE COMPANY | G25: 248851 | H25: 465890
B26: KENINDIA ASSURANCE COMPANY | C26: ='APPENDIX 36'!N25 -> 158388 | D26: ='APPENDIX 36'!O25 -> 644129 | F26: PRUDENTIAL LIFE ASSURANCE | G26: 64178 | H26: 75089
B27: KENYA ORIENT INSURANCE | C27: ='APPENDIX 36'!N26 -> 147217 | D27: ='APPENDIX 36'!O26 -> 678072 | F27: SAHAM ASSURANCE | G27: 3868 | H27: 68612
B28: MADISON INSURANCE COMPANY | C28: ='APPENDIX 36'!N27 -> 341068 | D28: ='APPENDIX 36'!O27 -> 736971 | F28: SANLAM LIFE INSURANCE | G28: 427464 | H28: 877353
B29: MAYFAIR INSURANCE COMPANY | C29: ='APPENDIX 36'!N28 -> 99088 | D29: ='APPENDIX 36'!O28 -> 344114 | F29: TAKAFUL INSURANCE OF AFRICA | G29: 221 | H29: 24410
B30: OCCIDENTAL INSURANCE COMPANY | C30: ='APPENDIX 36'!N29 -> 196148 | D30: ='APPENDIX 36'!O29 -> 410238 | F30: THE KENYAN ALLIANCE INSURANCE | G30: 661 | H30: 83002
B31: PACIS INSURANCE COMPANY | C31: ='APPENDIX 36'!N30 -> 119222 | D31: ='APPENDIX 36'!O30 -> 417282 | F31: THE MONARCH INSURANCE | G31: 3547 | H31: 53635
B32: PHOENIX OF EAST AFRICA | C32: ='APPENDIX 36'!N31 -> 37001 | D32: ='APPENDIX 36'!O31 -> 354226 | F32: UAP LIFE ASSURANCE COMPANY | G32: 68608 | H32: 456789
B33: PIONEER GENERAL INSURANCE | C33: ='APPENDIX 36'!N32 -> -199 | D33: ='APPENDIX 36'!O32 -> 98651 | F33: TOTAL | G33: =SUM(G7:G32) -> 5448400 | H33: =SUM(H7:H32) -> 12072037
B34: RESOLUTION INSURANCE COMPANY | C34: ='APPENDIX 36'!N33 -> 193582 | D34: ='APPENDIX 36'!O33 -> 1062750 | F34: REINSURERS
B35: SAHAM INSURANCE COMPANY | C35: ='APPENDIX 36'!N34 -> -54852 | D35: ='APPENDIX 36'!O34 -> 434471 | F35: CONTINENTAL REINSURANCE | G35: 49132 | H35: ='APPENDIX 16'!M34 -> 34561
B36: SANLAM INSURANCE COMPANY | C36: ='APPENDIX 36'!N35 -> 61465 | D36: ='APPENDIX 36'!O35 -> 616370 | F36: EAST AFRICA REINSURANCE | G36: 209408 | H36: ='APPENDIX 16'!M35 -> 76330
B37: TAKAFUL INSURANCE OF AFRICA | C37: ='APPENDIX 36'!N36 -> -10528 | D37: ='APPENDIX 36'!O36 -> 519079 | F37: KENYA REINSURANCE CORPORATION | G37: 413596 | H37: ='APPENDIX 16'!M36 -> 240834
B38: TAUSI ASSURANCE COMPANY | C38: ='APPENDIX 36'!N37 -> 87735 | D38: ='APPENDIX 36'!O37 -> 307223 | F38: TOTAL | G38: =SUM(G35:G37) -> 672136 | H38: =SUM(H35:H37) -> 351725
B39: THE KENYAN ALLIANCE INSURANCE | C39: ='APPENDIX 36'!N38 -> 77249 | D39: ='APPENDIX 36'!O38 -> 507672 | F39: GRAND TOTAL | G39: =G38+G33 -> 6120536 | H39: =H38+H33 -> 12423762
B40: THE MONARCH INSURANCE | C40: ='APPENDIX 36'!N39 -> 56294 | D40: ='APPENDIX 36'!O39 -> 407188 | F40: Amounts in Thousand shillings
B41: TRIDENT INSURANCE COMPANY | C41: ='APPENDIX 36'!N40 -> 30464 | D41: ='APPENDIX 36'!O40 -> 561132
B42: UAP INSURANCE COMPANY | C42: ='APPENDIX 36'!N41 -> 714138 | D42: ='APPENDIX 36'!O41 -> 2126102
B43: XPLICO INSURANCE COMPANY | C43: ='APPENDIX 36'!N42 -> 94377 | D43: ='APPENDIX 36'!O42 -> 477616
B44: TOTAL | C44: =SUM(C7:C43) -> 7046781 | D44: =SUM(D7:D43) -> 29125225
B45: REINSURERS
B46: CONTINENTAL REINSURANCE | C46: ='APPENDIX 36'!N45 -> 516564 | D46: ='APPENDIX 36'!O45 -> 294780
B47: EAST AFRICA REINSURANCE | C47: ='APPENDIX 36'!N46 -> 825478 | D47: ='APPENDIX 36'!O46 -> 289303
B48: KENYA REINSURANCE CORPORATION | C48: ='APPENDIX 36'!N47 -> 3217954 | D48: ='APPENDIX 36'!O47 -> 1675881
B49: TOTAL | C49: =SUM(C46:C48) -> 4559996 | D49: =SUM(D46:D48) -> 2259964
B50: GRAND TOTAL | C50: =C49+C44 -> 11606777 | D50: =D49+D44 -> 31385189
B51: Amounts in Thousand shillings

Sheet APPENDIX 4 I
B3: APPENDIX 4: SUMMARY OF LONG TERM INSURANCE BUSINESS BALANCE SHEETS AS AT 31.12.2017
B4: Company | C4: APA LIFE ASSURANCE COMPANY | D4: BARCLAYS LIFE ASSURANCE | E4: BRITAM LIFE ASSURANCE | F4: CANNON ASSURANCE COMPANY | G4: CAPEX LIFE ASSURANCE COMPANY | H4: CIC LIFE ASSURANCE COMPANY | I4: CONTINENTAL REINSURANCE PLC | J4: CORPORATE INSURANCE COMPANY | K4: EAST AFRICA REINSURANCE COMPANY | L4: FIRST ASSURANCE COMPANY
B5: Share Capital | C5: 550000 | D5: 699000 | E5: 180000 | F5: 0 | G5: 150000 | H5: 800000 | I5: 300000 | J5: 150000 | K5: 500000 | L5: 150000
B6: Share Premium | C6: 0 | D6: 0 | E6: 0 | F6: 0 | G6: 0 | H6: 0 | I6: 0 | J6: 0 | K6: 0 | L6: 0
B7: Revaluation Reserves | C7: 7413 | D7: 2760 | E7: 0 | F7: 0 | G7: 778 | H7: 0 | I7: -75 | J7: 0 | K7: 515349 | L7: 0
B8: Statutory Reserves | C8: 23399 | D8: -519311 | E8: 0 | F8: 0 | G8: 32225 | H8: 1102610 | I8: 21057 | J8: 152203 | K8: 0 | L8: 191243
B9: Retained Earnings | C9: -134467 | D9: 350408 | E9: 0 | F9: 0 | G9: 0 | H9: 216178 | I9: 0 | J9: 0 | K9: 0 | L9: 0
B10: Other Reserves | C10: 0 | D10: 0 | E10: 8489961 | F10: 0 | G10: 143219 | H10: -86912 | I10: 110216 | J10: 0 | K10: 0 | L10: 0
B11: Total Equity | C11: 446345 | D11: 532857 | E11: 8669961 | F11: 0 | G11: 326222 | H11: 2031876 | I11: 431197 | J11: 302203 | K11: 1015349 | L11: 341243
B12: Underwriting Provisions | C12: 198648 | D12: 0 | E12: 811829 | F12: 0 | G12: 1006 | H12: 346387 | I12: 68310 | J12: 10705 | K12: 160050 | L12: 4857
B13: Actuarial Contract Liabilities | C13: 3901491 | D13: 1580737 | E13: 48199310 | F13: 0 | G13: 282650 | H13: 6900326 | I13: 0 | J13: 505664 | K13: 132997 | L13: 13557
B14: LongTerm Liabilities | C14: 10028 | D14: 400000 | E14: 3424054 | F14: 0 | G14: 0 | H14: 473809 | I14: 30844 | J14: 0 | K14: 220864 | L14: 82776
B15: Current Liabilities | C15: 126249 | D15: 289161 | E15: 2071125 | F15: 0 | G15: 58480 | H15: 532666 | I15: 50590 | J15: 100707 | K15: 133031 | L15: 47311
B16: Total Equity And Liabilities | C16: 4682761 | D16: 2802756 | E16: 63176279 | F16: 0 | G16: 668357 | H16: 10285064 | I16: 580942 | J16: 919280 | K16: 1662291 | L16: 489745
B17: Land And Buildings | C17: 0 | D17: 0 | E17: 138720 | F17: 0 | G17: 0 | H17: 0 | I17: 0 | J17: 0 | K17: 0 | L17: 0
B18: Investment Property | C18: 273000 | D18: 0 | E18: 4578915 | F18: 0 | G18: 501500 | H18: 2160875 | I18: 0 | J18: 370000 | K18: 0 | L18: 78000
B19: Other Fixed Assets | C19: 13176 | D19: 38820 | E19: 365141 | F19: 0 | G19: 5184 | H19: 140986 | I19: 0 | J19: 664 | K19: 0 | L19: 9
B20: Government Securities | C20: 3276180 | D20: 1711198 | E20: 16199210 | F20: 0 | G20: 85600 | H20: 3528143 | I20: 366627 | J20: 187244 | K20: 1057736 | L20: 257397
B21: Other Securities | C21: 41017 | D21: 0 | E21: 8349518 | F21: 0 | G21: 0 | H21: 598599 | I21: 0 | J21: 0 | K21: 0 | L21: 0
B22: Investment in Related Companies | C22: 0 | D22: 0 | E22: 3000275 | F22: 0 | G22: 0 | H22: 0 | I22: 0 | J22: 0 | K22: 0 | L22: 0
B23: Corporate Bonds | C23: 92163 | D23: 0 | E23: 756346 | F23: 0 | G23: 0 | H23: 376394 | I23: 10194 | J23: 0 | K23: 87640 | L23: 0
B24: Commercial Papers | C24: 92953 | D24: 0 | E24: 0 | F24: 0 | G24: 0 | H24: 0 | I24: 0 | J24: 0 | K24: 0 | L24: 0
B25: Debentures | C25: 0 | D25: 0 | E25: 0 | F25: 0 | G25: 0 | H25: 0 | I25: 0 | J25: 0 | K25: 0 | L25: 0
B26: Ordinary Shares Quoted | C26: 191202 | D26: 0 | E26: 8010794 | F26: 0 | G26: 2 | H26: 640727 | I26: 0 | J26: 1478 | K26: 38511 | L26: 0
B27: Ordinary Shares Unquoted | C27: 12887 | D27: 0 | E27: 143910 | F27: 0 | G27: 0 | H27: 6420 | I27: 0 | J27: 1151 | K27: 0 | L27: 0
B28: Preference Shares Quoted | C28: 0 | D28: 0 | E28: 0 | F28: 0 | G28: 0 | H28: 0 | I28: 0 | J28: 0 | K28: 0 | L28: 0
B29: Preference Shares Unquoted | C29: 0 | D29: 0 | E29: 0 | F29: 0 | G29: 0 | H29: 0 | I29: 0 | J29: 0 | K29: 0 | L29: 0
B30: Loans Secured & Unsecured | C30: 20958 | D30: 0 | E30: 1076466 | F30: 0 | G30: 0 | H30: 305211 | I30: 555 | J30: 63972 | K30: 0 | L30: 0
B31: Mortgages | C31: 0 | D31: 0 | E31: 1178306 | F31: 0 | G31: 0 | H31: 153612 | I31: 0 | J31: 0 | K31: 0 | L31: 0
B32: Term Deposits | C32: 398038 | D32: 194868 | E32: 1849555 | F32: 0 | G32: 38000 | H32: 789725 | I32: 120754 | J32: 285734 | K32: 305367 | L32: 61872
B33: Cash and Cash Balances | C33: 21492 | D33: 29744 | E33: 872866 | F33: 0 | G33: 1783 | H33: 83756 | I33: 2518 | J33: 6412 | K33: 17960 | L33: 18230
B34: Outstanding Premiums | C34: 199905 | D34: 190517 | E34: 354689 | F34: 0 | G34: 1938 | H34: 572808 | I34: 46817 | J34: 0 | K34: 122179 | L34: 60330
B35: Other Receivables | C35: 25733 | D35: 37141 | E35: 623864 | F35: 0 | G35: 0 | H35: 326564 | I35: 0 | J35: 2623 | K35: 32503 | L35: 13908
B36: Other Assets | C36: 13690 | D36: 600469 | E36: 14692273 | F36: 0 | G36: 34350 | H36: 594156 | I36: 33477 | J36: 0 | K36: 394 | L36: 0
B37: Intangible Assets | C37: 10367 | D37: 0 | E37: 985431 | F37: 0 | G37: 0 | H37: 7087 | I37: 0 | J37: 0 | K37: 0 | L37: 0
B38: Total Assets | C38: 4682761 | D38: 2802756 | E38: 63176279 | F38: 0 | G38: 668357 | H38: 10285064 | I38: 580942 | J38: 919280 | K38: 1662291 | L38: 489745
B39: Amounts in thousand Shillings | K39: Continued next page

Sheet APPENDIX 4 II
B2: Continued from previous page
B3: APPENDIX 4: SUMMARY OF LONG TERM INSURANCE BUSINESS BALANCE SHEETS AS AT 31.12.2016
B4: Company | C4: GA LIFE ASSURANCE LIMITED | D4: GEMINIA INSURANCE COMPANY | E4: ICEA LION LIFE ASSURANCE COMPANY | F4: JUBILEE INSURANCE COMPANY | G4: KENINDIA ASSURANCE COMPANY | H4: KENYA ORIENT LIFE ASSURANCE | I4: KENYA REINSURANCE CORPORATION | J4: LIBERTY LIFE ASSURANCE KENYA | K4: MADISON INSURANCE COMPANY | L4: METROPOLITAN CANNON ASSURANCE
B5: Share Capital | C5: 200000 | D5: 150000 | E5: 450000 | F5: 500000 | G5: 161388 | H5: 173000 | I5: 0 | J5: 612340 | K5: 150000 | L5: 416726
B6: Share Premium | C6: 0 | D6: 0 | E6: 0 | F6: 0 | G6: 0 | H6: 0 | I6: 0 | J6: 0 | K6: 0 | L6: 491067
B7: Revaluation Reserves | C7: 0 | D7: 0 | E7: 0 | F7: 30241 | G7: 51009 | H7: 0 | I7: 0 | J7: 376565 | K7: 0 | L7: 0
B8: Statutory Reserves | C8: 48944 | D8: 143892 | E8: 6866906 | F8: 2185074 | G8: 318516 | H8: 50398 | I8: 3885371 | J8: 1938342 | K8: 1350550 | L8: 0
B9: Retained Earnings | C9: 39043 | D9: 0 | E9: 2326549 | F9: 1404935 | G9: 22379 | H9: 5625 | I9: 0 | J9: -318641 | K9: 62000 | L9: -1104935
B10: Other Reserves | C10: 0 | D10: 0 | E10: 0 | F10: 0 | G10: 1222276 | H10: 0 | I10: 39841 | J10: 0 | K10: 0 | L10: 710379
B11: Total Equity | C11: 287987 | D11: 293892 | E11: 9643455 | F11: 4120250 | G11: 1775568 | H11: 229022 | I11: 3925212 | J11: 2608606 | K11: 1562550 | L11: 513237
B12: Underwriting Provisions | C12: 892 | D12: 65338 | E12: 104731 | F12: 915268 | G12: 90451 | H12: 24697 | I12: 0 | J12: 408599 | K12: 68181 | L12: 233687
B13: Actuarial Contract Liabilities | C13: 5632985 | D13: 662213 | E13: 58283479 | F13: 57478513 | G13: 28176350 | H13: 468224 | I13: 2392423 | J13: 19804665 | K13: 8174270 | L13: 1564915
B14: LongTerm Liabilities | C14: 20976 | D14: 0 | E14: 1346859 | F14: 63508 | G14: 34760 | H14: 0 | I14: 0 | J14: 992103 | K14: 473591 | L14: 205063
B15: Current Liabilities | C15: 46957 | D15: 55917 | E15: 439214 | F15: 841481 | G15: 352198 | H15: 12933 | I15: 1789557 | J15: 680850 | K15: 103089 | L15: 216669
B16: Total Equity And Liabilities | C16: 5989797 | D16: 1077361 | E16: 69817738 | F16: 63419020 | G16: 30429328 | H16: 734877 | I16: 8107192 | J16: 24494824 | K16: 10381681 | L16: 2733570
B17: Land And Buildings | C17: 0 | D17: 0 | E17: 0 | F17: 0 | G17: 1122662 | H17: 0 | I17: 0 | J17: 559096 | K17: 0 | L17: 90000
B18: Investment Property | C18: 1107574 | D18: 0 | E18: 10276000 | F18: 4378402 | G18: 1902289 | H18: 0 | I18: 1590200 | J18: 1066500 | K18: 4555394 | L18: 755000
B19: Other Fixed Assets | C19: 574 | D19: 0 | E19: 94985 | F19: 54642 | G19: 18330 | H19: 16253 | I19: 0 | J19: 109828 | K19: 59644 | L19: 14924
B20: Government Securities | C20: 4303353 | D20: 584800 | E20: 46471881 | F20: 40823771 | G20: 26482642 | H20: 350275 | I20: 2174055 | J20: 13722107 | K20: 2583070 | L20: 1010511
B21: Other Securities | C21: 0 | D21: 0 | E21: 0 | F21: 0 | G21: 0 | H21: 0 | I21: 0 | J21: 0 | K21: 116215 | L21: 0
B22: Investment in Related Companies | C22: 0 | D22: 0 | E22: 826490 | F22: 1861792 | G22: 0 | H22: 0 | I22: 0 | J22: 0 | K22: 0 | L22: 0
B23: Corporate Bonds | C23: 180326 | D23: 1500 | E23: 1429498 | F23: 889689 | G23: 52780 | H23: 24125 | I23: 0 | J23: 1629501 | K23: 133144 | L23: 64840
B24: Commercial Papers | C24: 0 | D24: 0 | E24: 0 | F24: 0 | G24: 115707 | H24: 61132 | I24: 0 | J24: 0 | K24: 0 | L24: 0
B25: Debentures | C25: 0 | D25: 0 | E25: 0 | F25: 0 | G25: 0 | H25: 0 | I25: 0 | J25: 0 | K25: 0 | L25: 0
B26: Ordinary Shares Quoted | C26: 125384 | D26: 0 | E26: 6162426 | F26: 6086763 | G26: 178015 | H26: 0 | I26: 309075 | J26: 3395111 | K26: 29410 | L26: 120939
B27: Ordinary Shares Unquoted | C27: 0 | D27: 0 | E27: 0 | F27: 2560392 | G27: 153 | H27: 69514 | I27: 0 | J27: 196646 | K27: 2005683 | L27: 2963
B28: Preference Shares Quoted | C28: 0 | D28: 0 | E28: 0 | F28: 0 | G28: 0 | H28: 0 | I28: 0 | J28: 0 | K28: 0 | L28: 0
B29: Preference Shares Unquoted | C29: 0 | D29: 0 | E29: 0 | F29: 0 | G29: 0 | H29: 0 | I29: 0 | J29: 0 | K29: 0 | L29: 0
B30: Loans Secured & Unsecured | C30: 2832 | D30: 1801 | E30: 513451 | F30: 758796 | G30: 91521 | H30: 9751 | I30: 0 | J30: 1189541 | K30: 110962 | L30: 16230
B31: Mortgages | C31: 0 | D31: 0 | E31: 493759 | F31: 0 | G31: 4813 | H31: 0 | I31: 0 | J31: 423065 | K31: 31459 | L31: 76857
B32: Term Deposits | C32: 82484 | D32: 411369 | E32: 3099594 | F32: 4733664 | G32: 195798 | H32: 79004 | I32: 2879785 | J32: 1214386 | K32: 200478 | L32: 171467
B33: Cash and Cash Balances | C33: 93428 | D33: 2132 | E33: 46740 | F33: 305971 | G33: 156814 | H33: 13918 | I33: 4799 | J33: 232001 | K33: 56390 | L33: 58226
B34: Outstanding Premiums | C34: 592 | D34: 29858 | E34: 0 | F34: 482738 | G34: 2441 | H34: 72081 | I34: 228378 | J34: 231975 | K34: 45952 | L34: 285907
B35: Other Receivables | C35: 0 | D35: 25018 | E35: 28266 | F35: 198361 | G35: 92107 | H35: 17040 | I35: 0 | J35: 220433 | K35: 433967 | L35: 0
B36: Other Assets | C36: 83374 | D36: 20882 | E36: 356417 | F36: 261917 | G36: 0 | H36: 21565 | I36: 587288 | J36: 175897 | K36: 0 | L36: 60727
B37: Intangible Assets | C37: 9877 | D37: 0 | E37: 18232 | F37: 22122 | G37: 13255 | H37: 219 | I37: 333612 | J37: 128736 | K37: 19914 | L37: 4978
B38: Total Assets | C38: 5989797 | D38: 1077361 | E38: 69817738 | F38: 63419020 | G38: 30429328 | H38: 734877 | I38: 8107192 | J38: 24494824 | K38: 10381681 | L38: 2733570
B39: Amounts in thousand Shillings | K39: Continued next page

Sheet APPENDIX 4 III
B3: Continued from previous page
B4: APPENDIX 4: SUMMARY OF LONG TERM INSURANCE BUSINESS BALANCE SHEETS AS AT 31.12.2017
B5: Company | C5: OLD MUTUAL ASSURANCE COMPANY | D5: PIONEER ASSURANCE COMPANY | E5: PRUDENTIAL LIFE ASSURANCE | F5: SAHAM INSURANCE COMPANY | G5: SANLAM LIFE INSURANCE | H5: TAKAFUL INSURANCE OF AFRICA | I5: THE KENYAN ALLIANCE INSURANCE | J5: THE MONARCH INSURANCE COMPANY | K5: UAP LIFE ASSURANCE COMPANY | L5: TOTAL
B6: Share Capital | C6: 2174871 | D6: 150000 | E6: 406185 | F6: 150000 | G6: 200000 | H6: 150000 | I6: 400000 | J6: 154976 | K6: 1585456 | L6: =SUM('APPENDIX 4 I'!C5:L5)+SUM('APPENDIX 4 II'!C5:L5)+SUM('APPENDIX 4 III'!C6:K6) -> 11663942
B7: Share Premium | C7: 1884957 | D7: 0 | E7: 1824014 | F7: 0 | G7: 30260 | H7: 0 | I7: 0 | J7: 0 | K7: 0 | L7: =SUM('APPENDIX 4 I'!C6:L6)+SUM('APPENDIX 4 II'!C6:L6)+SUM('APPENDIX 4 III'!C7:K7) -> 4230298
B8: Revaluation Reserves | C8: 0 | D8: 0 | E8: 0 | F8: 2363 | G8: 0 | H8: 0 | I8: 107075 | J8: 0 | K8: 27534 | L8: =SUM('APPENDIX 4 I'!C7:L7)+SUM('APPENDIX 4 II'!C7:L7)+SUM('APPENDIX 4 III'!C8:K8) -> 1121012
B9: Statutory Reserves | C9: 0 | D9: 564755 | E9: 0 | F9: 0 | G9: 1173007 | H9: 41155 | I9: 6000 | J9: 24489 | K9: 0 | L9: =SUM('APPENDIX 4 I'!C8:L8)+SUM('APPENDIX 4 II'!C8:L8)+SUM('APPENDIX 4 III'!C9:K9) -> 19600825
B10: Retained Earnings | C10: -2412947 | D10: 259258 | E10: -1523534 | F10: 0 | G10: 560253 | H10: 0 | I10: 40029 | J10: 0 | K10: 129744 | L10: =SUM('APPENDIX 4 I'!C9:L9)+SUM('APPENDIX 4 II'!C9:L9)+SUM('APPENDIX 4 III'!C10:K10) -> -78123
B11: Other Reserves | C11: 0 | D11: 0 | E11: 0 | F11: -14360 | G11: 0 | H11: 0 | I11: 0 | J11: 151510 | K11: 0 | L11: =SUM('APPENDIX 4 I'!C10:L10)+SUM('APPENDIX 4 II'!C10:L10)+SUM('APPENDIX 4 III'!C11:K11) -> 10766130
B12: Total Equity | C12: 1646880 | D12: 974013 | E12: 706665 | F12: 138002 | G12: 1963521 | H12: 191155 | I12: 553104 | J12: 330975 | K12: 1742734 | L12: =SUM('APPENDIX 4 I'!C11:L11)+SUM('APPENDIX 4 II'!C11:L11)+SUM('APPENDIX 4 III'!C12:K12) -> 47304081
B13: Underwriting Provisions | C13: 464018 | D13: 739710 | E13: 78736 | F13: 0 | G13: 0 | H13: 11465 | I13: 36357 | J13: 78216 | K13: 771252 | L13: =SUM('APPENDIX 4 I'!C12:L12)+SUM('APPENDIX 4 II'!C12:L12)+SUM('APPENDIX 4 III'!C13:K13) -> 5693390
B14: Actuarial Contract Liabilities | C14: 11702756 | D14: 3081363 | E14: 471245 | F14: 1091826 | G14: 20594688 | H14: 52007 | I14: 2307919 | J14: 128957 | K14: 7865998 | L14: =SUM('APPENDIX 4 I'!C13:L13)+SUM('APPENDIX 4 II'!C13:L13)+SUM('APPENDIX 4 III'!C14:K14) -> 291451528
B15: LongTerm Liabilities | C15: 0 | D15: 257531 | E15: 0 | F15: 0 | G15: 747449 | H15: 0 | I15: 18049 | J15: 0 | K15: 55603 | L15: =SUM('APPENDIX 4 I'!C14:L14)+SUM('APPENDIX 4 II'!C14:L14)+SUM('APPENDIX 4 III'!C15:K15) -> 8857867
B16: Current Liabilities | C16: 837945 | D16: 236337 | E16: 120877 | F16: 39151 | G16: 1469902 | H16: 31948 | I16: 113919 | J16: 66888 | K16: 570463 | L16: =SUM('APPENDIX 4 I'!C15:L15)+SUM('APPENDIX 4 II'!C15:L15)+SUM('APPENDIX 4 III'!C16:K16) -> 11435615
B17: Total Equity And Liabilities | C17: 14651599 | D17: 5288954 | E17: 1377523 | F17: 1268979 | G17: 24775559 | H17: 286574 | I17: 3029348 | J17: 605036 | K17: 11006051 | L17: =SUM('APPENDIX 4 I'!C16:L16)+SUM('APPENDIX 4 II'!C16:L16)+SUM('APPENDIX 4 III'!C17:K17) -> 364742486
B18: Land And Buildings | C18: 0 | D18: 0 | E18: 0 | F18: 0 | G18: 860000 | H18: 0 | I18: 125000 | J18: 0 | K18: 0 | L18: =SUM('APPENDIX 4 I'!C17:L17)+SUM('APPENDIX 4 II'!C17:L17)+SUM('APPENDIX 4 III'!C18:K18) -> 2895478
B19: Investment Property | C19: 2270000 | D19: 1241847 | E19: 0 | F19: 75000 | G19: 2409000 | H19: 0 | I19: 704500 | J19: 344009 | K19: 930000 | L19: =SUM('APPENDIX 4 I'!C18:L18)+SUM('APPENDIX 4 II'!C18:L18)+SUM('APPENDIX 4 III'!C19:K19) -> 41568005
B20: Other Fixed Assets | C20: 71139 | D20: 35702 | E20: 41964 | F20: 2894 | G20: 126521 | H20: 0 | I20: 1661 | J20: 21156 | K20: 36185 | L20: =SUM('APPENDIX 4 I'!C19:L19)+SUM('APPENDIX 4 II'!C19:L19)+SUM('APPENDIX 4 III'!C20:K20) -> 1270382
B21: Government Securities | C21: 4989633 | D21: 285135 | E21: 1093221 | F21: 753059 | G21: 12190872 | H21: 53071 | I21: 312852 | J21: 48721 | K21: 5508592 | L21: =SUM('APPENDIX 4 I'!C20:L20)+SUM('APPENDIX 4 II'!C20:L20)+SUM('APPENDIX 4 III'!C21:K21) -> 190410956
B22: Other Securities | C22: 20904 | D22: 0 | E22: 0 | F22: 0 | G22: 1734972 | H22: 0 | I22: 0 | J22: 0 | K22: 0 | L22: =SUM('APPENDIX 4 I'!C21:L21)+SUM('APPENDIX 4 II'!C21:L21)+SUM('APPENDIX 4 III'!C22:K22) -> 10861225
B23: Investment in Related Companies | C23: 0 | D23: 0 | E23: 0 | F23: 0 | G23: 0 | H23: 0 | I23: 0 | J23: 17283 | K23: 0 | L23: =SUM('APPENDIX 4 I'!C22:L22)+SUM('APPENDIX 4 II'!C22:L22)+SUM('APPENDIX 4 III'!C23:K23) -> 5705840
B24: Corporate Bonds | C24: 597279 | D24: 1000 | E24: 0 | F24: 66202 | G24: 2596999 | H24: 28384 | I24: 53036 | J24: 0 | K24: 822029 | L24: =SUM('APPENDIX 4 I'!C23:L23)+SUM('APPENDIX 4 II'!C23:L23)+SUM('APPENDIX 4 III'!C24:K24) -> 9893069
B25: Commercial Papers | C25: 0 | D25: 0 | E25: 0 | F25: 0 | G25: 0 | H25: 0 | I25: 0 | J25: 0 | K25: 0 | L25: =SUM('APPENDIX 4 I'!C24:L24)+SUM('APPENDIX 4 II'!C24:L24)+SUM('APPENDIX 4 III'!C25:K25) -> 269792
B26: Debentures | C26: 0 | D26: 0 | E26: 0 | F26: 0 | G26: 0 | H26: 0 | I26: 0 | J26: 0 | K26: 0 | L26: =SUM('APPENDIX 4 I'!C25:L25)+SUM('APPENDIX 4 II'!C25:L25)+SUM('APPENDIX 4 III'!C26:K26) -> 0
B27: Ordinary Shares Quoted | C27: 3762539 | D27: 23992 | E27: 0 | F27: 1865 | G27: 3400973 | H27: 0 | I27: 0 | J27: 0 | K27: 1823077 | L27: =SUM('APPENDIX 4 I'!C26:L26)+SUM('APPENDIX 4 II'!C26:L26)+SUM('APPENDIX 4 III'!C27:K27) -> 34302283
B28: Ordinary Shares Unquoted | C28: 441004 | D28: 0 | E28: 0 | F28: 0 | G28: 0 | H28: 0 | I28: 0 | J28: 0 | K28: 13876 | L28: =SUM('APPENDIX 4 I'!C27:L27)+SUM('APPENDIX 4 II'!C27:L27)+SUM('APPENDIX 4 III'!C28:K28) -> 5454599
B29: Preference Shares Quoted | C29: 0 | D29: 0 | E29: 0 | F29: 0 | G29: 0 | H29: 0 | I29: 0 | J29: 0 | K29: 0 | L29: =SUM('APPENDIX 4 I'!C28:L28)+SUM('APPENDIX 4 II'!C28:L28)+SUM('APPENDIX 4 III'!C29:K29) -> 0
B30: Preference Shares Unquoted | C30: 0 | D30: 0 | E30: 0 | F30: 0 | G30: 0 | H30: 0 | I30: 0 | J30: 0 | K30: 0 | L30: =SUM('APPENDIX 4 I'!C29:L29)+SUM('APPENDIX 4 II'!C29:L29)+SUM('APPENDIX 4 III'!C30:K30) -> 0
B31: Loans Secured & Unsecured | C31: 252539 | D31: 123111 | E31: 19482 | F31: 8621 | G31: 81640 | H31: 0 | I31: 6476 | J31: 0 | K31: 15293 | L31: =SUM('APPENDIX 4 I'!C30:L30)+SUM('APPENDIX 4 II'!C30:L30)+SUM('APPENDIX 4 III'!C31:K31) -> 4669209
B32: Mortgages | C32: 24344 | D32: 0 | E32: 0 | F32: 0 | G32: 190182 | H32: 0 | I32: 0 | J32: 0 | K32: 73303 | L32: =SUM('APPENDIX 4 I'!C31:L31)+SUM('APPENDIX 4 II'!C31:L31)+SUM('APPENDIX 4 III'!C32:K32) -> 2649700
B33: Term Deposits | C33: 1295279 | D33: 684975 | E33: 59757 | F33: 275353 | G33: 426463 | H33: 0 | I33: 1421104 | J33: 0 | K33: 945589 | L33: =SUM('APPENDIX 4 I'!C32:L32)+SUM('APPENDIX 4 II'!C32:L32)+SUM('APPENDIX 4 III'!C33:K33) -> 22220462
B34: Cash and Cash Balances | C34: 250745 | D34: 702926 | E34: 31460 | F34: 47031 | G34: 205428 | H34: 125369 | I34: 35203 | J34: 586 | K34: 193188 | L34: =SUM('APPENDIX 4 I'!C33:L33)+SUM('APPENDIX 4 II'!C33:L33)+SUM('APPENDIX 4 III'!C34:K34) -> 3617116
B35: Outstanding Premiums | C35: 120222 | D35: 1858708 | E35: 17544 | F35: 6885 | G35: 209064 | H35: 40423 | I35: 79627 | J35: 99558 | K35: 595210 | L35: =SUM('APPENDIX 4 I'!C34:L34)+SUM('APPENDIX 4 II'!C34:L34)+SUM('APPENDIX 4 III'!C35:K35) -> 5956346
B36: Other Receivables | C36: 297050 | D36: 191119 | E36: 2490 | F36: 0 | G36: 0 | H36: 0 | I36: 0 | J36: 0 | K36: 12820 | L36: =SUM('APPENDIX 4 I'!C35:L35)+SUM('APPENDIX 4 II'!C35:L35)+SUM('APPENDIX 4 III'!C36:K36) -> 2581007
B37: Other Assets | C37: 238930 | D37: 130808 | E37: 70681 | F37: 32070 | G37: 158473 | H37: 39327 | I37: 289890 | J37: 71018 | K37: 36889 | L37: =SUM('APPENDIX 4 I'!C36:L36)+SUM('APPENDIX 4 II'!C36:L36)+SUM('APPENDIX 4 III'!C37:K37) -> 18604962
B38: Intangible Assets | C38: 19994 | D38: 9630 | E38: 40924 | F38: 0 | G38: 184974 | H38: 0 | I38: 0 | J38: 2704 | K38: 0 | L38: =SUM('APPENDIX 4 I'!C37:L37)+SUM('APPENDIX 4 II'!C37:L37)+SUM('APPENDIX 4 III'!C38:K38) -> 1812056
B39: Total Assets | C39: 14651599 | D39: 5288954 | E39: 1377523 | F39: 1268979 | G39: 24775559 | H39: 286574 | I39: 3029348 | J39: 605036 | K39: 11006051 | L39: =SUM('APPENDIX 4 I'!C38:L38)+SUM('APPENDIX 4 II'!C38:L38)+SUM('APPENDIX 4 III'!C39:K39) -> 364742486
B40: Amounts in Thousand Shillings

Sheet APPENDIX 5 I
B2: APPENDIX 5: SUMMARY OF GENERAL INSURANCE BUSINESS BALANCE SHEETS AS AT 31.12.2017
B3: Company | C3: AAR INSURANCE KENYA | D3: AFRICAN MERCHANT ASSURANCE COMPANY | E3: AIG INSURANCE COMPANY | F3: ALLIANZ INSURANCE COMPANY | G3: APA INSURANCE COMPANY | H3: BRITAM GENERAL INSURANCE COMPANY | I3: CANNON ASSURANCE COMPANY | J3: CIC GENERAL INSURANCE COMPANY | K3: CONTINENTAL REINSURANCE | L3: CORPORATE INSURANCE COMPANY
B4: Share Capital | C4: 400000 | D4: 987386 | E4: 450000 | F4: 1000000 | G4: 1250000 | H4: 2668000 | I4: 453960 | J4: 1700000 | K4: 800000 | L4: 400000
B5: Share Premium | C5: 600523 | D5: 0 | E5: 0 | F5: 0 | G5: 0 | H5: 0 | I5: 396040 | J5: 0 | K5: 0 | L5: 0
B6: Revaluation Reserves | C6: 0 | D6: 0 | E6: -2732 | F6: 0 | G6: 0 | H6: 0 | I6: 0 | J6: 0 | K6: -101 | L6: 0
B7: Statutory Reserves | C7: 0 | D7: 0 | E7: 0 | F7: 0 | G7: 0 | H7: 0 | I7: 0 | J7: 0 | K7: 0 | L7: 0
B8: Retained Earnings | C8: -344837 | D8: 506236 | E8: 1332637 | F8: -154663 | G8: 4277802 | H8: 716566 | I8: -265937 | J8: 2469456 | K8: 256273 | L8: 547938
B9: Other Reserves | C9: 0 | D9: 20852 | E9: 300000 | F9: 0 | G9: 474787 | H9: 0 | I9: 0 | J9: -173813 | K9: 0 | L9: 0
B10: Total Equity | C10: 655686 | D10: 1514474 | E10: 2079905 | F10: 845337 | G10: 6002589 | H10: 3384566 | I10: 584063 | J10: 3995643 | K10: 1056172 | L10: 947938
B11: Underwriting Provisions | C11: 2627879 | D11: 2098941 | E11: 1026522 | F11: 127563 | G11: 7647234 | H11: 5777555 | I11: 1296943 | J11: 6890013 | K11: 799616 | L11: 313713
B12: Actuarial Contract Liabilities | C12: 0 | D12: 0 | E12: 0 | F12: 0 | G12: 0 | H12: 0 | I12: 0 | J12: 0 | K12: 0 | L12: 0
B13: LongTerm Liabilities | C13: 0 | D13: 0 | E13: 0 | F13: 0 | G13: 0 | H13: 0 | I13: 0 | J13: 0 | K13: 0 | L13: 0
B14: Current Liabilities | C14: 303761 | D14: 260911 | E14: 1615395 | F14: 212282 | G14: 529845 | H14: 1434587 | I14: 534080 | J14: 573147 | K14: 104188 | L14: 110158
B15: Total Equity And Liabilities | C15: 3587325 | D15: 3874326 | E15: 4721822 | F15: 1185182 | G15: 14179668 | H15: 10596709 | I15: 2415087 | J15: 11458803 | K15: 1959976 | L15: 1371809
B16: Land And Buildings | C16: 0 | D16: 732676 | E16: 0 | F16: 0 | G16: 0 | H16: 41425 | I16: 90000 | J16: 234000 | K16: 0 | L16: 0
B17: Investment Property | C17: 0 | D17: 530000 | E17: 510000 | F17: 0 | G17: 1313000 | H17: 0 | I17: 276000 | J17: 1588000 | K17: 0 | L17: 813500
B18: Other Fixed Assets | C18: 110081 | D18: 137119 | E18: 52849 | F18: 66405 | G18: 98466 | H18: 110397 | I18: 30532 | J18: 218521 | K18: 20373 | L18: 3958
B19: Government Securities | C19: 1258329 | D19: 502551 | E19: 2995295 | F19: 677842 | G19: 7332330 | H19: 4739779 | I19: 817261 | J19: 2738823 | K19: 611651 | L19: 129508
B20: Other Securities | C20: 0 | D20: 0 | E20: 0 | F20: 0 | G20: 25516 | H20: 0 | I20: 0 | J20: 269668 | K20: 0 | L20: 0
B21: Investment in Related Companies | C21: 0 | D21: 0 | E21: 0 | F21: 0 | G21: 618675 | H21: 0 | I21: 20883 | J21: 0 | K21: 0 | L21: 0
B22: Corporate Bonds | C22: 107633 | D22: 11012 | E22: 0 | F22: 0 | G22: 361573 | H22: 462139 | I22: 26836 | J22: 235150 | K22: 18068 | L22: 0
B23: Commercial Papers | C23: 0 | D23: 0 | E23: 0 | F23: 0 | G23: 0 | H23: 0 | I23: 0 | J23: 40577 | K23: 0 | L23: 0
B24: Debentures | C24: 0 | D24: 0 | E24: 0 | F24: 0 | G24: 0 | H24: 0 | I24: 0 | J24: 0 | K24: 0 | L24: 0
B25: Ordinary Shares Quoted | C25: 0 | D25: 26065 | E25: 0 | F25: 0 | G25: 1175915 | H25: 636641 | I25: 207345 | J25: 578556 | K25: 601 | L25: 1626
B26: Ordinary Shares Unquoted | C26: 0 | D26: 0 | E26: 0 | F26: 0 | G26: 21086 | H26: 21567 | I26: 241493 | J26: 23124 | K26: 0 | L26: 1151
B27: Preference Shares Quoted | C27: 0 | D27: 0 | E27: 0 | F27: 0 | G27: 0 | H27: 0 | I27: 0 | J27: 0 | K27: 0 | L27: 0
B28: Preference Shares Unquoted | C28: 0 | D28: 0 | E28: 0 | F28: 0 | G28: 0 | H28: 0 | I28: 0 | J28: 0 | K28: 0 | L28: 0
B29: Loans Secured & Unsecured | C29: 0 | D29: 12463 | E29: 9929 | F29: 0 | G29: 53231 | H29: 0 | I29: 5951 | J29: 94764 | K29: 10997 | L29: 2966
B30: Mortgages | C30: 0 | D30: 0 | E30: 0 | F30: 0 | G30: 77775 | H30: 0 | I30: 33089 | J30: 162381 | K30: 5355 | L30: 0
B31: Term Deposits | C31: 792967 | D31: 617741 | E31: 1101 | F31: 51210 | G31: 633241 | H31: 463465 | I31: 150374 | J31: 1873853 | K31: 315763 | L31: 18956
B32: Cash and Cash Balances | C32: 33681 | D32: 98007 | E32: 92189 | F32: 81378 | G32: 219764 | H32: 1311858 | I32: 32348 | J32: 132463 | K32: 2919 | L32: 7911
B33: Outstanding Premiums | C33: 610225 | D33: 843150 | E33: 644915 | F33: 104691 | G33: 1669207 | H33: 1109422 | I33: 205552 | J33: 2139829 | K33: 596072 | L33: 285606
B34: Other Receivables | C34: 206830 | D34: 43958 | E34: 143293 | F34: 0 | G34: 64979 | H34: 0 | I34: 139634 | J34: 136259 | K34: 0 | L34: 5414
B35: Other Assets | C35: 252245 | D35: 180007 | E35: 271277 | F35: 128412 | G35: 303212 | H35: 837475 | I35: 36087 | J35: 948775 | K35: 378178 | L35: 83931
B36: Intangible Assets | C36: 215334 | D36: 139577 | E36: 974 | F36: 75245 | G36: 211698 | H36: 862540 | I36: 101700 | J36: 44061 | K36: 0 | L36: 17283
B37: Total Assets | C37: 3587325 | D37: 3874326 | E37: 4721822 | F37: 1185182 | G37: 14179668 | H37: 10596709 | I37: 2415087 | J37: 11458803 | K37: 1959976 | L37: 1371809
B38: Amounts in thousand Shillings | K38: Continued next page

Sheet APPENDIX 5 II
B3: Continued from previous page
B4: APPENDIX 5: SUMMARY OF GENERAL INSURANCE BUSINESS BALANCE SHEETS AS AT 31.12.2017
B5: Company | C5: DIRECTLINE ASSURANCE COMPANY | D5: EAST AFRICA REINSURANCE COMPANY | E5: FIDELITY SHIELD INSURANCE COMPANY | F5: FIRST ASSURANCE COMPANY | G5: GA GENERAL INSURANCE COMPANY | H5: GEMINIA INSURANCE COMPANY LIMITED | I5: HERITAGE INSURANCE COMPANY | J5: ICEA LION GENERAL INSURANCE COMPANY | K5: INTRA-AFRICA ASSURANCE COMPANY | L5: INVESCO ASSURANCE COMPANY
B6: Share Capital | C6: 300000 | D6: 1000000 | E6: 600000 | F6: 660000 | G6: 700000 | H6: 550000 | I6: 500000 | J6: 1000000 | K6: 400000 | L6: 1925000
B7: Share Premium | C7: 0 | D7: 0 | E7: 0 | F7: 512139 | G7: 0 | H7: 0 | I7: 0 | J7: 0 | K7: 0 | L7: 0
B8: Revaluation Reserves | C8: -84287 | D8: 312344 | E8: 109028 | F8: 249165 | G8: 829766 | H8: 578992 | I8: 0 | J8: 365035 | K8: 339072 | L8: 345
B9: Statutory Reserves | C9: 0 | D9: 0 | E9: 0 | F9: 0 | G9: 0 | H9: 0 | I9: 0 | J9: 0 | K9: 0 | L9: 0
B10: Retained Earnings | C10: 851153 | D10: 1650744 | E10: 478844 | F10: 462393 | G10: 1846564 | H10: 643461 | I10: 2601771 | J10: 2748505 | K10: 110617 | L10: -1510511
B11: Other Reserves | C11: 0 | D11: 106624 | E11: 0 | F11: 0 | G11: 243536 | H11: 136608 | I11: 0 | J11: 150000 | K11: 10000 | L11: 0
B12: Total Equity | C12: 1066865 | D12: 3069711 | E12: 1187872 | F12: 1883697 | G12: 3619866 | H12: 1909060 | I12: 3101771 | J12: 4263540 | K12: 859689 | L12: 414834
B13: Underwriting Provisions | C13: 4395967 | D13: 2569662 | E13: 1779878 | F13: 1861705 | G13: 4565549 | H13: 2864807 | I13: 2965959 | J13: 4426201 | K13: 864618 | L13: 2515948
B14: Actuarial Contract Liabilities | C14: 0 | D14: 0 | E14: 0 | F14: 0 | G14: 0 | H14: 0 | I14: 0 | J14: 0 | K14: 0 | L14: 0
B15: LongTerm Liabilities | C15: 619390 | D15: 134494 | E15: 0 | F15: 0 | G15: 2134 | H15: 2292 | I15: 0 | J15: 484447 | K15: 61448 | L15: 200000
B16: Current Liabilities | C16: 96657 | D16: 1026043 | E16: 131155 | F16: 922314 | G16: 1454643 | H16: 262702 | I16: 1236078 | J16: 1052253 | K16: 75507 | L16: 221859
B17: Total Equity And Liabilities | C17: 6178880 | D17: 6799910 | E17: 3098905 | F17: 4667716 | G17: 9642192 | H17: 5038861 | I17: 7303808 | J17: 10226441 | K17: 1861263 | L17: 3352641
B18: Land And Buildings | C18: 397000 | D18: 540000 | E18: 275117 | F18: 345000 | G18: 1143000 | H18: 18929 | I18: 0 | J18: 0 | K18: 136800 | L18: 72622
B19: Investment Property | C19: 1332000 | D19: 800000 | E19: 1126883 | F19: 1410000 | G19: 1390757 | H19: 973000 | I19: 0 | J19: 2730000 | K19: 301200 | L19: 1423480
B20: Other Fixed Assets | C20: 16594 | D20: 6684 | E20: 23141 | F20: 46215 | G20: 31902 | H20: 44560 | I20: 87780 | J20: 130202 | K20: 19285 | L20: 48980
B21: Government Securities | C21: 800175 | D21: 2186446 | E21: 418781 | F21: 1337861 | G21: 2702735 | H21: 890200 | I21: 3279797 | J21: 4642316 | K21: 238135 | L21: 177000
B22: Other Securities | C22: 0 | D22: 0 | E22: 0 | F22: 0 | G22: 0 | H22: 0 | I22: 0 | J22: 44700 | K22: 0 | L22: 0
B23: Investment in Related Companies | C23: 9667 | D23: 0 | E23: 0 | F23: 0 | G23: 356109 | H23: 86571 | I23: 146557 | J23: 50147 | K23: 0 | L23: 0
B24: Corporate Bonds | C24: 0 | D24: 533574 | E24: 0 | F24: 46278 | G24: 291937 | H24: 24300 | I24: 175124 | J24: 259896 | K24: 0 | L24: 0
B25: Commercial Papers | C25: 0 | D25: 0 | E25: 0 | F25: 0 | G25: 10000 | H25: 0 | I25: 0 | J25: 0 | K25: 0 | L25: 0
B26: Debentures | C26: 0 | D26: 0 | E26: 0 | F26: 0 | G26: 0 | H26: 0 | I26: 0 | J26: 0 | K26: 0 | L26: 0
B27: Ordinary Shares Quoted | C27: 132948 | D27: 93461 | E27: 120404 | F27: 14054 | G27: 495883 | H27: 170698 | I27: 334696 | J27: 917454 | K27: 66994 | L27: 1793
B28: Ordinary Shares Unquoted | C28: 0 | D28: 0 | E28: 0 | F28: 0 | G28: 261880 | H28: 7371 | I28: 0 | J28: 12248 | K28: 0 | L28: 625
B29: Preference Shares Quoted | C29: 0 | D29: 0 | E29: 0 | F29: 0 | G29: 0 | H29: 0 | I29: 0 | J29: 0 | K29: 0 | L29: 0
B30: Preference Shares Unquoted | C30: 0 | D30: 0 | E30: 0 | F30: 0 | G30: 0 | H30: 0 | I30: 0 | J30: 0 | K30: 0 | L30: 0
B31: Loans Secured & Unsecured | C31: 16583 | D31: 6758 | E31: 4195 | F31: 22217 | G31: 213605 | H31: 159437 | I31: 51200 | J31: 20252 | K31: 20855 | L31: 0
B32: Mortgages | C32: 0 | D32: 39640 | E32: 12823 | F32: 0 | G32: 0 | H32: 0 | I32: 264746 | J32: 0 | K32: 12733 | L32: 0
B33: Term Deposits | C33: 405429 | D33: 1022861 | E33: 282356 | F33: 245713 | G33: 718747 | H33: 968859 | I33: 742381 | J33: 210452 | K33: 248746 | L33: 88394
B34: Cash and Cash Balances | C34: 1162386 | D34: 65191 | E34: 122072 | F34: 54135 | G34: 217353 | H34: 137112 | I34: 311870 | J34: 13108 | K34: 18745 | L34: 353446
B35: Outstanding Premiums | C35: 0 | D35: 804256 | E35: 506569 | F35: 797835 | G35: 1373391 | H35: 920438 | I35: 1303112 | J35: 710342 | K35: 658905 | L35: 412882
B36: Other Receivables | C36: 0 | D36: 206923 | E36: 0 | F36: 0 | G36: 10183 | H36: 19043 | I36: 82361 | J36: 120961 | K36: 99722 | L36: 275502
B37: Other Assets | C37: 1836707 | D37: 107287 | E37: 121045 | F37: 242328 | G37: 85141 | H37: 609729 | I37: 473282 | J37: 136546 | K37: 0 | L37: 0
B38: Intangible Assets | C38: 69391 | D38: 386830 | E38: 85520 | F38: 106079 | G38: 339571 | H38: 8616 | I38: 50901 | J38: 227816 | K38: 39142 | L38: 497916
B39: Total Assets | C39: 6178880 | D39: 6799910 | E39: 3098905 | F39: 4667716 | G39: 9642192 | H39: 5038861 | I39: 7303808 | J39: 10226441 | K39: 1861263 | L39: 3352641
B40: Amounts in thousand Shillings | K40: Continued next page

Sheet APPENDIX 5 III
B3: Continued from previous page
B4: APPENDIX 5: SUMMARY OF GENERAL INSURANCE BUSINESS BALANCE SHEETS AS AT 31.12.2017
B5: Company | C5: JUBILEE INSURANCE COMPANY | D5: KENINDIA ASSURANCE COMPANY | E5: KENYA ORIENT INSURANCE COMPANY | F5: KENYA REINSURANCE CORPORATION | G5: MADISON INSURANCE COMPANY | H5: MAYFAIR INSURANCE COMPANY | I5: OCCIDENTAL INSURANCE COMPANY | J5: PACIS INSURANCE COMPANY | K5: PHOENIX OF EAST AFRICA ASSURANCE | L5: PIONEER GENERAL INSURANCE | M5: RESOLUTION INSURANCE COMPANY
B6: Share Capital | C6: 2000000 | D6: 400000 | E6: 810721 | F6: 1749873 | G6: 300000 | H6: 750000 | I6: 693000 | J6: 534605 | K6: 300000 | L6: 600000 | M6: 410000
B7: Share Premium | C7: 0 | D7: 1198 | E7: 0 | F7: 0 | G7: 0 | H7: 0 | I7: 0 | J7: 17712 | K7: 0 | L7: 0 | M7: 990000
B8: Revaluation Reserves | C8: 204160 | D8: 307534 | E8: 55679 | F8: 15317 | G8: 0 | H8: 429564 | I8: 15124 | J8: 0 | K8: 2532 | L8: 0 | M8: -2040
B9: Statutory Reserves | C9: 0 | D9: 0 | E9: 0 | F9: 0 | G9: 0 | H9: 0 | I9: 0 | J9: 0 | K9: 0 | L9: 0 | M9: 0
B10: Retained Earnings | C10: 4116230 | D10: 2045252 | E10: -144987 | F10: 21008791 | G10: 824887 | H10: 905425 | I10: 401758 | J10: 408138 | K10: 695447 | L10: 3143 | M10: -1712351
B11: Other Reserves | C11: 1000000 | D11: 387375 | E11: 50000 | F11: 667309 | G11: 0 | H11: 150000 | I11: 12474 | J11: -477 | K11: 0 | L11: 0 | M11: 0
B12: Total Equity | C12: 7320390 | D12: 3141359 | E12: 771413 | F12: 23441290 | G12: 1124887 | H12: 2234989 | I12: 1122356 | J12: 959977 | K12: 997979 | L12: 603143 | M12: -314391
B13: Underwriting Provisions | C13: 5379682 | D13: 2457186 | E13: 1496449 | F13: 10100726 | G13: 2660815 | H13: 1933666 | I13: 1933366 | J13: 1120376 | K13: 413139 | L13: 203240 | M13: 1644457
B14: Actuarial Contract Liabilities | C14: 0 | D14: 0 | E14: 0 | F14: 0 | G14: 0 | H14: 0 | I14: 0 | J14: 0 | K14: 0 | L14: 0 | M14: 0
B15: LongTerm Liabilities | C15: 0 | D15: 216401 | E15: 94040 | F15: 0 | G15: 0 | H15: 0 | I15: 11782 | J15: 0 | K15: 0 | L15: 0 | M15: 0
B16: Current Liabilities | C16: 387354 | D16: 2001500 | E16: 100066 | F16: 334718 | G16: 195164 | H16: 366033 | I16: 299490 | J16: 232757 | K16: 115996 | L16: 239972 | M16: 2041777
B17: Total Equity And Liabilities | C17: 13087425 | D17: 7816446 | E17: 2461968 | F17: 33876734 | G17: 3980866 | H17: 4534689 | I17: 3366994 | J17: 2313109 | K17: 1527113 | L17: 1046355 | M17: 3371844
B18: Land And Buildings | C18: 0 | D18: 746963 | E18: 141500 | F18: 23000 | G18: 0 | H18: 226761 | I18: 0 | J18: 113850 | K18: 0 | L18: 0 | M18: 0
B19: Investment Property | C19: 0 | D19: 1203915 | E19: 533823 | F19: 8031800 | G19: 898000 | H19: 460458 | I19: 531000 | J19: 730000 | K19: 0 | L19: 0 | M19: 0
B20: Other Fixed Assets | C20: 65425 | D20: 68590 | E20: 38781 | F20: 56962 | G20: 56286 | H20: 76135 | I20: 46144 | J20: 29475 | K20: 22375 | L20: 3367 | M20: 139383
B21: Government Securities | C21: 3301863 | D21: 2496457 | E21: 149024 | F21: 12388785 | G21: 653013 | H21: 730458 | I21: 1201394 | J21: 224955 | K21: 576849 | L21: 38008 | M21: 254081
B22: Other Securities | C22: 0 | D22: 0 | E22: 0 | F22: 0 | G22: 0 | H22: 0 | I22: 0 | J22: 0 | K22: 0 | L22: 0 | M22: 0
B23: Investment in Related Companies | C23: 1839745 | D23: 81905 | E23: 170000 | F23: 4587101 | G23: 0 | H23: 454875 | I23: 0 | J23: 0 | K23: 143807 | L23: 0 | M23: 0
B24: Corporate Bonds | C24: 14318 | D24: 52780 | E24: 5254 | F24: 482696 | G24: 16588 | H24: 98895 | I24: 14675 | J24: 0 | K24: 0 | L24: 0 | M24: 0
B25: Commercial Papers | C25: 0 | D25: 46283 | E25: 0 | F25: 0 | G25: 0 | H25: 0 | I25: 0 | J25: 0 | K25: 0 | L25: 0 | M25: 0
B26: Debentures | C26: 0 | D26: 0 | E26: 0 | F26: 0 | G26: 0 | H26: 0 | I26: 0 | J26: 0 | K26: 0 | L26: 0 | M26: 0
B27: Ordinary Shares Quoted | C27: 1846042 | D27: 58347 | E27: 8338 | F27: 1798691 | G27: 1969 | H27: 197161 | I27: 131380 | J27: 19545 | K27: 3591 | L27: 0 | M27: 0
B28: Ordinary Shares Unquoted | C28: 597240 | D28: 547506 | E28: 646137 | F28: 202231 | G28: 363359 | H28: 608280 | I28: 100825 | J28: 65221 | K28: 0 | L28: 0 | M28: 0
B29: Preference Shares Quoted | C29: 432 | D29: 0 | E29: 0 | F29: 89 | G29: 0 | H29: 0 | I29: 0 | J29: 0 | K29: 0 | L29: 0 | M29: 0
B30: Preference Shares Unquoted | C30: 0 | D30: 0 | E30: 0 | F30: 0 | G30: 0 | H30: 0 | I30: 0 | J30: 0 | K30: 0 | L30: 0 | M30: 0
B31: Loans Secured & Unsecured | C31: 5312 | D31: 10186 | E31: 0 | F31: 0 | G31: 0 | H31: 14065 | I31: 0 | J31: 0 | K31: 2158 | L31: 1159 | M31: 0
B32: Mortgages | C32: 77765 | D32: 0 | E32: 0 | F32: 658423 | G32: 0 | H32: 0 | I32: 0 | J32: 0 | K32: 0 | L32: 0 | M32: 0
B33: Term Deposits | C33: 914223 | D33: 663450 | E33: 57854 | F33: 212723 | G33: 476219 | H33: 1062042 | I33: 135022 | J33: 111720 | K33: 81570 | L33: 723506 | M33: 352306
B34: Cash and Cash Balances | C34: 478281 | D34: 14328 | E34: 10675 | F34: 148448 | G34: 36663 | H34: 14572 | I34: 52747 | J34: 19300 | K34: 25542 | L34: 38762 | M34: 67209
B35: Outstanding Premiums | C35: 3028585 | D35: 479231 | E35: 313012 | F35: 3759717 | G35: 1013031 | H35: 473263 | I35: 952256 | J35: 864717 | K35: 382533 | L35: 181761 | M35: 800076
B36: Other Receivables | C36: 505891 | D36: 0 | E36: 41708 | F36: 292356 | G36: 220384 | H36: 0 | I36: 27994 | J36: 0 | K36: 58735 | L36: 23213 | M36: 821407
B37: Other Assets | C37: 101247 | D37: 1295992 | E37: 217698 | F37: -287121 | G37: 24071 | H37: 106573 | I37: 41968 | J37: 61010 | K37: 190727 | L37: 381 | M37: 650385
B38: Intangible Assets | C38: 311057 | D38: 50513 | E38: 128163 | F38: 1520832 | G38: 221284 | H38: 11150 | I38: 131589 | J38: 73315 | K38: 39226 | L38: 36198 | M38: 286998
B39: Total Assets | C39: 13087425 | D39: 7816446 | E39: 2461968 | F39: 33876734 | G39: 3980866 | H39: 4534689 | I39: 3366994 | J39: 2313109 | K39: 1527113 | L39: 1046355 | M39: 3371844
B40: Amounts in thousand Shillings | K40: Continued next page

Sheet APPENDIX5 IV
B3: Continued from previous page
B4: APPENDIX 5: SUMMARY OF GENERAL INSURANCE BUSINESS BALANCE SHEETS AS AT 31.12.2017
B5: Company | C5: SAHAM INSURANCE COMPANY | D5: SANLAM INSURANCE COMPANY | E5: TAKAFUL INSURANCE OF AFRICA | F5: TAUSI ASSURANCE COMPANY | G5: THE KENYAN ALLIANCE INSURANCE COMPANY | H5: THE MONARCH INSURANCE COMPANY | I5: TRIDENT INSURANCE COMPANY | J5: UAP INSURANCE COMPANY | K5: XPLICO INSURANCE COMPANY | L5: TOTAL | N5: Longterm | O5: general | P5: industry
B6: Share Capital | C6: 402000 | D6: 788600 | E6: 470203 | F6: 600000 | G6: 300000 | H6: 316476 | I6: 500000 | J6: 1000000 | K6: 887500 | L6: =SUM('APPENDIX 5 I'!C4:L4,'APPENDIX 5 II'!C6:L6,'APPENDIX 5 III'!C6:M6,'APPENDIX5 IV'!C6:K6) -> 31557324 | N6: ='APPENDIX 4 III'!L6 -> 11663942 | O6: =L6 -> 31557324 | P6: =O6+N6 -> 43221266
B7: Share Premium | C7: 0 | D7: 102760 | E7: 50000 | F7: 0 | G7: 0 | H7: 0 | I7: 0 | J7: 0 | K7: 0 | L7: =SUM('APPENDIX 5 I'!C5:L5,'APPENDIX 5 II'!C7:L7,'APPENDIX 5 III'!C7:M7,'APPENDIX5 IV'!C7:K7) -> 2670372 | N7: ='APPENDIX 4 III'!L7 -> 4230298 | O7: =L7 -> 2670372 | P7: =O7+N7 -> 6900670
B8: Revaluation Reserves | C8: -2178 | D8: 77618 | E8: 0 | F8: 174111 | G8: 2750 | H8: 0 | I8: 192586 | J8: 0 | K8: 19670 | L8: =SUM('APPENDIX 5 I'!C6:L6,'APPENDIX 5 II'!C8:L8,'APPENDIX 5 III'!C8:M8,'APPENDIX5 IV'!C8:K8) -> 4189054 | N8: ='APPENDIX 4 III'!L8 -> 1121012 | O8: 4189054 | P8: 5310066
B9: Statutory Reserves | C9: 0 | D9: 0 | E9: 0 | F9: 0 | G9: 0 | H9: 0 | I9: 0 | J9: 0 | K9: 0 | L9: =SUM('APPENDIX 5 I'!C7:L7,'APPENDIX 5 II'!C9:L9,'APPENDIX 5 III'!C9:M9,'APPENDIX5 IV'!C9:K9) -> 0 | N9: ='APPENDIX 4 III'!L9 -> 19600825 | O9: 0 | P9: 19600825
B10: Retained Earnings | C10: 228268 | D10: -205454 | E10: -136224 | F10: 552348 | G10: 1092028 | H10: 111277 | I10: 1333242 | J10: 4685317 | K10: 223121 | L10: =SUM('APPENDIX 5 I'!C8:L8,'APPENDIX 5 II'!C10:L10,'APPENDIX 5 III'!C10:M10,'APPENDIX5 IV'!C10:K10) -> 55660668 | N10: ='APPENDIX 4 III'!L10 -> -78123 | O10: 55660668 | P10: 55582545
B11: Other Reserves | C11: 0 | D11: 0 | E11: 0 | F11: 7508 | G11: 1679 | H11: 0 | I11: 25000 | J11: 2084043 | K11: 220000 | L11: =SUM('APPENDIX 5 I'!C9:L9,'APPENDIX 5 II'!C11:L11,'APPENDIX 5 III'!C11:M11,'APPENDIX5 IV'!C11:K11) -> 5873505 | N11: ='APPENDIX 4 III'!L11 -> 10766130 | O11: 5873505 | P11: 16639635
B12: Total Equity | C12: 628090 | D12: 763524 | E12: 383979 | F12: 1333967 | G12: 1396458 | H12: 427753 | I12: 2050828 | J12: 7769361 | K12: 1350291 | L12: =SUM('APPENDIX 5 I'!C10:L10,'APPENDIX 5 II'!C12:L12,'APPENDIX 5 III'!C12:M12,'APPENDIX5 IV'!C12:K12) -> 99950921 | N12: ='APPENDIX 4 III'!L12 -> 47304081 | O12: 99950921 | P12: 147255002
B13: Underwriting Provisions | C13: 752841 | D13: 1613549 | E13: 835432 | F13: 723024 | G13: 1241311 | H13: 973182 | I13: 1738389 | J13: 6654904 | K13: 645741 | L13: =SUM('APPENDIX 5 I'!C11:L11,'APPENDIX 5 II'!C13:L13,'APPENDIX 5 III'!C13:M13,'APPENDIX5 IV'!C13:K13) -> 101937748 | N13: ='APPENDIX 4 III'!L13 -> 5693390 | O13: 101937748 | P13: 107631138
B14: Actuarial Contract Liabilities | C14: 0 | D14: 0 | E14: 0 | F14: 0 | G14: 0 | H14: 0 | I14: 0 | J14: 0 | K14: 0 | L14: =SUM('APPENDIX 5 I'!C12:L12,'APPENDIX 5 II'!C14:L14,'APPENDIX 5 III'!C14:M14,'APPENDIX5 IV'!C14:K14) -> 0 | N14: ='APPENDIX 4 III'!L14 -> 291451528 | O14: 0 | P14: 291451528
B15: LongTerm Liabilities | C15: 0 | D15: 0 | E15: 40000 | F15: 62656 | G15: 58991 | H15: 0 | I15: 56351 | J15: 0 | K15: 0 | L15: =SUM('APPENDIX 5 I'!C13:L13,'APPENDIX 5 II'!C15:L15,'APPENDIX 5 III'!C15:M15,'APPENDIX5 IV'!C15:K15) -> 2044426 | N15: ='APPENDIX 4 III'!L15 -> 8857867 | O15: 2044426 | P15: 10902293
B16: Current Liabilities | C16: 563133 | D16: 312297 | E16: 321289 | F16: 127539 | G16: 428218 | H16: 57475 | I16: 535613 | J16: 1170227 | K16: 289564 | L16: =SUM('APPENDIX 5 I'!C14:L14,'APPENDIX 5 II'!C16:L16,'APPENDIX 5 III'!C16:M16,'APPENDIX5 IV'!C16:K16) -> 22277747 | N16: ='APPENDIX 4 III'!L16 -> 11435615 | O16: 22277747 | P16: 33713362
B17: Total Equity And Liabilities | C17: 1944065 | D17: 2689370 | E17: 1580700 | F17: 2247186 | G17: 3124977 | H17: 1458410 | I17: 4381181 | J17: 15594492 | K17: 2285596 | L17: =SUM('APPENDIX 5 I'!C15:L15,'APPENDIX 5 II'!C17:L17,'APPENDIX 5 III'!C17:M17,'APPENDIX5 IV'!C17:K17) -> 226210844 | N17: ='APPENDIX 4 III'!L17 -> 364742486 | O17: 226210844 | P17: 590953330 | Q17: investments
B18: Land And Buildings | C18: 0 | D18: 0 | E18: 0 | F18: 303500 | G18: 0 | H18: 0 | I18: 240660 | J18: 0 | K18: 0 | L18: =SUM('APPENDIX 5 I'!C16:L16,'APPENDIX 5 II'!C18:L18,'APPENDIX 5 III'!C18:M18,'APPENDIX5 IV'!C18:K18) -> 5822803 | N18: ='APPENDIX 4 III'!L18 -> 2895478 | O18: 5822803 | P18: 8718281 | Q18: =SUM(P19,P21:P33) -> 483799656
B19: Investment Property | C19: 0 | D19: 1056700 | E19: 21100 | F19: 0 | G19: 1060349 | H19: 414441 | I19: 1716399 | J19: 3711700 | K19: 657300 | L19: =SUM('APPENDIX 5 I'!C17:L17,'APPENDIX 5 II'!C19:L19,'APPENDIX 5 III'!C19:M19,'APPENDIX5 IV'!C19:K19) -> 37544805 | N19: ='APPENDIX 4 III'!L19 -> 41568005 | O19: 37544805 | P19: 79112810
B20: Other Fixed Assets | C20: 9298 | D20: 19123 | E20: 29932 | F20: 17310 | G20: 46062 | H20: 18025 | I20: 10838 | J20: 44349 | K20: 111800 | L20: =SUM('APPENDIX 5 I'!C18:L18,'APPENDIX 5 II'!C20:L20,'APPENDIX 5 III'!C20:M20,'APPENDIX5 IV'!C20:K20) -> 2213704 | N20: ='APPENDIX 4 III'!L20 -> 1270382 | O20: 2213704 | P20: 3484086
B21: Government Securities | C21: 582775 | D21: 388910 | E21: 32907 | F21: 977883 | G21: 332094 | H21: 95583 | I21: 239061 | J21: 3842735 | K21: 86700 | L21: =SUM('APPENDIX 5 I'!C19:L19,'APPENDIX 5 II'!C21:L21,'APPENDIX 5 III'!C21:M21,'APPENDIX5 IV'!C21:K21) -> 67070350 | N21: ='APPENDIX 4 III'!L21 -> 190410956 | O21: 67070350 | P21: 257481306
B22: Other Securities | C22: 0 | D22: 0 | E22: 0 | F22: 0 | G22: 0 | H22: 0 | I22: 20193 | J22: 0 | K22: 103000 | L22: =SUM('APPENDIX 5 I'!C20:L20,'APPENDIX 5 II'!C22:L22,'APPENDIX 5 III'!C22:M22,'APPENDIX5 IV'!C22:K22) -> 463077 | N22: ='APPENDIX 4 III'!L22 -> 10861225 | O22: 463077 | P22: 11324302
B23: Investment in Related Companies | C23: 0 | D23: 0 | E23: 0 | F23: 0 | G23: 0 | H23: 0 | I23: 615600 | J23: 0 | K23: 245251 | L23: =SUM('APPENDIX 5 I'!C21:L21,'APPENDIX 5 II'!C23:L23,'APPENDIX 5 III'!C23:M23,'APPENDIX5 IV'!C23:K23) -> 9426893 | N23: ='APPENDIX 4 III'!L23 -> 5705840 | O23: 9426893 | P23: 15132733
B24: Corporate Bonds | C24: 76160 | D24: 20000 | E24: 56769 | F24: 0 | G24: 27090 | H24: 0 | I24: 20000 | J24: 715752 | K24: 0 | L24: =SUM('APPENDIX 5 I'!C22:L22,'APPENDIX 5 II'!C24:L24,'APPENDIX 5 III'!C24:M24,'APPENDIX5 IV'!C24:K24) -> 4154497 | N24: ='APPENDIX 4 III'!L24 -> 9893069 | O24: 4154497 | P24: 14047566
B25: Commercial Papers | C25: 0 | D25: 0 | E25: 0 | F25: 14446 | G25: 0 | H25: 0 | I25: 0 | J25: 0 | K25: 0 | L25: =SUM('APPENDIX 5 I'!C23:L23,'APPENDIX 5 II'!C25:L25,'APPENDIX 5 III'!C25:M25,'APPENDIX5 IV'!C25:K25) -> 111306 | N25: ='APPENDIX 4 III'!L25 -> 269792 | O25: 111306 | P25: 381098
B26: Debentures | C26: 0 | D26: 0 | E26: 0 | F26: 0 | G26: 0 | H26: 0 | I26: 0 | J26: 0 | K26: 0 | L26: =SUM('APPENDIX 5 I'!C24:L24,'APPENDIX 5 II'!C26:L26,'APPENDIX 5 III'!C26:M26,'APPENDIX5 IV'!C26:K26) -> 0 | N26: ='APPENDIX 4 III'!L26 -> 0 | O26: 0 | P26: 0
B27: Ordinary Shares Quoted | C27: 33808 | D27: 691 | E27: 0 | F27: 229816 | G27: 24679 | H27: 0 | I27: 6220 | J27: 1366087 | K27: 0 | L27: =SUM('APPENDIX 5 I'!C25:L25,'APPENDIX 5 II'!C27:L27,'APPENDIX 5 III'!C27:M27,'APPENDIX5 IV'!C27:K27) -> 10701499 | N27: ='APPENDIX 4 III'!L27 -> 34302283 | O27: 10701499 | P27: 45003782
B28: Ordinary Shares UnQuoted | C28: 0 | D28: 104103 | E28: 0 | F28: 7039 | G28: 52635 | H28: 59 | I28: 7985 | J28: 61997 | K28: 0 | L28: =SUM('APPENDIX 5 I'!C26:L26,'APPENDIX 5 II'!C28:L28,'APPENDIX 5 III'!C28:M28,'APPENDIX5 IV'!C28:K28) -> 3955162 | N28: ='APPENDIX 4 III'!L28 -> 5454599 | O28: 3955162 | P28: 9409761
B29: Preference Shares Quoted | C29: 0 | D29: 0 | E29: 0 | F29: 0 | G29: 0 | H29: 0 | I29: 0 | J29: 0 | K29: 0 | L29: =SUM('APPENDIX 5 I'!C27:L27,'APPENDIX 5 II'!C29:L29,'APPENDIX 5 III'!C29:M29,'APPENDIX5 IV'!C29:K29) -> 521 | N29: ='APPENDIX 4 III'!L29 -> 0 | O29: 521 | P29: 521
B30: Preference Shares Unquoted | C30: 0 | D30: 0 | E30: 0 | F30: 0 | G30: 0 | H30: 0 | I30: 0 | J30: 0 | K30: 0 | L30: =SUM('APPENDIX 5 I'!C28:L28,'APPENDIX 5 II'!C30:L30,'APPENDIX 5 III'!C30:M30,'APPENDIX5 IV'!C30:K30) -> 0 | N30: ='APPENDIX 4 III'!L30 -> 0 | O30: 0 | P30: 0
B31: Loans Secured & Unsecured | C31: 0 | D31: 8022 | E31: 0 | F31: 8850 | G31: 205911 | H31: 0 | I31: 1000522 | J31: 1165129 | K31: 19784 | L31: =SUM('APPENDIX 5 I'!C29:L29,'APPENDIX 5 II'!C31:L31,'APPENDIX 5 III'!C31:M31,'APPENDIX5 IV'!C31:K31) -> 3146501 | N31: ='APPENDIX 4 III'!L31 -> 4669209 | O31: 3146501 | P31: 7815710
B32: Mortgages | C32: 0 | D32: 0 | E32: 0 | F32: 139354 | G32: 0 | H32: 0 | I32: 0 | J32: 291833 | K32: 0 | L32: =SUM('APPENDIX 5 I'!C30:L30,'APPENDIX 5 II'!C32:L32,'APPENDIX 5 III'!C32:M32,'APPENDIX5 IV'!C32:K32) -> 1775917 | N32: ='APPENDIX 4 III'!L32 -> 2649700 | O32: 1775917 | P32: 4425617
B33: Term Deposits | C33: 480052 | D33: 78210 | E33: 458370 | F33: 363281 | G33: 251844 | H33: 126331 | I33: 98589 | J33: 729959 | K33: 214108 | L33: =SUM('APPENDIX 5 I'!C31:L31,'APPENDIX 5 II'!C33:L33,'APPENDIX 5 III'!C33:M33,'APPENDIX5 IV'!C33:K33) -> 17443988 | N33: ='APPENDIX 4 III'!L33 -> 22220462 | O33: 17443988 | P33: 39664450
B34: Cash and Cash Balances | C34: 94343 | D34: 61348 | E34: 85924 | F34: 22536 | G34: 29107 | H34: 72798 | I34: 8092 | J34: 514569 | K34: 75562 | L34: =SUM('APPENDIX 5 I'!C32:L32,'APPENDIX 5 II'!C34:L34,'APPENDIX 5 III'!C34:M34,'APPENDIX5 IV'!C34:K34) -> 6338742 | N34: ='APPENDIX 4 III'!L34 -> 3617116 | O34: 6338742 | P34: 9955858
B35: Outstanding Premiums | C35: 469958 | D35: 624143 | E35: 244718 | F35: 88599 | G35: 801326 | H35: 624020 | I35: 261730 | J35: 1646061 | K35: 507252 | L35: =SUM('APPENDIX 5 I'!C33:L33,'APPENDIX 5 II'!C35:L35,'APPENDIX 5 III'!C35:M35,'APPENDIX5 IV'!C35:K35) -> 33212388 | N35: ='APPENDIX 4 III'!L35 -> 5956346 | O35: 33212388 | P35: 39168734
B36: Other Receivables | C36: 589 | D36: -2604 | E36: 0 | F36: 0 | G36: 150590 | H36: 3250 | I36: 31936 | J36: 957041 | K36: 152983 | L36: =SUM('APPENDIX 5 I'!C34:L34,'APPENDIX 5 II'!C36:L36,'APPENDIX 5 III'!C36:M36,'APPENDIX5 IV'!C36:K36) -> 4840535 | N36: ='APPENDIX 4 III'!L36 -> 2581007 | O36: 4840535 | P36: 7421542
B37: Other Assets | C37: 94835 | D37: 310446 | E37: 560501 | F37: 24899 | G37: 79267 | H37: 41734 | I37: 33553 | J37: 227780 | K37: 81486 | L37: =SUM('APPENDIX 5 I'!C35:L35,'APPENDIX 5 II'!C37:L37,'APPENDIX 5 III'!C37:M37,'APPENDIX5 IV'!C37:K37) -> 10889096 | N37: ='APPENDIX 4 III'!L37 -> 18604962 | O37: 10889096 | P37: 29494058
B38: Intangible Assets | C38: 102247 | D38: 20279 | E38: 90480 | F38: 49673 | G38: 64023 | H38: 62171 | I38: 69803 | J38: 319499 | K38: 30372 | L38: =SUM('APPENDIX 5 I'!C36:L36,'APPENDIX 5 II'!C38:L38,'APPENDIX 5 III'!C38:M38,'APPENDIX5 IV'!C38:K38) -> 7099066 | N38: ='APPENDIX 4 III'!L38 -> 1812056 | O38: 7099066 | P38: 8911122
B39: Total Assets | C39: 1944065 | D39: 2689370 | E39: 1580700 | F39: 2247186 | G39: 3124977 | H39: 1458410 | I39: 4381181 | J39: 15594492 | K39: 2285596 | L39: =SUM('APPENDIX 5 I'!C37:L37,'APPENDIX 5 II'!C39:L39,'APPENDIX 5 III'!C39:M39,'APPENDIX5 IV'!C39:K39) -> 226210844 | N39: ='APPENDIX 4 III'!L39 -> 364742486 | O39: 226210844 | P39: 590953330
B40: Amounts in thousand Shillings

Sheet template L (hidden)
B2: APPENDIX 2: SUMMARY OF PROFIT & LOSS ACCOUNTS UNDER LIFE INSURANCE BUSINESS FOR THE YEAR ENDED 31.12.2013
B3: Company | C3: Profit Transferred from Revenue | D3: Investment Income | E3: Other Income | F3: Total Income | G3: Loss Transferred From Revenue | H3: Management Expenses | I3: Total Outgo | J3: Profit / (Loss) Before Taxation | K3: Provision for Taxation | L3: Profit/(Loss) After Taxation | M3: Unappropriated Profit/(Loss) BF | N3: Transfer To Reserves | O3: Other Appropriations | P3: Dividend | Q3: Unappropriated Profit /(Loss) CF
B4: APA LIFE ASSURANCE COMPANY | C4: 28949 | D4: 14187 | E4: 0 | F4: 43137 | G4: 0 | H4: 1000 | I4: 3573 | J4: 39564 | K4: 10169 | L4: 29394 | M4: 41950 | N4: 0 | O4: 0 | P4: 30000 | Q4: 41345
B5: BRITISH AMERICAN INSURANCE | C5: 1797417 | D5: 154508 | E5: 0 | F5: 1951925 | G5: 0 | H5: 0 | I5: 0 | J5: 1951925 | K5: 300000 | L5: 1651925 | M5: 0 | N5: 1651925 | O5: 0 | P5: 0 | Q5: 0
B6: CANNON ASSURANCE COMPANY | C6: 180000 | D6: 0 | E6: 0 | F6: 180000 | G6: 0 | H6: 0 | I6: 0 | J6: 180000 | K6: 56883 | L6: 123117 | M6: 357165 | N6: 0 | O6: 0 | P6: 0 | Q6: 480281
B7: CAPEX LIFE ASSURANCE COMPANY | C7: 4927 | D7: 0 | E7: 0 | F7: 4927 | G7: 0 | H7: 0 | I7: 0 | J7: 4927 | K7: 2217 | L7: 2710 | M7: 39084 | N7: 0 | O7: 0 | P7: 0 | Q7: 41794
B8: CFC LIFE ASSURANCE COMPANY | C8: 436635 | D8: 0 | E8: 0 | F8: 436635 | G8: 0 | H8: 0 | I8: 0 | J8: 436635 | K8: 20176 | L8: 416459 | M8: -356061 | N8: 401761 | O8: 0 | P8: 0 | Q8: -341363
B9: CIC LIFE ASSURANCE COMPANY | C9: 437815 | D9: 0 | E9: 0 | F9: 437815 | G9: 0 | H9: 0 | I9: 0 | J9: 437815 | K9: 0 | L9: 437815 | M9: 0 | N9: 0 | O9: 0 | P9: 0 | Q9: 437815
B10: CONTINENTAL REINSURANCE | C10: 17799 | D10: 17039 | E10: 51 | F10: 34889 | G10: 0 | H10: 0 | I10: 0 | J10: 34889 | K10: 0 | L10: 34889 | M10: 0 | N10: 0 | O10: 0 | P10: 0 | Q10: 34889
B11: CORPORATE INSURANCE COMPANY | C11: 27119 | D11: 0 | E11: 0 | F11: 27119 | G11: 0 | H11: 0 | I11: 0 | J11: 27119 | K11: 873 | L11: 26245 | M11: 51378 | N11: 0 | O11: 0 | P11: 0 | Q11: 77623
B12: EAST AFRICAN REINSURANCE | C12: 40405 | D12: 74104 | E12: 21 | F12: 114530 | G12: 0 | H12: 0 | I12: 0 | J12: 114530 | K12: 24297 | L12: 90234 | M12: 268920 | N12: 65265 | O12: 0 | P12: 0 | Q12: 293888
B13: FIRST ASSURANCE COMPANY | C13: 33467 | D13: 0 | E13: 4675 | F13: 38142 | G13: 0 | H13: 0 | I13: 0 | J13: 38142 | K13: 0 | L13: 38142 | M13: 0 | N13: 38142 | O13: 0 | P13: 0 | Q13: 0
B14: GA LIFE ASSURANCE COMPANY | C14: 10056 | D14: 0 | E14: 0 | F14: 10056 | G14: 0 | H14: 0 | I14: 0 | J14: 10056 | K14: 2325 | L14: 7731 | M14: 0 | N14: 0 | O14: 0 | P14: 0 | Q14: 7731
B15: GEMINIA INSURANCE COMPANY | C15: 0 | D15: 0 | E15: 0 | F15: 0 | G15: 0 | H15: 0 | I15: 0 | J15: 0 | K15: 0 | L15: 0 | M15: 0 | N15: 0 | O15: 0 | P15: 0 | Q15: 0
B16: ICEA LION LIFE ASSURANCE | C16: 210000 | D16: 128425 | E16: 88545 | F16: 426970 | G16: 0 | H16: 21078 | I16: 37906 | J16: 389064 | K16: 7458 | L16: 381606 | M16: 1949933 | N16: 0 | O16: 0 | P16: 680000 | Q16: 1651539
B17: JUBILEE INSURANCE COMPANY | C17: 310093 | D17: 0 | E17: 0 | F17: 310093 | G17: 0 | H17: 0 | I17: 0 | J17: 310093 | K17: 0 | L17: 310093 | M17: 0 | N17: 0 | O17: 0 | P17: 0 | Q17: 310093
B18: KENINDIA ASSURANCE COMPANY | C18: 123084 | D18: 2050638 | E18: 7530 | F18: 2181252 | G18: 0 | H18: 0 | I18: 0 | J18: 2181252 | K18: 0 | L18: 2181252 | M18: 0 | N18: 30000 | O18: 0 | P18: 0 | Q18: 2151252
B19: KENYA REINSURANCE CORPORATION | C19: 720393 | D19: 0 | E19: 0 | F19: 720393 | G19: 0 | H19: 0 | I19: 0 | J19: 720393 | K19: 27175 | L19: 693218 | M19: 2402630 | N19: 0 | O19: 0 | P19: 0 | Q19: 3095848
B20: MADISON INSURANCE COMPANY | C20: -138857 | D20: 963368 | E20: 0 | F20: 824511 | G20: 0 | H20: 0 | I20: 0 | J20: 824511 | K20: 0 | L20: 824511 | M20: 3948660 | N20: 0 | O20: 0 | P20: 0 | Q20: 4773172
B21: MERCANTILE INSURANCE COMPANY | C21: 0 | D21: 31153 | E21: 0 | F21: 31153 | G21: 18758 | H21: 0 | I21: 18758 | J21: 12394 | K21: 4652 | L21: 7743 | M21: 0 | N21: 0 | O21: 243 | P21: 7500 | Q21: 0
B22: METROPOLITAN INSURANCE | C22: 0 | D22: 27832 | E22: 106 | F22: 27938 | G22: 91342 | H22: 2037 | I22: 93379 | J22: -65441 | K22: 10858 | L22: -76299 | M22: -581879 | N22: 0 | O22: 0 | P22: 0 | Q22: -658178
B23: OLD MUTUAL LIFE ASSURANCE | C23: 0 | D23: 115392 | E23: 0 | F23: 115392 | G23: 250554 | H23: 2349 | I23: 252903 | J23: -137511 | K23: 0 | L23: -137511 | M23: -1004640 | N23: 0 | O23: 0 | P23: 0 | Q23: -1142151
B24: PAN AFRICA INSURANCE COMPANY | C24: 7120396 | D24: 0 | E24: 0 | F24: 7120396 | G24: 6698303 | H24: 0 | I24: 6698303 | J24: 422093 | K24: 126628 | L24: 295466 | M24: -276167 | N24: 422093 | O24: 0 | P24: 0 | Q24: -402795
B25: PIONEER ASSURANCE COMPANY | C25: 24753 | D25: 3808 | E25: 0 | F25: 28561 | G25: 0 | H25: 0 | I25: 0 | J25: 28561 | K25: 10500 | L25: 18061 | M25: 111875 | N25: 0 | O25: 0 | P25: 0 | Q25: 129936
B26: SHIELD ASSURANCE COMPANY | C26: 0 | D26: 0 | E26: 2896 | F26: 2896 | G26: 0 | H26: 0 | I26: 0 | J26: 2896 | K26: 6376 | L26: -3480 | M26: 0 | N26: 0 | O26: 0 | P26: 0 | Q26: -3480
B27: THE KENYAN ALLIANCE INSURANCE | C27: 10278 | D27: 0 | E27: 0 | F27: 10278 | G27: 0 | H27: 0 | I27: 0 | J27: 10278 | K27: 0 | L27: 10278 | M27: 35058 | N27: 0 | O27: 0 | P27: 0 | Q27: 45335
B28: THE MONARCH INSURANCE | C28: 26987 | D28: 0 | E28: 0 | F28: 26987 | G28: 0 | H28: 0 | I28: 0 | J28: 26987 | K28: 0 | L28: 26987 | M28: 93127 | N28: 0 | O28: 0 | P28: 0 | Q28: 120114
B29: UAP LIFE ASSURANCE COMPANY | C29: 279122 | D29: 0 | E29: 0 | F29: 279122 | G29: 0 | H29: 0 | I29: 0 | J29: 279122 | K29: 473 | L29: 278648 | M29: -151962 | N29: 126686 | O29: 0 | P29: 0 | Q29: 0
B30: TOTAL | C30: =SUM(C4:C29) -> 11700838 | D30: =SUM(D4:D29) -> 3580454 | E30: 103824 | F30: 15385117 | G30: 7058957 | H30: 26464 | I30: 7104822 | J30: 8280294 | K30: 611060 | L30: 7669234 | M30: 6929071 | N30: 2735872 | O30: 243 | P30: 717500 | Q30: 11144688
B31: Amounts in Thousand Shillings

Sheet APPENDIX 6
B3: APPENDIX 6: SUMMARY OF LONG TERM BUSINESS GROSS DIRECT PREMIUMS FOR THE YEAR ENDED 31.12.2017
B4: Company | C4: Life Assurances | D4: Annuities | E4: Pensions | F4: Group Life | G4: Group Credit | H4: Permanent Health | I4: Investments | J4: Total | K4: Market Share (%)
B5: INSURERS
B6: APA LIFE ASSURANCE COMPANY | C6: ='APPENDIX 9'!D6 -> 77213 | D6: ='APPENDIX 10'!D6 -> 28405 | E6: ='APPENDIX 12'!D6 -> 585374 | F6: ='APPENDIX 11'!D6 -> 707124 | G6: ='APPENDIX 13'!D6 -> 94466 | H6: ='APPENDIX 14'!D6 -> 0 | I6: ='APPENDIX 15'!D6 -> 370 | J6: =SUM(C6:I6) -> 1492952 | K6: =IFERROR(J6/$J$32*100,0) -> 1.80291172
B7: BARCLAYS LIFE | C7: ='APPENDIX 9'!D7 -> 205517 | D7: ='APPENDIX 10'!D7 -> 0 | E7: ='APPENDIX 12'!D7 -> 0 | F7: ='APPENDIX 11'!D7 -> 204501 | G7: ='APPENDIX 13'!D7 -> 970312 | H7: ='APPENDIX 14'!D7 -> 0 | I7: ='APPENDIX 15'!D7 -> 0 | J7: =SUM(C7:I7) -> 1380330 | K7: =IFERROR(J7/$J$32*100,0) -> 1.666907666
B8: BRITAM LIFE | C8: ='APPENDIX 9'!D8 -> 7432094 | D8: ='APPENDIX 10'!D8 -> 2038108 | E8: ='APPENDIX 12'!D8 -> 6596029 | F8: ='APPENDIX 11'!D8 -> 725755 | G8: ='APPENDIX 13'!D8 -> 931633 | H8: ='APPENDIX 14'!D8 -> 0 | I8: ='APPENDIX 15'!D8 -> 573866 | J8: 18297485 | K8: 22.09632336
B9: CANNON ASSURANCE COMPANY | C9: ='APPENDIX 9'!D9 -> 82280 | D9: ='APPENDIX 10'!D9 -> 0 | E9: ='APPENDIX 12'!D9 -> 0 | F9: ='APPENDIX 11'!D9 -> 0 | G9: ='APPENDIX 13'!D9 -> -434 | H9: ='APPENDIX 14'!D9 -> 0 | I9: ='APPENDIX 15'!D9 -> 0 | J9: 81846 | K9: 0.09883848418
B10: CAPEX LIFE ASSURANCE COMPANY | C10: ='APPENDIX 9'!D10 -> 261151 | D10: ='APPENDIX 10'!D10 -> 0 | E10: ='APPENDIX 12'!D10 -> 0 | F10: ='APPENDIX 11'!D10 -> 52189 | G10: ='APPENDIX 13'!D10 -> 0 | H10: ='APPENDIX 14'!D10 -> 0 | I10: ='APPENDIX 15'!D10 -> 0 | J10: 313340 | K10: 0.378394187
B11: CIC LIFE ASSURANCE COMPANY | C11: ='APPENDIX 9'!D11 -> 916971 | D11: ='APPENDIX 10'!D11 -> 169106 | E11: ='APPENDIX 12'!D11 -> 760324 | F11: ='APPENDIX 11'!D11 -> 2500430 | G11: ='APPENDIX 13'!D11 -> 548344 | H11: ='APPENDIX 14'!D11 -> 0 | I11: ='APPENDIX 15'!D11 -> 0 | J11: 4895175 | K11: 5.911488366
B12: CORPORATE INSURANCE COMPANY | C12: ='APPENDIX 9'!D12 -> 278415 | D12: ='APPENDIX 10'!D12 -> 0 | E12: ='APPENDIX 12'!D12 -> 0 | F12: ='APPENDIX 11'!D12 -> 534 | G12: ='APPENDIX 13'!D12 -> 0 | H12: ='APPENDIX 14'!D12 -> 0 | I12: ='APPENDIX 15'!D12 -> 0 | J12: 278949 | K12: 0.3368630883
B13: FIRST ASSURANCE COMPANY | C13: ='APPENDIX 9'!D13 -> 0 | D13: ='APPENDIX 10'!D13 -> 0 | E13: ='APPENDIX 12'!D13 -> 0 | F13: ='APPENDIX 11'!D13 -> 160354 | G13: ='APPENDIX 13'!D13 -> 8429 | H13: ='APPENDIX 14'!D13 -> 0 | I13: ='APPENDIX 15'!D13 -> 0 | J13: 168783 | K13: 0.203824938
B14: GA LIFE ASSURANCE COMPANY | C14: ='APPENDIX 9'!D14 -> 0 | D14: ='APPENDIX 10'!D14 -> 0 | E14: ='APPENDIX 12'!D14 -> 1585354 | F14: ='APPENDIX 11'!D14 -> 28774 | G14: ='APPENDIX 13'!D14 -> 4314 | H14: ='APPENDIX 14'!D14 -> 0 | I14: ='APPENDIX 15'!D14 -> 0 | J14: 1618442 | K14: 1.954455368
B15: GEMINIA INSURANCE COMPANY | C15: ='APPENDIX 9'!D15 -> 45875 | D15: ='APPENDIX 10'!D15 -> 0 | E15: ='APPENDIX 12'!D15 -> 0 | F15: ='APPENDIX 11'!D15 -> 132261 | G15: ='APPENDIX 13'!D15 -> 0 | H15: ='APPENDIX 14'!D15 -> 0 | I15: ='APPENDIX 15'!D15 -> 0 | J15: 178136 | K15: 0.2151197642
B16: ICEA LION LIFE ASSURANCE | C16: ='APPENDIX 9'!D16 -> 2450693 | D16: ='APPENDIX 10'!D16 -> 3429295 | E16: ='APPENDIX 12'!D16 -> 6544852 | F16: ='APPENDIX 11'!D16 -> 307481 | G16: ='APPENDIX 13'!D16 -> 236243 | H16: ='APPENDIX 14'!D16 -> 0 | I16: ='APPENDIX 15'!D16 -> 47151 | J16: 13015715 | K16: 15.71797695
B17: JUBILEE INSURANCE COMPANY | C17: ='APPENDIX 9'!D17 -> 3001737 | D17: ='APPENDIX 10'!D17 -> 1779954 | E17: ='APPENDIX 12'!D17 -> 6681994 | F17: ='APPENDIX 11'!D17 -> 1031986 | G17: ='APPENDIX 13'!D17 -> 148052 | H17: ='APPENDIX 14'!D17 -> 0 | I17: ='APPENDIX 15'!D17 -> 0 | J17: 12643723 | K17: 15.2687537
B18: KENINDIA ASSURANCE COMPANY | C18: ='APPENDIX 9'!D18 -> 1235077 | D18: ='APPENDIX 10'!D18 -> 377252 | E18: ='APPENDIX 12'!D18 -> 2954607 | F18: ='APPENDIX 11'!D18 -> 74379 | G18: ='APPENDIX 13'!D18 -> 0 | H18: ='APPENDIX 14'!D18 -> 0 | I18: ='APPENDIX 15'!D18 -> 0 | J18: 4641315 | K18: 5.604923139
B19: KENYA ORIENT LIFE ASSURANCE | C19: ='APPENDIX 9'!D19 -> 51265 | D19: ='APPENDIX 10'!D19 -> 110205 | E19: ='APPENDIX 12'!D19 -> 61490 | F19: ='APPENDIX 11'!D19 -> 24273 | G19: ='APPENDIX 13'!D19 -> 175754 | H19: ='APPENDIX 14'!D19 -> 0 | I19: ='APPENDIX 15'!D19 -> 0 | J19: 422987 | K19: 0.510805585
B20: LIBERTY LIFE ASSURANCE COMPANY | C20: ='APPENDIX 9'!D20 -> 387074 | D20: ='APPENDIX 10'!D20 -> 14682 | E20: ='APPENDIX 12'!D20 -> 1330920 | F20: ='APPENDIX 11'!D20 -> 371159 | G20: ='APPENDIX 13'!D20 -> 485531 | H20: ='APPENDIX 14'!D20 -> 0 | I20: ='APPENDIX 15'!D20 -> 1913434 | J20: 4502800 | K20: 5.437650301
B21: MADISON INSURANCE COMPANY | C21: ='APPENDIX 9'!D21 -> 1033987 | D21: ='APPENDIX 10'!D21 -> 1098301 | E21: ='APPENDIX 12'!D21 -> 281722 | F21: ='APPENDIX 11'!D21 -> 60975 | G21: ='APPENDIX 13'!D21 -> 110272 | H21: ='APPENDIX 14'!D21 -> 0 | I21: ='APPENDIX 15'!D21 -> 18990 | J21: 2604247 | K21: 3.144928596
B22: METROPOLITAN CANNON INSURANCE | C22: ='APPENDIX 9'!D22 -> 20950 | D22: ='APPENDIX 10'!D22 -> 0 | E22: ='APPENDIX 12'!D22 -> 0 | F22: ='APPENDIX 11'!D22 -> 538922 | G22: ='APPENDIX 13'!D22 -> 30987 | H22: ='APPENDIX 14'!D22 -> 0 | I22: ='APPENDIX 15'!D22 -> 19099 | J22: 609958 | K22: 0.7365946306
B23: OLD MUTUAL LIFE ASSURANCE | C23: ='APPENDIX 9'!D23 -> 766625 | D23: ='APPENDIX 10'!D23 -> 0 | E23: ='APPENDIX 12'!D23 -> 0 | F23: ='APPENDIX 11'!D23 -> 281315 | G23: ='APPENDIX 13'!D23 -> 0 | H23: ='APPENDIX 14'!D23 -> 0 | I23: ='APPENDIX 15'!D23 -> 871696 | J23: 1919636 | K23: 2.318181859
B24: PIONEER ASSURANCE COMPANY | C24: ='APPENDIX 9'!D24 -> 717432 | D24: ='APPENDIX 10'!D24 -> 21110 | E24: ='APPENDIX 12'!D24 -> 121136 | F24: ='APPENDIX 11'!D24 -> 3758026 | G24: ='APPENDIX 13'!D24 -> 487061 | H24: ='APPENDIX 14'!D24 -> 0 | I24: ='APPENDIX 15'!D24 -> 109158 | J24: 5213923 | K24: 6.296413337
B25: PRUDENTIAL LIFE ASSURANCE | C25: ='APPENDIX 9'!D25 -> 137920 | D25: ='APPENDIX 10'!D25 -> 0 | E25: ='APPENDIX 12'!D25 -> 0 | F25: ='APPENDIX 11'!D25 -> 30666 | G25: ='APPENDIX 13'!D25 -> 149603 | H25: ='APPENDIX 14'!D25 -> 0 | I25: ='APPENDIX 15'!D25 -> 0 | J25: 318189 | K25: 0.3842499138
B26: SAHAM ASSURANCE | C26: ='APPENDIX 9'!D26 -> 44016 | D26: ='APPENDIX 10'!D26 -> 0 | E26: ='APPENDIX 12'!D26 -> 157921 | F26: ='APPENDIX 11'!D26 -> 18044 | G26: ='APPENDIX 13'!D26 -> 1562 | H26: ='APPENDIX 14'!D26 -> 0 | I26: ='APPENDIX 15'!D26 -> 0 | J26: 221543 | K26: 0.2675387227
B27: SANLAM LIFE INSURANCE | C27: ='APPENDIX 9'!D27 -> 1643646 | D27: ='APPENDIX 10'!D27 -> 502821 | E27: ='APPENDIX 12'!D27 -> 411797 | F27: ='APPENDIX 11'!D27 -> 673900 | G27: ='APPENDIX 13'!D27 -> 596289 | H27: ='APPENDIX 14'!D27 -> 0 | I27: ='APPENDIX 15'!D27 -> 910276 | J27: 4738729 | K27: 5.722561778
B28: TAKAFUL INSURANCE OF AFRICA | C28: ='APPENDIX 9'!D28 -> 0 | D28: ='APPENDIX 10'!D28 -> 0 | E28: ='APPENDIX 12'!D28 -> 0 | F28: ='APPENDIX 11'!D28 -> 35223 | G28: ='APPENDIX 13'!D28 -> 23673 | H28: ='APPENDIX 14'!D28 -> 0 | I28: ='APPENDIX 15'!D28 -> 0 | J28: 58896 | K28: 0.07112371239
B29: THE KENYAN ALLIANCE INSURANCE | C29: ='APPENDIX 9'!D29 -> 15247 | D29: ='APPENDIX 10'!D29 -> 265663 | E29: ='APPENDIX 12'!D29 -> 181585 | F29: ='APPENDIX 11'!D29 -> 311622 | G29: ='APPENDIX 13'!D29 -> 2468 | H29: ='APPENDIX 14'!D29 -> 0 | I29: ='APPENDIX 15'!D29 -> 2012 | J29: 778597 | K29: 0.9402456719
B30: THE MONARCH INSURANCE | C30: ='APPENDIX 9'!D30 -> 22729 | D30: ='APPENDIX 10'!D30 -> 0 | E30: ='APPENDIX 12'!D30 -> 0 | F30: ='APPENDIX 11'!D30 -> 23778 | G30: ='APPENDIX 13'!D30 -> 0 | H30: ='APPENDIX 14'!D30 -> 0 | I30: ='APPENDIX 15'!D30 -> 0 | J30: 46507 | K30: 0.05616256608
B31: UAP LIFE ASSURANCE COMPANY | C31: ='APPENDIX 9'!D31 -> 547014 | D31: ='APPENDIX 10'!D31 -> 0 | E31: ='APPENDIX 12'!D31 -> 831052 | F31: ='APPENDIX 11'!D31 -> 711500 | G31: ='APPENDIX 13'!D31 -> 203838 | H31: ='APPENDIX 14'!D31 -> 0 | I31: ='APPENDIX 15'!D31 -> 72219 | J31: 2365623 | K31: 2.856762596
B32: TOTAL | C32: =SUM(C6:C31) -> 21374928 | D32: =SUM(D6:D31) -> 9834902 | E32: 29086157 | F32: 12765171 | G32: 5208397 | H32: 0 | I32: 4538271 | J32: 82807826 | K32: =SUM(K6:K31) -> 100
B33: REINSURERS
B34: CONTINENTAL REINSURANCE | C34: ='APPENDIX 9'!D34 -> 1387 | D34: ='APPENDIX 10'!D34 -> 0 | E34: ='APPENDIX 12'!D34 -> 0 | F34: ='APPENDIX 11'!D34 -> 209185 | G34: ='APPENDIX 13'!D34 -> 0 | H34: ='APPENDIX 14'!D34 -> 0 | I34: ='APPENDIX 15'!D34 -> 0 | J34: =SUM(C34:I34) -> 210572 | K34: =J34/$J$37*100 -> 7.598708842
B35: EAST AFRICA REINSURANCE | C35: ='APPENDIX 9'!D35 -> 31867 | D35: ='APPENDIX 10'!D35 -> 0 | E35: ='APPENDIX 12'!D35 -> 0 | F35: ='APPENDIX 11'!D35 -> 901981 | G35: ='APPENDIX 13'!D35 -> 0 | H35: ='APPENDIX 14'!D35 -> 0 | I35: ='APPENDIX 15'!D35 -> 0 | J35: =SUM(C35:I35) -> 933848 | K35: =J35/$J$37*100 -> 33.69887285
B36: KENYA REINSURANCE CORPORATION | C36: ='APPENDIX 9'!D36 -> 146576 | D36: ='APPENDIX 10'!D36 -> 0 | E36: ='APPENDIX 12'!D36 -> 0 | F36: ='APPENDIX 11'!D36 -> 1480159 | G36: ='APPENDIX 13'!D36 -> 0 | H36: ='APPENDIX 14'!D36 -> 0 | I36: ='APPENDIX 15'!D36 -> 0 | J36: 1626735 | K36: 58.70241831
B37: TOTAL | C37: =SUM(C34:C36) -> 179830 | D37: =SUM(D34:D36) -> 0 | E37: 0 | F37: 2591325 | G37: 0 | H37: 0 | I37: 0 | J37: 2771155 | K37: =SUM(K34:K36) -> 100
B38: Amounts in Thousand Shillings

Sheet APPENDIX 7
B3: APPENDIX 7: SUMMARY OF LONG TERM BUSINESS INWARD REINSURANCE PREMIUMS FOR THE YEAR ENDED 31.12.2017
B4: Company | C4: Life Assurances | D4: Annuities | E4: Pensions | F4: Group Life | G4: Group Credit | H4: Permanent Health | I4: Investments | J4: Total
B5: INSURERS
B6: APA LIFE ASSURANCE COMPANY | C6: 0 | D6: 0 | E6: 0 | F6: 0 | G6: 0 | H6: 0 | I6: 0 | J6: 0
B7: BARCLAYS LIFE | C7: 0 | D7: 0 | E7: 0 | F7: 0 | G7: 0 | H7: 0 | I7: 0 | J7: 0
B8: BRITAM LIFE | C8: 0 | D8: 0 | E8: 0 | F8: 0 | G8: 0 | H8: 0 | I8: 0 | J8: 0
B9: CANNON ASSURANCE COMPANY | C9: 0 | D9: 0 | E9: 0 | F9: 0 | G9: 0 | H9: 0 | I9: 0 | J9: 0
B10: CAPEX LIFE ASSURANCE COMPANY
B11: CIC LIFE ASSURANCE COMPANY | C11: 0 | D11: 0 | E11: 0 | F11: 0 | G11: 0 | H11: 0 | I11: 0 | J11: 0
B12: CORPORATE INSURANCE COMPANY | C12: 0 | D12: 0 | E12: 0 | F12: 0 | G12: 0 | H12: 0 | I12: 0 | J12: 0
B13: FIRST ASSURANCE COMPANY | C13: 0 | D13: 0 | E13: 0 | F13: 0 | G13: 0 | H13: 0 | I13: 0 | J13: 0
B14: GA LIFE ASSURANCE COMPANY | C14: 0 | D14: 0 | E14: 0 | F14: 0 | G14: 0 | H14: 0 | I14: 0 | J14: 0
B15: GEMINIA INSURANCE COMPANY | C15: 0 | D15: 0 | E15: 0 | F15: 0 | G15: 0 | H15: 0 | I15: 0 | J15: 0
B16: ICEA LION LIFE ASSURANCE | C16: 0 | D16: 0 | E16: 0 | F16: 0 | G16: 0 | H16: 0 | I16: 0 | J16: 0
B17: JUBILEE INSURANCE COMPANY | C17: 0 | D17: 0 | E17: 0 | F17: 0 | G17: 0 | H17: 0 | I17: 0 | J17: 0
B18: KENINDIA ASSURANCE COMPANY | C18: 0 | D18: 0 | E18: 0 | F18: 0 | G18: 0 | H18: 0 | I18: 0 | J18: 0
B19: KENYA ORIENT LIFE ASSURANCE | C19: 0 | D19: 0 | E19: 0 | F19: 0 | G19: 0 | H19: 0 | I19: 0 | J19: 0
B20: LIBERTY LIFE ASSURANCE COMPANY | C20: 0 | D20: 0 | E20: 0 | F20: 0 | G20: 0 | H20: 0 | I20: 0 | J20: 0
B21: MADISON INSURANCE COMPANY | C21: 0 | D21: 0 | E21: 0 | F21: 0 | G21: 0 | H21: 0 | I21: 0 | J21: 0
B22: METROPOLITAN CANNON INSURANCE | C22: 0 | D22: 0 | E22: 0 | F22: 0 | G22: 0 | H22: 0 | I22: 0 | J22: 0
B23: OLD MUTUAL LIFE ASSURANCE | C23: 0 | D23: 0 | E23: 0 | F23: 0 | G23: 0 | H23: 0 | I23: 0 | J23: 0
B24: PIONEER ASSURANCE COMPANY | C24: 0 | D24: 0 | E24: 0 | F24: 0 | G24: 0 | H24: 0 | I24: 0 | J24: 0
B25: PRUDENTIAL LIFE ASSURANCE | C25: 0 | D25: 0 | E25: 0 | F25: 0 | G25: 0 | H25: 0 | I25: 0 | J25: 0
B26: SAHAM ASSURANCE | C26: 0 | D26: 0 | E26: 0 | F26: 0 | G26: 0 | H26: 0 | I26: 0 | J26: 0
B27: SANLAM LIFE INSURANCE | C27: 0 | D27: 0 | E27: 0 | F27: 0 | G27: 0 | H27: 0 | I27: 0 | J27: 0
B28: TAKAFUL INSURANCE OF AFRICA | C28: 0 | D28: 0 | E28: 0 | F28: 0 | G28: 0 | H28: 0 | I28: 0 | J28: 0
B29: THE KENYAN ALLIANCE INSURANCE | C29: 0 | D29: 0 | E29: 0 | F29: 0 | G29: 0 | H29: 0 | I29: 0 | J29: 0
B30: THE MONARCH INSURANCE | C30: 0 | D30: 0 | E30: 0 | F30: 0 | G30: 0 | H30: 0 | I30: 0 | J30: 0
B31: UAP LIFE ASSURANCE COMPANY | C31: 0 | D31: 0 | E31: 0 | F31: 0 | G31: 0 | H31: 0 | I31: 0 | J31: 0
B32: TOTAL | C32: =SUM(C6:C31) -> 0 | D32: 0 | E32: 0 | F32: 0 | G32: 0 | H32: 0 | I32: 0 | J32: 0
B33: REINSURERS
B34: CONTINENTAL REINSURANCE | C34: 0 | D34: 0 | E34: 0 | F34: 0 | G34: 0 | H34: 0 | I34: 0 | J34: 0
B35: EAST AFRICA REINSURANCE | C35: 0 | D35: 0 | E35: 0 | F35: 0 | G35: 0 | H35: 0 | I35: 0 | J35: 0
B36: KENYA REINSURANCE CORPORATION | C36: 0 | D36: 0 | E36: 0 | F36: 0 | G36: 0 | H36: 0 | I36: 0 | J36: 0
B37: TOTAL | C37: =SUM(C34:C36) -> 0 | D37: =SUM(D34:D36) -> 0 | E37: 0 | F37: 0 | G37: 0 | H37: 0 | I37: 0 | J37: 0
B38: Amounts in Thousand Shillings

Sheet APPENDIX 8
B3: APPENDIX 8: SUMMARY OF LONG TERM BUSINESS OUTWARD REINSURANCE PREMIUMS FOR THE YEAR ENDED 31.12.2017
B4: Company | C4: Life Assurances | D4: Annuities | E4: Pensions | F4: Group Life | G4: Group Credit | H4: Permanent Health | I4: Investments | J4: Total
B5: INSURERS
B6: APA LIFE ASSURANCE COMPANY | C6: ='APPENDIX 9'!D6-'APPENDIX 9'!E6 -> 1114 | D6: ='APPENDIX 10'!D6-'APPENDIX 10'!E6 -> 0 | E6: ='APPENDIX 12'!D6-'APPENDIX 12'!E6 -> 0 | F6: ='APPENDIX 11'!D6-'APPENDIX 11'!E6 -> 528371 | G6: ='APPENDIX 13'!D6-'APPENDIX 13'!E6 -> 18690 | H6: ='APPENDIX 14'!D6-'APPENDIX 14'!E6 -> 0 | I6: ='APPENDIX 15'!D6-'APPENDIX 15'!E6 -> 0 | J6: =SUM(C6:I6) -> 548175
B7: BARCLAYS LIFE | C7: ='APPENDIX 9'!D7-'APPENDIX 9'!E7 -> 0 | D7: ='APPENDIX 10'!D7-'APPENDIX 10'!E7 -> 0 | E7: ='APPENDIX 12'!D7-'APPENDIX 12'!E7 -> 0 | F7: ='APPENDIX 11'!D7-'APPENDIX 11'!E7 -> 150254 | G7: ='APPENDIX 13'!D7-'APPENDIX 13'!E7 -> 351084 | H7: ='APPENDIX 14'!D7-'APPENDIX 14'!E7 -> 0 | I7: ='APPENDIX 15'!D7-'APPENDIX 15'!E7 -> 0 | J7: =SUM(C7:I7) -> 501338
B8: BRITAM LIFE | C8: ='APPENDIX 9'!D8-'APPENDIX 9'!E8 -> 61927 | D8: ='APPENDIX 10'!D8-'APPENDIX 10'!E8 -> 0 | E8: ='APPENDIX 12'!D8-'APPENDIX 12'!E8 -> 0 | F8: ='APPENDIX 11'!D8-'APPENDIX 11'!E8 -> 157102 | G8: ='APPENDIX 13'!D8-'APPENDIX 13'!E8 -> 149939 | H8: ='APPENDIX 14'!D8-'APPENDIX 14'!E8 -> 0 | I8: ='APPENDIX 15'!D8-'APPENDIX 15'!E8 -> 0 | J8: 368968
B9: CANNON ASSURANCE COMPANY | C9: ='APPENDIX 9'!D9-'APPENDIX 9'!E9 -> 791 | D9: ='APPENDIX 10'!D9-'APPENDIX 10'!E9 -> 0 | E9: ='APPENDIX 12'!D9-'APPENDIX 12'!E9 -> 0 | F9: ='APPENDIX 11'!D9-'APPENDIX 11'!E9 -> 0 | G9: ='APPENDIX 13'!D9-'APPENDIX 13'!E9 -> 0 | H9: ='APPENDIX 14'!D9-'APPENDIX 14'!E9 -> 0 | I9: ='APPENDIX 15'!D9-'APPENDIX 15'!E9 -> 0 | J9: 791
B10: CAPEX LIFE ASSURANCE COMPANY | C10: ='APPENDIX 9'!D10-'APPENDIX 9'!E10 -> 0 | D10: ='APPENDIX 10'!D10-'APPENDIX 10'!E10 -> 0 | E10: ='APPENDIX 12'!D10-'APPENDIX 12'!E10 -> 0 | F10: ='APPENDIX 11'!D10-'APPENDIX 11'!E10 -> 18004 | G10: ='APPENDIX 13'!D10-'APPENDIX 13'!E10 -> 0 | H10: ='APPENDIX 14'!D10-'APPENDIX 14'!E10 -> 0 | I10: ='APPENDIX 15'!D11-'APPENDIX 15'!E11 -> 0 | J10: 18004
B11: CIC LIFE ASSURANCE COMPANY | C11: ='APPENDIX 9'!D11-'APPENDIX 9'!E11 -> 12563 | D11: ='APPENDIX 10'!D11-'APPENDIX 10'!E11 -> 0 | E11: ='APPENDIX 12'!D11-'APPENDIX 12'!E11 -> 0 | F11: ='APPENDIX 11'!D11-'APPENDIX 11'!E11 -> 146944 | G11: ='APPENDIX 13'!D12-'APPENDIX 13'!E12 -> 0 | H11: ='APPENDIX 14'!D11-'APPENDIX 14'!E11 -> 0 | I11: ='APPENDIX 15'!D12-'APPENDIX 15'!E12 -> 0 | J11: 159507
B12: CORPORATE INSURANCE COMPANY
B13: FIRST ASSURANCE COMPANY | C13: ='APPENDIX 9'!D12-'APPENDIX 9'!E12 -> 1569 | D13: ='APPENDIX 10'!D12-'APPENDIX 10'!E12 -> 0 | E13: ='APPENDIX 12'!D13-'APPENDIX 12'!E13 -> 0 | F13: ='APPENDIX 11'!D12-'APPENDIX 11'!E12 -> 0 | G13: ='APPENDIX 13'!D13-'APPENDIX 13'!E13 -> 7515 | H13: ='APPENDIX 14'!D13-'APPENDIX 14'!E13 -> 0 | I13: ='APPENDIX 15'!D13-'APPENDIX 15'!E13 -> 0 | J13: 9084
B14: GA LIFE ASSURANCE COMPANY | C14: ='APPENDIX 9'!D13-'APPENDIX 9'!E13 -> 0 | D14: ='APPENDIX 10'!D13-'APPENDIX 10'!E13 -> 0 | E14: ='APPENDIX 12'!D14-'APPENDIX 12'!E14 -> 0 | F14: ='APPENDIX 11'!D13-'APPENDIX 11'!E13 -> 138065 | G14: ='APPENDIX 13'!D14-'APPENDIX 13'!E14 -> 3755 | H14: ='APPENDIX 14'!D14-'APPENDIX 14'!E14 -> 0 | I14: ='APPENDIX 15'!D14-'APPENDIX 15'!E14 -> 0 | J14: 141820
B15: GEMINIA INSURANCE COMPANY | C15: ='APPENDIX 9'!D14-'APPENDIX 9'!E14 -> 0 | D15: ='APPENDIX 10'!D14-'APPENDIX 10'!E14 -> 0 | E15: ='APPENDIX 12'!D15-'APPENDIX 12'!E15 -> 0 | F15: ='APPENDIX 11'!D15-'APPENDIX 11'!E15 -> 60835 | G15: ='APPENDIX 13'!D15-'APPENDIX 13'!E15 -> 0 | H15: ='APPENDIX 14'!D15-'APPENDIX 14'!E15 -> 0 | I15: ='APPENDIX 15'!D15-'APPENDIX 15'!E15 -> 0 | J15: 60835
B16: ICEA LION LIFE ASSURANCE | C16: ='APPENDIX 9'!D16-'APPENDIX 9'!E16 -> 62611 | D16: ='APPENDIX 10'!D16-'APPENDIX 10'!E16 -> 0 | E16: ='APPENDIX 12'!D16-'APPENDIX 12'!E16 -> 0 | F16: ='APPENDIX 11'!D16-'APPENDIX 11'!E16 -> 65841 | G16: ='APPENDIX 13'!D16-'APPENDIX 13'!E16 -> 102879 | H16: ='APPENDIX 14'!D16-'APPENDIX 14'!E16 -> 0 | I16: ='APPENDIX 15'!D16-'APPENDIX 15'!E16 -> 0 | J16: 231331
B17: JUBILEE INSURANCE COMPANY | C17: ='APPENDIX 9'!D17-'APPENDIX 9'!E17 -> 5484 | D17: ='APPENDIX 10'!D17-'APPENDIX 10'!E17 -> 0 | E17: ='APPENDIX 12'!D17-'APPENDIX 12'!E17 -> 0 | F17: ='APPENDIX 11'!D17-'APPENDIX 11'!E17 -> 474181 | G17: ='APPENDIX 13'!D17-'APPENDIX 13'!E17 -> 21592 | H17: ='APPENDIX 14'!D17-'APPENDIX 14'!E17 -> 0 | I17: ='APPENDIX 15'!D17-'APPENDIX 15'!E17 -> 0 | J17: 501257
B18: KENINDIA ASSURANCE COMPANY | C18: ='APPENDIX 9'!D18-'APPENDIX 9'!E18 -> 4159 | D18: ='APPENDIX 10'!D18-'APPENDIX 10'!E18 -> 0 | E18: ='APPENDIX 12'!D18-'APPENDIX 12'!E18 -> 0 | F18: ='APPENDIX 11'!D18-'APPENDIX 11'!E18 -> 37064 | G18: ='APPENDIX 13'!D18-'APPENDIX 13'!E18 -> 0 | H18: ='APPENDIX 14'!D18-'APPENDIX 14'!E18 -> 0 | I18: ='APPENDIX 15'!D18-'APPENDIX 15'!E18 -> 0 | J18: 41223
B19: KENYA ORIENT LIFE ASSURANCE | C19: ='APPENDIX 9'!D19-'APPENDIX 9'!E19 -> 104 | D19: ='APPENDIX 10'!D19-'APPENDIX 10'!E19 -> 0 | E19: ='APPENDIX 12'!D19-'APPENDIX 12'!E19 -> 0 | F19: ='APPENDIX 11'!D19-'APPENDIX 11'!E19 -> 10224 | G19: ='APPENDIX 13'!D19-'APPENDIX 13'!E19 -> 29077 | H19: ='APPENDIX 14'!D19-'APPENDIX 14'!E19 -> 0 | I19: ='APPENDIX 15'!D19-'APPENDIX 15'!E19 -> 0 | J19: 39405
B20: LIBERTY LIFE ASSURANCE COMPANY | C20: ='APPENDIX 9'!D20-'APPENDIX 9'!E20 -> 4454 | D20: ='APPENDIX 10'!D20-'APPENDIX 10'!E20 -> 0 | E20: ='APPENDIX 12'!D20-'APPENDIX 12'!E20 -> 0 | F20: ='APPENDIX 11'!D20-'APPENDIX 11'!E20 -> 102466 | G20: ='APPENDIX 13'!D20-'APPENDIX 13'!E20 -> 122060 | H20: ='APPENDIX 14'!D20-'APPENDIX 14'!E20 -> 0 | I20: ='APPENDIX 15'!D20-'APPENDIX 15'!E20 -> 0 | J20: 228980
B21: MADISON INSURANCE COMPANY | C21: ='APPENDIX 9'!D21-'APPENDIX 9'!E21 -> 0 | D21: ='APPENDIX 10'!D21-'APPENDIX 10'!E21 -> 0 | E21: ='APPENDIX 12'!D21-'APPENDIX 12'!E21 -> 0 | F21: ='APPENDIX 11'!D21-'APPENDIX 11'!E21 -> 43961 | G21: ='APPENDIX 13'!D21-'APPENDIX 13'!E21 -> 0 | H21: ='APPENDIX 14'!D21-'APPENDIX 14'!E21 -> 0 | I21: ='APPENDIX 15'!D21-'APPENDIX 15'!E21 -> 0 | J21: 43961
B22: METROPOLITAN CANNON INSURANCE | C22: ='APPENDIX 9'!D22-'APPENDIX 9'!E22 -> 114 | D22: ='APPENDIX 10'!D22-'APPENDIX 10'!E22 -> 0 | E22: ='APPENDIX 12'!D22-'APPENDIX 12'!E22 -> 0 | F22: ='APPENDIX 11'!D22-'APPENDIX 11'!E22 -> 80564 | G22: ='APPENDIX 13'!D22-'APPENDIX 13'!E22 -> 0 | H22: ='APPENDIX 14'!D22-'APPENDIX 14'!E22 -> 0 | I22: ='APPENDIX 15'!D22-'APPENDIX 15'!E22 -> 0 | J22: 80678
B23: OLD MUTUAL LIFE ASSURANCE | C23: ='APPENDIX 9'!D23-'APPENDIX 9'!E23 -> 64254 | D23: ='APPENDIX 10'!D23-'APPENDIX 10'!E23 -> 0 | E23: ='APPENDIX 12'!D23-'APPENDIX 12'!E23 -> 0 | F23: ='APPENDIX 11'!D23-'APPENDIX 11'!E23 -> 123289 | G23: ='APPENDIX 13'!D23-'APPENDIX 13'!E23 -> 0 | H23: ='APPENDIX 14'!D23-'APPENDIX 14'!E23 -> 0 | I23: ='APPENDIX 15'!D23-'APPENDIX 15'!E23 -> 0 | J23: 187543
B24: PIONEER ASSURANCE COMPANY | C24: ='APPENDIX 9'!D24-'APPENDIX 9'!E24 -> 0 | D24: ='APPENDIX 10'!D24-'APPENDIX 10'!E24 -> 5 | E24: ='APPENDIX 12'!D24-'APPENDIX 12'!E24 -> 0 | F24: ='APPENDIX 11'!D24-'APPENDIX 11'!E24 -> 1016967 | G24: ='APPENDIX 13'!D24-'APPENDIX 13'!E24 -> 0 | H24: ='APPENDIX 14'!D24-'APPENDIX 14'!E24 -> 0 | I24: ='APPENDIX 15'!D24-'APPENDIX 15'!E24 -> 0 | J24: 1016972
B25: PRUDENTIAL LIFE ASSURANCE | C25: ='APPENDIX 9'!D25-'APPENDIX 9'!E25 -> 24 | D25: ='APPENDIX 10'!D25-'APPENDIX 10'!E25 -> 0 | E25: ='APPENDIX 12'!D25-'APPENDIX 12'!E25 -> 0 | F25: ='APPENDIX 11'!D25-'APPENDIX 11'!E25 -> 22070 | G25: ='APPENDIX 13'!D25-'APPENDIX 13'!E25 -> 30864 | H25: ='APPENDIX 14'!D25-'APPENDIX 14'!E25 -> 0 | I25: ='APPENDIX 15'!D25-'APPENDIX 15'!E25 -> 0 | J25: 52958
B26: SAHAM ASSURANCE | C26: ='APPENDIX 9'!D26-'APPENDIX 9'!E26 -> 4896 | D26: ='APPENDIX 10'!D26-'APPENDIX 10'!E26 -> 0 | E26: ='APPENDIX 12'!D26-'APPENDIX 12'!E26 -> 0 | F26: ='APPENDIX 11'!D26-'APPENDIX 11'!E26 -> 12905 | G26: ='APPENDIX 13'!D26-'APPENDIX 13'!E26 -> 377 | H26: ='APPENDIX 14'!D26-'APPENDIX 14'!E26 -> 0 | I26: ='APPENDIX 15'!D26-'APPENDIX 15'!E26 -> 0 | J26: 18178
B27: SANLAM LIFE INSURANCE | C27: ='APPENDIX 9'!D27-'APPENDIX 9'!E27 -> 27286 | D27: ='APPENDIX 10'!D27-'APPENDIX 10'!E27 -> 0 | E27: ='APPENDIX 12'!D27-'APPENDIX 12'!E27 -> 0 | F27: ='APPENDIX 11'!D27-'APPENDIX 11'!E27 -> 368167 | G27: ='APPENDIX 13'!D27-'APPENDIX 13'!E27 -> 3869 | H27: ='APPENDIX 14'!D27-'APPENDIX 14'!E27 -> 0 | I27: ='APPENDIX 15'!D27-'APPENDIX 15'!E27 -> 0 | J27: 399322
B28: TAKAFUL INSURANCE OF AFRICA | C28: ='APPENDIX 9'!D28-'APPENDIX 9'!E28 -> 0 | D28: ='APPENDIX 10'!D28-'APPENDIX 10'!E28 -> 0 | E28: ='APPENDIX 12'!D28-'APPENDIX 12'!E28 -> 0 | F28: ='APPENDIX 11'!D28-'APPENDIX 11'!E28 -> 12807 | G28: ='APPENDIX 13'!D28-'APPENDIX 13'!E28 -> 8607 | H28: ='APPENDIX 14'!D28-'APPENDIX 14'!E28 -> 0 | I28: ='APPENDIX 15'!D28-'APPENDIX 15'!E28 -> 0 | J28: 21414
B29: THE KENYAN ALLIANCE INSURANCE | C29: ='APPENDIX 9'!D29-'APPENDIX 9'!E29 -> 0 | D29: ='APPENDIX 10'!D29-'APPENDIX 10'!E29 -> 0 | E29: ='APPENDIX 12'!D29-'APPENDIX 12'!E29 -> 0 | F29: ='APPENDIX 11'!D29-'APPENDIX 11'!E29 -> 124076 | G29: ='APPENDIX 13'!D29-'APPENDIX 13'!E29 -> 0 | H29: ='APPENDIX 14'!D29-'APPENDIX 14'!E29 -> 0 | I29: ='APPENDIX 15'!D29-'APPENDIX 15'!E29 -> 0 | J29: 124076
B30: THE MONARCH INSURANCE | C30: ='APPENDIX 9'!D30-'APPENDIX 9'!E30 -> 86 | D30: ='APPENDIX 10'!D30-'APPENDIX 10'!E30 -> 0 | E30: ='APPENDIX 12'!D30-'APPENDIX 12'!E30 -> 0 | F30: ='APPENDIX 11'!D30-'APPENDIX 11'!E30 -> 10610 | G30: ='APPENDIX 13'!D30-'APPENDIX 13'!E30 -> 0 | H30: ='APPENDIX 14'!D30-'APPENDIX 14'!E30 -> 0 | I30: ='APPENDIX 15'!D30-'APPENDIX 15'!E30 -> 0 | J30: 10696
B31: UAP LIFE ASSURANCE COMPANY | C31: ='APPENDIX 9'!D31-'APPENDIX 9'!E31 -> 0 | D31: ='APPENDIX 10'!D31-'APPENDIX 10'!E31 -> 0 | E31: ='APPENDIX 12'!D31-'APPENDIX 12'!E31 -> 0 | F31: ='APPENDIX 11'!D31-'APPENDIX 11'!E31 -> 368432 | G31: ='APPENDIX 13'!D31-'APPENDIX 13'!E31 -> 0 | H31: ='APPENDIX 14'!D31-'APPENDIX 14'!E31 -> 0 | I31: ='APPENDIX 15'!D31-'APPENDIX 15'!E31 -> 0 | J31: 368432
B32: TOTAL | C32: =SUM(C6:C31) -> 251436 | D32: 5 | E32: 0 | F32: 4073199 | G32: 850308 | H32: 0 | I32: 0 | J32: 5174948
B33: REINSURERS
B34: CONTINENTAL REINSURANCE | C34: ='APPENDIX 9'!D34-'APPENDIX 9'!E34 -> 208 | D34: ='APPENDIX 10'!D34-'APPENDIX 10'!E34 -> 0 | E34: ='APPENDIX 12'!D34-'APPENDIX 12'!E34 -> 0 | F34: ='APPENDIX 11'!D34-'APPENDIX 11'!E34 -> 31378 | G34: ='APPENDIX 13'!D34-'APPENDIX 13'!E34 -> 0 | H34: ='APPENDIX 14'!D34-'APPENDIX 14'!E34 -> 0 | I34: ='APPENDIX 15'!D34-'APPENDIX 15'!E34 -> 0 | J34: =SUM(C34:I34) -> 31586
B35: EAST AFRICA REINSURANCE | C35: ='APPENDIX 9'!D35-'APPENDIX 9'!E35 -> 9001 | D35: ='APPENDIX 10'!D35-'APPENDIX 10'!E35 -> 0 | E35: ='APPENDIX 12'!D35-'APPENDIX 12'!E35 -> 0 | F35: ='APPENDIX 11'!D35-'APPENDIX 11'!E35 -> 149878 | G35: ='APPENDIX 13'!D35-'APPENDIX 13'!E35 -> 0 | H35: ='APPENDIX 14'!D35-'APPENDIX 14'!E35 -> 0 | I35: ='APPENDIX 15'!D35-'APPENDIX 15'!E35 -> 0 | J35: =SUM(C35:I35) -> 158879
B36: KENYA REINSURANCE CORPORATION | C36: ='APPENDIX 9'!D36-'APPENDIX 9'!E36 -> 13538 | D36: ='APPENDIX 10'!D36-'APPENDIX 10'!E36 -> 0 | E36: ='APPENDIX 12'!D36-'APPENDIX 12'!E36 -> 0 | F36: ='APPENDIX 11'!D36-'APPENDIX 11'!E36 -> 121840 | G36: ='APPENDIX 13'!D36-'APPENDIX 13'!E36 -> 0 | H36: ='APPENDIX 14'!D36-'APPENDIX 14'!E36 -> 0 | I36: ='APPENDIX 15'!D36-'APPENDIX 15'!E36 -> 0 | J36: =SUM(C36:I36) -> 135378
B37: TOTAL | C37: =SUM(C34:C36) -> 22747 | D37: =SUM(D34:D36) -> 0 | E37: 0 | F37: 303096 | G37: 0 | H37: 0 | I37: 0 | J37: 325843
B38: Amounts in Thousand Shillings

Sheet APPENDIX 9
B3: APPENDIX 9: SUMMARY OF LIFE ASSURANCES BUSINESS REVENUE ACCOUNTS FOR THE YEAR ENDED 31.12.2017
B4: Company | C4: Life Fund BF | D4: Gross Premium | E4: Net Premium | F4: Other (Fee) Income | G4: Total Benefits | H4: Claims | I4: Surrenders | J4: Bonuses Paid | K4: Annuities Paid | L4: Net Commisions | M4: Expense of Management | N4: Investment Income | O4: Investment Expenses | P4: Transfer To (From) P & L | Q4: Life Fund CF
B5: INSURERS
B6: APA LIFE ASSURANCE COMPANY | C6: =[1]LA!C6 -> 167035 | D6: =[1]LA!D6 -> 77213 | E6: =[1]LA!E6 -> 76099 | F6: =[1]LA!F6 -> 0 | G6: =[1]LA!G6 -> 22667 | H6: =[1]LA!H6 -> 22667 | I6: =[1]LA!I6 -> 0 | J6: =[1]LA!J6 -> 0 | K6: =[1]LA!K6 -> 0 | L6: =[1]LA!L6 -> 31679 | M6: =[1]LA!M6 -> 95652 | N6: =[1]LA!N6 -> 7947 | O6: =[1]LA!O6 -> 2570 | P6: =[1]LA!P6 -> 0 | Q6: =[1]LA!Q6 -> 98512
B7: BARCLAYS LIFE | C7: =[1]LA!C7 -> -431852 | D7: =[1]LA!D7 -> 205517 | E7: =[1]LA!E7 -> 205517 | F7: =[1]LA!F7 -> 0 | G7: =[1]LA!G7 -> 6410 | H7: =[1]LA!H7 -> 153251 | I7: =[1]LA!I7 -> 0 | J7: =[1]LA!J7 -> 0 | K7: =[1]LA!K7 -> 0 | L7: =[1]LA!L7 -> 30614 | M7: =[1]LA!M7 -> 229088 | N7: =[1]LA!N7 -> 36670 | O7: =[1]LA!O7 -> 0 | P7: =[1]LA!P7 -> 0 | Q7: =[1]LA!Q7 -> -602618
B8: BRITAM LIFE | C8: =[1]LA!C8 -> 19588896 | D8: =[1]LA!D8 -> 7432094 | E8: =[1]LA!E8 -> 7370167 | F8: =[1]LA!F8 -> 0 | G8: =[1]LA!G8 -> 2394793 | H8: =[1]LA!H8 -> 2394793 | I8: =[1]LA!I8 -> 681806 | J8: =[1]LA!J8 -> 1075528 | K8: =[1]LA!K8 -> 0 | L8: =[1]LA!L8 -> 1576376 | M8: =[1]LA!M8 -> 1557674 | N8: =[1]LA!N8 -> 1558787 | O8: =[1]LA!O8 -> 37868 | P8: =[1]LA!P8 -> 149074 | Q8: =[1]LA!Q8 -> 21044731
B9: CANNON ASSURANCE COMPANY | C9: =[1]LA!C9 -> 744011 | D9: =[1]LA!D9 -> 82280 | E9: =[1]LA!E9 -> 81489 | F9: =[1]LA!F9 -> 0 | G9: =[1]LA!G9 -> 155113 | H9: =[1]LA!H9 -> 155113 | I9: =[1]LA!I9 -> 0 | J9: =[1]LA!J9 -> 0 | K9: =[1]LA!K9 -> 0 | L9: =[1]LA!L9 -> 2651 | M9: =[1]LA!M9 -> 115466 | N9: =[1]LA!N9 -> -11062 | O9: =[1]LA!O9 -> 0 | P9: =[1]LA!P9 -> 0 | Q9: =[1]LA!Q9 -> 541208
B10: CAPEX LIFE ASSURANCE COMPANY | C10: =[1]LA!C10 -> 119406 | D10: =[1]LA!D10 -> 261151 | E10: =[1]LA!E10 -> 261151 | F10: =[1]LA!F10 -> 0 | G10: =[1]LA!G10 -> 59223 | H10: =[1]LA!H10 -> 57543 | I10: =[1]LA!I10 -> 0 | J10: =[1]LA!J10 -> 0 | K10: =[1]LA!K10 -> 0 | L10: =[1]LA!L10 -> 43055 | M10: =[1]LA!M10 -> 82255 | N10: =[1]LA!N10 -> 82986 | O10: =[1]LA!O10 -> 0 | P10: =[1]LA!P10 -> 0 | Q10: =[1]LA!Q10 -> 280690
B11: CIC LIFE ASSURANCE COMPANY | C11: =[1]LA!C11 -> 648992 | D11: =[1]LA!D11 -> 916971 | E11: =[1]LA!E11 -> 904408 | F11: =[1]LA!F11 -> 0 | G11: =[1]LA!G11 -> 307573 | H11: =[1]LA!H11 -> 489412 | I11: =[1]LA!I11 -> 0 | J11: =[1]LA!J11 -> 0 | K11: =[1]LA!K11 -> 0 | L11: =[1]LA!L11 -> 174964 | M11: =[1]LA!M11 -> 133531 | N11: =[1]LA!N11 -> 96012 | O11: =[1]LA!O11 -> 0 | P11: =[1]LA!P11 -> 0 | Q11: =[1]LA!Q11 -> 851505
B12: CORPORATE INSURANCE COMPANY | C12: =[1]LA!C12 -> 597905 | D12: =[1]LA!D12 -> 278415 | E12: =[1]LA!E12 -> 276846 | F12: =[1]LA!F12 -> 0 | G12: =[1]LA!G12 -> 189628 | H12: =[1]LA!H12 -> 189628 | I12: =[1]LA!I12 -> 0 | J12: =[1]LA!J12 -> 0 | K12: =[1]LA!K12 -> 0 | L12: =[1]LA!L12 -> 73492 | M12: =[1]LA!M12 -> 64132 | N12: =[1]LA!N12 -> 77430 | O12: =[1]LA!O12 -> 0 | P12: =[1]LA!P12 -> 0 | Q12: =[1]LA!Q12 -> 624930
B13: FIRST ASSURANCE COMPANY | C13: =[1]LA!C13 -> 0 | D13: =[1]LA!D13 -> 0 | E13: =[1]LA!E13 -> 0 | F13: =[1]LA!F13 -> 0 | G13: =[1]LA!G13 -> 0 | H13: =[1]LA!H13 -> 0 | I13: =[1]LA!I13 -> 0 | J13: =[1]LA!J13 -> 0 | K13: =[1]LA!K13 -> 0 | L13: =[1]LA!L13 -> 0 | M13: =[1]LA!M13 -> 0 | N13: =[1]LA!N13 -> 0 | O13: =[1]LA!O13 -> 0 | P13: =[1]LA!P13 -> 0 | Q13: =[1]LA!Q13 -> 0
B14: GA LIFE ASSURANCE COMPANY | C14: =[1]LA!C14 -> 0 | D14: =[1]LA!D14 -> 0 | E14: =[1]LA!E14 -> 0 | F14: =[1]LA!F14 -> 0 | G14: =[1]LA!G14 -> 0 | H14: =[1]LA!H14 -> 0 | I14: =[1]LA!I14 -> 0 | J14: =[1]LA!J14 -> 0 | K14: =[1]LA!K14 -> 0 | L14: =[1]LA!L14 -> 0 | M14: =[1]LA!M14 -> 0 | N14: =[1]LA!N14 -> 0 | O14: =[1]LA!O14 -> 0 | P14: =[1]LA!P14 -> 0 | Q14: =[1]LA!Q14 -> 0
B15: GEMINIA INSURANCE COMPANY | C15: =[1]LA!C15 -> 565311 | D15: =[1]LA!D15 -> 45875 | E15: =[1]LA!E15 -> 44496 | F15: =[1]LA!F15 -> 0 | G15: =[1]LA!G15 -> 10635 | H15: =[1]LA!H15 -> 0 | I15: =[1]LA!I15 -> 0 | J15: =[1]LA!J15 -> 0 | K15: =[1]LA!K15 -> 0 | L15: =[1]LA!L15 -> 8333 | M15: =[1]LA!M15 -> 36590 | N15: =[1]LA!N15 -> 56772 | O15: =[1]LA!O15 -> 0 | P15: =[1]LA!P15 -> 0 | Q15: =[1]LA!Q15 -> 621656
B16: ICEA LION LIFE ASSURANCE | C16: =[1]LA!C16 -> 6738522 | D16: =[1]LA!D16 -> 2450693 | E16: =[1]LA!E16 -> 2388082 | F16: =[1]LA!F16 -> 0 | G16: =[1]LA!G16 -> 977268 | H16: =[1]LA!H16 -> 884028 | I16: =[1]LA!I16 -> 107810 | J16: =[1]LA!J16 -> 0 | K16: =[1]LA!K16 -> 0 | L16: =[1]LA!L16 -> 399659 | M16: =[1]LA!M16 -> 490871 | N16: =[1]LA!N16 -> 1085049 | O16: =[1]LA!O16 -> 0 | P16: =[1]LA!P16 -> 74864 | Q16: =[1]LA!Q16 -> 8254420
B17: JUBILEE INSURANCE COMPANY | C17: =[1]LA!C17 -> 5162002 | D17: =[1]LA!D17 -> 3001737 | E17: =[1]LA!E17 -> 2996253 | F17: =[1]LA!F17 -> 0 | G17: =[1]LA!G17 -> 1173185 | H17: =[1]LA!H17 -> 812418 | I17: =[1]LA!I17 -> 317789 | J17: =[1]LA!J17 -> 0 | K17: =[1]LA!K17 -> 0 | L17: =[1]LA!L17 -> 661239 | M17: =[1]LA!M17 -> 463386 | N17: =[1]LA!N17 -> 948612 | O17: =[1]LA!O17 -> 6133 | P17: =[1]LA!P17 -> -323474 | Q17: =[1]LA!Q17 -> 7169377
B18: KENINDIA ASSURANCE COMPANY | C18: =[1]LA!C18 -> 5810524 | D18: =[1]LA!D18 -> 1235077 | E18: =[1]LA!E18 -> 1230918 | F18: =[1]LA!F18 -> 0 | G18: =[1]LA!G18 -> 571704 | H18: =[1]LA!H18 -> 611157 | I18: =[1]LA!I18 -> 0 | J18: =[1]LA!J18 -> 0 | K18: =[1]LA!K18 -> 0 | L18: =[1]LA!L18 -> 93890 | M18: =[1]LA!M18 -> 209887 | N18: =[1]LA!N18 -> 860720 | O18: =[1]LA!O18 -> 0 | P18: =[1]LA!P18 -> 102870 | Q18: =[1]LA!Q18 -> 6884358
B19: KENYA ORIENT LIFE ASSURANCE | C19: =[1]LA!C19 -> 25027 | D19: =[1]LA!D19 -> 51265 | E19: =[1]LA!E19 -> 51161 | F19: =[1]LA!F19 -> 0 | G19: =[1]LA!G19 -> 319 | H19: =[1]LA!H19 -> 319 | I19: =[1]LA!I19 -> 0 | J19: =[1]LA!J19 -> 0 | K19: =[1]LA!K19 -> 0 | L19: =[1]LA!L19 -> 9364 | M19: =[1]LA!M19 -> 50738 | N19: =[1]LA!N19 -> 2755 | O19: =[1]LA!O19 -> 0 | P19: =[1]LA!P19 -> 0 | Q19: =[1]LA!Q19 -> 18522
B20: LIBERTY LIFE ASSURANCE COMPANY | C20: =[1]LA!C20 -> 6486305 | D20: =[1]LA!D20 -> 387074 | E20: =[1]LA!E20 -> 382620 | F20: =[1]LA!F20 -> 0 | G20: =[1]LA!G20 -> 342438 | H20: =[1]LA!H20 -> 345134 | I20: =[1]LA!I20 -> 0 | J20: =[1]LA!J20 -> 0 | K20: =[1]LA!K20 -> 0 | L20: =[1]LA!L20 -> 35698 | M20: =[1]LA!M20 -> 182203 | N20: =[1]LA!N20 -> 327892 | O20: =[1]LA!O20 -> 0 | P20: =[1]LA!P20 -> 0 | Q20: =[1]LA!Q20 -> 6633783
B21: MADISON INSURANCE COMPANY | C21: =[1]LA!C21 -> 2747956 | D21: =[1]LA!D21 -> 1033987 | E21: =[1]LA!E21 -> 1033987 | F21: =[1]LA!F21 -> 0 | G21: =[1]LA!G21 -> 324550 | H21: =[1]LA!H21 -> 324550 | I21: =[1]LA!I21 -> 0 | J21: =[1]LA!J21 -> 0 | K21: =[1]LA!K21 -> 0 | L21: =[1]LA!L21 -> 158630 | M21: =[1]LA!M21 -> 479349 | N21: =[1]LA!N21 -> 295126 | O21: =[1]LA!O21 -> 0 | P21: =[1]LA!P21 -> 0 | Q21: =[1]LA!Q21 -> 3114541
B22: METROPOLITAN CANNON INSURANCE | C22: =[1]LA!C22 -> 688827 | D22: =[1]LA!D22 -> 20950 | E22: =[1]LA!E22 -> 20836 | F22: =[1]LA!F22 -> 0 | G22: =[1]LA!G22 -> 7225 | H22: =[1]LA!H22 -> 2559 | I22: =[1]LA!I22 -> 4666 | J22: =[1]LA!J22 -> 0 | K22: =[1]LA!K22 -> 0 | L22: =[1]LA!L22 -> 4269 | M22: =[1]LA!M22 -> 4398 | N22: =[1]LA!N22 -> 1559 | O22: =[1]LA!O22 -> 0 | P22: =[1]LA!P22 -> -46056 | Q22: =[1]LA!Q22 -> 741386
B23: OLD MUTUAL LIFE ASSURANCE | C23: =[1]LA!C23 -> 4680218 | D23: =[1]LA!D23 -> 766625 | E23: =[1]LA!E23 -> 702371 | F23: =[1]LA!F23 -> 477305 | G23: =[1]LA!G23 -> 551713 | H23: =[1]LA!H23 -> 550263 | I23: =[1]LA!I23 -> 48123 | J23: =[1]LA!J23 -> 0 | K23: =[1]LA!K23 -> 0 | L23: =[1]LA!L23 -> 176306 | M23: =[1]LA!M23 -> 824619 | N23: =[1]LA!N23 -> 835145 | O23: =[1]LA!O23 -> 25944 | P23: =[1]LA!P23 -> -556827 | Q23: =[1]LA!Q23 -> 5626612
B24: PIONEER ASSURANCE COMPANY | C24: =[1]LA!C24 -> 332758 | D24: =[1]LA!D24 -> 717432 | E24: =[1]LA!E24 -> 717432 | F24: =[1]LA!F24 -> 0 | G24: =[1]LA!G24 -> 352971 | H24: =[1]LA!H24 -> 335364 | I24: =[1]LA!I24 -> 0 | J24: =[1]LA!J24 -> 0 | K24: =[1]LA!K24 -> 0 | L24: =[1]LA!L24 -> 261276 | M24: =[1]LA!M24 -> 311967 | N24: =[1]LA!N24 -> 147257 | O24: =[1]LA!O24 -> 0 | P24: =[1]LA!P24 -> -33559 | Q24: =[1]LA!Q24 -> 322400
B25: PRUDENTIAL LIFE ASSURANCE | C25: =[1]LA!C25 -> 429844 | D25: =[1]LA!D25 -> 137920 | E25: =[1]LA!E25 -> 137896 | F25: =[1]LA!F25 -> 4385 | G25: =[1]LA!G25 -> 133027 | H25: =[1]LA!H25 -> 107919 | I25: =[1]LA!I25 -> 0 | J25: =[1]LA!J25 -> 0 | K25: =[1]LA!K25 -> 0 | L25: =[1]LA!L25 -> 16716 | M25: =[1]LA!M25 -> 34255 | N25: =[1]LA!N25 -> 41061 | O25: =[1]LA!O25 -> 1922 | P25: =[1]LA!P25 -> 0 | Q25: =[1]LA!Q25 -> 452375
B26: SAHAM ASSURANCE | C26: =[1]LA!C26 -> 207785 | D26: =[1]LA!D26 -> 44016 | E26: =[1]LA!E26 -> 39120 | F26: =[1]LA!F26 -> 0 | G26: =[1]LA!G26 -> 25239 | H26: =[1]LA!H26 -> 28731 | I26: =[1]LA!I26 -> 1479 | J26: =[1]LA!J26 -> 0 | K26: =[1]LA!K26 -> 0 | L26: =[1]LA!L26 -> 4274 | M26: =[1]LA!M26 -> 38392 | N26: =[1]LA!N26 -> 38021 | O26: =[1]LA!O26 -> 0 | P26: =[1]LA!P26 -> 0 | Q26: =[1]LA!Q26 -> 212049
B27: SANLAM LIFE INSURANCE | C27: =[1]LA!C27 -> 5503031 | D27: =[1]LA!D27 -> 1643646 | E27: =[1]LA!E27 -> 1616360 | F27: =[1]LA!F27 -> 0 | G27: =[1]LA!G27 -> 196313 | H27: =[1]LA!H27 -> 265363 | I27: =[1]LA!I27 -> 0 | J27: =[1]LA!J27 -> 0 | K27: =[1]LA!K27 -> 0 | L27: =[1]LA!L27 -> 285008 | M27: =[1]LA!M27 -> 318291 | N27: =[1]LA!N27 -> 310457 | O27: =[1]LA!O27 -> 0 | P27: =[1]LA!P27 -> 800362 | Q27: =[1]LA!Q27 -> 5760824
B28: TAKAFUL INSURANCE OF AFRICA | C28: =[1]LA!C28 -> 0 | D28: =[1]LA!D28 -> 0 | E28: =[1]LA!E28 -> 0 | F28: =[1]LA!F28 -> 0 | G28: =[1]LA!G28 -> 0 | H28: =[1]LA!H28 -> 0 | I28: =[1]LA!I28 -> 0 | J28: =[1]LA!J28 -> 0 | K28: =[1]LA!K28 -> 0 | L28: =[1]LA!L28 -> 0 | M28: =[1]LA!M28 -> 0 | N28: =[1]LA!N28 -> 0 | O28: =[1]LA!O28 -> 0 | P28: =[1]LA!P28 -> 0 | Q28: =[1]LA!Q28 -> 0
B29: THE KENYAN ALLIANCE INSURANCE | C29: =[1]LA!C29 -> 34212 | D29: =[1]LA!D29 -> 15247 | E29: =[1]LA!E29 -> 15247 | F29: =[1]LA!F29 -> 0 | G29: =[1]LA!G29 -> 2147 | H29: =[1]LA!H29 -> 2187 | I29: =[1]LA!I29 -> 0 | J29: =[1]LA!J29 -> 0 | K29: =[1]LA!K29 -> 0 | L29: =[1]LA!L29 -> 3283 | M29: =[1]LA!M29 -> 1594 | N29: =[1]LA!N29 -> 3622 | O29: =[1]LA!O29 -> 0 | P29: =[1]LA!P29 -> 0 | Q29: =[1]LA!Q29 -> 46019
B30: THE MONARCH INSURANCE | C30: =[1]LA!C30 -> 10922 | D30: =[1]LA!D30 -> 22729 | E30: =[1]LA!E30 -> 22643 | F30: =[1]LA!F30 -> 0 | G30: =[1]LA!G30 -> 0 | H30: =[1]LA!H30 -> 0 | I30: =[1]LA!I30 -> 0 | J30: =[1]LA!J30 -> 0 | K30: =[1]LA!K30 -> 0 | L30: =[1]LA!L30 -> 1625 | M30: =[1]LA!M30 -> 21015 | N30: =[1]LA!N30 -> 13208 | O30: =[1]LA!O30 -> 0 | P30: =[1]LA!P30 -> 0 | Q30: =[1]LA!Q30 -> 24132
B31: UAP LIFE ASSURANCE COMPANY | C31: =[1]LA!C31 -> 449846 | D31: =[1]LA!D31 -> 547014 | E31: =[1]LA!E31 -> 547014 | F31: =[1]LA!F31 -> 0 | G31: =[1]LA!G31 -> 81216 | H31: =[1]LA!H31 -> 42092 | I31: =[1]LA!I31 -> 38789 | J31: =[1]LA!J31 -> 453 | K31: =[1]LA!K31 -> 0 | L31: =[1]LA!L31 -> 37225 | M31: =[1]LA!M31 -> 301481 | N31: =[1]LA!N31 -> 184221 | O31: =[1]LA!O31 -> 0 | P31: =[1]LA!P31 -> 0 | Q31: =[1]LA!Q31 -> 761040
B32: TOTAL | C32: =SUM(C6:C31) -> 61307483 | D32: 21374928 | E32: 21122113 | F32: 481690 | G32: 7885357 | H32: 7774491 | I32: 1200462 | J32: 1075981 | K32: 0 | L32: 4089626 | M32: 6046834 | N32: 7000247 | O32: 74437 | P32: 167254 | Q32: 69482452
B33: REINSURERS
B34: CONTINENTAL REINSURANCE | C34: =[1]LA!C34 -> 1944 | D34: =[1]LA!D34 -> 1387 | E34: =[1]LA!E34 -> 1179 | F34: =[1]LA!F34 -> 0 | G34: =[1]LA!G34 -> 0 | H34: =[1]LA!H34 -> 0 | I34: =[1]LA!I34 -> 0 | J34: =[1]LA!J34 -> 0 | K34: =[1]LA!K34 -> 0 | L34: =[1]LA!L34 -> 740 | M34: =[1]LA!M34 -> 228 | N34: =[1]LA!N34 -> 361 | O34: =[1]LA!O34 -> 18 | P34: =[1]LA!P34 -> 0 | Q34: =[1]LA!Q34 -> 2498
B35: EAST AFRICA REINSURANCE | C35: =[1]LA!C35 -> 0 | D35: =[1]LA!D35 -> 31867 | E35: =[1]LA!E35 -> 22866 | F35: =[1]LA!F35 -> -1675 | G35: =[1]LA!G35 -> 1245 | H35: =[1]LA!H35 -> 0 | I35: =[1]LA!I35 -> 0 | J35: =[1]LA!J35 -> 0 | K35: =[1]LA!K35 -> 0 | L35: =[1]LA!L35 -> 5893 | M35: =[1]LA!M35 -> 2290 | N35: =[1]LA!N35 -> 0 | O35: =[1]LA!O35 -> 0 | P35: =[1]LA!P35 -> 0 | Q35: =[1]LA!Q35 -> 13008
B36: KENYA REINSURANCE CORPORATION | C36: =[1]LA!C36 -> 1192797 | D36: =[1]LA!D36 -> 146576 | E36: =[1]LA!E36 -> 133038 | F36: =[1]LA!F36 -> 0 | G36: =[1]LA!G36 -> 84206 | H36: =[1]LA!H36 -> 84206 | I36: =[1]LA!I36 -> 0 | J36: =[1]LA!J36 -> 0 | K36: =[1]LA!K36 -> 0 | L36: =[1]LA!L36 -> 41360 | M36: =[1]LA!M36 -> 24083 | N36: =[1]LA!N36 -> 49348 | O36: =[1]LA!O36 -> 0 | P36: =[1]LA!P36 -> 0 | Q36: =[1]LA!Q36 -> 1225534
B37: TOTAL | C37: =SUM(C34:C36) -> 1194741 | D37: =SUM(D34:D36) -> 179830 | E37: 157083 | F37: -1675 | G37: 85451 | H37: 84206 | I37: 0 | J37: 0 | K37: 0 | L37: 47993 | M37: 26601 | N37: 49709 | O37: 18 | P37: 0 | Q37: 1241040
B38: Amounts in Thousand Shillings

Sheet APPENDIX 10
B3: APPENDIX 10: SUMMARY OF ANNUITIES BUSINESS REVENUE ACCOUNTS FOR THE YEAR ENDED 31.12.2017
B4: Company | C4: Life Fund BF | D4: Gross Premium | E4: Net Premium | F4: Other (Fee) Income | G4: Total Benefits | H4: Claims | I4: Surrenders | J4: Bonuses Paid | K4: Annuities Paid | L4: Net Commisions | M4: Expense of Management | N4: Investment Income | O4: Investment Expenses | P4: Transfer To (From) P & L | Q4: Life Fund CF
B5: INSURERS
B6: APA LIFE ASSURANCE COMPANY | C6: =[1]ANNUITIES!C6 -> 1132 | D6: =[1]ANNUITIES!D6 -> 28405 | E6: =[1]ANNUITIES!E6 -> 28405 | F6: =[1]ANNUITIES!F6 -> 0 | G6: =[1]ANNUITIES!G6 -> 58669 | H6: =[1]ANNUITIES!H6 -> 0 | I6: =[1]ANNUITIES!I6 -> 0 | J6: =[1]ANNUITIES!J6 -> 0 | K6: =[1]ANNUITIES!K6 -> 58669 | L6: =[1]ANNUITIES!L6 -> 0 | M6: =[1]ANNUITIES!M6 -> 4678 | N6: =[1]ANNUITIES!N6 -> 39429 | O6: =[1]ANNUITIES!O6 -> 2354 | P6: =[1]ANNUITIES!P6 -> 0 | Q6: =[1]ANNUITIES!Q6 -> 3266
B7: BARCLAYS LIFE | C7: =[1]ANNUITIES!C7 -> 0 | D7: =[1]ANNUITIES!D7 -> 0 | E7: =[1]ANNUITIES!E7 -> 0 | F7: =[1]ANNUITIES!F7 -> 0 | G7: =[1]ANNUITIES!G7 -> 0 | H7: =[1]ANNUITIES!H7 -> 0 | I7: =[1]ANNUITIES!I7 -> 0 | J7: =[1]ANNUITIES!J7 -> 0 | K7: =[1]ANNUITIES!K7 -> 0 | L7: =[1]ANNUITIES!L7 -> 0 | M7: =[1]ANNUITIES!M7 -> 0 | N7: =[1]ANNUITIES!N7 -> 0 | O7: =[1]ANNUITIES!O7 -> 0 | P7: =[1]ANNUITIES!P7 -> 0 | Q7: =[1]ANNUITIES!Q7 -> 0
B8: BRITAM LIFE | C8: =[1]ANNUITIES!C8 -> 379291 | D8: =[1]ANNUITIES!D8 -> 2038108 | E8: =[1]ANNUITIES!E8 -> 2038108 | F8: =[1]ANNUITIES!F8 -> 0 | G8: =[1]ANNUITIES!G8 -> 284522 | H8: =[1]ANNUITIES!H8 -> 284522 | I8: =[1]ANNUITIES!I8 -> 0 | J8: =[1]ANNUITIES!J8 -> 0 | K8: =[1]ANNUITIES!K8 -> 284522 | L8: =[1]ANNUITIES!L8 -> 20381 | M8: =[1]ANNUITIES!M8 -> 26737 | N8: =[1]ANNUITIES!N8 -> 67871 | O8: =[1]ANNUITIES!O8 -> 2852 | P8: =[1]ANNUITIES!P8 -> 0 | Q8: =[1]ANNUITIES!Q8 -> 1866255
B9: CANNON ASSURANCE COMPANY | C9: =[1]ANNUITIES!C9 -> 0 | D9: =[1]ANNUITIES!D9 -> 0 | E9: =[1]ANNUITIES!E9 -> 0 | F9: =[1]ANNUITIES!F9 -> 0 | G9: =[1]ANNUITIES!G9 -> 0 | H9: =[1]ANNUITIES!H9 -> 0 | I9: =[1]ANNUITIES!I9 -> 0 | J9: =[1]ANNUITIES!J9 -> 0 | K9: =[1]ANNUITIES!K9 -> 0 | L9: =[1]ANNUITIES!L9 -> 0 | M9: =[1]ANNUITIES!M9 -> 0 | N9: =[1]ANNUITIES!N9 -> 0 | O9: =[1]ANNUITIES!O9 -> 0 | P9: =[1]ANNUITIES!P9 -> 0 | Q9: =[1]ANNUITIES!Q9 -> 0
B10: CAPEX LIFE ASSURANCE COMPANY | C10: =[1]ANNUITIES!C10 -> 0 | D10: =[1]ANNUITIES!D10 -> 0 | E10: =[1]ANNUITIES!E10 -> 0 | F10: =[1]ANNUITIES!F10 -> 0 | G10: =[1]ANNUITIES!G10 -> 0 | H10: =[1]ANNUITIES!H10 -> 0 | I10: =[1]ANNUITIES!I10 -> 0 | J10: =[1]ANNUITIES!J10 -> 0 | K10: =[1]ANNUITIES!K10 -> 0 | L10: =[1]ANNUITIES!L10 -> 0 | M10: =[1]ANNUITIES!M10 -> 0 | N10: =[1]ANNUITIES!N10 -> 0 | O10: =[1]ANNUITIES!O10 -> 0 | P10: =[1]ANNUITIES!P10 -> 0 | Q10: =[1]ANNUITIES!Q10 -> 0
B11: CIC LIFE ASSURANCE COMPANY | C11: =[1]ANNUITIES!C11 -> -191576 | D11: =[1]ANNUITIES!D11 -> 169106 | E11: =[1]ANNUITIES!E11 -> 169106 | F11: =[1]ANNUITIES!F11 -> 0 | G11: =[1]ANNUITIES!G11 -> 65894 | H11: =[1]ANNUITIES!H11 -> 223762 | I11: =[1]ANNUITIES!I11 -> 0 | J11: =[1]ANNUITIES!J11 -> 0 | K11: =[1]ANNUITIES!K11 -> 0 | L11: =[1]ANNUITIES!L11 -> 3685 | M11: =[1]ANNUITIES!M11 -> 25929 | N11: =[1]ANNUITIES!N11 -> 82477 | O11: =[1]ANNUITIES!O11 -> 0 | P11: =[1]ANNUITIES!P11 -> 0 | Q11: =[1]ANNUITIES!Q11 -> -193369
B12: CORPORATE INSURANCE COMPANY | C12: =[1]ANNUITIES!C12 -> 0 | D12: =[1]ANNUITIES!D12 -> 0 | E12: =[1]ANNUITIES!E12 -> 0 | F12: =[1]ANNUITIES!F12 -> 0 | G12: =[1]ANNUITIES!G12 -> 0 | H12: =[1]ANNUITIES!H12 -> 0 | I12: =[1]ANNUITIES!I12 -> 0 | J12: =[1]ANNUITIES!J12 -> 0 | K12: =[1]ANNUITIES!K12 -> 0 | L12: =[1]ANNUITIES!L12 -> 0 | M12: =[1]ANNUITIES!M12 -> 0 | N12: =[1]ANNUITIES!N12 -> 0 | O12: =[1]ANNUITIES!O12 -> 0 | P12: =[1]ANNUITIES!P12 -> 0 | Q12: =[1]ANNUITIES!Q12 -> 0
B13: FIRST ASSURANCE COMPANY | C13: =[1]ANNUITIES!C13 -> 0 | D13: =[1]ANNUITIES!D13 -> 0 | E13: =[1]ANNUITIES!E13 -> 0 | F13: =[1]ANNUITIES!F13 -> 0 | G13: =[1]ANNUITIES!G13 -> 0 | H13: =[1]ANNUITIES!H13 -> 0 | I13: =[1]ANNUITIES!I13 -> 0 | J13: =[1]ANNUITIES!J13 -> 0 | K13: =[1]ANNUITIES!K13 -> 0 | L13: =[1]ANNUITIES!L13 -> 0 | M13: =[1]ANNUITIES!M13 -> 0 | N13: =[1]ANNUITIES!N13 -> 0 | O13: =[1]ANNUITIES!O13 -> 0 | P13: =[1]ANNUITIES!P13 -> 0 | Q13: =[1]ANNUITIES!Q13 -> 0
B14: GA LIFE ASSURANCE COMPANY | C14: =[1]ANNUITIES!C14 -> 0 | D14: =[1]ANNUITIES!D14 -> 0 | E14: =[1]ANNUITIES!E14 -> 0 | F14: =[1]ANNUITIES!F14 -> 0 | G14: =[1]ANNUITIES!G14 -> 0 | H14: =[1]ANNUITIES!H14 -> 0 | I14: =[1]ANNUITIES!I14 -> 0 | J14: =[1]ANNUITIES!J14 -> 0 | K14: =[1]ANNUITIES!K14 -> 0 | L14: =[1]ANNUITIES!L14 -> 0 | M14: =[1]ANNUITIES!M14 -> 0 | N14: =[1]ANNUITIES!N14 -> 0 | O14: =[1]ANNUITIES!O14 -> 0 | P14: =[1]ANNUITIES!P14 -> 0 | Q14: =[1]ANNUITIES!Q14 -> 0
B15: GEMINIA INSURANCE COMPANY | C15: =[1]ANNUITIES!C15 -> 0 | D15: =[1]ANNUITIES!D15 -> 0 | E15: =[1]ANNUITIES!E15 -> 0 | F15: =[1]ANNUITIES!F15 -> 0 | G15: =[1]ANNUITIES!G15 -> 0 | H15: =[1]ANNUITIES!H15 -> 0 | I15: =[1]ANNUITIES!I15 -> 0 | J15: =[1]ANNUITIES!J15 -> 0 | K15: =[1]ANNUITIES!K15 -> 0 | L15: =[1]ANNUITIES!L15 -> 0 | M15: =[1]ANNUITIES!M15 -> 0 | N15: =[1]ANNUITIES!N15 -> 0 | O15: =[1]ANNUITIES!O15 -> 0 | P15: =[1]ANNUITIES!P15 -> 0 | Q15: =[1]ANNUITIES!Q15 -> 0
B16: ICEA LION LIFE ASSURANCE | C16: =[1]ANNUITIES!C16 -> 5562333 | D16: =[1]ANNUITIES!D16 -> 3429295 | E16: =[1]ANNUITIES!E16 -> 3429295 | F16: =[1]ANNUITIES!F16 -> 0 | G16: =[1]ANNUITIES!G16 -> 931995 | H16: =[1]ANNUITIES!H16 -> 187 | I16: =[1]ANNUITIES!I16 -> 0 | J16: =[1]ANNUITIES!J16 -> 0 | K16: =[1]ANNUITIES!K16 -> 932909 | L16: =[1]ANNUITIES!L16 -> 65779 | M16: =[1]ANNUITIES!M16 -> 48176 | N16: =[1]ANNUITIES!N16 -> 1249449 | O16: =[1]ANNUITIES!O16 -> 0 | P16: =[1]ANNUITIES!P16 -> 152919 | Q16: =[1]ANNUITIES!Q16 -> 9041106
B17: JUBILEE INSURANCE COMPANY | C17: =[1]ANNUITIES!C17 -> 5682911 | D17: =[1]ANNUITIES!D17 -> 1779954 | E17: =[1]ANNUITIES!E17 -> 1779954 | F17: =[1]ANNUITIES!F17 -> 0 | G17: =[1]ANNUITIES!G17 -> 758671 | H17: =[1]ANNUITIES!H17 -> 758671 | I17: =[1]ANNUITIES!I17 -> 0 | J17: =[1]ANNUITIES!J17 -> 0 | K17: =[1]ANNUITIES!K17 -> 0 | L17: =[1]ANNUITIES!L17 -> 33175 | M17: =[1]ANNUITIES!M17 -> 30536 | N17: =[1]ANNUITIES!N17 -> 908071 | O17: =[1]ANNUITIES!O17 -> 4568 | P17: =[1]ANNUITIES!P17 -> -1104114 | Q17: =[1]ANNUITIES!Q17 -> 8648099
B18: KENINDIA ASSURANCE COMPANY | C18: =[1]ANNUITIES!C18 -> 342785 | D18: =[1]ANNUITIES!D18 -> 377252 | E18: =[1]ANNUITIES!E18 -> 377252 | F18: =[1]ANNUITIES!F18 -> 0 | G18: =[1]ANNUITIES!G18 -> 55973 | H18: =[1]ANNUITIES!H18 -> 55973 | I18: =[1]ANNUITIES!I18 -> 0 | J18: =[1]ANNUITIES!J18 -> 0 | K18: =[1]ANNUITIES!K18 -> 0 | L18: =[1]ANNUITIES!L18 -> 7479 | M18: =[1]ANNUITIES!M18 -> 0 | N18: =[1]ANNUITIES!N18 -> 70929 | O18: =[1]ANNUITIES!O18 -> 0 | P18: =[1]ANNUITIES!P18 -> 0 | Q18: =[1]ANNUITIES!Q18 -> 727514
B19: KENYA ORIENT LIFE ASSURANCE | C19: =[1]ANNUITIES!C19 -> 0 | D19: =[1]ANNUITIES!D19 -> 110205 | E19: =[1]ANNUITIES!E19 -> 110205 | F19: =[1]ANNUITIES!F19 -> 0 | G19: =[1]ANNUITIES!G19 -> 6460 | H19: =[1]ANNUITIES!H19 -> 0 | I19: =[1]ANNUITIES!I19 -> 0 | J19: =[1]ANNUITIES!J19 -> 0 | K19: =[1]ANNUITIES!K19 -> 6460 | L19: =[1]ANNUITIES!L19 -> 4055 | M19: =[1]ANNUITIES!M19 -> 4020 | N19: =[1]ANNUITIES!N19 -> 5922 | O19: =[1]ANNUITIES!O19 -> 0 | P19: =[1]ANNUITIES!P19 -> 0 | Q19: =[1]ANNUITIES!Q19 -> 101593
B20: LIBERTY LIFE ASSURANCE COMPANY | C20: =[1]ANNUITIES!C20 -> 211744 | D20: =[1]ANNUITIES!D20 -> 14682 | E20: =[1]ANNUITIES!E20 -> 14682 | F20: =[1]ANNUITIES!F20 -> 0 | G20: =[1]ANNUITIES!G20 -> 26979 | H20: =[1]ANNUITIES!H20 -> 26979 | I20: =[1]ANNUITIES!I20 -> 0 | J20: =[1]ANNUITIES!J20 -> 0 | K20: =[1]ANNUITIES!K20 -> 0 | L20: =[1]ANNUITIES!L20 -> 0 | M20: =[1]ANNUITIES!M20 -> 1266 | N20: =[1]ANNUITIES!N20 -> 25808 | O20: =[1]ANNUITIES!O20 -> 0 | P20: =[1]ANNUITIES!P20 -> 0 | Q20: =[1]ANNUITIES!Q20 -> 223990
B21: MADISON INSURANCE COMPANY | C21: =[1]ANNUITIES!C21 -> 2703176 | D21: =[1]ANNUITIES!D21 -> 1098301 | E21: =[1]ANNUITIES!E21 -> 1098301 | F21: =[1]ANNUITIES!F21 -> 0 | G21: =[1]ANNUITIES!G21 -> 376458 | H21: =[1]ANNUITIES!H21 -> 376458 | I21: =[1]ANNUITIES!I21 -> 0 | J21: =[1]ANNUITIES!J21 -> 0 | K21: =[1]ANNUITIES!K21 -> 0 | L21: =[1]ANNUITIES!L21 -> 22008 | M21: =[1]ANNUITIES!M21 -> 37792 | N21: =[1]ANNUITIES!N21 -> 23296 | O21: =[1]ANNUITIES!O21 -> 0 | P21: =[1]ANNUITIES!P21 -> 0 | Q21: =[1]ANNUITIES!Q21 -> 3388515
B22: METROPOLITAN CANNON INSURANCE | C22: =[1]ANNUITIES!C22 -> 0 | D22: =[1]ANNUITIES!D22 -> 0 | E22: =[1]ANNUITIES!E22 -> 0 | F22: =[1]ANNUITIES!F22 -> 0 | G22: =[1]ANNUITIES!G22 -> 0 | H22: =[1]ANNUITIES!H22 -> 0 | I22: =[1]ANNUITIES!I22 -> 0 | J22: =[1]ANNUITIES!J22 -> 0 | K22: =[1]ANNUITIES!K22 -> 0 | L22: =[1]ANNUITIES!L22 -> 0 | M22: =[1]ANNUITIES!M22 -> 0 | N22: =[1]ANNUITIES!N22 -> 0 | O22: =[1]ANNUITIES!O22 -> 0 | P22: =[1]ANNUITIES!P22 -> 0 | Q22: =[1]ANNUITIES!Q22 -> 0
B23: OLD MUTUAL LIFE ASSURANCE | C23: =[1]ANNUITIES!C23 -> 1009 | D23: =[1]ANNUITIES!D23 -> 0 | E23: =[1]ANNUITIES!E23 -> 0 | F23: =[1]ANNUITIES!F23 -> 0 | G23: =[1]ANNUITIES!G23 -> 978 | H23: =[1]ANNUITIES!H23 -> 0 | I23: =[1]ANNUITIES!I23 -> 0 | J23: =[1]ANNUITIES!J23 -> 0 | K23: =[1]ANNUITIES!K23 -> 978 | L23: =[1]ANNUITIES!L23 -> 0 | M23: =[1]ANNUITIES!M23 -> 0 | N23: =[1]ANNUITIES!N23 -> 260 | O23: =[1]ANNUITIES!O23 -> 8 | P23: =[1]ANNUITIES!P23 -> 0 | Q23: =[1]ANNUITIES!Q23 -> 282
B24: PIONEER ASSURANCE COMPANY | C24: =[1]ANNUITIES!C24 -> 86916 | D24: =[1]ANNUITIES!D24 -> 21110 | E24: =[1]ANNUITIES!E24 -> 21105 | F24: =[1]ANNUITIES!F24 -> 0 | G24: =[1]ANNUITIES!G24 -> 0 | H24: =[1]ANNUITIES!H24 -> 14650 | I24: =[1]ANNUITIES!I24 -> 0 | J24: =[1]ANNUITIES!J24 -> 0 | K24: =[1]ANNUITIES!K24 -> 0 | L24: =[1]ANNUITIES!L24 -> 0 | M24: =[1]ANNUITIES!M24 -> 222 | N24: =[1]ANNUITIES!N24 -> 0 | O24: =[1]ANNUITIES!O24 -> 0 | P24: =[1]ANNUITIES!P24 -> -13186 | Q24: =[1]ANNUITIES!Q24 -> 106335
B25: PRUDENTIAL LIFE ASSURANCE | C25: =[1]ANNUITIES!C25 -> 0 | D25: =[1]ANNUITIES!D25 -> 0 | E25: =[1]ANNUITIES!E25 -> 0 | F25: =[1]ANNUITIES!F25 -> 0 | G25: =[1]ANNUITIES!G25 -> 0 | H25: =[1]ANNUITIES!H25 -> 0 | I25: =[1]ANNUITIES!I25 -> 0 | J25: =[1]ANNUITIES!J25 -> 0 | K25: =[1]ANNUITIES!K25 -> 0 | L25: =[1]ANNUITIES!L25 -> 0 | M25: =[1]ANNUITIES!M25 -> 0 | N25: =[1]ANNUITIES!N25 -> 0 | O25: =[1]ANNUITIES!O25 -> 0 | P25: =[1]ANNUITIES!P25 -> 0 | Q25: =[1]ANNUITIES!Q25 -> 0
B26: SAHAM ASSURANCE | C26: =[1]ANNUITIES!C26 -> -136 | D26: =[1]ANNUITIES!D26 -> 0 | E26: =[1]ANNUITIES!E26 -> 0 | F26: =[1]ANNUITIES!F26 -> 0 | G26: =[1]ANNUITIES!G26 -> 0 | H26: =[1]ANNUITIES!H26 -> 0 | I26: =[1]ANNUITIES!I26 -> 0 | J26: =[1]ANNUITIES!J26 -> 0 | K26: =[1]ANNUITIES!K26 -> 136 | L26: =[1]ANNUITIES!L26 -> 0 | M26: =[1]ANNUITIES!M26 -> 0 | N26: =[1]ANNUITIES!N26 -> 0 | O26: =[1]ANNUITIES!O26 -> 0 | P26: =[1]ANNUITIES!P26 -> 0 | Q26: =[1]ANNUITIES!Q26 -> -272
B27: SANLAM LIFE INSURANCE | C27: =[1]ANNUITIES!C27 -> 7074745 | D27: =[1]ANNUITIES!D27 -> 502821 | E27: =[1]ANNUITIES!E27 -> 502821 | F27: =[1]ANNUITIES!F27 -> 0 | G27: =[1]ANNUITIES!G27 -> 909608 | H27: =[1]ANNUITIES!H27 -> 912676 | I27: =[1]ANNUITIES!I27 -> 0 | J27: =[1]ANNUITIES!J27 -> 0 | K27: =[1]ANNUITIES!K27 -> 0 | L27: =[1]ANNUITIES!L27 -> 12560 | M27: =[1]ANNUITIES!M27 -> 22476 | N27: =[1]ANNUITIES!N27 -> 1027366 | O27: =[1]ANNUITIES!O27 -> 0 | P27: =[1]ANNUITIES!P27 -> 0 | Q27: =[1]ANNUITIES!Q27 -> 7657219
B28: TAKAFUL INSURANCE OF AFRICA | C28: =[1]ANNUITIES!C28 -> 0 | D28: =[1]ANNUITIES!D28 -> 0 | E28: =[1]ANNUITIES!E28 -> 0 | F28: =[1]ANNUITIES!F28 -> 0 | G28: =[1]ANNUITIES!G28 -> 0 | H28: =[1]ANNUITIES!H28 -> 0 | I28: =[1]ANNUITIES!I28 -> 0 | J28: =[1]ANNUITIES!J28 -> 0 | K28: =[1]ANNUITIES!K28 -> 0 | L28: =[1]ANNUITIES!L28 -> 0 | M28: =[1]ANNUITIES!M28 -> 0 | N28: =[1]ANNUITIES!N28 -> 0 | O28: =[1]ANNUITIES!O28 -> 0 | P28: =[1]ANNUITIES!P28 -> 0 | Q28: =[1]ANNUITIES!Q28 -> 0
B29: THE KENYAN ALLIANCE INSURANCE | C29: =[1]ANNUITIES!C29 -> 1020759 | D29: =[1]ANNUITIES!D29 -> 265663 | E29: =[1]ANNUITIES!E29 -> 265663 | F29: =[1]ANNUITIES!F29 -> 0 | G29: =[1]ANNUITIES!G29 -> 119632 | H29: =[1]ANNUITIES!H29 -> 119409 | I29: =[1]ANNUITIES!I29 -> 0 | J29: =[1]ANNUITIES!J29 -> 0 | K29: =[1]ANNUITIES!K29 -> 0 | L29: =[1]ANNUITIES!L29 -> 5273 | M29: =[1]ANNUITIES!M29 -> 28321 | N29: =[1]ANNUITIES!N29 -> 64375 | O29: =[1]ANNUITIES!O29 -> 0 | P29: =[1]ANNUITIES!P29 -> 0 | Q29: =[1]ANNUITIES!Q29 -> 1197794
B30: THE MONARCH INSURANCE | C30: =[1]ANNUITIES!C30 -> 0 | D30: =[1]ANNUITIES!D30 -> 0 | E30: =[1]ANNUITIES!E30 -> 0 | F30: =[1]ANNUITIES!F30 -> 0 | G30: =[1]ANNUITIES!G30 -> 0 | H30: =[1]ANNUITIES!H30 -> 0 | I30: =[1]ANNUITIES!I30 -> 0 | J30: =[1]ANNUITIES!J30 -> 0 | K30: =[1]ANNUITIES!K30 -> 0 | L30: =[1]ANNUITIES!L30 -> 0 | M30: =[1]ANNUITIES!M30 -> 0 | N30: =[1]ANNUITIES!N30 -> 0 | O30: =[1]ANNUITIES!O30 -> 0 | P30: =[1]ANNUITIES!P30 -> 0 | Q30: =[1]ANNUITIES!Q30 -> 0
B31: UAP LIFE ASSURANCE COMPANY | C31: =[1]ANNUITIES!C31 -> 1295684 | D31: =[1]ANNUITIES!D31 -> 0 | E31: =[1]ANNUITIES!E31 -> 0 | F31: =[1]ANNUITIES!F31 -> 0 | G31: =[1]ANNUITIES!G31 -> 146873 | H31: =[1]ANNUITIES!H31 -> 0 | I31: =[1]ANNUITIES!I31 -> 0 | J31: =[1]ANNUITIES!J31 -> 0 | K31: =[1]ANNUITIES!K31 -> 146873 | L31: =[1]ANNUITIES!L31 -> 0 | M31: =[1]ANNUITIES!M31 -> 0 | N31: =[1]ANNUITIES!N31 -> 161116 | O31: =[1]ANNUITIES!O31 -> 0 | P31: =[1]ANNUITIES!P31 -> 0 | Q31: =[1]ANNUITIES!Q31 -> 1309928
B32: TOTAL | C32: =SUM(C6:C31) -> 24170773 | D32: 9834902 | E32: 9834897 | F32: 0 | G32: 3742712 | H32: 2773287 | I32: 0 | J32: 0 | K32: 1430547 | L32: 174395 | M32: 230153 | N32: 3726369 | O32: 9782 | P32: -964381 | Q32: 34078255
B33: REINSURERS
B34: CONTINENTAL REINSURANCE | C34: =[1]ANNUITIES!C34 -> 0 | D34: =[1]ANNUITIES!D34 -> 0 | E34: =[1]ANNUITIES!E34 -> 0 | F34: =[1]ANNUITIES!F34 -> 0 | G34: =[1]ANNUITIES!G34 -> 0 | H34: =[1]ANNUITIES!H34 -> 0 | I34: =[1]ANNUITIES!I34 -> 0 | J34: =[1]ANNUITIES!J34 -> 0 | K34: =[1]ANNUITIES!K34 -> 0 | L34: =[1]ANNUITIES!L34 -> 0 | M34: =[1]ANNUITIES!M34 -> 0 | N34: =[1]ANNUITIES!N34 -> 0 | O34: =[1]ANNUITIES!O34 -> 0 | P34: =[1]ANNUITIES!P34 -> 0 | Q34: =[1]ANNUITIES!Q34 -> 0
B35: EAST AFRICA REINSURANCE | C35: =[1]ANNUITIES!C35 -> 0 | D35: =[1]ANNUITIES!D35 -> 0 | E35: =[1]ANNUITIES!E35 -> 0 | F35: =[1]ANNUITIES!F35 -> 0 | G35: =[1]ANNUITIES!G35 -> 0 | H35: =[1]ANNUITIES!H35 -> 0 | I35: =[1]ANNUITIES!I35 -> 0 | J35: =[1]ANNUITIES!J35 -> 0 | K35: =[1]ANNUITIES!K35 -> 0 | L35: =[1]ANNUITIES!L35 -> 0 | M35: =[1]ANNUITIES!M35 -> 0 | N35: =[1]ANNUITIES!N35 -> 0 | O35: =[1]ANNUITIES!O35 -> 0 | P35: =[1]ANNUITIES!P35 -> 0 | Q35: =[1]ANNUITIES!Q35 -> 0
B36: KENYA REINSURANCE CORPORATION | C36: =[1]ANNUITIES!C36 -> 0 | D36: =[1]ANNUITIES!D36 -> 0 | E36: =[1]ANNUITIES!E36 -> 0 | F36: =[1]ANNUITIES!F36 -> 0 | G36: =[1]ANNUITIES!G36 -> 0 | H36: =[1]ANNUITIES!H36 -> 0 | I36: =[1]ANNUITIES!I36 -> 0 | J36: =[1]ANNUITIES!J36 -> 0 | K36: =[1]ANNUITIES!K36 -> 0 | L36: =[1]ANNUITIES!L36 -> 0 | M36: =[1]ANNUITIES!M36 -> 0 | N36: =[1]ANNUITIES!N36 -> 0 | O36: =[1]ANNUITIES!O36 -> 0 | P36: =[1]ANNUITIES!P36 -> 0 | Q36: =[1]ANNUITIES!Q36 -> 0
B37: TOTAL | C37: =SUM(C34:C36) -> 0 | D37: =SUM(D34:D36) -> 0 | E37: 0 | F37: 0 | G37: 0 | H37: 0 | I37: 0 | J37: 0 | K37: 0 | L37: 0 | M37: 0 | N37: 0 | O37: 0 | P37: 0 | Q37: 0
B38: Amounts in Thousand Shillings

Sheet APPENDIX 11
B3: APPENDIX 11: SUMMARY OF GROUP LIFE BUSINESS REVENUE ACCOUNTS FOR THE YEAR ENDED 31.12.2017
B4: Company | C4: Life Fund BF | D4: Gross Premium | E4: Net Premium | F4: Other (Fee) Income | G4: Total Benefits | H4: Claims | I4: Surrenders | J4: Bonuses Paid | K4: Annuities Paid | L4: Net Commisions | M4: Expense of Management | N4: Investment Income | O4: Investment Expenses | P4: Transfer To (From) P & L | Q4: Life Fund CF
B5: INSURERS
B6: APA LIFE ASSURANCE COMPANY | C6: =[1]GL!C6 -> 536682 | D6: =[1]GL!D6 -> 707124 | E6: =[1]GL!E6 -> 178753 | F6: =[1]GL!F6 -> 0 | G6: =[1]GL!G6 -> 128587 | H6: =[1]GL!H6 -> 128587 | I6: =[1]GL!I6 -> 0 | J6: =[1]GL!J6 -> 0 | K6: =[1]GL!K6 -> 0 | L6: =[1]GL!L6 -> -5450 | M6: =[1]GL!M6 -> 92481 | N6: =[1]GL!N6 -> 27526 | O6: =[1]GL!O6 -> 1643 | P6: =[1]GL!P6 -> 0 | Q6: =[1]GL!Q6 -> 525699
B7: BARCLAYS LIFE | C7: =[1]GL!C7 -> 21140 | D7: =[1]GL!D7 -> 204501 | E7: =[1]GL!E7 -> 54247 | F7: =[1]GL!F7 -> 0 | G7: =[1]GL!G7 -> -26743 | H7: =[1]GL!H7 -> -65474 | I7: =[1]GL!I7 -> 0 | J7: =[1]GL!J7 -> 0 | K7: =[1]GL!K7 -> 0 | L7: =[1]GL!L7 -> -30709 | M7: =[1]GL!M7 -> 59944 | N7: =[1]GL!N7 -> 1774 | O7: =[1]GL!O7 -> 0 | P7: =[1]GL!P7 -> 0 | Q7: =[1]GL!Q7 -> 113400
B8: BRITAM LIFE | C8: =[1]GL!C8 -> 1605833 | D8: =[1]GL!D8 -> 725755 | E8: =[1]GL!E8 -> 568653 | F8: =[1]GL!F8 -> 0 | G8: =[1]GL!G8 -> 396272 | H8: =[1]GL!H8 -> 396272 | I8: =[1]GL!I8 -> 0 | J8: =[1]GL!J8 -> 0 | K8: =[1]GL!K8 -> 0 | L8: =[1]GL!L8 -> 18616 | M8: =[1]GL!M8 -> 244283 | N8: =[1]GL!N8 -> 366876 | O8: =[1]GL!O8 -> 7834 | P8: =[1]GL!P8 -> 38734 | Q8: =[1]GL!Q8 -> 1835623
B9: CANNON ASSURANCE COMPANY | C9: =[1]GL!C9 -> 87535 | D9: =[1]GL!D9 -> 0 | E9: =[1]GL!E9 -> 0 | F9: =[1]GL!F9 -> 0 | G9: =[1]GL!G9 -> 59 | H9: =[1]GL!H9 -> 59 | I9: =[1]GL!I9 -> 0 | J9: =[1]GL!J9 -> 0 | K9: =[1]GL!K9 -> 0 | L9: =[1]GL!L9 -> 9 | M9: =[1]GL!M9 -> -2196 | N9: =[1]GL!N9 -> -76 | O9: =[1]GL!O9 -> 0 | P9: =[1]GL!P9 -> 0 | Q9: =[1]GL!Q9 -> 89587
B10: CAPEX LIFE ASSURANCE COMPANY | C10: =[1]GL!C10 -> 0 | D10: =[1]GL!D10 -> 52189 | E10: =[1]GL!E10 -> 34185 | F10: =[1]GL!F10 -> 0 | G10: =[1]GL!G10 -> 0 | H10: =[1]GL!H10 -> 0 | I10: =[1]GL!I10 -> 0 | J10: =[1]GL!J10 -> 0 | K10: =[1]GL!K10 -> 0 | L10: =[1]GL!L10 -> 0 | M10: =[1]GL!M10 -> 0 | N10: =[1]GL!N10 -> 0 | O10: =[1]GL!O10 -> 0 | P10: =[1]GL!P10 -> 0 | Q10: =[1]GL!Q10 -> 34185
B11: CIC LIFE ASSURANCE COMPANY | C11: =[1]GL!C11 -> 97388 | D11: =[1]GL!D11 -> 2500430 | E11: =[1]GL!E11 -> 2353486 | F11: =[1]GL!F11 -> 0 | G11: =[1]GL!G11 -> 251682 | H11: =[1]GL!H11 -> 311766 | I11: =[1]GL!I11 -> 0 | J11: =[1]GL!J11 -> 0 | K11: =[1]GL!K11 -> 0 | L11: =[1]GL!L11 -> 29071 | M11: =[1]GL!M11 -> 202177 | N11: =[1]GL!N11 -> 54775 | O11: =[1]GL!O11 -> 0 | P11: =[1]GL!P11 -> 0 | Q11: =[1]GL!Q11 -> 1962634
B12: CORPORATE INSURANCE COMPANY | C12: =[1]GL!C12 -> 24863 | D12: =[1]GL!D12 -> 534 | E12: =[1]GL!E12 -> 534 | F12: =[1]GL!F12 -> 0 | G12: =[1]GL!G12 -> 3 | H12: =[1]GL!H12 -> 3 | I12: =[1]GL!I12 -> 0 | J12: =[1]GL!J12 -> 0 | K12: =[1]GL!K12 -> 0 | L12: =[1]GL!L12 -> 0 | M12: =[1]GL!M12 -> 123 | N12: =[1]GL!N12 -> 148 | O12: =[1]GL!O12 -> 0 | P12: =[1]GL!P12 -> 0 | Q12: =[1]GL!Q12 -> 25420
B13: FIRST ASSURANCE COMPANY | C13: =[1]GL!C13 -> 0 | D13: =[1]GL!D13 -> 160354 | E13: =[1]GL!E13 -> 22289 | F13: =[1]GL!F13 -> 0 | G13: =[1]GL!G13 -> 12546 | H13: =[1]GL!H13 -> 13758 | I13: =[1]GL!I13 -> 0 | J13: =[1]GL!J13 -> 0 | K13: =[1]GL!K13 -> 0 | L13: =[1]GL!L13 -> -19197 | M13: =[1]GL!M13 -> 18751 | N13: =[1]GL!N13 -> 32091 | O13: =[1]GL!O13 -> 0 | P13: =[1]GL!P13 -> 0 | Q13: =[1]GL!Q13 -> 41067
B14: GA LIFE ASSURANCE COMPANY | C14: =[1]GL!C14 -> 6972 | D14: =[1]GL!D14 -> 28774 | E14: =[1]GL!E14 -> 3725 | F14: =[1]GL!F14 -> 0 | G14: =[1]GL!G14 -> 238 | H14: =[1]GL!H14 -> 538 | I14: =[1]GL!I14 -> 0 | J14: =[1]GL!J14 -> 0 | K14: =[1]GL!K14 -> 0 | L14: =[1]GL!L14 -> -5999 | M14: =[1]GL!M14 -> 11259 | N14: =[1]GL!N14 -> 2341 | O14: =[1]GL!O14 -> 0 | P14: =[1]GL!P14 -> 2026 | Q14: =[1]GL!Q14 -> 5213
B15: GEMINIA INSURANCE COMPANY | C15: =[1]GL!C15 -> 140110 | D15: =[1]GL!D15 -> 132261 | E15: =[1]GL!E15 -> 71426 | F15: =[1]GL!F15 -> 0 | G15: =[1]GL!G15 -> 55442 | H15: =[1]GL!H15 -> 0 | I15: =[1]GL!I15 -> 0 | J15: =[1]GL!J15 -> 0 | K15: =[1]GL!K15 -> 0 | L15: =[1]GL!L15 -> -4027 | M15: =[1]GL!M15 -> 11830 | N15: =[1]GL!N15 -> 48995 | O15: =[1]GL!O15 -> 0 | P15: =[1]GL!P15 -> 0 | Q15: =[1]GL!Q15 -> 252727
B16: ICEA LION LIFE ASSURANCE | C16: =[1]GL!C16 -> 273842 | D16: =[1]GL!D16 -> 307481 | E16: =[1]GL!E16 -> 241640 | F16: =[1]GL!F16 -> 0 | G16: =[1]GL!G16 -> 136705 | H16: =[1]GL!H16 -> 262292 | I16: =[1]GL!I16 -> 0 | J16: =[1]GL!J16 -> 0 | K16: =[1]GL!K16 -> 0 | L16: =[1]GL!L16 -> 19282 | M16: =[1]GL!M16 -> 99710 | N16: =[1]GL!N16 -> 48559 | O16: =[1]GL!O16 -> 0 | P16: =[1]GL!P16 -> 13238 | Q16: =[1]GL!Q16 -> 169519
B17: JUBILEE INSURANCE COMPANY | C17: =[1]GL!C17 -> 435656 | D17: =[1]GL!D17 -> 1031986 | E17: =[1]GL!E17 -> 557805 | F17: =[1]GL!F17 -> 0 | G17: =[1]GL!G17 -> 619183 | H17: =[1]GL!H17 -> 617722 | I17: =[1]GL!I17 -> 0 | J17: =[1]GL!J17 -> 0 | K17: =[1]GL!K17 -> 0 | L17: =[1]GL!L17 -> 125473 | M17: =[1]GL!M17 -> 167267 | N17: =[1]GL!N17 -> 155939 | O17: =[1]GL!O17 -> 947 | P17: =[1]GL!P17 -> -9525 | Q17: =[1]GL!Q17 -> 247516
B18: KENINDIA ASSURANCE COMPANY | C18: =[1]GL!C18 -> 50016 | D18: =[1]GL!D18 -> 74379 | E18: =[1]GL!E18 -> 37315 | F18: =[1]GL!F18 -> 0 | G18: =[1]GL!G18 -> 8755 | H18: =[1]GL!H18 -> 8755 | I18: =[1]GL!I18 -> 0 | J18: =[1]GL!J18 -> 0 | K18: =[1]GL!K18 -> 0 | L18: =[1]GL!L18 -> 3324 | M18: =[1]GL!M18 -> 25029 | N18: =[1]GL!N18 -> 6492 | O18: =[1]GL!O18 -> 0 | P18: =[1]GL!P18 -> 30000 | Q18: =[1]GL!Q18 -> 26715
B19: KENYA ORIENT LIFE ASSURANCE | C19: =[1]GL!C19 -> 16856 | D19: =[1]GL!D19 -> 24273 | E19: =[1]GL!E19 -> 14049 | F19: =[1]GL!F19 -> 0 | G19: =[1]GL!G19 -> 1530 | H19: =[1]GL!H19 -> 1530 | I19: =[1]GL!I19 -> 0 | J19: =[1]GL!J19 -> 0 | K19: =[1]GL!K19 -> 0 | L19: =[1]GL!L19 -> -1284 | M19: =[1]GL!M19 -> 14639 | N19: =[1]GL!N19 -> 1304 | O19: =[1]GL!O19 -> 0 | P19: =[1]GL!P19 -> 0 | Q19: =[1]GL!Q19 -> 17325
B20: LIBERTY LIFE ASSURANCE COMPANY | C20: =[1]GL!C20 -> 350326 | D20: =[1]GL!D20 -> 371159 | E20: =[1]GL!E20 -> 268693 | F20: =[1]GL!F20 -> 0 | G20: =[1]GL!G20 -> 189233 | H20: =[1]GL!H20 -> 181062 | I20: =[1]GL!I20 -> 0 | J20: =[1]GL!J20 -> 0 | K20: =[1]GL!K20 -> 0 | L20: =[1]GL!L20 -> -28315 | M20: =[1]GL!M20 -> 201151 | N20: =[1]GL!N20 -> 59690 | O20: =[1]GL!O20 -> 0 | P20: =[1]GL!P20 -> 0 | Q20: =[1]GL!Q20 -> 324812
B21: MADISON INSURANCE COMPANY | C21: =[1]GL!C21 -> -99653 | D21: =[1]GL!D21 -> 60975 | E21: =[1]GL!E21 -> 17014 | F21: =[1]GL!F21 -> 0 | G21: =[1]GL!G21 -> 38284 | H21: =[1]GL!H21 -> 38284 | I21: =[1]GL!I21 -> 0 | J21: =[1]GL!J21 -> 0 | K21: =[1]GL!K21 -> 0 | L21: =[1]GL!L21 -> 1447 | M21: =[1]GL!M21 -> 16174 | N21: =[1]GL!N21 -> 9970 | O21: =[1]GL!O21 -> 0 | P21: =[1]GL!P21 -> 0 | Q21: =[1]GL!Q21 -> -128574
B22: METROPOLITAN CANNON INSURANCE | C22: =[1]GL!C22 -> 231928 | D22: =[1]GL!D22 -> 538922 | E22: =[1]GL!E22 -> 458358 | F22: =[1]GL!F22 -> 0 | G22: =[1]GL!G22 -> 262056 | H22: =[1]GL!H22 -> 262056 | I22: =[1]GL!I22 -> 0 | J22: =[1]GL!J22 -> 0 | K22: =[1]GL!K22 -> 0 | L22: =[1]GL!L22 -> 45594 | M22: =[1]GL!M22 -> 129752 | N22: =[1]GL!N22 -> 44467 | O22: =[1]GL!O22 -> 0 | P22: =[1]GL!P22 -> -123576 | Q22: =[1]GL!Q22 -> 420927
B23: OLD MUTUAL LIFE ASSURANCE | C23: =[1]GL!C23 -> 99996 | D23: =[1]GL!D23 -> 281315 | E23: =[1]GL!E23 -> 158026 | F23: =[1]GL!F23 -> 0 | G23: =[1]GL!G23 -> 67242 | H23: =[1]GL!H23 -> 99500 | I23: =[1]GL!I23 -> 0 | J23: =[1]GL!J23 -> 0 | K23: =[1]GL!K23 -> 0 | L23: =[1]GL!L23 -> 22480 | M23: =[1]GL!M23 -> 77102 | N23: =[1]GL!N23 -> 47541 | O23: =[1]GL!O23 -> 240 | P23: =[1]GL!P23 -> -792 | Q23: =[1]GL!Q23 -> 107032
B24: PIONEER ASSURANCE COMPANY | C24: =[1]GL!C24 -> 1233164 | D24: =[1]GL!D24 -> 3758026 | E24: =[1]GL!E24 -> 2741059 | F24: =[1]GL!F24 -> 0 | G24: =[1]GL!G24 -> 2359447 | H24: =[1]GL!H24 -> 2165218 | I24: =[1]GL!I24 -> 48598 | J24: =[1]GL!J24 -> 0 | K24: =[1]GL!K24 -> 0 | L24: =[1]GL!L24 -> -12425 | M24: =[1]GL!M24 -> 139767 | N24: =[1]GL!N24 -> 32267 | O24: =[1]GL!O24 -> 0 | P24: =[1]GL!P24 -> 159416 | Q24: =[1]GL!Q24 -> 1505916
B25: PRUDENTIAL LIFE ASSURANCE | C25: =[1]GL!C25 -> 5242 | D25: =[1]GL!D25 -> 30666 | E25: =[1]GL!E25 -> 8596 | F25: =[1]GL!F25 -> 2565 | G25: =[1]GL!G25 -> 15089 | H25: =[1]GL!H25 -> 6022 | I25: =[1]GL!I25 -> 0 | J25: =[1]GL!J25 -> 0 | K25: =[1]GL!K25 -> 0 | L25: =[1]GL!L25 -> 2579 | M25: =[1]GL!M25 -> 1321 | N25: =[1]GL!N25 -> 9130 | O25: =[1]GL!O25 -> 427 | P25: =[1]GL!P25 -> 0 | Q25: =[1]GL!Q25 -> 15183
B26: SAHAM ASSURANCE | C26: =[1]GL!C26 -> 8557 | D26: =[1]GL!D26 -> 18044 | E26: =[1]GL!E26 -> 5139 | F26: =[1]GL!F26 -> 0 | G26: =[1]GL!G26 -> 1386 | H26: =[1]GL!H26 -> -2014 | I26: =[1]GL!I26 -> 0 | J26: =[1]GL!J26 -> 0 | K26: =[1]GL!K26 -> 0 | L26: =[1]GL!L26 -> 79 | M26: =[1]GL!M26 -> 5043 | N26: =[1]GL!N26 -> 2510 | O26: =[1]GL!O26 -> 0 | P26: =[1]GL!P26 -> 0 | Q26: =[1]GL!Q26 -> 13098
B27: SANLAM LIFE INSURANCE | C27: =[1]GL!C27 -> 156320 | D27: =[1]GL!D27 -> 673900 | E27: =[1]GL!E27 -> 305733 | F27: =[1]GL!F27 -> 0 | G27: =[1]GL!G27 -> 573173 | H27: =[1]GL!H27 -> 610842 | I27: =[1]GL!I27 -> 0 | J27: =[1]GL!J27 -> 0 | K27: =[1]GL!K27 -> 0 | L27: =[1]GL!L27 -> 167365 | M27: =[1]GL!M27 -> 89654 | N27: =[1]GL!N27 -> 11574 | O27: =[1]GL!O27 -> 0 | P27: =[1]GL!P27 -> 0 | Q27: =[1]GL!Q27 -> -394233
B28: TAKAFUL INSURANCE OF AFRICA | C28: =[1]GL!C28 -> 0 | D28: =[1]GL!D28 -> 35223 | E28: =[1]GL!E28 -> 22416 | F28: =[1]GL!F28 -> 0 | G28: =[1]GL!G28 -> 0 | H28: =[1]GL!H28 -> 0 | I28: =[1]GL!I28 -> 0 | J28: =[1]GL!J28 -> 0 | K28: =[1]GL!K28 -> 0 | L28: =[1]GL!L28 -> 90 | M28: =[1]GL!M28 -> 14596 | N28: =[1]GL!N28 -> 8719 | O28: =[1]GL!O28 -> 0 | P28: =[1]GL!P28 -> 0 | Q28: =[1]GL!Q28 -> 16449
B29: THE KENYAN ALLIANCE INSURANCE | C29: =[1]GL!C29 -> 375838 | D29: =[1]GL!D29 -> 311622 | E29: =[1]GL!E29 -> 187546 | F29: =[1]GL!F29 -> 0 | G29: =[1]GL!G29 -> 73660 | H29: =[1]GL!H29 -> 52549 | I29: =[1]GL!I29 -> 0 | J29: =[1]GL!J29 -> 0 | K29: =[1]GL!K29 -> 0 | L29: =[1]GL!L29 -> -10196 | M29: =[1]GL!M29 -> 33252 | N29: =[1]GL!N29 -> 75584 | O29: =[1]GL!O29 -> 0 | P29: =[1]GL!P29 -> 0 | Q29: =[1]GL!Q29 -> 563362
B30: THE MONARCH INSURANCE | C30: =[1]GL!C30 -> -136 | D30: =[1]GL!D30 -> 23778 | E30: =[1]GL!E30 -> 13168 | F30: =[1]GL!F30 -> 0 | G30: =[1]GL!G30 -> 9661 | H30: =[1]GL!H30 -> -9239 | I30: =[1]GL!I30 -> 0 | J30: =[1]GL!J30 -> 0 | K30: =[1]GL!K30 -> 0 | L30: =[1]GL!L30 -> 1921 | M30: =[1]GL!M30 -> 21944 | N30: =[1]GL!N30 -> 19035 | O30: =[1]GL!O30 -> 17717 | P30: =[1]GL!P30 -> 0 | Q30: =[1]GL!Q30 -> -277
B31: UAP LIFE ASSURANCE COMPANY | C31: =[1]GL!C31 -> 1894906 | D31: =[1]GL!D31 -> 711500 | E31: =[1]GL!E31 -> 343068 | F31: =[1]GL!F31 -> 0 | G31: =[1]GL!G31 -> 350957 | H31: =[1]GL!H31 -> 256723 | I31: =[1]GL!I31 -> 0 | J31: =[1]GL!J31 -> 0 | K31: =[1]GL!K31 -> 0 | L31: =[1]GL!L31 -> 31382 | M31: =[1]GL!M31 -> 155308 | N31: =[1]GL!N31 -> 330970 | O31: =[1]GL!O31 -> 0 | P31: =[1]GL!P31 -> 0 | Q31: =[1]GL!Q31 -> 2125531
B32: TOTAL | C32: =SUM(C6:C31) -> 7553381 | D32: 12765171 | E32: 8666923 | F32: 2565 | G32: 5524447 | H32: 5336811 | I32: 48598 | J32: 0 | K32: 0 | L32: 351110 | M32: 1830361 | N32: 1398201 | O32: 28808 | P32: 109521 | Q32: 9915856
B33: REINSURERS
B34: CONTINENTAL REINSURANCE | C34: =[1]GL!C34 -> 133230 | D34: =[1]GL!D34 -> 209185 | E34: =[1]GL!E34 -> 177807 | F34: =[1]GL!F34 -> 0 | G34: =[1]GL!G34 -> 53998 | H34: =[1]GL!H34 -> 83118 | I34: =[1]GL!I34 -> 0 | J34: =[1]GL!J34 -> 0 | K34: =[1]GL!K34 -> 0 | L34: =[1]GL!L34 -> 48393 | M34: =[1]GL!M34 -> 34333 | N34: =[1]GL!N34 -> 54521 | O34: =[1]GL!O34 -> 2785 | P34: =[1]GL!P34 -> 0 | Q34: =[1]GL!Q34 -> 196929
B35: EAST AFRICA REINSURANCE | C35: =[1]GL!C35 -> 0 | D35: =[1]GL!D35 -> 901981 | E35: =[1]GL!E35 -> 752103 | F35: =[1]GL!F35 -> -31822 | G35: =[1]GL!G35 -> 360697 | H35: =[1]GL!H35 -> 377533 | I35: =[1]GL!I35 -> 0 | J35: =[1]GL!J35 -> 0 | K35: =[1]GL!K35 -> 0 | L35: =[1]GL!L35 -> 203515 | M35: =[1]GL!M35 -> 74040 | N35: =[1]GL!N35 -> 0 | O35: =[1]GL!O35 -> 0 | P35: =[1]GL!P35 -> 0 | Q35: =[1]GL!Q35 -> 65194
B36: KENYA REINSURANCE CORPORATION | C36: =[1]GL!C36 -> 5257294 | D36: =[1]GL!D36 -> 1480159 | E36: =[1]GL!E36 -> 1358319 | F36: =[1]GL!F36 -> 0 | G36: =[1]GL!G36 -> 757857 | H36: =[1]GL!H36 -> 757857 | I36: =[1]GL!I36 -> 0 | J36: =[1]GL!J36 -> 0 | K36: =[1]GL!K36 -> 0 | L36: =[1]GL!L36 -> 372236 | M36: =[1]GL!M36 -> 216751 | N36: =[1]GL!N36 -> 444132 | O36: =[1]GL!O36 -> 0 | P36: =[1]GL!P36 -> 0 | Q36: =[1]GL!Q36 -> 5712901
B37: TOTAL | C37: =SUM(C34:C36) -> 5390524 | D37: =SUM(D34:D36) -> 2591325 | E37: 2288229 | F37: -31822 | G37: 1172552 | H37: 1218508 | I37: 0 | J37: 0 | K37: 0 | L37: 624144 | M37: 325124 | N37: 498653 | O37: 2785 | P37: 0 | Q37: 5975024
B38: Amounts in Thousand Shillings

Sheet APPENDIX 12
B3: APPENDIX 12: SUMMARY OF PENSIONS BUSINESS REVENUE ACCOUNTS FOR THE YEAR ENDED 31.12.2017
B4: Company | C4: Life Fund BF | D4: Gross Premium | E4: Net Premium | F4: Other (Fee) Income | G4: Total Benefits | H4: Claims | I4: Surrenders | J4: Bonuses Paid | K4: Annuities Paid | L4: Net Commisions | M4: Expense of Management | N4: Investment Income | O4: Investment Expenses | P4: Transfer To (From) P & L | Q4: Life Fund CF
B5: INSURERS
B6: APA LIFE ASSURANCE COMPANY | C6: =[1]PP!C6+[1]DA!C6 -> 2602355 | D6: =[1]PP!D6+[1]DA!D6 -> 585374 | E6: =[1]PP!E6+[1]DA!E6 -> 585374 | F6: =[1]PP!F6+[1]DA!F6 -> 0 | G6: =[1]PP!G6+[1]DA!G6 -> 331811 | H6: =[1]PP!H6+[1]DA!H6 -> 331811 | I6: =[1]PP!I6+[1]DA!I6 -> 0 | J6: =[1]PP!J6+[1]DA!J6 -> 0 | K6: =[1]PP!K6+[1]DA!K6 -> 0 | L6: =[1]PP!L6+[1]DA!L6 -> 9523 | M6: =[1]PP!M6+[1]DA!M6 -> 25128 | N6: =[1]PP!N6+[1]DA!N6 -> 346583 | O6: =[1]PP!O6+[1]DA!O6 -> 8574 | P6: =[1]PP!P6+[1]DA!P6 -> 13181 | Q6: =[1]PP!Q6+[1]DA!Q6 -> 3146094
B7: BARCLAYS LIFE | C7: =[1]PP!C7+[1]DA!C7 -> 0 | D7: =[1]PP!D7+[1]DA!D7 -> 0 | E7: =[1]PP!E7+[1]DA!E7 -> 0 | F7: =[1]PP!F7+[1]DA!F7 -> 0 | G7: =[1]PP!G7+[1]DA!G7 -> 0 | H7: =[1]PP!H7+[1]DA!H7 -> 0 | I7: =[1]PP!I7+[1]DA!I7 -> 0 | J7: =[1]PP!J7+[1]DA!J7 -> 0 | K7: =[1]PP!K7+[1]DA!K7 -> 0 | L7: =[1]PP!L7+[1]DA!L7 -> 0 | M7: =[1]PP!M7+[1]DA!M7 -> 0 | N7: =[1]PP!N7+[1]DA!N7 -> 0 | O7: =[1]PP!O7+[1]DA!O7 -> 0 | P7: =[1]PP!P7+[1]DA!P7 -> 0 | Q7: =[1]PP!Q7+[1]DA!Q7 -> 0
B8: BRITAM LIFE | C8: =[1]PP!C8+[1]DA!C8 -> 21712596 | D8: =[1]PP!D8+[1]DA!D8 -> 6596029 | E8: =[1]PP!E8+[1]DA!E8 -> 6596029 | F8: =[1]PP!F8+[1]DA!F8 -> 0 | G8: =[1]PP!G8+[1]DA!G8 -> 2799395 | H8: =[1]PP!H8+[1]DA!H8 -> 2799395 | I8: =[1]PP!I8+[1]DA!I8 -> 0 | J8: =[1]PP!J8+[1]DA!J8 -> 0 | K8: =[1]PP!K8+[1]DA!K8 -> 0 | L8: =[1]PP!L8+[1]DA!L8 -> 133247 | M8: =[1]PP!M8+[1]DA!M8 -> 310590 | N8: =[1]PP!N8+[1]DA!N8 -> 2113164 | O8: =[1]PP!O8+[1]DA!O8 -> 88789 | P8: =[1]PP!P8+[1]DA!P8 -> 0 | Q8: =[1]PP!Q8+[1]DA!Q8 -> 27089768
B9: CANNON ASSURANCE COMPANY | C9: =[1]PP!C9+[1]DA!C9 -> 3281 | D9: =[1]PP!D9+[1]DA!D9 -> 0 | E9: =[1]PP!E9+[1]DA!E9 -> 0 | F9: =[1]PP!F9+[1]DA!F9 -> 0 | G9: =[1]PP!G9+[1]DA!G9 -> 1180 | H9: =[1]PP!H9+[1]DA!H9 -> 1180 | I9: =[1]PP!I9+[1]DA!I9 -> 0 | J9: =[1]PP!J9+[1]DA!J9 -> 0 | K9: =[1]PP!K9+[1]DA!K9 -> 0 | L9: =[1]PP!L9+[1]DA!L9 -> 0 | M9: =[1]PP!M9+[1]DA!M9 -> 0 | N9: =[1]PP!N9+[1]DA!N9 -> 0 | O9: =[1]PP!O9+[1]DA!O9 -> 0 | P9: =[1]PP!P9+[1]DA!P9 -> 0 | Q9: =[1]PP!Q9+[1]DA!Q9 -> 2101
B10: CAPEX LIFE ASSURANCE COMPANY | C10: =[1]PP!C10+[1]DA!C10 -> 0 | D10: =[1]PP!D10+[1]DA!D10 -> 0 | E10: =[1]PP!E10+[1]DA!E10 -> 0 | F10: =[1]PP!F10+[1]DA!F10 -> 0 | G10: =[1]PP!G10+[1]DA!G10 -> 0 | H10: =[1]PP!H10+[1]DA!H10 -> 0 | I10: =[1]PP!I10+[1]DA!I10 -> 0 | J10: =[1]PP!J10+[1]DA!J10 -> 0 | K10: =[1]PP!K10+[1]DA!K10 -> 0 | L10: =[1]PP!L10+[1]DA!L10 -> 0 | M10: =[1]PP!M10+[1]DA!M10 -> 0 | N10: =[1]PP!N10+[1]DA!N10 -> 0 | O10: =[1]PP!O10+[1]DA!O10 -> 0 | P10: =[1]PP!P10+[1]DA!P10 -> 0 | Q10: =[1]PP!Q10+[1]DA!Q10 -> 0
B11: CIC LIFE ASSURANCE COMPANY | C11: =[1]PP!C11+[1]DA!C11 -> -45675 | D11: =[1]PP!D11+[1]DA!D11 -> 760324 | E11: =[1]PP!E11+[1]DA!E11 -> 760324 | F11: =[1]PP!F11+[1]DA!F11 -> 0 | G11: =[1]PP!G11+[1]DA!G11 -> 110603 | H11: =[1]PP!H11+[1]DA!H11 -> 0 | I11: =[1]PP!I11+[1]DA!I11 -> 0 | J11: =[1]PP!J11+[1]DA!J11 -> 0 | K11: =[1]PP!K11+[1]DA!K11 -> 0 | L11: =[1]PP!L11+[1]DA!L11 -> -288 | M11: =[1]PP!M11+[1]DA!M11 -> 17546 | N11: =[1]PP!N11+[1]DA!N11 -> 0 | O11: =[1]PP!O11+[1]DA!O11 -> 0 | P11: =[1]PP!P11+[1]DA!P11 -> 0 | Q11: =[1]PP!Q11+[1]DA!Q11 -> 697391
B12: CORPORATE INSURANCE COMPANY | C12: =[1]PP!C12+[1]DA!C12 -> 7518 | D12: =[1]PP!D12+[1]DA!D12 -> 0 | E12: =[1]PP!E12+[1]DA!E12 -> 0 | F12: =[1]PP!F12+[1]DA!F12 -> 0 | G12: =[1]PP!G12+[1]DA!G12 -> 0 | H12: =[1]PP!H12+[1]DA!H12 -> 0 | I12: =[1]PP!I12+[1]DA!I12 -> 0 | J12: =[1]PP!J12+[1]DA!J12 -> 0 | K12: =[1]PP!K12+[1]DA!K12 -> 0 | L12: =[1]PP!L12+[1]DA!L12 -> 0 | M12: =[1]PP!M12+[1]DA!M12 -> 0 | N12: =[1]PP!N12+[1]DA!N12 -> 0 | O12: =[1]PP!O12+[1]DA!O12 -> 0 | P12: =[1]PP!P12+[1]DA!P12 -> 0 | Q12: =[1]PP!Q12+[1]DA!Q12 -> 7518
B13: FIRST ASSURANCE COMPANY | C13: =[1]PP!C13+[1]DA!C13 -> 0 | D13: =[1]PP!D13+[1]DA!D13 -> 0 | E13: =[1]PP!E13+[1]DA!E13 -> 0 | F13: =[1]PP!F13+[1]DA!F13 -> 0 | G13: =[1]PP!G13+[1]DA!G13 -> 0 | H13: =[1]PP!H13+[1]DA!H13 -> 0 | I13: =[1]PP!I13+[1]DA!I13 -> 0 | J13: =[1]PP!J13+[1]DA!J13 -> 0 | K13: =[1]PP!K13+[1]DA!K13 -> 0 | L13: =[1]PP!L13+[1]DA!L13 -> 0 | M13: =[1]PP!M13+[1]DA!M13 -> 0 | N13: =[1]PP!N13+[1]DA!N13 -> 0 | O13: =[1]PP!O13+[1]DA!O13 -> 0 | P13: =[1]PP!P13+[1]DA!P13 -> 0 | Q13: =[1]PP!Q13+[1]DA!Q13 -> 0
B14: GA LIFE ASSURANCE COMPANY | C14: =[1]PP!C14+[1]DA!C14 -> 3878823 | D14: =[1]PP!D14+[1]DA!D14 -> 1585354 | E14: =[1]PP!E14+[1]DA!E14 -> 1585354 | F14: =[1]PP!F14+[1]DA!F14 -> 0 | G14: =[1]PP!G14+[1]DA!G14 -> 328901 | H14: =[1]PP!H14+[1]DA!H14 -> 328901 | I14: =[1]PP!I14+[1]DA!I14 -> 0 | J14: =[1]PP!J14+[1]DA!J14 -> 0 | K14: =[1]PP!K14+[1]DA!K14 -> 0 | L14: =[1]PP!L14+[1]DA!L14 -> 8493 | M14: =[1]PP!M14+[1]DA!M14 -> 25192 | N14: =[1]PP!N14+[1]DA!N14 -> 623034 | O14: =[1]PP!O14+[1]DA!O14 -> 0 | P14: =[1]PP!P14+[1]DA!P14 -> 27636 | Q14: =[1]PP!Q14+[1]DA!Q14 -> 5696989
B15: GEMINIA INSURANCE COMPANY | C15: =[1]PP!C15+[1]DA!C15 -> 0 | D15: =[1]PP!D15+[1]DA!D15 -> 0 | E15: =[1]PP!E15+[1]DA!E15 -> 0 | F15: =[1]PP!F15+[1]DA!F15 -> 0 | G15: =[1]PP!G15+[1]DA!G15 -> 0 | H15: =[1]PP!H15+[1]DA!H15 -> 0 | I15: =[1]PP!I15+[1]DA!I15 -> 0 | J15: =[1]PP!J15+[1]DA!J15 -> 0 | K15: =[1]PP!K15+[1]DA!K15 -> 0 | L15: =[1]PP!L15+[1]DA!L15 -> 0 | M15: =[1]PP!M15+[1]DA!M15 -> 0 | N15: =[1]PP!N15+[1]DA!N15 -> 0 | O15: =[1]PP!O15+[1]DA!O15 -> 0 | P15: =[1]PP!P15+[1]DA!P15 -> 0 | Q15: =[1]PP!Q15+[1]DA!Q15 -> 0
B16: ICEA LION LIFE ASSURANCE | C16: =[1]PP!C16+[1]DA!C16 -> 35054940 | D16: =[1]PP!D16+[1]DA!D16 -> 6544852 | E16: =[1]PP!E16+[1]DA!E16 -> 6544852 | F16: =[1]PP!F16+[1]DA!F16 -> 0 | G16: =[1]PP!G16+[1]DA!G16 -> 4236317 | H16: =[1]PP!H16+[1]DA!H16 -> 0 | I16: =[1]PP!I16+[1]DA!I16 -> 4236317 | J16: =[1]PP!J16+[1]DA!J16 -> 0 | K16: =[1]PP!K16+[1]DA!K16 -> 0 | L16: =[1]PP!L16+[1]DA!L16 -> 64721 | M16: =[1]PP!M16+[1]DA!M16 -> 290762 | N16: =[1]PP!N16+[1]DA!N16 -> 5620182 | O16: =[1]PP!O16+[1]DA!O16 -> 0 | P16: =[1]PP!P16+[1]DA!P16 -> 170368 | Q16: =[1]PP!Q16+[1]DA!Q16 -> 42457806
B17: JUBILEE INSURANCE COMPANY | C17: =[1]PP!C17+[1]DA!C17 -> 35101531 | D17: =[1]PP!D17+[1]DA!D17 -> 6681994 | E17: =[1]PP!E17+[1]DA!E17 -> 6681994 | F17: =[1]PP!F17+[1]DA!F17 -> 0 | G17: =[1]PP!G17+[1]DA!G17 -> 4610887 | H17: =[1]PP!H17+[1]DA!H17 -> 4610887 | I17: =[1]PP!I17+[1]DA!I17 -> 0 | J17: =[1]PP!J17+[1]DA!J17 -> 0 | K17: =[1]PP!K17+[1]DA!K17 -> 0 | L17: =[1]PP!L17+[1]DA!L17 -> 54656 | M17: =[1]PP!M17+[1]DA!M17 -> 247068 | N17: =[1]PP!N17+[1]DA!N17 -> 6122471 | O17: =[1]PP!O17+[1]DA!O17 -> 32994 | P17: =[1]PP!P17+[1]DA!P17 -> 1698205 | Q17: =[1]PP!Q17+[1]DA!Q17 -> 41262187
B18: KENINDIA ASSURANCE COMPANY | C18: =[1]PP!C18+[1]DA!C18 -> 19152949 | D18: =[1]PP!D18+[1]DA!D18 -> 2954607 | E18: =[1]PP!E18+[1]DA!E18 -> 2954607 | F18: =[1]PP!F18+[1]DA!F18 -> 0 | G18: =[1]PP!G18+[1]DA!G18 -> 2703820 | H18: =[1]PP!H18+[1]DA!H18 -> 2685696 | I18: =[1]PP!I18+[1]DA!I18 -> 0 | J18: =[1]PP!J18+[1]DA!J18 -> 0 | K18: =[1]PP!K18+[1]DA!K18 -> 0 | L18: =[1]PP!L18+[1]DA!L18 -> 31195 | M18: =[1]PP!M18+[1]DA!M18 -> 116271 | N18: =[1]PP!N18+[1]DA!N18 -> 2486009 | O18: =[1]PP!O18+[1]DA!O18 -> 0 | P18: =[1]PP!P18+[1]DA!P18 -> 0 | Q18: =[1]PP!Q18+[1]DA!Q18 -> 21760403
B19: KENYA ORIENT LIFE ASSURANCE | C19: =[1]PP!C19+[1]DA!C19 -> 2964 | D19: =[1]PP!D19+[1]DA!D19 -> 61490 | E19: =[1]PP!E19+[1]DA!E19 -> 61490 | F19: =[1]PP!F19+[1]DA!F19 -> 0 | G19: =[1]PP!G19+[1]DA!G19 -> 4813 | H19: =[1]PP!H19+[1]DA!H19 -> 4813 | I19: =[1]PP!I19+[1]DA!I19 -> 0 | J19: =[1]PP!J19+[1]DA!J19 -> 0 | K19: =[1]PP!K19+[1]DA!K19 -> 0 | L19: =[1]PP!L19+[1]DA!L19 -> 0 | M19: =[1]PP!M19+[1]DA!M19 -> 1398 | N19: =[1]PP!N19+[1]DA!N19 -> 3990 | O19: =[1]PP!O19+[1]DA!O19 -> 0 | P19: =[1]PP!P19+[1]DA!P19 -> 0 | Q19: =[1]PP!Q19+[1]DA!Q19 -> 62232
B20: LIBERTY LIFE ASSURANCE COMPANY | C20: =[1]PP!C20+[1]DA!C20 -> 10436196 | D20: =[1]PP!D20+[1]DA!D20 -> 1330920 | E20: =[1]PP!E20+[1]DA!E20 -> 1330920 | F20: =[1]PP!F20+[1]DA!F20 -> 0 | G20: =[1]PP!G20+[1]DA!G20 -> 2402365 | H20: =[1]PP!H20+[1]DA!H20 -> 2402365 | I20: =[1]PP!I20+[1]DA!I20 -> 0 | J20: =[1]PP!J20+[1]DA!J20 -> 0 | K20: =[1]PP!K20+[1]DA!K20 -> 0 | L20: =[1]PP!L20+[1]DA!L20 -> 11560 | M20: =[1]PP!M20+[1]DA!M20 -> 330104 | N20: =[1]PP!N20+[1]DA!N20 -> 1116018 | O20: =[1]PP!O20+[1]DA!O20 -> 0 | P20: =[1]PP!P20+[1]DA!P20 -> 0 | Q20: =[1]PP!Q20+[1]DA!Q20 -> 10139106
B21: MADISON INSURANCE COMPANY | C21: =[1]PP!C21+[1]DA!C21 -> 3290177 | D21: =[1]PP!D21+[1]DA!D21 -> 281722 | E21: =[1]PP!E21+[1]DA!E21 -> 281722 | F21: =[1]PP!F21+[1]DA!F21 -> 0 | G21: =[1]PP!G21+[1]DA!G21 -> 439967 | H21: =[1]PP!H21+[1]DA!H21 -> 439967 | I21: =[1]PP!I21+[1]DA!I21 -> 0 | J21: =[1]PP!J21+[1]DA!J21 -> 0 | K21: =[1]PP!K21+[1]DA!K21 -> 0 | L21: =[1]PP!L21+[1]DA!L21 -> 714 | M21: =[1]PP!M21+[1]DA!M21 -> 21762 | N21: =[1]PP!N21+[1]DA!N21 -> 13414 | O21: =[1]PP!O21+[1]DA!O21 -> 0 | P21: =[1]PP!P21+[1]DA!P21 -> 0 | Q21: =[1]PP!Q21+[1]DA!Q21 -> 3122871
B22: METROPOLITAN CANNON INSURANCE | C22: =[1]PP!C22+[1]DA!C22 -> 0 | D22: =[1]PP!D22+[1]DA!D22 -> 0 | E22: =[1]PP!E22+[1]DA!E22 -> 0 | F22: =[1]PP!F22+[1]DA!F22 -> 0 | G22: =[1]PP!G22+[1]DA!G22 -> 0 | H22: =[1]PP!H22+[1]DA!H22 -> 0 | I22: =[1]PP!I22+[1]DA!I22 -> 0 | J22: =[1]PP!J22+[1]DA!J22 -> 0 | K22: =[1]PP!K22+[1]DA!K22 -> 0 | L22: =[1]PP!L22+[1]DA!L22 -> 0 | M22: =[1]PP!M22+[1]DA!M22 -> 0 | N22: =[1]PP!N22+[1]DA!N22 -> 0 | O22: =[1]PP!O22+[1]DA!O22 -> 0 | P22: =[1]PP!P22+[1]DA!P22 -> 0 | Q22: =[1]PP!Q22+[1]DA!Q22 -> 0
B23: OLD MUTUAL LIFE ASSURANCE | C23: =[1]PP!C23+[1]DA!C23 -> 0 | D23: =[1]PP!D23+[1]DA!D23 -> 0 | E23: =[1]PP!E23+[1]DA!E23 -> 0 | F23: =[1]PP!F23+[1]DA!F23 -> 0 | G23: =[1]PP!G23+[1]DA!G23 -> 0 | H23: =[1]PP!H23+[1]DA!H23 -> 0 | I23: =[1]PP!I23+[1]DA!I23 -> 0 | J23: =[1]PP!J23+[1]DA!J23 -> 0 | K23: =[1]PP!K23+[1]DA!K23 -> 0 | L23: =[1]PP!L23+[1]DA!L23 -> 0 | M23: =[1]PP!M23+[1]DA!M23 -> 0 | N23: =[1]PP!N23+[1]DA!N23 -> 0 | O23: =[1]PP!O23+[1]DA!O23 -> 0 | P23: =[1]PP!P23+[1]DA!P23 -> 0 | Q23: =[1]PP!Q23+[1]DA!Q23 -> 0
B24: PIONEER ASSURANCE COMPANY | C24: =[1]PP!C24+[1]DA!C24 -> 145366 | D24: =[1]PP!D24+[1]DA!D24 -> 121136 | E24: =[1]PP!E24+[1]DA!E24 -> 121136 | F24: =[1]PP!F24+[1]DA!F24 -> 0 | G24: =[1]PP!G24+[1]DA!G24 -> 0 | H24: =[1]PP!H24+[1]DA!H24 -> -6165 | I24: =[1]PP!I24+[1]DA!I24 -> 0 | J24: =[1]PP!J24+[1]DA!J24 -> 0 | K24: =[1]PP!K24+[1]DA!K24 -> 0 | L24: =[1]PP!L24+[1]DA!L24 -> 0 | M24: =[1]PP!M24+[1]DA!M24 -> 0 | N24: =[1]PP!N24+[1]DA!N24 -> 0 | O24: =[1]PP!O24+[1]DA!O24 -> 0 | P24: =[1]PP!P24+[1]DA!P24 -> 0 | Q24: =[1]PP!Q24+[1]DA!Q24 -> 272667
B25: PRUDENTIAL LIFE ASSURANCE | C25: =[1]PP!C25+[1]DA!C25 -> 0 | D25: =[1]PP!D25+[1]DA!D25 -> 0 | E25: =[1]PP!E25+[1]DA!E25 -> 0 | F25: =[1]PP!F25+[1]DA!F25 -> 0 | G25: =[1]PP!G25+[1]DA!G25 -> 0 | H25: =[1]PP!H25+[1]DA!H25 -> 0 | I25: =[1]PP!I25+[1]DA!I25 -> 0 | J25: =[1]PP!J25+[1]DA!J25 -> 0 | K25: =[1]PP!K25+[1]DA!K25 -> 0 | L25: =[1]PP!L25+[1]DA!L25 -> 0 | M25: =[1]PP!M25+[1]DA!M25 -> 0 | N25: =[1]PP!N25+[1]DA!N25 -> 0 | O25: =[1]PP!O25+[1]DA!O25 -> 0 | P25: =[1]PP!P25+[1]DA!P25 -> 0 | Q25: =[1]PP!Q25+[1]DA!Q25 -> 0
B26: SAHAM ASSURANCE | C26: =[1]PP!C26+[1]DA!C26 -> 849874 | D26: =[1]PP!D26+[1]DA!D26 -> 157921 | E26: =[1]PP!E26+[1]DA!E26 -> 157921 | F26: =[1]PP!F26+[1]DA!F26 -> 0 | G26: =[1]PP!G26+[1]DA!G26 -> 183392 | H26: =[1]PP!H26+[1]DA!H26 -> 180598 | I26: =[1]PP!I26+[1]DA!I26 -> 0 | J26: =[1]PP!J26+[1]DA!J26 -> 0 | K26: =[1]PP!K26+[1]DA!K26 -> 0 | L26: =[1]PP!L26+[1]DA!L26 -> 0 | M26: =[1]PP!M26+[1]DA!M26 -> 24014 | N26: =[1]PP!N26+[1]DA!N26 -> 78584 | O26: =[1]PP!O26+[1]DA!O26 -> 15718 | P26: =[1]PP!P26+[1]DA!P26 -> 0 | Q26: =[1]PP!Q26+[1]DA!Q26 -> 866049
B27: SANLAM LIFE INSURANCE | C27: =[1]PP!C27+[1]DA!C27 -> 1489411 | D27: =[1]PP!D27+[1]DA!D27 -> 411797 | E27: =[1]PP!E27+[1]DA!E27 -> 411797 | F27: =[1]PP!F27+[1]DA!F27 -> 0 | G27: =[1]PP!G27+[1]DA!G27 -> 580679 | H27: =[1]PP!H27+[1]DA!H27 -> 580679 | I27: =[1]PP!I27+[1]DA!I27 -> 0 | J27: =[1]PP!J27+[1]DA!J27 -> 0 | K27: =[1]PP!K27+[1]DA!K27 -> 0 | L27: =[1]PP!L27+[1]DA!L27 -> 4084 | M27: =[1]PP!M27+[1]DA!M27 -> 22335 | N27: =[1]PP!N27+[1]DA!N27 -> 141101 | O27: =[1]PP!O27+[1]DA!O27 -> 0 | P27: =[1]PP!P27+[1]DA!P27 -> 0 | Q27: =[1]PP!Q27+[1]DA!Q27 -> 1435210
B28: TAKAFUL INSURANCE OF AFRICA | C28: =[1]PP!C28+[1]DA!C28 -> 0 | D28: =[1]PP!D28+[1]DA!D28 -> 0 | E28: =[1]PP!E28+[1]DA!E28 -> 0 | F28: =[1]PP!F28+[1]DA!F28 -> 0 | G28: =[1]PP!G28+[1]DA!G28 -> 0 | H28: =[1]PP!H28+[1]DA!H28 -> 0 | I28: =[1]PP!I28+[1]DA!I28 -> 0 | J28: =[1]PP!J28+[1]DA!J28 -> 0 | K28: =[1]PP!K28+[1]DA!K28 -> 0 | L28: =[1]PP!L28+[1]DA!L28 -> 0 | M28: =[1]PP!M28+[1]DA!M28 -> 0 | N28: =[1]PP!N28+[1]DA!N28 -> 0 | O28: =[1]PP!O28+[1]DA!O28 -> 0 | P28: =[1]PP!P28+[1]DA!P28 -> 0 | Q28: =[1]PP!Q28+[1]DA!Q28 -> 0
B29: THE KENYAN ALLIANCE INSURANCE | C29: =[1]PP!C29+[1]DA!C29 -> 436269 | D29: =[1]PP!D29+[1]DA!D29 -> 181585 | E29: =[1]PP!E29+[1]DA!E29 -> 181585 | F29: =[1]PP!F29+[1]DA!F29 -> 0 | G29: =[1]PP!G29+[1]DA!G29 -> 99297 | H29: =[1]PP!H29+[1]DA!H29 -> 111147 | I29: =[1]PP!I29+[1]DA!I29 -> 0 | J29: =[1]PP!J29+[1]DA!J29 -> 0 | K29: =[1]PP!K29+[1]DA!K29 -> 0 | L29: =[1]PP!L29+[1]DA!L29 -> 2226 | M29: =[1]PP!M29+[1]DA!M29 -> 19357 | N29: =[1]PP!N29+[1]DA!N29 -> 44002 | O29: =[1]PP!O29+[1]DA!O29 -> 0 | P29: =[1]PP!P29+[1]DA!P29 -> 0 | Q29: =[1]PP!Q29+[1]DA!Q29 -> 529125
B30: THE MONARCH INSURANCE | C30: =[1]PP!C30+[1]DA!C30 -> 11349 | D30: =[1]PP!D30+[1]DA!D30 -> 0 | E30: =[1]PP!E30+[1]DA!E30 -> 0 | F30: =[1]PP!F30+[1]DA!F30 -> 0 | G30: =[1]PP!G30+[1]DA!G30 -> 0 | H30: =[1]PP!H30+[1]DA!H30 -> 0 | I30: =[1]PP!I30+[1]DA!I30 -> 0 | J30: =[1]PP!J30+[1]DA!J30 -> 0 | K30: =[1]PP!K30+[1]DA!K30 -> 0 | L30: =[1]PP!L30+[1]DA!L30 -> 0 | M30: =[1]PP!M30+[1]DA!M30 -> 10675 | N30: =[1]PP!N30+[1]DA!N30 -> 6604 | O30: =[1]PP!O30+[1]DA!O30 -> 0 | P30: =[1]PP!P30+[1]DA!P30 -> 0 | Q30: =[1]PP!Q30+[1]DA!Q30 -> 7278
B31: UAP LIFE ASSURANCE COMPANY | C31: =[1]PP!C31+[1]DA!C31 -> 4970986 | D31: =[1]PP!D31+[1]DA!D31 -> 831052 | E31: =[1]PP!E31+[1]DA!E31 -> 831052 | F31: =[1]PP!F31+[1]DA!F31 -> 0 | G31: =[1]PP!G31+[1]DA!G31 -> 1906649 | H31: =[1]PP!H31+[1]DA!H31 -> 1906599 | I31: =[1]PP!I31+[1]DA!I31 -> 0 | J31: =[1]PP!J31+[1]DA!J31 -> 0 | K31: =[1]PP!K31+[1]DA!K31 -> 0 | L31: =[1]PP!L31+[1]DA!L31 -> 0 | M31: =[1]PP!M31+[1]DA!M31 -> 0 | N31: =[1]PP!N31+[1]DA!N31 -> 548152 | O31: =[1]PP!O31+[1]DA!O31 -> 0 | P31: =[1]PP!P31+[1]DA!P31 -> 0 | Q31: =[1]PP!Q31+[1]DA!Q31 -> 4443591
B32: TOTAL | C32: =SUM(C6:C31) -> 139100910 | D32: 29086157 | E32: 29086157 | F32: 0 | G32: 20740076 | H32: 16377873 | I32: 4236317 | J32: 0 | K32: 0 | L32: 320131 | M32: 1462202 | N32: 19263308 | O32: 146075 | P32: 1909390 | Q32: 162998386
B33: REINSURERS
B34: CONTINENTAL REINSURANCE | C34: =[1]PP!C34+[1]DA!C34 -> 0 | D34: =[1]PP!D34+[1]DA!D34 -> 0 | E34: =[1]PP!E34+[1]DA!E34 -> 0 | F34: =[1]PP!F34+[1]DA!F34 -> 0 | G34: =[1]PP!G34+[1]DA!G34 -> 0 | H34: =[1]PP!H34+[1]DA!H34 -> 0 | I34: =[1]PP!I34+[1]DA!I34 -> 0 | J34: =[1]PP!J34+[1]DA!J34 -> 0 | K34: =[1]PP!K34+[1]DA!K34 -> 0 | L34: =[1]PP!L34+[1]DA!L34 -> 0 | M34: =[1]PP!M34+[1]DA!M34 -> 0 | N34: =[1]PP!N34+[1]DA!N34 -> 0 | O34: =[1]PP!O34+[1]DA!O34 -> 0 | P34: =[1]PP!P34+[1]DA!P34 -> 0 | Q34: =[1]PP!Q34+[1]DA!Q34 -> 0
B35: EAST AFRICA REINSURANCE | C35: =[1]PP!C35+[1]DA!C35 -> 0 | D35: =[1]PP!D35+[1]DA!D35 -> 0 | E35: =[1]PP!E35+[1]DA!E35 -> 0 | F35: =[1]PP!F35+[1]DA!F35 -> 0 | G35: =[1]PP!G35+[1]DA!G35 -> 0 | H35: =[1]PP!H35+[1]DA!H35 -> 0 | I35: =[1]PP!I35+[1]DA!I35 -> 0 | J35: =[1]PP!J35+[1]DA!J35 -> 0 | K35: =[1]PP!K35+[1]DA!K35 -> 0 | L35: =[1]PP!L35+[1]DA!L35 -> 0 | M35: =[1]PP!M35+[1]DA!M35 -> 0 | N35: =[1]PP!N35+[1]DA!N35 -> 0 | O35: =[1]PP!O35+[1]DA!O35 -> 0 | P35: =[1]PP!P35+[1]DA!P35 -> 0 | Q35: =[1]PP!Q35+[1]DA!Q35 -> 0
B36: KENYA REINSURANCE CORPORATION | C36: =[1]PP!C36+[1]DA!C36 -> 0 | D36: =[1]PP!D36+[1]DA!D36 -> 0 | E36: =[1]PP!E36+[1]DA!E36 -> 0 | F36: =[1]PP!F36+[1]DA!F36 -> 0 | G36: =[1]PP!G36+[1]DA!G36 -> 0 | H36: =[1]PP!H36+[1]DA!H36 -> 0 | I36: =[1]PP!I36+[1]DA!I36 -> 0 | J36: =[1]PP!J36+[1]DA!J36 -> 0 | K36: =[1]PP!K36+[1]DA!K36 -> 0 | L36: =[1]PP!L36+[1]DA!L36 -> 0 | M36: =[1]PP!M36+[1]DA!M36 -> 0 | N36: =[1]PP!N36+[1]DA!N36 -> 0 | O36: =[1]PP!O36+[1]DA!O36 -> 0 | P36: =[1]PP!P36+[1]DA!P36 -> 0 | Q36: =[1]PP!Q36+[1]DA!Q36 -> 0
B37: TOTAL | C37: =SUM(C34:C36) -> 0 | D37: =SUM(D34:D36) -> 0 | E37: 0 | F37: 0 | G37: 0 | H37: 0 | I37: 0 | J37: 0 | K37: 0 | L37: 0 | M37: 0 | N37: 0 | O37: 0 | P37: 0 | Q37: 0
B38: Amounts in Thousand Shillings

Sheet APPENDIX 13
B3: APPENDIX 13: SUMMARY OF GROUP CREDIT BUSINESS REVENUE ACCOUNTS FOR THE YEAR ENDED 31.12.2017
B4: Company | C4: Life Fund BF | D4: Gross Premium | E4: Net Premium | F4: Other (Fee) Income | G4: Total Benefits | H4: Claims | I4: Surrenders | J4: Bonuses Paid | K4: Annuities Paid | L4: Net Commisions | M4: Expense of Management | N4: Investment Income | O4: Investment Expenses | P4: Transfer To (From) P & L | Q4: Life Fund CF
B5: INSURERS
B6: APA LIFE ASSURANCE COMPANY | C6: =[1]GC!C6 -> 16977 | D6: =[1]GC!D6 -> 94466 | E6: =[1]GC!E6 -> 75776 | F6: =[1]GC!F6 -> 0 | G6: =[1]GC!G6 -> 27262 | H6: =[1]GC!H6 -> 27262 | I6: =[1]GC!I6 -> 0 | J6: =[1]GC!J6 -> 0 | K6: =[1]GC!K6 -> 0 | L6: =[1]GC!L6 -> -5140 | M6: =[1]GC!M6 -> 5086 | N6: =[1]GC!N6 -> 7439 | O6: =[1]GC!O6 -> 444 | P6: =[1]GC!P6 -> 0 | Q6: =[1]GC!Q6 -> 72541
B7: BARCLAYS LIFE | C7: =[1]GC!C7 -> -66286 | D7: =[1]GC!D7 -> 970312 | E7: =[1]GC!E7 -> 619228 | F7: =[1]GC!F7 -> 0 | G7: =[1]GC!G7 -> 202173 | H7: =[1]GC!H7 -> 456805 | I7: =[1]GC!I7 -> 0 | J7: =[1]GC!J7 -> 0 | K7: =[1]GC!K7 -> 0 | L7: =[1]GC!L7 -> 126554 | M7: =[1]GC!M7 -> 57377 | N7: =[1]GC!N7 -> 57702 | O7: =[1]GC!O7 -> 0 | P7: =[1]GC!P7 -> 0 | Q7: =[1]GC!Q7 -> -30092
B8: BRITAM LIFE | C8: =[1]GC!C8 -> 87994 | D8: =[1]GC!D8 -> 931633 | E8: =[1]GC!E8 -> 781694 | F8: =[1]GC!F8 -> 0 | G8: =[1]GC!G8 -> 398239 | H8: =[1]GC!H8 -> 398239 | I8: =[1]GC!I8 -> 0 | J8: =[1]GC!J8 -> 0 | K8: =[1]GC!K8 -> 0 | L8: =[1]GC!L8 -> 27388 | M8: =[1]GC!M8 -> 313580 | N8: =[1]GC!N8 -> 272977 | O8: =[1]GC!O8 -> 5829 | P8: =[1]GC!P8 -> 312692 | Q8: =[1]GC!Q8 -> 84937
B9: CANNON ASSURANCE COMPANY | C9: =[1]GC!C9 -> 0 | D9: =[1]GC!D9 -> -434 | E9: =[1]GC!E9 -> -434 | F9: =[1]GC!F9 -> 0 | G9: =[1]GC!G9 -> 400 | H9: =[1]GC!H9 -> 400 | I9: =[1]GC!I9 -> 0 | J9: =[1]GC!J9 -> 0 | K9: =[1]GC!K9 -> 0 | L9: =[1]GC!L9 -> -45 | M9: =[1]GC!M9 -> 6958 | N9: =[1]GC!N9 -> -364 | O9: =[1]GC!O9 -> 0 | P9: =[1]GC!P9 -> 0 | Q9: =[1]GC!Q9 -> -8111
B10: CAPEX LIFE ASSURANCE COMPANY | C10: =[1]GC!C10 -> 0 | D10: =[1]GC!D10 -> 0 | E10: =[1]GC!E10 -> 0 | F10: =[1]GC!F10 -> 0 | G10: =[1]GC!G10 -> 0 | H10: =[1]GC!H10 -> 0 | I10: =[1]GC!I10 -> 0 | J10: =[1]GC!J10 -> 0 | K10: =[1]GC!K10 -> 0 | L10: =[1]GC!L10 -> 0 | M10: =[1]GC!M10 -> 0 | N10: =[1]GC!N10 -> 0 | O10: =[1]GC!O10 -> 0 | P10: =[1]GC!P10 -> 0 | Q10: =[1]GC!Q10 -> 0
B11: CIC LIFE ASSURANCE COMPANY | C11: =[1]GC!C11 -> 525708 | D11: =[1]GC!D11 -> 548344 | E11: =[1]GC!E11 -> -110318 | F11: =[1]GC!F11 -> 0 | G11: =[1]GC!G11 -> 761791 | H11: =[1]GC!H11 -> 1024499 | I11: =[1]GC!I11 -> 0 | J11: =[1]GC!J11 -> 0 | K11: =[1]GC!K11 -> 0 | L11: =[1]GC!L11 -> 132562 | M11: =[1]GC!M11 -> 848328 | N11: =[1]GC!N11 -> 249770 | O11: =[1]GC!O11 -> 0 | P11: =[1]GC!P11 -> 115000 | Q11: =[1]GC!Q11 -> -1455228
B12: CORPORATE INSURANCE COMPANY | C12: =[1]GC!C12 -> 0 | D12: =[1]GC!D12 -> 0 | E12: =[1]GC!E12 -> 0 | F12: =[1]GC!F12 -> 0 | G12: =[1]GC!G12 -> 0 | H12: =[1]GC!H12 -> 0 | I12: =[1]GC!I12 -> 0 | J12: =[1]GC!J12 -> 0 | K12: =[1]GC!K12 -> 0 | L12: =[1]GC!L12 -> 0 | M12: =[1]GC!M12 -> 0 | N12: =[1]GC!N12 -> 0 | O12: =[1]GC!O12 -> 0 | P12: =[1]GC!P12 -> 0 | Q12: =[1]GC!Q12 -> 0
B13: FIRST ASSURANCE COMPANY | C13: =[1]GC!C13 -> 0 | D13: =[1]GC!D13 -> 8429 | E13: =[1]GC!E13 -> 914 | F13: =[1]GC!F13 -> 0 | G13: =[1]GC!G13 -> 400 | H13: =[1]GC!H13 -> 0 | I13: =[1]GC!I13 -> 0 | J13: =[1]GC!J13 -> 0 | K13: =[1]GC!K13 -> 0 | L13: =[1]GC!L13 -> -873 | M13: =[1]GC!M13 -> 1071 | N13: =[1]GC!N13 -> 1689 | O13: =[1]GC!O13 -> 0 | P13: =[1]GC!P13 -> 0 | Q13: =[1]GC!Q13 -> 2404
B14: GA LIFE ASSURANCE COMPANY | C14: =[1]GC!C14 -> 1009 | D14: =[1]GC!D14 -> 4314 | E14: =[1]GC!E14 -> 559 | F14: =[1]GC!F14 -> 0 | G14: =[1]GC!G14 -> 0 | H14: =[1]GC!H14 -> 0 | I14: =[1]GC!I14 -> 0 | J14: =[1]GC!J14 -> 0 | K14: =[1]GC!K14 -> 0 | L14: =[1]GC!L14 -> -778 | M14: =[1]GC!M14 -> 1688 | N14: =[1]GC!N14 -> 351 | O14: =[1]GC!O14 -> 0 | P14: =[1]GC!P14 -> 304 | Q14: =[1]GC!Q14 -> 704
B15: GEMINIA INSURANCE COMPANY | C15: =[1]GC!C15 -> 0 | D15: =[1]GC!D15 -> 0 | E15: =[1]GC!E15 -> 0 | F15: =[1]GC!F15 -> 0 | G15: =[1]GC!G15 -> 0 | H15: =[1]GC!H15 -> 0 | I15: =[1]GC!I15 -> 0 | J15: =[1]GC!J15 -> 0 | K15: =[1]GC!K15 -> 0 | L15: =[1]GC!L15 -> 0 | M15: =[1]GC!M15 -> 0 | N15: =[1]GC!N15 -> 0 | O15: =[1]GC!O15 -> 0 | P15: =[1]GC!P15 -> 0 | Q15: =[1]GC!Q15 -> 0
B16: ICEA LION LIFE ASSURANCE | C16: =[1]GC!C16 -> 187465 | D16: =[1]GC!D16 -> 236243 | E16: =[1]GC!E16 -> 133364 | F16: =[1]GC!F16 -> 0 | G16: =[1]GC!G16 -> 110270 | H16: =[1]GC!H16 -> 132446 | I16: =[1]GC!I16 -> 0 | J16: =[1]GC!J16 -> 0 | K16: =[1]GC!K16 -> 0 | L16: =[1]GC!L16 -> 20883 | M16: =[1]GC!M16 -> 68388 | N16: =[1]GC!N16 -> 27344 | O16: =[1]GC!O16 -> 0 | P16: =[1]GC!P16 -> 7919 | Q16: =[1]GC!Q16 -> 118538
B17: JUBILEE INSURANCE COMPANY | C17: =[1]GC!C17 -> 27808 | D17: =[1]GC!D17 -> 148052 | E17: =[1]GC!E17 -> 126460 | F17: =[1]GC!F17 -> 0 | G17: =[1]GC!G17 -> 2209 | H17: =[1]GC!H17 -> 0 | I17: =[1]GC!I17 -> 0 | J17: =[1]GC!J17 -> 0 | K17: =[1]GC!K17 -> 0 | L17: =[1]GC!L17 -> 24112 | M17: =[1]GC!M17 -> 0 | N17: =[1]GC!N17 -> 21322 | O17: =[1]GC!O17 -> 141 | P17: =[1]GC!P17 -> 0 | Q17: =[1]GC!Q17 -> 151336
B18: KENINDIA ASSURANCE COMPANY | C18: =[1]GC!C18 -> 0 | D18: =[1]GC!D18 -> 0 | E18: =[1]GC!E18 -> 0 | F18: =[1]GC!F18 -> 0 | G18: =[1]GC!G18 -> 0 | H18: =[1]GC!H18 -> 0 | I18: =[1]GC!I18 -> 0 | J18: =[1]GC!J18 -> 0 | K18: =[1]GC!K18 -> 0 | L18: =[1]GC!L18 -> 0 | M18: =[1]GC!M18 -> 0 | N18: =[1]GC!N18 -> 0 | O18: =[1]GC!O18 -> 0 | P18: =[1]GC!P18 -> 0 | Q18: =[1]GC!Q18 -> 0
B19: KENYA ORIENT LIFE ASSURANCE | C19: =[1]GC!C19 -> 320307 | D19: =[1]GC!D19 -> 175754 | E19: =[1]GC!E19 -> 146677 | F19: =[1]GC!F19 -> 0 | G19: =[1]GC!G19 -> 10814 | H19: =[1]GC!H19 -> 10814 | I19: =[1]GC!I19 -> 0 | J19: =[1]GC!J19 -> 0 | K19: =[1]GC!K19 -> 0 | L19: =[1]GC!L19 -> 8228 | M19: =[1]GC!M19 -> 98096 | N19: =[1]GC!N19 -> -8607 | O19: =[1]GC!O19 -> 0 | P19: =[1]GC!P19 -> 0 | Q19: =[1]GC!Q19 -> 341239
B20: LIBERTY LIFE ASSURANCE COMPANY | C20: =[1]GC!C20 -> 126647 | D20: =[1]GC!D20 -> 485531 | E20: =[1]GC!E20 -> 363471 | F20: =[1]GC!F20 -> 0 | G20: =[1]GC!G20 -> 120007 | H20: =[1]GC!H20 -> 119142 | I20: =[1]GC!I20 -> 0 | J20: =[1]GC!J20 -> 0 | K20: =[1]GC!K20 -> 0 | L20: =[1]GC!L20 -> 37712 | M20: =[1]GC!M20 -> 0 | N20: =[1]GC!N20 -> 0 | O20: =[1]GC!O20 -> 0 | P20: =[1]GC!P20 -> 0 | Q20: =[1]GC!Q20 -> 333264
B21: MADISON INSURANCE COMPANY | C21: =[1]GC!C21 -> 172375 | D21: =[1]GC!D21 -> 110272 | E21: =[1]GC!E21 -> 110272 | F21: =[1]GC!F21 -> 0 | G21: =[1]GC!G21 -> 12170 | H21: =[1]GC!H21 -> 12170 | I21: =[1]GC!I21 -> 0 | J21: =[1]GC!J21 -> 0 | K21: =[1]GC!K21 -> 0 | L21: =[1]GC!L21 -> 0 | M21: =[1]GC!M21 -> 49173 | N21: =[1]GC!N21 -> 30311 | O21: =[1]GC!O21 -> 0 | P21: =[1]GC!P21 -> 0 | Q21: =[1]GC!Q21 -> 251615
B22: METROPOLITAN CANNON INSURANCE | C22: =[1]GC!C22 -> 20576 | D22: =[1]GC!D22 -> 30987 | E22: =[1]GC!E22 -> 30987 | F22: =[1]GC!F22 -> 0 | G22: =[1]GC!G22 -> 0 | H22: =[1]GC!H22 -> 0 | I22: =[1]GC!I22 -> 0 | J22: =[1]GC!J22 -> 0 | K22: =[1]GC!K22 -> 0 | L22: =[1]GC!L22 -> 0 | M22: =[1]GC!M22 -> 2199 | N22: =[1]GC!N22 -> 780 | O22: =[1]GC!O22 -> 0 | P22: =[1]GC!P22 -> 0 | Q22: =[1]GC!Q22 -> 50143
B23: OLD MUTUAL LIFE ASSURANCE | C23: =[1]GC!C23 -> 0 | D23: =[1]GC!D23 -> 0 | E23: =[1]GC!E23 -> 0 | F23: =[1]GC!F23 -> 0 | G23: =[1]GC!G23 -> 0 | H23: =[1]GC!H23 -> 0 | I23: =[1]GC!I23 -> 0 | J23: =[1]GC!J23 -> 0 | K23: =[1]GC!K23 -> 0 | L23: =[1]GC!L23 -> 0 | M23: =[1]GC!M23 -> 0 | N23: =[1]GC!N23 -> 0 | O23: =[1]GC!O23 -> 0 | P23: =[1]GC!P23 -> 0 | Q23: =[1]GC!Q23 -> 0
B24: PIONEER ASSURANCE COMPANY | C24: =[1]GC!C24 -> 233957 | D24: =[1]GC!D24 -> 487061 | E24: =[1]GC!E24 -> 487061 | F24: =[1]GC!F24 -> 0 | G24: =[1]GC!G24 -> 0 | H24: =[1]GC!H24 -> 0 | I24: =[1]GC!I24 -> 0 | J24: =[1]GC!J24 -> 0 | K24: =[1]GC!K24 -> 0 | L24: =[1]GC!L24 -> 0 | M24: =[1]GC!M24 -> 13935 | N24: =[1]GC!N24 -> 0 | O24: =[1]GC!O24 -> 0 | P24: =[1]GC!P24 -> -56240 | Q24: =[1]GC!Q24 -> 763324
B25: PRUDENTIAL LIFE ASSURANCE | C25: =[1]GC!C25 -> 7563 | D25: =[1]GC!D25 -> 149603 | E25: =[1]GC!E25 -> 118739 | F25: =[1]GC!F25 -> 10545 | G25: =[1]GC!G25 -> 4356 | H25: =[1]GC!H25 -> 1270 | I25: =[1]GC!I25 -> 0 | J25: =[1]GC!J25 -> 0 | K25: =[1]GC!K25 -> 0 | L25: =[1]GC!L25 -> 44883 | M25: =[1]GC!M25 -> 39513 | N25: =[1]GC!N25 -> 44539 | O25: =[1]GC!O25 -> 2085 | P25: =[1]GC!P25 -> 0 | Q25: =[1]GC!Q25 -> 93635
B26: SAHAM ASSURANCE | C26: =[1]GC!C26 -> 396 | D26: =[1]GC!D26 -> 1562 | E26: =[1]GC!E26 -> 1185 | F26: =[1]GC!F26 -> 0 | G26: =[1]GC!G26 -> 0 | H26: =[1]GC!H26 -> 0 | I26: =[1]GC!I26 -> 0 | J26: =[1]GC!J26 -> 0 | K26: =[1]GC!K26 -> 0 | L26: =[1]GC!L26 -> -484 | M26: =[1]GC!M26 -> 1163 | N26: =[1]GC!N26 -> 0 | O26: =[1]GC!O26 -> 0 | P26: =[1]GC!P26 -> 0 | Q26: =[1]GC!Q26 -> 903
B27: SANLAM LIFE INSURANCE | C27: =[1]GC!C27 -> 1092750 | D27: =[1]GC!D27 -> 596289 | E27: =[1]GC!E27 -> 592420 | F27: =[1]GC!F27 -> 0 | G27: =[1]GC!G27 -> 155919 | H27: =[1]GC!H27 -> 213803 | I27: =[1]GC!I27 -> 0 | J27: =[1]GC!J27 -> 0 | K27: =[1]GC!K27 -> 0 | L27: =[1]GC!L27 -> -96169 | M27: =[1]GC!M27 -> 93313 | N27: =[1]GC!N27 -> 84754 | O27: =[1]GC!O27 -> 0 | P27: =[1]GC!P27 -> 0 | Q27: =[1]GC!Q27 -> 1558977
B28: TAKAFUL INSURANCE OF AFRICA | C28: =[1]GC!C28 -> 0 | D28: =[1]GC!D28 -> 23673 | E28: =[1]GC!E28 -> 15066 | F28: =[1]GC!F28 -> 0 | G28: =[1]GC!G28 -> 1488 | H28: =[1]GC!H28 -> 0 | I28: =[1]GC!I28 -> 0 | J28: =[1]GC!J28 -> 0 | K28: =[1]GC!K28 -> 0 | L28: =[1]GC!L28 -> 131 | M28: =[1]GC!M28 -> 9813 | N28: =[1]GC!N28 -> 5861 | O28: =[1]GC!O28 -> 0 | P28: =[1]GC!P28 -> 0 | Q28: =[1]GC!Q28 -> 10982
B29: THE KENYAN ALLIANCE INSURANCE | C29: =[1]GC!C29 -> 3892 | D29: =[1]GC!D29 -> 2468 | E29: =[1]GC!E29 -> 2468 | F29: =[1]GC!F29 -> 0 | G29: =[1]GC!G29 -> 0 | H29: =[1]GC!H29 -> 0 | I29: =[1]GC!I29 -> 0 | J29: =[1]GC!J29 -> 0 | K29: =[1]GC!K29 -> 0 | L29: =[1]GC!L29 -> 36 | M29: =[1]GC!M29 -> 263 | N29: =[1]GC!N29 -> 598 | O29: =[1]GC!O29 -> 0 | P29: =[1]GC!P29 -> 0 | Q29: =[1]GC!Q29 -> 6658
B30: THE MONARCH INSURANCE | C30: =[1]GC!C30 -> 0 | D30: =[1]GC!D30 -> 0 | E30: =[1]GC!E30 -> 0 | F30: =[1]GC!F30 -> 0 | G30: =[1]GC!G30 -> 0 | H30: =[1]GC!H30 -> 0 | I30: =[1]GC!I30 -> 0 | J30: =[1]GC!J30 -> 0 | K30: =[1]GC!K30 -> 0 | L30: =[1]GC!L30 -> 0 | M30: =[1]GC!M30 -> 0 | N30: =[1]GC!N30 -> 0 | O30: =[1]GC!O30 -> 0 | P30: =[1]GC!P30 -> 0 | Q30: =[1]GC!Q30 -> 0
B31: UAP LIFE ASSURANCE COMPANY | C31: =[1]GC!C31 -> 0 | D31: =[1]GC!D31 -> 203838 | E31: =[1]GC!E31 -> 203838 | F31: =[1]GC!F31 -> 0 | G31: =[1]GC!G31 -> 62069 | H31: =[1]GC!H31 -> 48851 | I31: =[1]GC!I31 -> 0 | J31: =[1]GC!J31 -> 0 | K31: =[1]GC!K31 -> 0 | L31: =[1]GC!L31 -> 0 | M31: =[1]GC!M31 -> 0 | N31: =[1]GC!N31 -> 0 | O31: =[1]GC!O31 -> 0 | P31: =[1]GC!P31 -> 0 | Q31: =[1]GC!Q31 -> 154987
B32: TOTAL | C32: =SUM(C6:C31) -> 2759138 | D32: 5208397 | E32: 3699427 | F32: 10545 | G32: 1869567 | H32: 2445701 | I32: 0 | J32: 0 | K32: 0 | L32: 319000 | M32: 1609944 | N32: 796466 | O32: 8499 | P32: 379675 | Q32: 2502756
B33: REINSURERS
B34: CONTINENTAL REINSURANCE | C34: =[1]GC!C34 -> 0 | D34: =[1]GC!D34 -> 0 | E34: =[1]GC!E34 -> 0 | F34: =[1]GC!F34 -> 0 | G34: =[1]GC!G34 -> 0 | H34: =[1]GC!H34 -> 0 | I34: =[1]GC!I34 -> 0 | J34: =[1]GC!J34 -> 0 | K34: =[1]GC!K34 -> 0 | L34: =[1]GC!L34 -> 0 | M34: =[1]GC!M34 -> 0 | N34: =[1]GC!N34 -> 0 | O34: =[1]GC!O34 -> 0 | P34: =[1]GC!P34 -> 0 | Q34: =[1]GC!Q34 -> 0
B35: EAST AFRICA REINSURANCE | C35: =[1]GC!C35 -> 0 | D35: =[1]GC!D35 -> 0 | E35: =[1]GC!E35 -> 0 | F35: =[1]GC!F35 -> 0 | G35: =[1]GC!G35 -> 0 | H35: =[1]GC!H35 -> 0 | I35: =[1]GC!I35 -> 0 | J35: =[1]GC!J35 -> 0 | K35: =[1]GC!K35 -> 0 | L35: =[1]GC!L35 -> 0 | M35: =[1]GC!M35 -> 0 | N35: =[1]GC!N35 -> 0 | O35: =[1]GC!O35 -> 0 | P35: =[1]GC!P35 -> 0 | Q35: =[1]GC!Q35 -> 0
B36: KENYA REINSURANCE CORPORATION | C36: =[1]GC!C36 -> 0 | D36: =[1]GC!D36 -> 0 | E36: =[1]GC!E36 -> 0 | F36: =[1]GC!F36 -> 0 | G36: =[1]GC!G36 -> 0 | H36: =[1]GC!H36 -> 0 | I36: =[1]GC!I36 -> 0 | J36: =[1]GC!J36 -> 0 | K36: =[1]GC!K36 -> 0 | L36: =[1]GC!L36 -> 0 | M36: =[1]GC!M36 -> 0 | N36: =[1]GC!N36 -> 0 | O36: =[1]GC!O36 -> 0 | P36: =[1]GC!P36 -> 0 | Q36: =[1]GC!Q36 -> 0
B37: TOTAL | C37: =SUM(C34:C36) -> 0 | D37: =SUM(D34:D36) -> 0 | E37: 0 | F37: 0 | G37: 0 | H37: 0 | I37: 0 | J37: 0 | K37: 0 | L37: 0 | M37: 0 | N37: 0 | O37: 0 | P37: 0 | Q37: 0
B38: Amounts in Thousand Shillings

Sheet APPENDIX 14
B3: APPENDIX 14: SUMMARY OF PERMANENT HEALTH BUSINESS REVENUE ACCOUNTS FOR THE YEAR ENDED 31.12.2017
B4: Company | C4: Life Fund BF | D4: Gross Premium | E4: Net Premium | F4: Other (Fee) Income | G4: Total Benefits | H4: Claims | I4: Surrenders | J4: Bonuses Paid | K4: Annuities Paid | L4: Net Commisions | M4: Expense of Management | N4: Investment Income | O4: Investment Expenses | P4: Transfer To (From) P & L | Q4: Life Fund CF
B5: INSURERS
B6: APA LIFE ASSURANCE COMPANY | C6: =[1]PH!C6 -> 0 | D6: =[1]PH!D6 -> 0 | E6: =[1]PH!E6 -> 0 | F6: =[1]PH!F6 -> 0 | G6: =[1]PH!G6 -> 0 | H6: =[1]PH!H6 -> 0 | I6: =[1]PH!I6 -> 0 | J6: =[1]PH!J6 -> 0 | K6: =[1]PH!K6 -> 0 | L6: =[1]PH!L6 -> 0 | M6: =[1]PH!M6 -> 0 | N6: =[1]PH!N6 -> 0 | O6: =[1]PH!O6 -> 0 | P6: =[1]PH!P6 -> 0 | Q6: =[1]PH!Q6 -> 0
B7: BARCLAYS LIFE | C7: =[1]PH!C7 -> 0 | D7: =[1]PH!D7 -> 0 | E7: =[1]PH!E7 -> 0 | F7: =[1]PH!F7 -> 0 | G7: =[1]PH!G7 -> 0 | H7: =[1]PH!H7 -> 0 | I7: =[1]PH!I7 -> 0 | J7: =[1]PH!J7 -> 0 | K7: =[1]PH!K7 -> 0 | L7: =[1]PH!L7 -> 0 | M7: =[1]PH!M7 -> 0 | N7: =[1]PH!N7 -> 0 | O7: =[1]PH!O7 -> 0 | P7: =[1]PH!P7 -> 0 | Q7: =[1]PH!Q7 -> 0
B8: BRITAM LIFE | C8: =[1]PH!C8 -> 0 | D8: =[1]PH!D8 -> 0 | E8: =[1]PH!E8 -> 0 | F8: =[1]PH!F8 -> 0 | G8: =[1]PH!G8 -> 0 | H8: =[1]PH!H8 -> 0 | I8: =[1]PH!I8 -> 0 | J8: =[1]PH!J8 -> 0 | K8: =[1]PH!K8 -> 0 | L8: =[1]PH!L8 -> 0 | M8: =[1]PH!M8 -> 0 | N8: =[1]PH!N8 -> 0 | O8: =[1]PH!O8 -> 0 | P8: =[1]PH!P8 -> 0 | Q8: =[1]PH!Q8 -> 0
B9: CANNON ASSURANCE COMPANY | C9: =[1]PH!C9 -> 0 | D9: =[1]PH!D9 -> 0 | E9: =[1]PH!E9 -> 0 | F9: =[1]PH!F9 -> 0 | G9: =[1]PH!G9 -> 0 | H9: =[1]PH!H9 -> 0 | I9: =[1]PH!I9 -> 0 | J9: =[1]PH!J9 -> 0 | K9: =[1]PH!K9 -> 0 | L9: =[1]PH!L9 -> 0 | M9: =[1]PH!M9 -> 0 | N9: =[1]PH!N9 -> 0 | O9: =[1]PH!O9 -> 0 | P9: =[1]PH!P9 -> 0 | Q9: =[1]PH!Q9 -> 0
B10: CAPEX LIFE ASSURANCE COMPANY | C10: =[1]PH!C10 -> 0 | D10: =[1]PH!D10 -> 0 | E10: =[1]PH!E10 -> 0 | F10: =[1]PH!F10 -> 0 | G10: =[1]PH!G10 -> 0 | H10: =[1]PH!H10 -> 0 | I10: =[1]PH!I10 -> 0 | J10: =[1]PH!J10 -> 0 | K10: =[1]PH!K10 -> 0 | L10: =[1]PH!L10 -> 0 | M10: =[1]PH!M10 -> 0 | N10: =[1]PH!N10 -> 0 | O10: =[1]PH!O10 -> 0 | P10: =[1]PH!P10 -> 0 | Q10: =[1]PH!Q10 -> 0
B11: CIC LIFE ASSURANCE COMPANY | C11: =[1]PH!C11 -> 0 | D11: =[1]PH!D11 -> 0 | E11: =[1]PH!E11 -> 0 | F11: =[1]PH!F11 -> 0 | G11: =[1]PH!G11 -> 0 | H11: =[1]PH!H11 -> 0 | I11: =[1]PH!I11 -> 0 | J11: =[1]PH!J11 -> 0 | K11: =[1]PH!K11 -> 0 | L11: =[1]PH!L11 -> 0 | M11: =[1]PH!M11 -> 0 | N11: =[1]PH!N11 -> 0 | O11: =[1]PH!O11 -> 0 | P11: =[1]PH!P11 -> 0 | Q11: =[1]PH!Q11 -> 0
B12: CORPORATE INSURANCE COMPANY | C12: =[1]PH!C12 -> 0 | D12: =[1]PH!D12 -> 0 | E12: =[1]PH!E12 -> 0 | F12: =[1]PH!F12 -> 0 | G12: =[1]PH!G12 -> 0 | H12: =[1]PH!H12 -> 0 | I12: =[1]PH!I12 -> 0 | J12: =[1]PH!J12 -> 0 | K12: =[1]PH!K12 -> 0 | L12: =[1]PH!L12 -> 0 | M12: =[1]PH!M12 -> 0 | N12: =[1]PH!N12 -> 0 | O12: =[1]PH!O12 -> 0 | P12: =[1]PH!P12 -> 0 | Q12: =[1]PH!Q12 -> 0
B13: FIRST ASSURANCE COMPANY | C13: =[1]PH!C13 -> 0 | D13: =[1]PH!D13 -> 0 | E13: =[1]PH!E13 -> 0 | F13: =[1]PH!F13 -> 0 | G13: =[1]PH!G13 -> 0 | H13: =[1]PH!H13 -> 0 | I13: =[1]PH!I13 -> 0 | J13: =[1]PH!J13 -> 0 | K13: =[1]PH!K13 -> 0 | L13: =[1]PH!L13 -> 0 | M13: =[1]PH!M13 -> 0 | N13: =[1]PH!N13 -> 0 | O13: =[1]PH!O13 -> 0 | P13: =[1]PH!P13 -> 0 | Q13: =[1]PH!Q13 -> 0
B14: GA LIFE ASSURANCE COMPANY | C14: =[1]PH!C14 -> 0 | D14: =[1]PH!D14 -> 0 | E14: =[1]PH!E14 -> 0 | F14: =[1]PH!F14 -> 0 | G14: =[1]PH!G14 -> 0 | H14: =[1]PH!H14 -> 0 | I14: =[1]PH!I14 -> 0 | J14: =[1]PH!J14 -> 0 | K14: =[1]PH!K14 -> 0 | L14: =[1]PH!L14 -> 0 | M14: =[1]PH!M14 -> 0 | N14: =[1]PH!N14 -> 0 | O14: =[1]PH!O14 -> 0 | P14: =[1]PH!P14 -> 0 | Q14: =[1]PH!Q14 -> 0
B15: GEMINIA INSURANCE COMPANY | C15: =[1]PH!C15 -> 0 | D15: =[1]PH!D15 -> 0 | E15: =[1]PH!E15 -> 0 | F15: =[1]PH!F15 -> 0 | G15: =[1]PH!G15 -> 0 | H15: =[1]PH!H15 -> 0 | I15: =[1]PH!I15 -> 0 | J15: =[1]PH!J15 -> 0 | K15: =[1]PH!K15 -> 0 | L15: =[1]PH!L15 -> 0 | M15: =[1]PH!M15 -> 0 | N15: =[1]PH!N15 -> 0 | O15: =[1]PH!O15 -> 0 | P15: =[1]PH!P15 -> 0 | Q15: =[1]PH!Q15 -> 0
B16: ICEA LION LIFE ASSURANCE | C16: =[1]PH!C16 -> 21074 | D16: =[1]PH!D16 -> 0 | E16: =[1]PH!E16 -> 0 | F16: =[1]PH!F16 -> 0 | G16: =[1]PH!G16 -> 0 | H16: =[1]PH!H16 -> 0 | I16: =[1]PH!I16 -> 0 | J16: =[1]PH!J16 -> 0 | K16: =[1]PH!K16 -> 0 | L16: =[1]PH!L16 -> 0 | M16: =[1]PH!M16 -> 0 | N16: =[1]PH!N16 -> 2046 | O16: =[1]PH!O16 -> 0 | P16: =[1]PH!P16 -> 209 | Q16: =[1]PH!Q16 -> 22911
B17: JUBILEE INSURANCE COMPANY | C17: =[1]PH!C17 -> 0 | D17: =[1]PH!D17 -> 0 | E17: =[1]PH!E17 -> 0 | F17: =[1]PH!F17 -> 0 | G17: =[1]PH!G17 -> 0 | H17: =[1]PH!H17 -> 0 | I17: =[1]PH!I17 -> 0 | J17: =[1]PH!J17 -> 0 | K17: =[1]PH!K17 -> 0 | L17: =[1]PH!L17 -> 0 | M17: =[1]PH!M17 -> 0 | N17: =[1]PH!N17 -> 0 | O17: =[1]PH!O17 -> 0 | P17: =[1]PH!P17 -> 0 | Q17: =[1]PH!Q17 -> 0
B18: KENINDIA ASSURANCE COMPANY | C18: =[1]PH!C18 -> 0 | D18: =[1]PH!D18 -> 0 | E18: =[1]PH!E18 -> 0 | F18: =[1]PH!F18 -> 0 | G18: =[1]PH!G18 -> 0 | H18: =[1]PH!H18 -> 0 | I18: =[1]PH!I18 -> 0 | J18: =[1]PH!J18 -> 0 | K18: =[1]PH!K18 -> 0 | L18: =[1]PH!L18 -> 0 | M18: =[1]PH!M18 -> 0 | N18: =[1]PH!N18 -> 0 | O18: =[1]PH!O18 -> 0 | P18: =[1]PH!P18 -> 0 | Q18: =[1]PH!Q18 -> 0
B19: KENYA ORIENT LIFE ASSURANCE | C19: =[1]PH!C19 -> 0 | D19: =[1]PH!D19 -> 0 | E19: =[1]PH!E19 -> 0 | F19: =[1]PH!F19 -> 0 | G19: =[1]PH!G19 -> 0 | H19: =[1]PH!H19 -> 0 | I19: =[1]PH!I19 -> 0 | J19: =[1]PH!J19 -> 0 | K19: =[1]PH!K19 -> 0 | L19: =[1]PH!L19 -> 0 | M19: =[1]PH!M19 -> 0 | N19: =[1]PH!N19 -> 0 | O19: =[1]PH!O19 -> 0 | P19: =[1]PH!P19 -> 0 | Q19: =[1]PH!Q19 -> 0
B20: LIBERTY LIFE ASSURANCE COMPANY | C20: =[1]PH!C20 -> 0 | D20: =[1]PH!D20 -> 0 | E20: =[1]PH!E20 -> 0 | F20: =[1]PH!F20 -> 0 | G20: =[1]PH!G20 -> 0 | H20: =[1]PH!H20 -> 0 | I20: =[1]PH!I20 -> 0 | J20: =[1]PH!J20 -> 0 | K20: =[1]PH!K20 -> 0 | L20: =[1]PH!L20 -> 0 | M20: =[1]PH!M20 -> 0 | N20: =[1]PH!N20 -> 0 | O20: =[1]PH!O20 -> 0 | P20: =[1]PH!P20 -> 0 | Q20: =[1]PH!Q20 -> 0
B21: MADISON INSURANCE COMPANY | C21: =[1]PH!C21 -> 0 | D21: =[1]PH!D21 -> 0 | E21: =[1]PH!E21 -> 0 | F21: =[1]PH!F21 -> 0 | G21: =[1]PH!G21 -> 0 | H21: =[1]PH!H21 -> 0 | I21: =[1]PH!I21 -> 0 | J21: =[1]PH!J21 -> 0 | K21: =[1]PH!K21 -> 0 | L21: =[1]PH!L21 -> 0 | M21: =[1]PH!M21 -> 0 | N21: =[1]PH!N21 -> 0 | O21: =[1]PH!O21 -> 0 | P21: =[1]PH!P21 -> 0 | Q21: =[1]PH!Q21 -> 0
B22: METROPOLITAN CANNON INSURANCE | C22: =[1]PH!C22 -> 0 | D22: =[1]PH!D22 -> 0 | E22: =[1]PH!E22 -> 0 | F22: =[1]PH!F22 -> 0 | G22: =[1]PH!G22 -> 0 | H22: =[1]PH!H22 -> 0 | I22: =[1]PH!I22 -> 0 | J22: =[1]PH!J22 -> 0 | K22: =[1]PH!K22 -> 0 | L22: =[1]PH!L22 -> 0 | M22: =[1]PH!M22 -> 0 | N22: =[1]PH!N22 -> 0 | O22: =[1]PH!O22 -> 0 | P22: =[1]PH!P22 -> 0 | Q22: =[1]PH!Q22 -> 0
B23: OLD MUTUAL LIFE ASSURANCE | C23: =[1]PH!C23 -> 0 | D23: =[1]PH!D23 -> 0 | E23: =[1]PH!E23 -> 0 | F23: =[1]PH!F23 -> 0 | G23: =[1]PH!G23 -> 0 | H23: =[1]PH!H23 -> 0 | I23: =[1]PH!I23 -> 0 | J23: =[1]PH!J23 -> 0 | K23: =[1]PH!K23 -> 0 | L23: =[1]PH!L23 -> 0 | M23: =[1]PH!M23 -> 0 | N23: =[1]PH!N23 -> 0 | O23: =[1]PH!O23 -> 0 | P23: =[1]PH!P23 -> 0 | Q23: =[1]PH!Q23 -> 0
B24: PIONEER ASSURANCE COMPANY | C24: =[1]PH!C24 -> 0 | D24: =[1]PH!D24 -> 0 | E24: =[1]PH!E24 -> 0 | F24: =[1]PH!F24 -> 0 | G24: =[1]PH!G24 -> 0 | H24: =[1]PH!H24 -> 0 | I24: =[1]PH!I24 -> 0 | J24: =[1]PH!J24 -> 0 | K24: =[1]PH!K24 -> 0 | L24: =[1]PH!L24 -> 0 | M24: =[1]PH!M24 -> 0 | N24: =[1]PH!N24 -> 0 | O24: =[1]PH!O24 -> 0 | P24: =[1]PH!P24 -> 0 | Q24: =[1]PH!Q24 -> 0
B25: PRUDENTIAL LIFE ASSURANCE | C25: =[1]PH!C25 -> 0 | D25: =[1]PH!D25 -> 0 | E25: =[1]PH!E25 -> 0 | F25: =[1]PH!F25 -> 0 | G25: =[1]PH!G25 -> 0 | H25: =[1]PH!H25 -> 0 | I25: =[1]PH!I25 -> 0 | J25: =[1]PH!J25 -> 0 | K25: =[1]PH!K25 -> 0 | L25: =[1]PH!L25 -> 0 | M25: =[1]PH!M25 -> 0 | N25: =[1]PH!N25 -> 0 | O25: =[1]PH!O25 -> 0 | P25: =[1]PH!P25 -> 0 | Q25: =[1]PH!Q25 -> 0
B26: SAHAM ASSURANCE | C26: =[1]PH!C26 -> 0 | D26: =[1]PH!D26 -> 0 | E26: =[1]PH!E26 -> 0 | F26: =[1]PH!F26 -> 0 | G26: =[1]PH!G26 -> 0 | H26: =[1]PH!H26 -> 0 | I26: =[1]PH!I26 -> 0 | J26: =[1]PH!J26 -> 0 | K26: =[1]PH!K26 -> 0 | L26: =[1]PH!L26 -> 0 | M26: =[1]PH!M26 -> 0 | N26: =[1]PH!N26 -> 0 | O26: =[1]PH!O26 -> 0 | P26: =[1]PH!P26 -> 0 | Q26: =[1]PH!Q26 -> 0
B27: SANLAM LIFE INSURANCE | C27: =[1]PH!C27 -> 0 | D27: =[1]PH!D27 -> 0 | E27: =[1]PH!E27 -> 0 | F27: =[1]PH!F27 -> 0 | G27: =[1]PH!G27 -> 0 | H27: =[1]PH!H27 -> 0 | I27: =[1]PH!I27 -> 0 | J27: =[1]PH!J27 -> 0 | K27: =[1]PH!K27 -> 0 | L27: =[1]PH!L27 -> 0 | M27: =[1]PH!M27 -> 0 | N27: =[1]PH!N27 -> 0 | O27: =[1]PH!O27 -> 0 | P27: =[1]PH!P27 -> 0 | Q27: =[1]PH!Q27 -> 0
B28: TAKAFUL INSURANCE OF AFRICA | C28: =[1]PH!C28 -> 0 | D28: =[1]PH!D28 -> 0 | E28: =[1]PH!E28 -> 0 | F28: =[1]PH!F28 -> 0 | G28: =[1]PH!G28 -> 0 | H28: =[1]PH!H28 -> 0 | I28: =[1]PH!I28 -> 0 | J28: =[1]PH!J28 -> 0 | K28: =[1]PH!K28 -> 0 | L28: =[1]PH!L28 -> 0 | M28: =[1]PH!M28 -> 0 | N28: =[1]PH!N28 -> 0 | O28: =[1]PH!O28 -> 0 | P28: =[1]PH!P28 -> 0 | Q28: =[1]PH!Q28 -> 0
B29: THE KENYAN ALLIANCE INSURANCE | C29: =[1]PH!C29 -> 0 | D29: =[1]PH!D29 -> 0 | E29: =[1]PH!E29 -> 0 | F29: =[1]PH!F29 -> 0 | G29: =[1]PH!G29 -> 0 | H29: =[1]PH!H29 -> 0 | I29: =[1]PH!I29 -> 0 | J29: =[1]PH!J29 -> 0 | K29: =[1]PH!K29 -> 0 | L29: =[1]PH!L29 -> 0 | M29: =[1]PH!M29 -> 0 | N29: =[1]PH!N29 -> 0 | O29: =[1]PH!O29 -> 0 | P29: =[1]PH!P29 -> 0 | Q29: =[1]PH!Q29 -> 0
B30: THE MONARCH INSURANCE | C30: =[1]PH!C30 -> 0 | D30: =[1]PH!D30 -> 0 | E30: =[1]PH!E30 -> 0 | F30: =[1]PH!F30 -> 0 | G30: =[1]PH!G30 -> 0 | H30: =[1]PH!H30 -> 0 | I30: =[1]PH!I30 -> 0 | J30: =[1]PH!J30 -> 0 | K30: =[1]PH!K30 -> 0 | L30: =[1]PH!L30 -> 0 | M30: =[1]PH!M30 -> 0 | N30: =[1]PH!N30 -> 0 | O30: =[1]PH!O30 -> 0 | P30: =[1]PH!P30 -> 0 | Q30: =[1]PH!Q30 -> 0
B31: UAP LIFE ASSURANCE COMPANY | C31: =[1]PH!C31 -> 0 | D31: =[1]PH!D31 -> 0 | E31: =[1]PH!E31 -> 0 | F31: =[1]PH!F31 -> 0 | G31: =[1]PH!G31 -> 0 | H31: =[1]PH!H31 -> 0 | I31: =[1]PH!I31 -> 0 | J31: =[1]PH!J31 -> 0 | K31: =[1]PH!K31 -> 0 | L31: =[1]PH!L31 -> 0 | M31: =[1]PH!M31 -> 0 | N31: =[1]PH!N31 -> 0 | O31: =[1]PH!O31 -> 0 | P31: =[1]PH!P31 -> 0 | Q31: =[1]PH!Q31 -> 0
B32: TOTAL | C32: =SUM(C6:C31) -> 21074 | D32: 0 | E32: 0 | F32: 0 | G32: 0 | H32: 0 | I32: 0 | J32: 0 | K32: 0 | L32: 0 | M32: 0 | N32: 2046 | O32: 0 | P32: 209 | Q32: 22911
B33: REINSURERS
B34: CONTINENTAL REINSURANCE | C34: =[1]PH!C34 -> 0 | D34: =[1]PH!D34 -> 0 | E34: =[1]PH!E34 -> 0 | F34: =[1]PH!F34 -> 0 | G34: =[1]PH!G34 -> 0 | H34: =[1]PH!H34 -> 0 | I34: =[1]PH!I34 -> 0 | J34: =[1]PH!J34 -> 0 | K34: =[1]PH!K34 -> 0 | L34: =[1]PH!L34 -> 0 | M34: =[1]PH!M34 -> 0 | N34: =[1]PH!N34 -> 0 | O34: =[1]PH!O34 -> 0 | P34: =[1]PH!P34 -> 0 | Q34: =[1]PH!Q34 -> 0
B35: EAST AFRICA REINSURANCE | C35: =[1]PH!C35 -> 0 | D35: =[1]PH!D35 -> 0 | E35: =[1]PH!E35 -> 0 | F35: =[1]PH!F35 -> 0 | G35: =[1]PH!G35 -> 0 | H35: =[1]PH!H35 -> 0 | I35: =[1]PH!I35 -> 0 | J35: =[1]PH!J35 -> 0 | K35: =[1]PH!K35 -> 0 | L35: =[1]PH!L35 -> 0 | M35: =[1]PH!M35 -> 0 | N35: =[1]PH!N35 -> 0 | O35: =[1]PH!O35 -> 0 | P35: =[1]PH!P35 -> 0 | Q35: =[1]PH!Q35 -> 0
B36: KENYA REINSURANCE CORPORATION | C36: =[1]PH!C36 -> 0 | D36: =[1]PH!D36 -> 0 | E36: =[1]PH!E36 -> 0 | F36: =[1]PH!F36 -> 0 | G36: =[1]PH!G36 -> 0 | H36: =[1]PH!H36 -> 0 | I36: =[1]PH!I36 -> 0 | J36: =[1]PH!J36 -> 0 | K36: =[1]PH!K36 -> 0 | L36: =[1]PH!L36 -> 0 | M36: =[1]PH!M36 -> 0 | N36: =[1]PH!N36 -> 0 | O36: =[1]PH!O36 -> 0 | P36: =[1]PH!P36 -> 0 | Q36: =[1]PH!Q36 -> 0
B37: TOTAL | C37: =SUM(C34:C36) -> 0 | D37: =SUM(D34:D36) -> 0 | E37: 0 | F37: 0 | G37: 0 | H37: 0 | I37: 0 | J37: 0 | K37: 0 | L37: 0 | M37: 0 | N37: 0 | O37: 0 | P37: 0 | Q37: 0
B38: Amounts in Thousand Shillings

Sheet APPENDIX 15
B3: APPENDIX 15: SUMMARY OF INVESTMENTS BUSINESS REVENUE ACCOUNTS FOR THE YEAR ENDED 31.12.2017
B4: Company | C4: Life Fund BF | D4: Gross Premium | E4: Net Premium | F4: Other (Fee) Income | G4: Total Benefits | H4: Claims | I4: Surrenders | J4: Bonuses Paid | K4: Annuities Paid | L4: Net Commisions | M4: Expense of Management | N4: Investment Income | O4: Investment Expenses | P4: Transfer To (From) P & L | Q4: Life Fund CF
B5: INSURERS
B6: APA LIFE ASSURANCE COMPANY | C6: =[1]LINKED!C6+'[1]NON-LINKED'!C6 -> 407 | D6: =[1]LINKED!D6+'[1]NON-LINKED'!D6 -> 370 | E6: =[1]LINKED!E6+'[1]NON-LINKED'!E6 -> 370 | F6: =[1]LINKED!F6+'[1]NON-LINKED'!F6 -> 0 | G6: =[1]LINKED!G6+'[1]NON-LINKED'!G6 -> 0 | H6: =[1]LINKED!H6+'[1]NON-LINKED'!H6 -> 0 | I6: =[1]LINKED!I6+'[1]NON-LINKED'!I6 -> 0 | J6: =[1]LINKED!J6+'[1]NON-LINKED'!J6 -> 0 | K6: =[1]LINKED!K6+'[1]NON-LINKED'!K6 -> 0 | L6: =[1]LINKED!L6+'[1]NON-LINKED'!L6 -> 0 | M6: =[1]LINKED!M6+'[1]NON-LINKED'!M6 -> 0 | N6: =[1]LINKED!N6+'[1]NON-LINKED'!N6 -> 0 | O6: =[1]LINKED!O6+'[1]NON-LINKED'!O6 -> 0 | P6: =[1]LINKED!P6+'[1]NON-LINKED'!P6 -> 0 | Q6: =[1]LINKED!Q6+'[1]NON-LINKED'!Q6 -> 777
B7: BARCLAYS LIFE | C7: =[1]LINKED!C7+'[1]NON-LINKED'!C7 -> 0 | D7: =[1]LINKED!D7+'[1]NON-LINKED'!D7 -> 0 | E7: =[1]LINKED!E7+'[1]NON-LINKED'!E7 -> 0 | F7: =[1]LINKED!F7+'[1]NON-LINKED'!F7 -> 0 | G7: =[1]LINKED!G7+'[1]NON-LINKED'!G7 -> 0 | H7: =[1]LINKED!H7+'[1]NON-LINKED'!H7 -> 0 | I7: =[1]LINKED!I7+'[1]NON-LINKED'!I7 -> 0 | J7: =[1]LINKED!J7+'[1]NON-LINKED'!J7 -> 0 | K7: =[1]LINKED!K7+'[1]NON-LINKED'!K7 -> 0 | L7: =[1]LINKED!L7+'[1]NON-LINKED'!L7 -> 0 | M7: =[1]LINKED!M7+'[1]NON-LINKED'!M7 -> 0 | N7: =[1]LINKED!N7+'[1]NON-LINKED'!N7 -> 0 | O7: =[1]LINKED!O7+'[1]NON-LINKED'!O7 -> 0 | P7: =[1]LINKED!P7+'[1]NON-LINKED'!P7 -> 0 | Q7: =[1]LINKED!Q7+'[1]NON-LINKED'!Q7 -> 0
B8: BRITAM LIFE | C8: =[1]LINKED!C8+'[1]NON-LINKED'!C8 -> 4639874 | D8: =[1]LINKED!D8+'[1]NON-LINKED'!D8 -> 573866 | E8: =[1]LINKED!E8+'[1]NON-LINKED'!E8 -> 573866 | F8: =[1]LINKED!F8+'[1]NON-LINKED'!F8 -> 0 | G8: =[1]LINKED!G8+'[1]NON-LINKED'!G8 -> 1561867 | H8: =[1]LINKED!H8+'[1]NON-LINKED'!H8 -> 1561867 | I8: =[1]LINKED!I8+'[1]NON-LINKED'!I8 -> 0 | J8: =[1]LINKED!J8+'[1]NON-LINKED'!J8 -> 0 | K8: =[1]LINKED!K8+'[1]NON-LINKED'!K8 -> 0 | L8: =[1]LINKED!L8+'[1]NON-LINKED'!L8 -> 0 | M8: =[1]LINKED!M8+'[1]NON-LINKED'!M8 -> 0 | N8: =[1]LINKED!N8+'[1]NON-LINKED'!N8 -> 0 | O8: =[1]LINKED!O8+'[1]NON-LINKED'!O8 -> 0 | P8: =[1]LINKED!P8+'[1]NON-LINKED'!P8 -> 0 | Q8: =[1]LINKED!Q8+'[1]NON-LINKED'!Q8 -> 3651874
B9: CANNON ASSURANCE COMPANY | C9: =[1]LINKED!C9+'[1]NON-LINKED'!C9 -> 0 | D9: =[1]LINKED!D9+'[1]NON-LINKED'!D9 -> 0 | E9: =[1]LINKED!E9+'[1]NON-LINKED'!E9 -> 0 | F9: =[1]LINKED!F9+'[1]NON-LINKED'!F9 -> 0 | G9: =[1]LINKED!G9+'[1]NON-LINKED'!G9 -> 0 | H9: =[1]LINKED!H9+'[1]NON-LINKED'!H9 -> 0 | I9: =[1]LINKED!I9+'[1]NON-LINKED'!I9 -> 0 | J9: =[1]LINKED!J9+'[1]NON-LINKED'!J9 -> 0 | K9: =[1]LINKED!K9+'[1]NON-LINKED'!K9 -> 0 | L9: =[1]LINKED!L9+'[1]NON-LINKED'!L9 -> 0 | M9: =[1]LINKED!M9+'[1]NON-LINKED'!M9 -> 0 | N9: =[1]LINKED!N9+'[1]NON-LINKED'!N9 -> 0 | O9: =[1]LINKED!O9+'[1]NON-LINKED'!O9 -> 0 | P9: =[1]LINKED!P9+'[1]NON-LINKED'!P9 -> 0 | Q9: =[1]LINKED!Q9+'[1]NON-LINKED'!Q9 -> 0
B10: CAPEX LIFE ASSURANCE COMPANY | C10: =[1]LINKED!C10+'[1]NON-LINKED'!C10 -> 0 | D10: =[1]LINKED!D10+'[1]NON-LINKED'!D10 -> 0 | E10: =[1]LINKED!E10+'[1]NON-LINKED'!E10 -> 0 | F10: =[1]LINKED!F10+'[1]NON-LINKED'!F10 -> 0 | G10: =[1]LINKED!G10+'[1]NON-LINKED'!G10 -> 0 | H10: =[1]LINKED!H10+'[1]NON-LINKED'!H10 -> 0 | I10: =[1]LINKED!I10+'[1]NON-LINKED'!I10 -> 0 | J10: =[1]LINKED!J10+'[1]NON-LINKED'!J10 -> 0 | K10: =[1]LINKED!K10+'[1]NON-LINKED'!K10 -> 0 | L10: =[1]LINKED!L10+'[1]NON-LINKED'!L10 -> 0 | M10: =[1]LINKED!M10+'[1]NON-LINKED'!M10 -> 0 | N10: =[1]LINKED!N10+'[1]NON-LINKED'!N10 -> 0 | O10: =[1]LINKED!O10+'[1]NON-LINKED'!O10 -> 0 | P10: =[1]LINKED!P10+'[1]NON-LINKED'!P10 -> 0 | Q10: =[1]LINKED!Q10+'[1]NON-LINKED'!Q10 -> 0
B11: CIC LIFE ASSURANCE COMPANY | C11: =[1]LINKED!C11+'[1]NON-LINKED'!C11 -> 0 | D11: =[1]LINKED!D11+'[1]NON-LINKED'!D11 -> 0 | E11: =[1]LINKED!E11+'[1]NON-LINKED'!E11 -> 0 | F11: =[1]LINKED!F11+'[1]NON-LINKED'!F11 -> 0 | G11: =[1]LINKED!G11+'[1]NON-LINKED'!G11 -> 0 | H11: =[1]LINKED!H11+'[1]NON-LINKED'!H11 -> 0 | I11: =[1]LINKED!I11+'[1]NON-LINKED'!I11 -> 0 | J11: =[1]LINKED!J11+'[1]NON-LINKED'!J11 -> 0 | K11: =[1]LINKED!K11+'[1]NON-LINKED'!K11 -> 0 | L11: =[1]LINKED!L11+'[1]NON-LINKED'!L11 -> 0 | M11: =[1]LINKED!M11+'[1]NON-LINKED'!M11 -> 0 | N11: =[1]LINKED!N11+'[1]NON-LINKED'!N11 -> 0 | O11: =[1]LINKED!O11+'[1]NON-LINKED'!O11 -> 0 | P11: =[1]LINKED!P11+'[1]NON-LINKED'!P11 -> 0 | Q11: =[1]LINKED!Q11+'[1]NON-LINKED'!Q11 -> 0
B12: CORPORATE INSURANCE COMPANY | C12: =[1]LINKED!C12+'[1]NON-LINKED'!C12 -> 0 | D12: =[1]LINKED!D12+'[1]NON-LINKED'!D12 -> 0 | E12: =[1]LINKED!E12+'[1]NON-LINKED'!E12 -> 0 | F12: =[1]LINKED!F12+'[1]NON-LINKED'!F12 -> 0 | G12: =[1]LINKED!G12+'[1]NON-LINKED'!G12 -> 0 | H12: =[1]LINKED!H12+'[1]NON-LINKED'!H12 -> 0 | I12: =[1]LINKED!I12+'[1]NON-LINKED'!I12 -> 0 | J12: =[1]LINKED!J12+'[1]NON-LINKED'!J12 -> 0 | K12: =[1]LINKED!K12+'[1]NON-LINKED'!K12 -> 0 | L12: =[1]LINKED!L12+'[1]NON-LINKED'!L12 -> 0 | M12: =[1]LINKED!M12+'[1]NON-LINKED'!M12 -> 0 | N12: =[1]LINKED!N12+'[1]NON-LINKED'!N12 -> 0 | O12: =[1]LINKED!O12+'[1]NON-LINKED'!O12 -> 0 | P12: =[1]LINKED!P12+'[1]NON-LINKED'!P12 -> 0 | Q12: =[1]LINKED!Q12+'[1]NON-LINKED'!Q12 -> 0
B13: FIRST ASSURANCE COMPANY | C13: =[1]LINKED!C13+'[1]NON-LINKED'!C13 -> 0 | D13: =[1]LINKED!D13+'[1]NON-LINKED'!D13 -> 0 | E13: =[1]LINKED!E13+'[1]NON-LINKED'!E13 -> 0 | F13: =[1]LINKED!F13+'[1]NON-LINKED'!F13 -> 0 | G13: =[1]LINKED!G13+'[1]NON-LINKED'!G13 -> 0 | H13: =[1]LINKED!H13+'[1]NON-LINKED'!H13 -> 0 | I13: =[1]LINKED!I13+'[1]NON-LINKED'!I13 -> 0 | J13: =[1]LINKED!J13+'[1]NON-LINKED'!J13 -> 0 | K13: =[1]LINKED!K13+'[1]NON-LINKED'!K13 -> 0 | L13: =[1]LINKED!L13+'[1]NON-LINKED'!L13 -> 0 | M13: =[1]LINKED!M13+'[1]NON-LINKED'!M13 -> 0 | N13: =[1]LINKED!N13+'[1]NON-LINKED'!N13 -> 0 | O13: =[1]LINKED!O13+'[1]NON-LINKED'!O13 -> 0 | P13: =[1]LINKED!P13+'[1]NON-LINKED'!P13 -> 0 | Q13: =[1]LINKED!Q13+'[1]NON-LINKED'!Q13 -> 0
B14: GA LIFE ASSURANCE COMPANY | C14: =[1]LINKED!C14+'[1]NON-LINKED'!C14 -> 0 | D14: =[1]LINKED!D14+'[1]NON-LINKED'!D14 -> 0 | E14: =[1]LINKED!E14+'[1]NON-LINKED'!E14 -> 0 | F14: =[1]LINKED!F14+'[1]NON-LINKED'!F14 -> 0 | G14: =[1]LINKED!G14+'[1]NON-LINKED'!G14 -> 0 | H14: =[1]LINKED!H14+'[1]NON-LINKED'!H14 -> 0 | I14: =[1]LINKED!I14+'[1]NON-LINKED'!I14 -> 0 | J14: =[1]LINKED!J14+'[1]NON-LINKED'!J14 -> 0 | K14: =[1]LINKED!K14+'[1]NON-LINKED'!K14 -> 0 | L14: =[1]LINKED!L14+'[1]NON-LINKED'!L14 -> 0 | M14: =[1]LINKED!M14+'[1]NON-LINKED'!M14 -> 0 | N14: =[1]LINKED!N14+'[1]NON-LINKED'!N14 -> 0 | O14: =[1]LINKED!O14+'[1]NON-LINKED'!O14 -> 0 | P14: =[1]LINKED!P14+'[1]NON-LINKED'!P14 -> 0 | Q14: =[1]LINKED!Q14+'[1]NON-LINKED'!Q14 -> 0
B15: GEMINIA INSURANCE COMPANY | C15: =[1]LINKED!C15+'[1]NON-LINKED'!C15 -> 0 | D15: =[1]LINKED!D15+'[1]NON-LINKED'!D15 -> 0 | E15: =[1]LINKED!E15+'[1]NON-LINKED'!E15 -> 0 | F15: =[1]LINKED!F15+'[1]NON-LINKED'!F15 -> 0 | G15: =[1]LINKED!G15+'[1]NON-LINKED'!G15 -> 0 | H15: =[1]LINKED!H15+'[1]NON-LINKED'!H15 -> 0 | I15: =[1]LINKED!I15+'[1]NON-LINKED'!I15 -> 0 | J15: =[1]LINKED!J15+'[1]NON-LINKED'!J15 -> 0 | K15: =[1]LINKED!K15+'[1]NON-LINKED'!K15 -> 0 | L15: =[1]LINKED!L15+'[1]NON-LINKED'!L15 -> 0 | M15: =[1]LINKED!M15+'[1]NON-LINKED'!M15 -> 0 | N15: =[1]LINKED!N15+'[1]NON-LINKED'!N15 -> 0 | O15: =[1]LINKED!O15+'[1]NON-LINKED'!O15 -> 0 | P15: =[1]LINKED!P15+'[1]NON-LINKED'!P15 -> 0 | Q15: =[1]LINKED!Q15+'[1]NON-LINKED'!Q15 -> 0
B16: ICEA LION LIFE ASSURANCE | C16: =[1]LINKED!C16+'[1]NON-LINKED'!C16 -> 341435 | D16: =[1]LINKED!D16+'[1]NON-LINKED'!D16 -> 47151 | E16: =[1]LINKED!E16+'[1]NON-LINKED'!E16 -> 47151 | F16: =[1]LINKED!F16+'[1]NON-LINKED'!F16 -> 0 | G16: =[1]LINKED!G16+'[1]NON-LINKED'!G16 -> 50427 | H16: =[1]LINKED!H16+'[1]NON-LINKED'!H16 -> 9325 | I16: =[1]LINKED!I16+'[1]NON-LINKED'!I16 -> 41102 | J16: =[1]LINKED!J16+'[1]NON-LINKED'!J16 -> 0 | K16: =[1]LINKED!K16+'[1]NON-LINKED'!K16 -> 0 | L16: =[1]LINKED!L16+'[1]NON-LINKED'!L16 -> 0 | M16: =[1]LINKED!M16+'[1]NON-LINKED'!M16 -> 0 | N16: =[1]LINKED!N16+'[1]NON-LINKED'!N16 -> 183733 | O16: =[1]LINKED!O16+'[1]NON-LINKED'!O16 -> 0 | P16: =[1]LINKED!P16+'[1]NON-LINKED'!P16 -> 6403 | Q16: =[1]LINKED!Q16+'[1]NON-LINKED'!Q16 -> 515490
B17: JUBILEE INSURANCE COMPANY | C17: =[1]LINKED!C17+'[1]NON-LINKED'!C17 -> 0 | D17: =[1]LINKED!D17+'[1]NON-LINKED'!D17 -> 0 | E17: =[1]LINKED!E17+'[1]NON-LINKED'!E17 -> 0 | F17: =[1]LINKED!F17+'[1]NON-LINKED'!F17 -> 0 | G17: =[1]LINKED!G17+'[1]NON-LINKED'!G17 -> 0 | H17: =[1]LINKED!H17+'[1]NON-LINKED'!H17 -> 0 | I17: =[1]LINKED!I17+'[1]NON-LINKED'!I17 -> 0 | J17: =[1]LINKED!J17+'[1]NON-LINKED'!J17 -> 0 | K17: =[1]LINKED!K17+'[1]NON-LINKED'!K17 -> 0 | L17: =[1]LINKED!L17+'[1]NON-LINKED'!L17 -> 0 | M17: =[1]LINKED!M17+'[1]NON-LINKED'!M17 -> 0 | N17: =[1]LINKED!N17+'[1]NON-LINKED'!N17 -> 0 | O17: =[1]LINKED!O17+'[1]NON-LINKED'!O17 -> 0 | P17: =[1]LINKED!P17+'[1]NON-LINKED'!P17 -> 0 | Q17: =[1]LINKED!Q17+'[1]NON-LINKED'!Q17 -> 0
B18: KENINDIA ASSURANCE COMPANY | C18: =[1]LINKED!C18+'[1]NON-LINKED'!C18 -> 0 | D18: =[1]LINKED!D18+'[1]NON-LINKED'!D18 -> 0 | E18: =[1]LINKED!E18+'[1]NON-LINKED'!E18 -> 0 | F18: =[1]LINKED!F18+'[1]NON-LINKED'!F18 -> 0 | G18: =[1]LINKED!G18+'[1]NON-LINKED'!G18 -> 0 | H18: =[1]LINKED!H18+'[1]NON-LINKED'!H18 -> 0 | I18: =[1]LINKED!I18+'[1]NON-LINKED'!I18 -> 0 | J18: =[1]LINKED!J18+'[1]NON-LINKED'!J18 -> 0 | K18: =[1]LINKED!K18+'[1]NON-LINKED'!K18 -> 0 | L18: =[1]LINKED!L18+'[1]NON-LINKED'!L18 -> 0 | M18: =[1]LINKED!M18+'[1]NON-LINKED'!M18 -> 0 | N18: =[1]LINKED!N18+'[1]NON-LINKED'!N18 -> 0 | O18: =[1]LINKED!O18+'[1]NON-LINKED'!O18 -> 0 | P18: =[1]LINKED!P18+'[1]NON-LINKED'!P18 -> 0 | Q18: =[1]LINKED!Q18+'[1]NON-LINKED'!Q18 -> 0
B19: KENYA ORIENT LIFE ASSURANCE | C19: =[1]LINKED!C19+'[1]NON-LINKED'!C19 -> 0 | D19: =[1]LINKED!D19+'[1]NON-LINKED'!D19 -> 0 | E19: =[1]LINKED!E19+'[1]NON-LINKED'!E19 -> 0 | F19: =[1]LINKED!F19+'[1]NON-LINKED'!F19 -> 0 | G19: =[1]LINKED!G19+'[1]NON-LINKED'!G19 -> 0 | H19: =[1]LINKED!H19+'[1]NON-LINKED'!H19 -> 0 | I19: =[1]LINKED!I19+'[1]NON-LINKED'!I19 -> 0 | J19: =[1]LINKED!J19+'[1]NON-LINKED'!J19 -> 0 | K19: =[1]LINKED!K19+'[1]NON-LINKED'!K19 -> 0 | L19: =[1]LINKED!L19+'[1]NON-LINKED'!L19 -> 0 | M19: =[1]LINKED!M19+'[1]NON-LINKED'!M19 -> 0 | N19: =[1]LINKED!N19+'[1]NON-LINKED'!N19 -> 0 | O19: =[1]LINKED!O19+'[1]NON-LINKED'!O19 -> 0 | P19: =[1]LINKED!P19+'[1]NON-LINKED'!P19 -> 0 | Q19: =[1]LINKED!Q19+'[1]NON-LINKED'!Q19 -> 0
B20: LIBERTY LIFE ASSURANCE COMPANY | C20: =[1]LINKED!C20+'[1]NON-LINKED'!C20 -> 3593723 | D20: =[1]LINKED!D20+'[1]NON-LINKED'!D20 -> 1913434 | E20: =[1]LINKED!E20+'[1]NON-LINKED'!E20 -> 1913434 | F20: =[1]LINKED!F20+'[1]NON-LINKED'!F20 -> 0 | G20: =[1]LINKED!G20+'[1]NON-LINKED'!G20 -> 1371188 | H20: =[1]LINKED!H20+'[1]NON-LINKED'!H20 -> 1456289 | I20: =[1]LINKED!I20+'[1]NON-LINKED'!I20 -> 0 | J20: =[1]LINKED!J20+'[1]NON-LINKED'!J20 -> 0 | K20: =[1]LINKED!K20+'[1]NON-LINKED'!K20 -> 0 | L20: =[1]LINKED!L20+'[1]NON-LINKED'!L20 -> 139476 | M20: =[1]LINKED!M20+'[1]NON-LINKED'!M20 -> 471003 | N20: =[1]LINKED!N20+'[1]NON-LINKED'!N20 -> 985603 | O20: =[1]LINKED!O20+'[1]NON-LINKED'!O20 -> 0 | P20: =[1]LINKED!P20+'[1]NON-LINKED'!P20 -> 0 | Q20: =[1]LINKED!Q20+'[1]NON-LINKED'!Q20 -> 4425992
B21: MADISON INSURANCE COMPANY | C21: =[1]LINKED!C21+'[1]NON-LINKED'!C21 -> 261619 | D21: =[1]LINKED!D21+'[1]NON-LINKED'!D21 -> 18990 | E21: =[1]LINKED!E21+'[1]NON-LINKED'!E21 -> 18990 | F21: =[1]LINKED!F21+'[1]NON-LINKED'!F21 -> 0 | G21: =[1]LINKED!G21+'[1]NON-LINKED'!G21 -> 76732 | H21: =[1]LINKED!H21+'[1]NON-LINKED'!H21 -> 76732 | I21: =[1]LINKED!I21+'[1]NON-LINKED'!I21 -> 0 | J21: =[1]LINKED!J21+'[1]NON-LINKED'!J21 -> 0 | K21: =[1]LINKED!K21+'[1]NON-LINKED'!K21 -> 0 | L21: =[1]LINKED!L21+'[1]NON-LINKED'!L21 -> 7 | M21: =[1]LINKED!M21+'[1]NON-LINKED'!M21 -> 6468 | N21: =[1]LINKED!N21+'[1]NON-LINKED'!N21 -> 3987 | O21: =[1]LINKED!O21+'[1]NON-LINKED'!O21 -> 0 | P21: =[1]LINKED!P21+'[1]NON-LINKED'!P21 -> 0 | Q21: =[1]LINKED!Q21+'[1]NON-LINKED'!Q21 -> 201389
B22: METROPOLITAN CANNON INSURANCE | C22: =[1]LINKED!C22+'[1]NON-LINKED'!C22 -> 415210 | D22: =[1]LINKED!D22+'[1]NON-LINKED'!D22 -> 19099 | E22: =[1]LINKED!E22+'[1]NON-LINKED'!E22 -> 19099 | F22: =[1]LINKED!F22+'[1]NON-LINKED'!F22 -> 26214 | G22: =[1]LINKED!G22+'[1]NON-LINKED'!G22 -> 54122 | H22: =[1]LINKED!H22+'[1]NON-LINKED'!H22 -> 37780 | I22: =[1]LINKED!I22+'[1]NON-LINKED'!I22 -> 16342 | J22: =[1]LINKED!J22+'[1]NON-LINKED'!J22 -> 0 | K22: =[1]LINKED!K22+'[1]NON-LINKED'!K22 -> 0 | L22: =[1]LINKED!L22+'[1]NON-LINKED'!L22 -> 0 | M22: =[1]LINKED!M22+'[1]NON-LINKED'!M22 -> 83569 | N22: =[1]LINKED!N22+'[1]NON-LINKED'!N22 -> 29627 | O22: =[1]LINKED!O22+'[1]NON-LINKED'!O22 -> 0 | P22: =[1]LINKED!P22+'[1]NON-LINKED'!P22 -> 0 | Q22: =[1]LINKED!Q22+'[1]NON-LINKED'!Q22 -> 352458
B23: OLD MUTUAL LIFE ASSURANCE | C23: =[1]LINKED!C23+'[1]NON-LINKED'!C23 -> 5773025 | D23: =[1]LINKED!D23+'[1]NON-LINKED'!D23 -> 871696 | E23: =[1]LINKED!E23+'[1]NON-LINKED'!E23 -> 871696 | F23: =[1]LINKED!F23+'[1]NON-LINKED'!F23 -> 0 | G23: =[1]LINKED!G23+'[1]NON-LINKED'!G23 -> 1392070 | H23: =[1]LINKED!H23+'[1]NON-LINKED'!H23 -> 40493 | I23: =[1]LINKED!I23+'[1]NON-LINKED'!I23 -> 1299230 | J23: =[1]LINKED!J23+'[1]NON-LINKED'!J23 -> 0 | K23: =[1]LINKED!K23+'[1]NON-LINKED'!K23 -> 0 | L23: =[1]LINKED!L23+'[1]NON-LINKED'!L23 -> 0 | M23: =[1]LINKED!M23+'[1]NON-LINKED'!M23 -> 0 | N23: =[1]LINKED!N23+'[1]NON-LINKED'!N23 -> 966315 | O23: =[1]LINKED!O23+'[1]NON-LINKED'!O23 -> 32534 | P23: =[1]LINKED!P23+'[1]NON-LINKED'!P23 -> 269949 | Q23: =[1]LINKED!Q23+'[1]NON-LINKED'!Q23 -> 5968831
B24: PIONEER ASSURANCE COMPANY | C24: =[1]LINKED!C24+'[1]NON-LINKED'!C24 -> 77348 | D24: =[1]LINKED!D24+'[1]NON-LINKED'!D24 -> 109158 | E24: =[1]LINKED!E24+'[1]NON-LINKED'!E24 -> 109158 | F24: =[1]LINKED!F24+'[1]NON-LINKED'!F24 -> 0 | G24: =[1]LINKED!G24+'[1]NON-LINKED'!G24 -> 0 | H24: =[1]LINKED!H24+'[1]NON-LINKED'!H24 -> 77407 | I24: =[1]LINKED!I24+'[1]NON-LINKED'!I24 -> 0 | J24: =[1]LINKED!J24+'[1]NON-LINKED'!J24 -> 0 | K24: =[1]LINKED!K24+'[1]NON-LINKED'!K24 -> 0 | L24: =[1]LINKED!L24+'[1]NON-LINKED'!L24 -> 0 | M24: =[1]LINKED!M24+'[1]NON-LINKED'!M24 -> 0 | N24: =[1]LINKED!N24+'[1]NON-LINKED'!N24 -> 0 | O24: =[1]LINKED!O24+'[1]NON-LINKED'!O24 -> 0 | P24: =[1]LINKED!P24+'[1]NON-LINKED'!P24 -> 0 | Q24: =[1]LINKED!Q24+'[1]NON-LINKED'!Q24 -> 109099
B25: PRUDENTIAL LIFE ASSURANCE | C25: =[1]LINKED!C25+'[1]NON-LINKED'!C25 -> 0 | D25: =[1]LINKED!D25+'[1]NON-LINKED'!D25 -> 0 | E25: =[1]LINKED!E25+'[1]NON-LINKED'!E25 -> 0 | F25: =[1]LINKED!F25+'[1]NON-LINKED'!F25 -> 0 | G25: =[1]LINKED!G25+'[1]NON-LINKED'!G25 -> 0 | H25: =[1]LINKED!H25+'[1]NON-LINKED'!H25 -> 0 | I25: =[1]LINKED!I25+'[1]NON-LINKED'!I25 -> 0 | J25: =[1]LINKED!J25+'[1]NON-LINKED'!J25 -> 0 | K25: =[1]LINKED!K25+'[1]NON-LINKED'!K25 -> 0 | L25: =[1]LINKED!L25+'[1]NON-LINKED'!L25 -> 0 | M25: =[1]LINKED!M25+'[1]NON-LINKED'!M25 -> 0 | N25: =[1]LINKED!N25+'[1]NON-LINKED'!N25 -> 0 | O25: =[1]LINKED!O25+'[1]NON-LINKED'!O25 -> 0 | P25: =[1]LINKED!P25+'[1]NON-LINKED'!P25 -> 0 | Q25: =[1]LINKED!Q25+'[1]NON-LINKED'!Q25 -> 0
B26: SAHAM ASSURANCE | C26: =[1]LINKED!C26+'[1]NON-LINKED'!C26 -> 0 | D26: =[1]LINKED!D26+'[1]NON-LINKED'!D26 -> 0 | E26: =[1]LINKED!E26+'[1]NON-LINKED'!E26 -> 0 | F26: =[1]LINKED!F26+'[1]NON-LINKED'!F26 -> 0 | G26: =[1]LINKED!G26+'[1]NON-LINKED'!G26 -> 0 | H26: =[1]LINKED!H26+'[1]NON-LINKED'!H26 -> 0 | I26: =[1]LINKED!I26+'[1]NON-LINKED'!I26 -> 0 | J26: =[1]LINKED!J26+'[1]NON-LINKED'!J26 -> 0 | K26: =[1]LINKED!K26+'[1]NON-LINKED'!K26 -> 0 | L26: =[1]LINKED!L26+'[1]NON-LINKED'!L26 -> 0 | M26: =[1]LINKED!M26+'[1]NON-LINKED'!M26 -> 0 | N26: =[1]LINKED!N26+'[1]NON-LINKED'!N26 -> 0 | O26: =[1]LINKED!O26+'[1]NON-LINKED'!O26 -> 0 | P26: =[1]LINKED!P26+'[1]NON-LINKED'!P26 -> 0 | Q26: =[1]LINKED!Q26+'[1]NON-LINKED'!Q26 -> 0
B27: SANLAM LIFE INSURANCE | C27: =[1]LINKED!C27+'[1]NON-LINKED'!C27 -> 7796539 | D27: =[1]LINKED!D27+'[1]NON-LINKED'!D27 -> 910276 | E27: =[1]LINKED!E27+'[1]NON-LINKED'!E27 -> 910276 | F27: =[1]LINKED!F27+'[1]NON-LINKED'!F27 -> 0 | G27: =[1]LINKED!G27+'[1]NON-LINKED'!G27 -> 2198340 | H27: =[1]LINKED!H27+'[1]NON-LINKED'!H27 -> 2033033 | I27: =[1]LINKED!I27+'[1]NON-LINKED'!I27 -> 0 | J27: =[1]LINKED!J27+'[1]NON-LINKED'!J27 -> 0 | K27: =[1]LINKED!K27+'[1]NON-LINKED'!K27 -> 0 | L27: =[1]LINKED!L27+'[1]NON-LINKED'!L27 -> 54617 | M27: =[1]LINKED!M27+'[1]NON-LINKED'!M27 -> 331284 | N27: =[1]LINKED!N27+'[1]NON-LINKED'!N27 -> 158504 | O27: =[1]LINKED!O27+'[1]NON-LINKED'!O27 -> 0 | P27: =[1]LINKED!P27+'[1]NON-LINKED'!P27 -> 0 | Q27: =[1]LINKED!Q27+'[1]NON-LINKED'!Q27 -> 6446386
B28: TAKAFUL INSURANCE OF AFRICA | C28: =[1]LINKED!C28+'[1]NON-LINKED'!C28 -> 0 | D28: =[1]LINKED!D28+'[1]NON-LINKED'!D28 -> 0 | E28: =[1]LINKED!E28+'[1]NON-LINKED'!E28 -> 0 | F28: =[1]LINKED!F28+'[1]NON-LINKED'!F28 -> 0 | G28: =[1]LINKED!G28+'[1]NON-LINKED'!G28 -> 0 | H28: =[1]LINKED!H28+'[1]NON-LINKED'!H28 -> 0 | I28: =[1]LINKED!I28+'[1]NON-LINKED'!I28 -> 0 | J28: =[1]LINKED!J28+'[1]NON-LINKED'!J28 -> 0 | K28: =[1]LINKED!K28+'[1]NON-LINKED'!K28 -> 0 | L28: =[1]LINKED!L28+'[1]NON-LINKED'!L28 -> 0 | M28: =[1]LINKED!M28+'[1]NON-LINKED'!M28 -> 0 | N28: =[1]LINKED!N28+'[1]NON-LINKED'!N28 -> 0 | O28: =[1]LINKED!O28+'[1]NON-LINKED'!O28 -> 0 | P28: =[1]LINKED!P28+'[1]NON-LINKED'!P28 -> 0 | Q28: =[1]LINKED!Q28+'[1]NON-LINKED'!Q28 -> 0
B29: THE KENYAN ALLIANCE INSURANCE | C29: =[1]LINKED!C29+'[1]NON-LINKED'!C29 -> 2980 | D29: =[1]LINKED!D29+'[1]NON-LINKED'!D29 -> 2012 | E29: =[1]LINKED!E29+'[1]NON-LINKED'!E29 -> 2012 | F29: =[1]LINKED!F29+'[1]NON-LINKED'!F29 -> 0 | G29: =[1]LINKED!G29+'[1]NON-LINKED'!G29 -> 0 | H29: =[1]LINKED!H29+'[1]NON-LINKED'!H29 -> 0 | I29: =[1]LINKED!I29+'[1]NON-LINKED'!I29 -> 0 | J29: =[1]LINKED!J29+'[1]NON-LINKED'!J29 -> 0 | K29: =[1]LINKED!K29+'[1]NON-LINKED'!K29 -> 0 | L29: =[1]LINKED!L29+'[1]NON-LINKED'!L29 -> 39 | M29: =[1]LINKED!M29+'[1]NON-LINKED'!M29 -> 215 | N29: =[1]LINKED!N29+'[1]NON-LINKED'!N29 -> 488 | O29: =[1]LINKED!O29+'[1]NON-LINKED'!O29 -> 0 | P29: =[1]LINKED!P29+'[1]NON-LINKED'!P29 -> 0 | Q29: =[1]LINKED!Q29+'[1]NON-LINKED'!Q29 -> 5226
B30: THE MONARCH INSURANCE | C30: =[1]LINKED!C30+'[1]NON-LINKED'!C30 -> 0 | D30: =[1]LINKED!D30+'[1]NON-LINKED'!D30 -> 0 | E30: =[1]LINKED!E30+'[1]NON-LINKED'!E30 -> 0 | F30: =[1]LINKED!F30+'[1]NON-LINKED'!F30 -> 0 | G30: =[1]LINKED!G30+'[1]NON-LINKED'!G30 -> 0 | H30: =[1]LINKED!H30+'[1]NON-LINKED'!H30 -> 0 | I30: =[1]LINKED!I30+'[1]NON-LINKED'!I30 -> 0 | J30: =[1]LINKED!J30+'[1]NON-LINKED'!J30 -> 0 | K30: =[1]LINKED!K30+'[1]NON-LINKED'!K30 -> 0 | L30: =[1]LINKED!L30+'[1]NON-LINKED'!L30 -> 0 | M30: =[1]LINKED!M30+'[1]NON-LINKED'!M30 -> 0 | N30: =[1]LINKED!N30+'[1]NON-LINKED'!N30 -> 0 | O30: =[1]LINKED!O30+'[1]NON-LINKED'!O30 -> 0 | P30: =[1]LINKED!P30+'[1]NON-LINKED'!P30 -> 0 | Q30: =[1]LINKED!Q30+'[1]NON-LINKED'!Q30 -> 0
B31: UAP LIFE ASSURANCE COMPANY | C31: =[1]LINKED!C31+'[1]NON-LINKED'!C31 -> 828893 | D31: =[1]LINKED!D31+'[1]NON-LINKED'!D31 -> 72219 | E31: =[1]LINKED!E31+'[1]NON-LINKED'!E31 -> 72219 | F31: =[1]LINKED!F31+'[1]NON-LINKED'!F31 -> 0 | G31: =[1]LINKED!G31+'[1]NON-LINKED'!G31 -> 127783 | H31: =[1]LINKED!H31+'[1]NON-LINKED'!H31 -> 0 | I31: =[1]LINKED!I31+'[1]NON-LINKED'!I31 -> 127665 | J31: =[1]LINKED!J31+'[1]NON-LINKED'!J31 -> 0 | K31: =[1]LINKED!K31+'[1]NON-LINKED'!K31 -> 0 | L31: =[1]LINKED!L31+'[1]NON-LINKED'!L31 -> 0 | M31: =[1]LINKED!M31+'[1]NON-LINKED'!M31 -> 0 | N31: =[1]LINKED!N31+'[1]NON-LINKED'!N31 -> 119769 | O31: =[1]LINKED!O31+'[1]NON-LINKED'!O31 -> 0 | P31: =[1]LINKED!P31+'[1]NON-LINKED'!P31 -> 0 | Q31: =[1]LINKED!Q31+'[1]NON-LINKED'!Q31 -> 893215
B32: TOTAL | C32: =SUM(C6:C31) -> 23731053 | D32: 4538271 | E32: 4538271 | F32: 26214 | G32: 6832529 | H32: 5292926 | I32: 1484339 | J32: 0 | K32: 0 | L32: 194139 | M32: 892539 | N32: 2448026 | O32: 32534 | P32: 276352 | Q32: 22570737
B33: REINSURERS
B34: CONTINENTAL REINSURANCE | C34: =[1]LINKED!C34+'[1]NON-LINKED'!C34 -> 0 | D34: =[1]LINKED!D34+'[1]NON-LINKED'!D34 -> 0 | E34: =[1]LINKED!E34+'[1]NON-LINKED'!E34 -> 0 | F34: =[1]LINKED!F34+'[1]NON-LINKED'!F34 -> 0 | G34: =[1]LINKED!G34+'[1]NON-LINKED'!G34 -> 0 | H34: =[1]LINKED!H34+'[1]NON-LINKED'!H34 -> 0 | I34: =[1]LINKED!I34+'[1]NON-LINKED'!I34 -> 0 | J34: =[1]LINKED!J34+'[1]NON-LINKED'!J34 -> 0 | K34: =[1]LINKED!K34+'[1]NON-LINKED'!K34 -> 0 | L34: =[1]LINKED!L34+'[1]NON-LINKED'!L34 -> 0 | M34: =[1]LINKED!M34+'[1]NON-LINKED'!M34 -> 0 | N34: =[1]LINKED!N34+'[1]NON-LINKED'!N34 -> 0 | O34: =[1]LINKED!O34+'[1]NON-LINKED'!O34 -> 0 | P34: =[1]LINKED!P34+'[1]NON-LINKED'!P34 -> 0 | Q34: =[1]LINKED!Q34+'[1]NON-LINKED'!Q34 -> 0
B35: EAST AFRICA REINSURANCE | C35: =[1]LINKED!C35+'[1]NON-LINKED'!C35 -> 0 | D35: =[1]LINKED!D35+'[1]NON-LINKED'!D35 -> 0 | E35: =[1]LINKED!E35+'[1]NON-LINKED'!E35 -> 0 | F35: =[1]LINKED!F35+'[1]NON-LINKED'!F35 -> 0 | G35: =[1]LINKED!G35+'[1]NON-LINKED'!G35 -> 0 | H35: =[1]LINKED!H35+'[1]NON-LINKED'!H35 -> 0 | I35: =[1]LINKED!I35+'[1]NON-LINKED'!I35 -> 0 | J35: =[1]LINKED!J35+'[1]NON-LINKED'!J35 -> 0 | K35: =[1]LINKED!K35+'[1]NON-LINKED'!K35 -> 0 | L35: =[1]LINKED!L35+'[1]NON-LINKED'!L35 -> 0 | M35: =[1]LINKED!M35+'[1]NON-LINKED'!M35 -> 0 | N35: =[1]LINKED!N35+'[1]NON-LINKED'!N35 -> 0 | O35: =[1]LINKED!O35+'[1]NON-LINKED'!O35 -> 0 | P35: =[1]LINKED!P35+'[1]NON-LINKED'!P35 -> 0 | Q35: =[1]LINKED!Q35+'[1]NON-LINKED'!Q35 -> 0
B36: KENYA REINSURANCE CORPORATION | C36: =[1]LINKED!C36+'[1]NON-LINKED'!C36 -> 0 | D36: =[1]LINKED!D36+'[1]NON-LINKED'!D36 -> 0 | E36: =[1]LINKED!E36+'[1]NON-LINKED'!E36 -> 0 | F36: =[1]LINKED!F36+'[1]NON-LINKED'!F36 -> 0 | G36: =[1]LINKED!G36+'[1]NON-LINKED'!G36 -> 0 | H36: =[1]LINKED!H36+'[1]NON-LINKED'!H36 -> 0 | I36: =[1]LINKED!I36+'[1]NON-LINKED'!I36 -> 0 | J36: =[1]LINKED!J36+'[1]NON-LINKED'!J36 -> 0 | K36: =[1]LINKED!K36+'[1]NON-LINKED'!K36 -> 0 | L36: =[1]LINKED!L36+'[1]NON-LINKED'!L36 -> 0 | M36: =[1]LINKED!M36+'[1]NON-LINKED'!M36 -> 0 | N36: =[1]LINKED!N36+'[1]NON-LINKED'!N36 -> 0 | O36: =[1]LINKED!O36+'[1]NON-LINKED'!O36 -> 0 | P36: =[1]LINKED!P36+'[1]NON-LINKED'!P36 -> 0 | Q36: =[1]LINKED!Q36+'[1]NON-LINKED'!Q36 -> 0
B37: TOTAL | C37: =SUM(C34:C36) -> 0 | D37: =SUM(D34:D36) -> 0 | E37: 0 | F37: 0 | G37: 0 | H37: 0 | I37: 0 | J37: 0 | K37: 0 | L37: 0 | M37: 0 | N37: 0 | O37: 0 | P37: 0 | Q37: 0
B38: Amounts in Thousand Shillings

Sheet APPENDIX 16
B3: APPENDIX 16: SUMMARY OF COMBINED LONG TERM BUSINESS REVENUE ACCOUNTS FOR THE YEAR ENDED 31.12.2017
B4: Company | C4: Life Fund BF | D4: Gross Premium | E4: Net Premium | F4: Other (Fee) Income | G4: Total Benefits | H4: Claims | I4: Surrenders | J4: Bonuses Paid | K4: Annuities Paid | L4: Net Commisions | M4: Expense of Management | N4: Investment Income | O4: Investment Expenses | P4: Transfer To (From) P & L | Q4: Life Fund CF
B5: INSURERS
B6: APA LIFE ASSURANCE COMPANY | C6: ='APPENDIX 9'!C6+'APPENDIX 10'!C6+'APPENDIX 11'!C6+'APPENDIX 12'!C6+'APPENDIX 13'!C6+'APPENDIX 14'!C6+'APPENDIX 15'!C6 -> 3324588 | D6: ='APPENDIX 9'!D6+'APPENDIX 10'!D6+'APPENDIX 11'!D6+'APPENDIX 12'!D6+'APPENDIX 13'!D6+'APPENDIX 14'!D6+'APPENDIX 15'!D6 -> 1492952 | E6: ='APPENDIX 9'!E6+'APPENDIX 10'!E6+'APPENDIX 11'!E6+'APPENDIX 12'!E6+'APPENDIX 13'!E6+'APPENDIX 14'!E6+'APPENDIX 15'!E6 -> 944777 | F6: ='APPENDIX 9'!F6+'APPENDIX 10'!F6+'APPENDIX 11'!F6+'APPENDIX 12'!F6+'APPENDIX 13'!F6+'APPENDIX 14'!F6+'APPENDIX 15'!F6 -> 0 | G6: ='APPENDIX 9'!G6+'APPENDIX 10'!G6+'APPENDIX 11'!G6+'APPENDIX 12'!G6+'APPENDIX 13'!G6+'APPENDIX 14'!G6+'APPENDIX 15'!G6 -> 568996 | H6: ='APPENDIX 9'!H6+'APPENDIX 10'!H6+'APPENDIX 11'!H6+'APPENDIX 12'!H6+'APPENDIX 13'!H6+'APPENDIX 14'!H6+'APPENDIX 15'!H6 -> 510327 | I6: ='APPENDIX 9'!I6+'APPENDIX 10'!I6+'APPENDIX 11'!I6+'APPENDIX 12'!I6+'APPENDIX 13'!I6+'APPENDIX 14'!I6+'APPENDIX 15'!I6 -> 0 | J6: ='APPENDIX 9'!J6+'APPENDIX 10'!J6+'APPENDIX 11'!J6+'APPENDIX 12'!J6+'APPENDIX 13'!J6+'APPENDIX 14'!J6+'APPENDIX 15'!J6 -> 0 | K6: ='APPENDIX 9'!K6+'APPENDIX 10'!K6+'APPENDIX 11'!K6+'APPENDIX 12'!K6+'APPENDIX 13'!K6+'APPENDIX 14'!K6+'APPENDIX 15'!K6 -> 58669 | L6: ='APPENDIX 9'!L6+'APPENDIX 10'!L6+'APPENDIX 11'!L6+'APPENDIX 12'!L6+'APPENDIX 13'!L6+'APPENDIX 14'!L6+'APPENDIX 15'!L6 -> 30612 | M6: ='APPENDIX 9'!M6+'APPENDIX 10'!M6+'APPENDIX 11'!M6+'APPENDIX 12'!M6+'APPENDIX 13'!M6+'APPENDIX 14'!M6+'APPENDIX 15'!M6 -> 223025 | N6: ='APPENDIX 9'!N6+'APPENDIX 10'!N6+'APPENDIX 11'!N6+'APPENDIX 12'!N6+'APPENDIX 13'!N6+'APPENDIX 14'!N6+'APPENDIX 15'!N6 -> 428924 | O6: ='APPENDIX 9'!O6+'APPENDIX 10'!O6+'APPENDIX 11'!O6+'APPENDIX 12'!O6+'APPENDIX 13'!O6+'APPENDIX 14'!O6+'APPENDIX 15'!O6 -> 15585 | P6: ='APPENDIX 9'!P6+'APPENDIX 10'!P6+'APPENDIX 11'!P6+'APPENDIX 12'!P6+'APPENDIX 13'!P6+'APPENDIX 14'!P6+'APPENDIX 15'!P6 -> 13181 | Q6: ='APPENDIX 9'!Q6+'APPENDIX 10'!Q6+'APPENDIX 11'!Q6+'APPENDIX 12'!Q6+'APPENDIX 13'!Q6+'APPENDIX 14'!Q6+'APPENDIX 15'!Q6 -> 3846889
B7: BARCLAYS LIFE | C7: ='APPENDIX 9'!C7+'APPENDIX 10'!C7+'APPENDIX 11'!C7+'APPENDIX 12'!C7+'APPENDIX 13'!C7+'APPENDIX 14'!C7+'APPENDIX 15'!C7 -> -476998 | D7: ='APPENDIX 9'!D7+'APPENDIX 10'!D7+'APPENDIX 11'!D7+'APPENDIX 12'!D7+'APPENDIX 13'!D7+'APPENDIX 14'!D7+'APPENDIX 15'!D7 -> 1380330 | E7: ='APPENDIX 9'!E7+'APPENDIX 10'!E7+'APPENDIX 11'!E7+'APPENDIX 12'!E7+'APPENDIX 13'!E7+'APPENDIX 14'!E7+'APPENDIX 15'!E7 -> 878992 | F7: ='APPENDIX 9'!F7+'APPENDIX 10'!F7+'APPENDIX 11'!F7+'APPENDIX 12'!F7+'APPENDIX 13'!F7+'APPENDIX 14'!F7+'APPENDIX 15'!F7 -> 0 | G7: ='APPENDIX 9'!G7+'APPENDIX 10'!G7+'APPENDIX 11'!G7+'APPENDIX 12'!G7+'APPENDIX 13'!G7+'APPENDIX 14'!G7+'APPENDIX 15'!G7 -> 181840 | H7: ='APPENDIX 9'!H7+'APPENDIX 10'!H7+'APPENDIX 11'!H7+'APPENDIX 12'!H7+'APPENDIX 13'!H7+'APPENDIX 14'!H7+'APPENDIX 15'!H7 -> 544582 | I7: ='APPENDIX 9'!I7+'APPENDIX 10'!I7+'APPENDIX 11'!I7+'APPENDIX 12'!I7+'APPENDIX 13'!I7+'APPENDIX 14'!I7+'APPENDIX 15'!I7 -> 0 | J7: ='APPENDIX 9'!J7+'APPENDIX 10'!J7+'APPENDIX 11'!J7+'APPENDIX 12'!J7+'APPENDIX 13'!J7+'APPENDIX 14'!J7+'APPENDIX 15'!J7 -> 0 | K7: ='APPENDIX 9'!K7+'APPENDIX 10'!K7+'APPENDIX 11'!K7+'APPENDIX 12'!K7+'APPENDIX 13'!K7+'APPENDIX 14'!K7+'APPENDIX 15'!K7 -> 0 | L7: ='APPENDIX 9'!L7+'APPENDIX 10'!L7+'APPENDIX 11'!L7+'APPENDIX 12'!L7+'APPENDIX 13'!L7+'APPENDIX 14'!L7+'APPENDIX 15'!L7 -> 126459 | M7: ='APPENDIX 9'!M7+'APPENDIX 10'!M7+'APPENDIX 11'!M7+'APPENDIX 12'!M7+'APPENDIX 13'!M7+'APPENDIX 14'!M7+'APPENDIX 15'!M7 -> 346409 | N7: ='APPENDIX 9'!N7+'APPENDIX 10'!N7+'APPENDIX 11'!N7+'APPENDIX 12'!N7+'APPENDIX 13'!N7+'APPENDIX 14'!N7+'APPENDIX 15'!N7 -> 96146 | O7: ='APPENDIX 9'!O7+'APPENDIX 10'!O7+'APPENDIX 11'!O7+'APPENDIX 12'!O7+'APPENDIX 13'!O7+'APPENDIX 14'!O7+'APPENDIX 15'!O7 -> 0 | P7: ='APPENDIX 9'!P7+'APPENDIX 10'!P7+'APPENDIX 11'!P7+'APPENDIX 12'!P7+'APPENDIX 13'!P7+'APPENDIX 14'!P7+'APPENDIX 15'!P7 -> 0 | Q7: ='APPENDIX 9'!Q7+'APPENDIX 10'!Q7+'APPENDIX 11'!Q7+'APPENDIX 12'!Q7+'APPENDIX 13'!Q7+'APPENDIX 14'!Q7+'APPENDIX 15'!Q7 -> -519310
B8: BRITAM LIFE | C8: ='APPENDIX 9'!C8+'APPENDIX 10'!C8+'APPENDIX 11'!C8+'APPENDIX 12'!C8+'APPENDIX 13'!C8+'APPENDIX 14'!C8+'APPENDIX 15'!C8 -> 48014484 | D8: ='APPENDIX 9'!D8+'APPENDIX 10'!D8+'APPENDIX 11'!D8+'APPENDIX 12'!D8+'APPENDIX 13'!D8+'APPENDIX 14'!D8+'APPENDIX 15'!D8 -> 18297485 | E8: ='APPENDIX 9'!E8+'APPENDIX 10'!E8+'APPENDIX 11'!E8+'APPENDIX 12'!E8+'APPENDIX 13'!E8+'APPENDIX 14'!E8+'APPENDIX 15'!E8 -> 17928517 | F8: ='APPENDIX 9'!F8+'APPENDIX 10'!F8+'APPENDIX 11'!F8+'APPENDIX 12'!F8+'APPENDIX 13'!F8+'APPENDIX 14'!F8+'APPENDIX 15'!F8 -> 0 | G8: ='APPENDIX 9'!G8+'APPENDIX 10'!G8+'APPENDIX 11'!G8+'APPENDIX 12'!G8+'APPENDIX 13'!G8+'APPENDIX 14'!G8+'APPENDIX 15'!G8 -> 7835088 | H8: ='APPENDIX 9'!H8+'APPENDIX 10'!H8+'APPENDIX 11'!H8+'APPENDIX 12'!H8+'APPENDIX 13'!H8+'APPENDIX 14'!H8+'APPENDIX 15'!H8 -> 7835088 | I8: ='APPENDIX 9'!I8+'APPENDIX 10'!I8+'APPENDIX 11'!I8+'APPENDIX 12'!I8+'APPENDIX 13'!I8+'APPENDIX 14'!I8+'APPENDIX 15'!I8 -> 681806 | J8: ='APPENDIX 9'!J8+'APPENDIX 10'!J8+'APPENDIX 11'!J8+'APPENDIX 12'!J8+'APPENDIX 13'!J8+'APPENDIX 14'!J8+'APPENDIX 15'!J8 -> 1075528 | K8: ='APPENDIX 9'!K8+'APPENDIX 10'!K8+'APPENDIX 11'!K8+'APPENDIX 12'!K8+'APPENDIX 13'!K8+'APPENDIX 14'!K8+'APPENDIX 15'!K8 -> 284522 | L8: ='APPENDIX 9'!L8+'APPENDIX 10'!L8+'APPENDIX 11'!L8+'APPENDIX 12'!L8+'APPENDIX 13'!L8+'APPENDIX 14'!L8+'APPENDIX 15'!L8 -> 1776008 | M8: ='APPENDIX 9'!M8+'APPENDIX 10'!M8+'APPENDIX 11'!M8+'APPENDIX 12'!M8+'APPENDIX 13'!M8+'APPENDIX 14'!M8+'APPENDIX 15'!M8 -> 2452864 | N8: ='APPENDIX 9'!N8+'APPENDIX 10'!N8+'APPENDIX 11'!N8+'APPENDIX 12'!N8+'APPENDIX 13'!N8+'APPENDIX 14'!N8+'APPENDIX 15'!N8 -> 4379675 | O8: ='APPENDIX 9'!O8+'APPENDIX 10'!O8+'APPENDIX 11'!O8+'APPENDIX 12'!O8+'APPENDIX 13'!O8+'APPENDIX 14'!O8+'APPENDIX 15'!O8 -> 143172 | P8: ='APPENDIX 9'!P8+'APPENDIX 10'!P8+'APPENDIX 11'!P8+'APPENDIX 12'!P8+'APPENDIX 13'!P8+'APPENDIX 14'!P8+'APPENDIX 15'!P8 -> 500500 | Q8: ='APPENDIX 9'!Q8+'APPENDIX 10'!Q8+'APPENDIX 11'!Q8+'APPENDIX 12'!Q8+'APPENDIX 13'!Q8+'APPENDIX 14'!Q8+'APPENDIX 15'!Q8 -> 55573188
B9: CANNON ASSURANCE COMPANY | C9: ='APPENDIX 9'!C9+'APPENDIX 10'!C9+'APPENDIX 11'!C9+'APPENDIX 12'!C9+'APPENDIX 13'!C9+'APPENDIX 14'!C9+'APPENDIX 15'!C9 -> 834827 | D9: ='APPENDIX 9'!D9+'APPENDIX 10'!D9+'APPENDIX 11'!D9+'APPENDIX 12'!D9+'APPENDIX 13'!D9+'APPENDIX 14'!D9+'APPENDIX 15'!D9 -> 81846 | E9: ='APPENDIX 9'!E9+'APPENDIX 10'!E9+'APPENDIX 11'!E9+'APPENDIX 12'!E9+'APPENDIX 13'!E9+'APPENDIX 14'!E9+'APPENDIX 15'!E9 -> 81055 | F9: ='APPENDIX 9'!F9+'APPENDIX 10'!F9+'APPENDIX 11'!F9+'APPENDIX 12'!F9+'APPENDIX 13'!F9+'APPENDIX 14'!F9+'APPENDIX 15'!F9 -> 0 | G9: ='APPENDIX 9'!G9+'APPENDIX 10'!G9+'APPENDIX 11'!G9+'APPENDIX 12'!G9+'APPENDIX 13'!G9+'APPENDIX 14'!G9+'APPENDIX 15'!G9 -> 156752 | H9: ='APPENDIX 9'!H9+'APPENDIX 10'!H9+'APPENDIX 11'!H9+'APPENDIX 12'!H9+'APPENDIX 13'!H9+'APPENDIX 14'!H9+'APPENDIX 15'!H9 -> 156752 | I9: ='APPENDIX 9'!I9+'APPENDIX 10'!I9+'APPENDIX 11'!I9+'APPENDIX 12'!I9+'APPENDIX 13'!I9+'APPENDIX 14'!I9+'APPENDIX 15'!I9 -> 0 | J9: ='APPENDIX 9'!J9+'APPENDIX 10'!J9+'APPENDIX 11'!J9+'APPENDIX 12'!J9+'APPENDIX 13'!J9+'APPENDIX 14'!J9+'APPENDIX 15'!J9 -> 0 | K9: ='APPENDIX 9'!K9+'APPENDIX 10'!K9+'APPENDIX 11'!K9+'APPENDIX 12'!K9+'APPENDIX 13'!K9+'APPENDIX 14'!K9+'APPENDIX 15'!K9 -> 0 | L9: ='APPENDIX 9'!L9+'APPENDIX 10'!L9+'APPENDIX 11'!L9+'APPENDIX 12'!L9+'APPENDIX 13'!L9+'APPENDIX 14'!L9+'APPENDIX 15'!L9 -> 2615 | M9: ='APPENDIX 9'!M9+'APPENDIX 10'!M9+'APPENDIX 11'!M9+'APPENDIX 12'!M9+'APPENDIX 13'!M9+'APPENDIX 14'!M9+'APPENDIX 15'!M9 -> 120228 | N9: ='APPENDIX 9'!N9+'APPENDIX 10'!N9+'APPENDIX 11'!N9+'APPENDIX 12'!N9+'APPENDIX 13'!N9+'APPENDIX 14'!N9+'APPENDIX 15'!N9 -> -11502 | O9: ='APPENDIX 9'!O9+'APPENDIX 10'!O9+'APPENDIX 11'!O9+'APPENDIX 12'!O9+'APPENDIX 13'!O9+'APPENDIX 14'!O9+'APPENDIX 15'!O9 -> 0 | P9: ='APPENDIX 9'!P9+'APPENDIX 10'!P9+'APPENDIX 11'!P9+'APPENDIX 12'!P9+'APPENDIX 13'!P9+'APPENDIX 14'!P9+'APPENDIX 15'!P9 -> 0 | Q9: ='APPENDIX 9'!Q9+'APPENDIX 10'!Q9+'APPENDIX 11'!Q9+'APPENDIX 12'!Q9+'APPENDIX 13'!Q9+'APPENDIX 14'!Q9+'APPENDIX 15'!Q9 -> 624785
B10: CAPEX LIFE ASSURANCE COMPANY | C10: ='APPENDIX 9'!C10+'APPENDIX 10'!C10+'APPENDIX 11'!C10+'APPENDIX 12'!C10+'APPENDIX 13'!C10+'APPENDIX 14'!C10+'APPENDIX 15'!C10 -> 119406 | D10: ='APPENDIX 9'!D10+'APPENDIX 10'!D10+'APPENDIX 11'!D10+'APPENDIX 12'!D10+'APPENDIX 13'!D10+'APPENDIX 14'!D10+'APPENDIX 15'!D10 -> 313340 | E10: ='APPENDIX 9'!E10+'APPENDIX 10'!E10+'APPENDIX 11'!E10+'APPENDIX 12'!E10+'APPENDIX 13'!E10+'APPENDIX 14'!E10+'APPENDIX 15'!E10 -> 295336 | F10: ='APPENDIX 9'!F10+'APPENDIX 10'!F10+'APPENDIX 11'!F10+'APPENDIX 12'!F10+'APPENDIX 13'!F10+'APPENDIX 14'!F10+'APPENDIX 15'!F10 -> 0 | G10: ='APPENDIX 9'!G10+'APPENDIX 10'!G10+'APPENDIX 11'!G10+'APPENDIX 12'!G10+'APPENDIX 13'!G10+'APPENDIX 14'!G10+'APPENDIX 15'!G10 -> 59223 | H10: ='APPENDIX 9'!H10+'APPENDIX 10'!H10+'APPENDIX 11'!H10+'APPENDIX 12'!H10+'APPENDIX 13'!H10+'APPENDIX 14'!H10+'APPENDIX 15'!H10 -> 57543 | I10: ='APPENDIX 9'!I10+'APPENDIX 10'!I10+'APPENDIX 11'!I10+'APPENDIX 12'!I10+'APPENDIX 13'!I10+'APPENDIX 14'!I10+'APPENDIX 15'!I10 -> 0 | J10: ='APPENDIX 9'!J10+'APPENDIX 10'!J10+'APPENDIX 11'!J10+'APPENDIX 12'!J10+'APPENDIX 13'!J10+'APPENDIX 14'!J10+'APPENDIX 15'!J10 -> 0 | K10: ='APPENDIX 9'!K10+'APPENDIX 10'!K10+'APPENDIX 11'!K10+'APPENDIX 12'!K10+'APPENDIX 13'!K10+'APPENDIX 14'!K10+'APPENDIX 15'!K10 -> 0 | L10: ='APPENDIX 9'!L10+'APPENDIX 10'!L10+'APPENDIX 11'!L10+'APPENDIX 12'!L10+'APPENDIX 13'!L10+'APPENDIX 14'!L10+'APPENDIX 15'!L10 -> 43055 | M10: ='APPENDIX 9'!M10+'APPENDIX 10'!M10+'APPENDIX 11'!M10+'APPENDIX 12'!M10+'APPENDIX 13'!M10+'APPENDIX 14'!M10+'APPENDIX 15'!M10 -> 82255 | N10: ='APPENDIX 9'!N10+'APPENDIX 10'!N10+'APPENDIX 11'!N10+'APPENDIX 12'!N10+'APPENDIX 13'!N10+'APPENDIX 14'!N10+'APPENDIX 15'!N10 -> 82986 | O10: ='APPENDIX 9'!O10+'APPENDIX 10'!O10+'APPENDIX 11'!O10+'APPENDIX 12'!O10+'APPENDIX 13'!O10+'APPENDIX 14'!O10+'APPENDIX 15'!O10 -> 0 | P10: ='APPENDIX 9'!P10+'APPENDIX 10'!P10+'APPENDIX 11'!P10+'APPENDIX 12'!P10+'APPENDIX 13'!P10+'APPENDIX 14'!P10+'APPENDIX 15'!P10 -> 0 | Q10: ='APPENDIX 9'!Q10+'APPENDIX 10'!Q10+'APPENDIX 11'!Q10+'APPENDIX 12'!Q10+'APPENDIX 13'!Q10+'APPENDIX 14'!Q10+'APPENDIX 15'!Q10 -> 314875
B11: CIC LIFE ASSURANCE COMPANY | C11: ='APPENDIX 9'!C11+'APPENDIX 10'!C11+'APPENDIX 11'!C11+'APPENDIX 12'!C11+'APPENDIX 13'!C11+'APPENDIX 14'!C11+'APPENDIX 15'!C11 -> 1034837 | D11: ='APPENDIX 9'!D11+'APPENDIX 10'!D11+'APPENDIX 11'!D11+'APPENDIX 12'!D11+'APPENDIX 13'!D11+'APPENDIX 14'!D11+'APPENDIX 15'!D11 -> 4895175 | E11: ='APPENDIX 9'!E11+'APPENDIX 10'!E11+'APPENDIX 11'!E11+'APPENDIX 12'!E11+'APPENDIX 13'!E11+'APPENDIX 14'!E11+'APPENDIX 15'!E11 -> 4077006 | F11: ='APPENDIX 9'!F11+'APPENDIX 10'!F11+'APPENDIX 11'!F11+'APPENDIX 12'!F11+'APPENDIX 13'!F11+'APPENDIX 14'!F11+'APPENDIX 15'!F11 -> 0 | G11: ='APPENDIX 9'!G11+'APPENDIX 10'!G11+'APPENDIX 11'!G11+'APPENDIX 12'!G11+'APPENDIX 13'!G11+'APPENDIX 14'!G11+'APPENDIX 15'!G11 -> 1497543 | H11: ='APPENDIX 9'!H11+'APPENDIX 10'!H11+'APPENDIX 11'!H11+'APPENDIX 12'!H11+'APPENDIX 13'!H11+'APPENDIX 14'!H11+'APPENDIX 15'!H11 -> 2049439 | I11: ='APPENDIX 9'!I11+'APPENDIX 10'!I11+'APPENDIX 11'!I11+'APPENDIX 12'!I11+'APPENDIX 13'!I11+'APPENDIX 14'!I11+'APPENDIX 15'!I11 -> 0 | J11: ='APPENDIX 9'!J11+'APPENDIX 10'!J11+'APPENDIX 11'!J11+'APPENDIX 12'!J11+'APPENDIX 13'!J11+'APPENDIX 14'!J11+'APPENDIX 15'!J11 -> 0 | K11: ='APPENDIX 9'!K11+'APPENDIX 10'!K11+'APPENDIX 11'!K11+'APPENDIX 12'!K11+'APPENDIX 13'!K11+'APPENDIX 14'!K11+'APPENDIX 15'!K11 -> 0 | L11: ='APPENDIX 9'!L11+'APPENDIX 10'!L11+'APPENDIX 11'!L11+'APPENDIX 12'!L11+'APPENDIX 13'!L11+'APPENDIX 14'!L11+'APPENDIX 15'!L11 -> 339994 | M11: ='APPENDIX 9'!M11+'APPENDIX 10'!M11+'APPENDIX 11'!M11+'APPENDIX 12'!M11+'APPENDIX 13'!M11+'APPENDIX 14'!M11+'APPENDIX 15'!M11 -> 1227511 | N11: ='APPENDIX 9'!N11+'APPENDIX 10'!N11+'APPENDIX 11'!N11+'APPENDIX 12'!N11+'APPENDIX 13'!N11+'APPENDIX 14'!N11+'APPENDIX 15'!N11 -> 483034 | O11: ='APPENDIX 9'!O11+'APPENDIX 10'!O11+'APPENDIX 11'!O11+'APPENDIX 12'!O11+'APPENDIX 13'!O11+'APPENDIX 14'!O11+'APPENDIX 15'!O11 -> 0 | P11: ='APPENDIX 9'!P11+'APPENDIX 10'!P11+'APPENDIX 11'!P11+'APPENDIX 12'!P11+'APPENDIX 13'!P11+'APPENDIX 14'!P11+'APPENDIX 15'!P11 -> 115000 | Q11: ='APPENDIX 9'!Q11+'APPENDIX 10'!Q11+'APPENDIX 11'!Q11+'APPENDIX 12'!Q11+'APPENDIX 13'!Q11+'APPENDIX 14'!Q11+'APPENDIX 15'!Q11 -> 1862933
B12: CORPORATE INSURANCE COMPANY | C12: ='APPENDIX 9'!C12+'APPENDIX 10'!C12+'APPENDIX 11'!C12+'APPENDIX 12'!C12+'APPENDIX 13'!C12+'APPENDIX 14'!C12+'APPENDIX 15'!C12 -> 630286 | D12: ='APPENDIX 9'!D12+'APPENDIX 10'!D12+'APPENDIX 11'!D12+'APPENDIX 12'!D12+'APPENDIX 13'!D12+'APPENDIX 14'!D12+'APPENDIX 15'!D12 -> 278949 | E12: ='APPENDIX 9'!E12+'APPENDIX 10'!E12+'APPENDIX 11'!E12+'APPENDIX 12'!E12+'APPENDIX 13'!E12+'APPENDIX 14'!E12+'APPENDIX 15'!E12 -> 277380 | F12: ='APPENDIX 9'!F12+'APPENDIX 10'!F12+'APPENDIX 11'!F12+'APPENDIX 12'!F12+'APPENDIX 13'!F12+'APPENDIX 14'!F12+'APPENDIX 15'!F12 -> 0 | G12: ='APPENDIX 9'!G12+'APPENDIX 10'!G12+'APPENDIX 11'!G12+'APPENDIX 12'!G12+'APPENDIX 13'!G12+'APPENDIX 14'!G12+'APPENDIX 15'!G12 -> 189631 | H12: ='APPENDIX 9'!H12+'APPENDIX 10'!H12+'APPENDIX 11'!H12+'APPENDIX 12'!H12+'APPENDIX 13'!H12+'APPENDIX 14'!H12+'APPENDIX 15'!H12 -> 189631 | I12: ='APPENDIX 9'!I12+'APPENDIX 10'!I12+'APPENDIX 11'!I12+'APPENDIX 12'!I12+'APPENDIX 13'!I12+'APPENDIX 14'!I12+'APPENDIX 15'!I12 -> 0 | J12: ='APPENDIX 9'!J12+'APPENDIX 10'!J12+'APPENDIX 11'!J12+'APPENDIX 12'!J12+'APPENDIX 13'!J12+'APPENDIX 14'!J12+'APPENDIX 15'!J12 -> 0 | K12: ='APPENDIX 9'!K12+'APPENDIX 10'!K12+'APPENDIX 11'!K12+'APPENDIX 12'!K12+'APPENDIX 13'!K12+'APPENDIX 14'!K12+'APPENDIX 15'!K12 -> 0 | L12: ='APPENDIX 9'!L12+'APPENDIX 10'!L12+'APPENDIX 11'!L12+'APPENDIX 12'!L12+'APPENDIX 13'!L12+'APPENDIX 14'!L12+'APPENDIX 15'!L12 -> 73492 | M12: ='APPENDIX 9'!M12+'APPENDIX 10'!M12+'APPENDIX 11'!M12+'APPENDIX 12'!M12+'APPENDIX 13'!M12+'APPENDIX 14'!M12+'APPENDIX 15'!M12 -> 64255 | N12: ='APPENDIX 9'!N12+'APPENDIX 10'!N12+'APPENDIX 11'!N12+'APPENDIX 12'!N12+'APPENDIX 13'!N12+'APPENDIX 14'!N12+'APPENDIX 15'!N12 -> 77578 | O12: ='APPENDIX 9'!O12+'APPENDIX 10'!O12+'APPENDIX 11'!O12+'APPENDIX 12'!O12+'APPENDIX 13'!O12+'APPENDIX 14'!O12+'APPENDIX 15'!O12 -> 0 | P12: ='APPENDIX 9'!P12+'APPENDIX 10'!P12+'APPENDIX 11'!P12+'APPENDIX 12'!P12+'APPENDIX 13'!P12+'APPENDIX 14'!P12+'APPENDIX 15'!P12 -> 0 | Q12: ='APPENDIX 9'!Q12+'APPENDIX 10'!Q12+'APPENDIX 11'!Q12+'APPENDIX 12'!Q12+'APPENDIX 13'!Q12+'APPENDIX 14'!Q12+'APPENDIX 15'!Q12 -> 657868
B13: FIRST ASSURANCE COMPANY | C13: ='APPENDIX 9'!C13+'APPENDIX 10'!C13+'APPENDIX 11'!C13+'APPENDIX 12'!C13+'APPENDIX 13'!C13+'APPENDIX 14'!C13+'APPENDIX 15'!C13 -> 0 | D13: ='APPENDIX 9'!D13+'APPENDIX 10'!D13+'APPENDIX 11'!D13+'APPENDIX 12'!D13+'APPENDIX 13'!D13+'APPENDIX 14'!D13+'APPENDIX 15'!D13 -> 168783 | E13: ='APPENDIX 9'!E13+'APPENDIX 10'!E13+'APPENDIX 11'!E13+'APPENDIX 12'!E13+'APPENDIX 13'!E13+'APPENDIX 14'!E13+'APPENDIX 15'!E13 -> 23203 | F13: ='APPENDIX 9'!F13+'APPENDIX 10'!F13+'APPENDIX 11'!F13+'APPENDIX 12'!F13+'APPENDIX 13'!F13+'APPENDIX 14'!F13+'APPENDIX 15'!F13 -> 0 | G13: ='APPENDIX 9'!G13+'APPENDIX 10'!G13+'APPENDIX 11'!G13+'APPENDIX 12'!G13+'APPENDIX 13'!G13+'APPENDIX 14'!G13+'APPENDIX 15'!G13 -> 12946 | H13: ='APPENDIX 9'!H13+'APPENDIX 10'!H13+'APPENDIX 11'!H13+'APPENDIX 12'!H13+'APPENDIX 13'!H13+'APPENDIX 14'!H13+'APPENDIX 15'!H13 -> 13758 | I13: ='APPENDIX 9'!I13+'APPENDIX 10'!I13+'APPENDIX 11'!I13+'APPENDIX 12'!I13+'APPENDIX 13'!I13+'APPENDIX 14'!I13+'APPENDIX 15'!I13 -> 0 | J13: ='APPENDIX 9'!J13+'APPENDIX 10'!J13+'APPENDIX 11'!J13+'APPENDIX 12'!J13+'APPENDIX 13'!J13+'APPENDIX 14'!J13+'APPENDIX 15'!J13 -> 0 | K13: ='APPENDIX 9'!K13+'APPENDIX 10'!K13+'APPENDIX 11'!K13+'APPENDIX 12'!K13+'APPENDIX 13'!K13+'APPENDIX 14'!K13+'APPENDIX 15'!K13 -> 0 | L13: ='APPENDIX 9'!L13+'APPENDIX 10'!L13+'APPENDIX 11'!L13+'APPENDIX 12'!L13+'APPENDIX 13'!L13+'APPENDIX 14'!L13+'APPENDIX 15'!L13 -> -20070 | M13: ='APPENDIX 9'!M13+'APPENDIX 10'!M13+'APPENDIX 11'!M13+'APPENDIX 12'!M13+'APPENDIX 13'!M13+'APPENDIX 14'!M13+'APPENDIX 15'!M13 -> 19822 | N13: ='APPENDIX 9'!N13+'APPENDIX 10'!N13+'APPENDIX 11'!N13+'APPENDIX 12'!N13+'APPENDIX 13'!N13+'APPENDIX 14'!N13+'APPENDIX 15'!N13 -> 33780 | O13: ='APPENDIX 9'!O13+'APPENDIX 10'!O13+'APPENDIX 11'!O13+'APPENDIX 12'!O13+'APPENDIX 13'!O13+'APPENDIX 14'!O13+'APPENDIX 15'!O13 -> 0 | P13: ='APPENDIX 9'!P13+'APPENDIX 10'!P13+'APPENDIX 11'!P13+'APPENDIX 12'!P13+'APPENDIX 13'!P13+'APPENDIX 14'!P13+'APPENDIX 15'!P13 -> 0 | Q13: ='APPENDIX 9'!Q13+'APPENDIX 10'!Q13+'APPENDIX 11'!Q13+'APPENDIX 12'!Q13+'APPENDIX 13'!Q13+'APPENDIX 14'!Q13+'APPENDIX 15'!Q13 -> 43471
B14: GA LIFE ASSURANCE COMPANY | C14: ='APPENDIX 9'!C14+'APPENDIX 10'!C14+'APPENDIX 11'!C14+'APPENDIX 12'!C14+'APPENDIX 13'!C14+'APPENDIX 14'!C14+'APPENDIX 15'!C14 -> 3886804 | D14: ='APPENDIX 9'!D14+'APPENDIX 10'!D14+'APPENDIX 11'!D14+'APPENDIX 12'!D14+'APPENDIX 13'!D14+'APPENDIX 14'!D14+'APPENDIX 15'!D14 -> 1618442 | E14: ='APPENDIX 9'!E14+'APPENDIX 10'!E14+'APPENDIX 11'!E14+'APPENDIX 12'!E14+'APPENDIX 13'!E14+'APPENDIX 14'!E14+'APPENDIX 15'!E14 -> 1589638 | F14: ='APPENDIX 9'!F14+'APPENDIX 10'!F14+'APPENDIX 11'!F14+'APPENDIX 12'!F14+'APPENDIX 13'!F14+'APPENDIX 14'!F14+'APPENDIX 15'!F14 -> 0 | G14: ='APPENDIX 9'!G14+'APPENDIX 10'!G14+'APPENDIX 11'!G14+'APPENDIX 12'!G14+'APPENDIX 13'!G14+'APPENDIX 14'!G14+'APPENDIX 15'!G14 -> 329139 | H14: ='APPENDIX 9'!H14+'APPENDIX 10'!H14+'APPENDIX 11'!H14+'APPENDIX 12'!H14+'APPENDIX 13'!H14+'APPENDIX 14'!H14+'APPENDIX 15'!H14 -> 329439 | I14: ='APPENDIX 9'!I14+'APPENDIX 10'!I14+'APPENDIX 11'!I14+'APPENDIX 12'!I14+'APPENDIX 13'!I14+'APPENDIX 14'!I14+'APPENDIX 15'!I14 -> 0 | J14: ='APPENDIX 9'!J14+'APPENDIX 10'!J14+'APPENDIX 11'!J14+'APPENDIX 12'!J14+'APPENDIX 13'!J14+'APPENDIX 14'!J14+'APPENDIX 15'!J14 -> 0 | K14: ='APPENDIX 9'!K14+'APPENDIX 10'!K14+'APPENDIX 11'!K14+'APPENDIX 12'!K14+'APPENDIX 13'!K14+'APPENDIX 14'!K14+'APPENDIX 15'!K14 -> 0 | L14: ='APPENDIX 9'!L14+'APPENDIX 10'!L14+'APPENDIX 11'!L14+'APPENDIX 12'!L14+'APPENDIX 13'!L14+'APPENDIX 14'!L14+'APPENDIX 15'!L14 -> 1716 | M14: ='APPENDIX 9'!M14+'APPENDIX 10'!M14+'APPENDIX 11'!M14+'APPENDIX 12'!M14+'APPENDIX 13'!M14+'APPENDIX 14'!M14+'APPENDIX 15'!M14 -> 38139 | N14: ='APPENDIX 9'!N14+'APPENDIX 10'!N14+'APPENDIX 11'!N14+'APPENDIX 12'!N14+'APPENDIX 13'!N14+'APPENDIX 14'!N14+'APPENDIX 15'!N14 -> 625726 | O14: ='APPENDIX 9'!O14+'APPENDIX 10'!O14+'APPENDIX 11'!O14+'APPENDIX 12'!O14+'APPENDIX 13'!O14+'APPENDIX 14'!O14+'APPENDIX 15'!O14 -> 0 | P14: ='APPENDIX 9'!P14+'APPENDIX 10'!P14+'APPENDIX 11'!P14+'APPENDIX 12'!P14+'APPENDIX 13'!P14+'APPENDIX 14'!P14+'APPENDIX 15'!P14 -> 29966 | Q14: ='APPENDIX 9'!Q14+'APPENDIX 10'!Q14+'APPENDIX 11'!Q14+'APPENDIX 12'!Q14+'APPENDIX 13'!Q14+'APPENDIX 14'!Q14+'APPENDIX 15'!Q14 -> 5702906
B15: GEMINIA INSURANCE COMPANY | C15: ='APPENDIX 9'!C15+'APPENDIX 10'!C15+'APPENDIX 11'!C15+'APPENDIX 12'!C15+'APPENDIX 13'!C15+'APPENDIX 14'!C15+'APPENDIX 15'!C15 -> 705421 | D15: ='APPENDIX 9'!D15+'APPENDIX 10'!D15+'APPENDIX 11'!D15+'APPENDIX 12'!D15+'APPENDIX 13'!D15+'APPENDIX 14'!D15+'APPENDIX 15'!D15 -> 178136 | E15: ='APPENDIX 9'!E15+'APPENDIX 10'!E15+'APPENDIX 11'!E15+'APPENDIX 12'!E15+'APPENDIX 13'!E15+'APPENDIX 14'!E15+'APPENDIX 15'!E15 -> 115922 | F15: ='APPENDIX 9'!F15+'APPENDIX 10'!F15+'APPENDIX 11'!F15+'APPENDIX 12'!F15+'APPENDIX 13'!F15+'APPENDIX 14'!F15+'APPENDIX 15'!F15 -> 0 | G15: ='APPENDIX 9'!G15+'APPENDIX 10'!G15+'APPENDIX 11'!G15+'APPENDIX 12'!G15+'APPENDIX 13'!G15+'APPENDIX 14'!G15+'APPENDIX 15'!G15 -> 66077 | H15: ='APPENDIX 9'!H15+'APPENDIX 10'!H15+'APPENDIX 11'!H15+'APPENDIX 12'!H15+'APPENDIX 13'!H15+'APPENDIX 14'!H15+'APPENDIX 15'!H15 -> 0 | I15: ='APPENDIX 9'!I15+'APPENDIX 10'!I15+'APPENDIX 11'!I15+'APPENDIX 12'!I15+'APPENDIX 13'!I15+'APPENDIX 14'!I15+'APPENDIX 15'!I15 -> 0 | J15: ='APPENDIX 9'!J15+'APPENDIX 10'!J15+'APPENDIX 11'!J15+'APPENDIX 12'!J15+'APPENDIX 13'!J15+'APPENDIX 14'!J15+'APPENDIX 15'!J15 -> 0 | K15: ='APPENDIX 9'!K15+'APPENDIX 10'!K15+'APPENDIX 11'!K15+'APPENDIX 12'!K15+'APPENDIX 13'!K15+'APPENDIX 14'!K15+'APPENDIX 15'!K15 -> 0 | L15: ='APPENDIX 9'!L15+'APPENDIX 10'!L15+'APPENDIX 11'!L15+'APPENDIX 12'!L15+'APPENDIX 13'!L15+'APPENDIX 14'!L15+'APPENDIX 15'!L15 -> 4306 | M15: ='APPENDIX 9'!M15+'APPENDIX 10'!M15+'APPENDIX 11'!M15+'APPENDIX 12'!M15+'APPENDIX 13'!M15+'APPENDIX 14'!M15+'APPENDIX 15'!M15 -> 48420 | N15: ='APPENDIX 9'!N15+'APPENDIX 10'!N15+'APPENDIX 11'!N15+'APPENDIX 12'!N15+'APPENDIX 13'!N15+'APPENDIX 14'!N15+'APPENDIX 15'!N15 -> 105767 | O15: ='APPENDIX 9'!O15+'APPENDIX 10'!O15+'APPENDIX 11'!O15+'APPENDIX 12'!O15+'APPENDIX 13'!O15+'APPENDIX 14'!O15+'APPENDIX 15'!O15 -> 0 | P15: ='APPENDIX 9'!P15+'APPENDIX 10'!P15+'APPENDIX 11'!P15+'APPENDIX 12'!P15+'APPENDIX 13'!P15+'APPENDIX 14'!P15+'APPENDIX 15'!P15 -> 0 | Q15: ='APPENDIX 9'!Q15+'APPENDIX 10'!Q15+'APPENDIX 11'!Q15+'APPENDIX 12'!Q15+'APPENDIX 13'!Q15+'APPENDIX 14'!Q15+'APPENDIX 15'!Q15 -> 874383
B16: ICEA LION LIFE ASSURANCE | C16: ='APPENDIX 9'!C16+'APPENDIX 10'!C16+'APPENDIX 11'!C16+'APPENDIX 12'!C16+'APPENDIX 13'!C16+'APPENDIX 14'!C16+'APPENDIX 15'!C16 -> 48179611 | D16: ='APPENDIX 9'!D16+'APPENDIX 10'!D16+'APPENDIX 11'!D16+'APPENDIX 12'!D16+'APPENDIX 13'!D16+'APPENDIX 14'!D16+'APPENDIX 15'!D16 -> 13015715 | E16: ='APPENDIX 9'!E16+'APPENDIX 10'!E16+'APPENDIX 11'!E16+'APPENDIX 12'!E16+'APPENDIX 13'!E16+'APPENDIX 14'!E16+'APPENDIX 15'!E16 -> 12784384 | F16: ='APPENDIX 9'!F16+'APPENDIX 10'!F16+'APPENDIX 11'!F16+'APPENDIX 12'!F16+'APPENDIX 13'!F16+'APPENDIX 14'!F16+'APPENDIX 15'!F16 -> 0 | G16: ='APPENDIX 9'!G16+'APPENDIX 10'!G16+'APPENDIX 11'!G16+'APPENDIX 12'!G16+'APPENDIX 13'!G16+'APPENDIX 14'!G16+'APPENDIX 15'!G16 -> 6442982 | H16: ='APPENDIX 9'!H16+'APPENDIX 10'!H16+'APPENDIX 11'!H16+'APPENDIX 12'!H16+'APPENDIX 13'!H16+'APPENDIX 14'!H16+'APPENDIX 15'!H16 -> 1288278 | I16: ='APPENDIX 9'!I16+'APPENDIX 10'!I16+'APPENDIX 11'!I16+'APPENDIX 12'!I16+'APPENDIX 13'!I16+'APPENDIX 14'!I16+'APPENDIX 15'!I16 -> 4385229 | J16: ='APPENDIX 9'!J16+'APPENDIX 10'!J16+'APPENDIX 11'!J16+'APPENDIX 12'!J16+'APPENDIX 13'!J16+'APPENDIX 14'!J16+'APPENDIX 15'!J16 -> 0 | K16: ='APPENDIX 9'!K16+'APPENDIX 10'!K16+'APPENDIX 11'!K16+'APPENDIX 12'!K16+'APPENDIX 13'!K16+'APPENDIX 14'!K16+'APPENDIX 15'!K16 -> 932909 | L16: ='APPENDIX 9'!L16+'APPENDIX 10'!L16+'APPENDIX 11'!L16+'APPENDIX 12'!L16+'APPENDIX 13'!L16+'APPENDIX 14'!L16+'APPENDIX 15'!L16 -> 570324 | M16: ='APPENDIX 9'!M16+'APPENDIX 10'!M16+'APPENDIX 11'!M16+'APPENDIX 12'!M16+'APPENDIX 13'!M16+'APPENDIX 14'!M16+'APPENDIX 15'!M16 -> 997907 | N16: ='APPENDIX 9'!N16+'APPENDIX 10'!N16+'APPENDIX 11'!N16+'APPENDIX 12'!N16+'APPENDIX 13'!N16+'APPENDIX 14'!N16+'APPENDIX 15'!N16 -> 8216362 | O16: ='APPENDIX 9'!O16+'APPENDIX 10'!O16+'APPENDIX 11'!O16+'APPENDIX 12'!O16+'APPENDIX 13'!O16+'APPENDIX 14'!O16+'APPENDIX 15'!O16 -> 0 | P16: ='APPENDIX 9'!P16+'APPENDIX 10'!P16+'APPENDIX 11'!P16+'APPENDIX 12'!P16+'APPENDIX 13'!P16+'APPENDIX 14'!P16+'APPENDIX 15'!P16 -> 425920 | Q16: ='APPENDIX 9'!Q16+'APPENDIX 10'!Q16+'APPENDIX 11'!Q16+'APPENDIX 12'!Q16+'APPENDIX 13'!Q16+'APPENDIX 14'!Q16+'APPENDIX 15'!Q16 -> 60579790
B17: JUBILEE INSURANCE COMPANY | C17: ='APPENDIX 9'!C17+'APPENDIX 10'!C17+'APPENDIX 11'!C17+'APPENDIX 12'!C17+'APPENDIX 13'!C17+'APPENDIX 14'!C17+'APPENDIX 15'!C17 -> 46409908 | D17: ='APPENDIX 9'!D17+'APPENDIX 10'!D17+'APPENDIX 11'!D17+'APPENDIX 12'!D17+'APPENDIX 13'!D17+'APPENDIX 14'!D17+'APPENDIX 15'!D17 -> 12643723 | E17: ='APPENDIX 9'!E17+'APPENDIX 10'!E17+'APPENDIX 11'!E17+'APPENDIX 12'!E17+'APPENDIX 13'!E17+'APPENDIX 14'!E17+'APPENDIX 15'!E17 -> 12142466 | F17: ='APPENDIX 9'!F17+'APPENDIX 10'!F17+'APPENDIX 11'!F17+'APPENDIX 12'!F17+'APPENDIX 13'!F17+'APPENDIX 14'!F17+'APPENDIX 15'!F17 -> 0 | G17: ='APPENDIX 9'!G17+'APPENDIX 10'!G17+'APPENDIX 11'!G17+'APPENDIX 12'!G17+'APPENDIX 13'!G17+'APPENDIX 14'!G17+'APPENDIX 15'!G17 -> 7164135 | H17: ='APPENDIX 9'!H17+'APPENDIX 10'!H17+'APPENDIX 11'!H17+'APPENDIX 12'!H17+'APPENDIX 13'!H17+'APPENDIX 14'!H17+'APPENDIX 15'!H17 -> 6799698 | I17: ='APPENDIX 9'!I17+'APPENDIX 10'!I17+'APPENDIX 11'!I17+'APPENDIX 12'!I17+'APPENDIX 13'!I17+'APPENDIX 14'!I17+'APPENDIX 15'!I17 -> 317789 | J17: ='APPENDIX 9'!J17+'APPENDIX 10'!J17+'APPENDIX 11'!J17+'APPENDIX 12'!J17+'APPENDIX 13'!J17+'APPENDIX 14'!J17+'APPENDIX 15'!J17 -> 0 | K17: ='APPENDIX 9'!K17+'APPENDIX 10'!K17+'APPENDIX 11'!K17+'APPENDIX 12'!K17+'APPENDIX 13'!K17+'APPENDIX 14'!K17+'APPENDIX 15'!K17 -> 0 | L17: ='APPENDIX 9'!L17+'APPENDIX 10'!L17+'APPENDIX 11'!L17+'APPENDIX 12'!L17+'APPENDIX 13'!L17+'APPENDIX 14'!L17+'APPENDIX 15'!L17 -> 898655 | M17: ='APPENDIX 9'!M17+'APPENDIX 10'!M17+'APPENDIX 11'!M17+'APPENDIX 12'!M17+'APPENDIX 13'!M17+'APPENDIX 14'!M17+'APPENDIX 15'!M17 -> 908257 | N17: ='APPENDIX 9'!N17+'APPENDIX 10'!N17+'APPENDIX 11'!N17+'APPENDIX 12'!N17+'APPENDIX 13'!N17+'APPENDIX 14'!N17+'APPENDIX 15'!N17 -> 8156415 | O17: ='APPENDIX 9'!O17+'APPENDIX 10'!O17+'APPENDIX 11'!O17+'APPENDIX 12'!O17+'APPENDIX 13'!O17+'APPENDIX 14'!O17+'APPENDIX 15'!O17 -> 44783 | P17: ='APPENDIX 9'!P17+'APPENDIX 10'!P17+'APPENDIX 11'!P17+'APPENDIX 12'!P17+'APPENDIX 13'!P17+'APPENDIX 14'!P17+'APPENDIX 15'!P17 -> 261092 | Q17: ='APPENDIX 9'!Q17+'APPENDIX 10'!Q17+'APPENDIX 11'!Q17+'APPENDIX 12'!Q17+'APPENDIX 13'!Q17+'APPENDIX 14'!Q17+'APPENDIX 15'!Q17 -> 57478515
B18: KENINDIA ASSURANCE COMPANY | C18: ='APPENDIX 9'!C18+'APPENDIX 10'!C18+'APPENDIX 11'!C18+'APPENDIX 12'!C18+'APPENDIX 13'!C18+'APPENDIX 14'!C18+'APPENDIX 15'!C18 -> 25356274 | D18: ='APPENDIX 9'!D18+'APPENDIX 10'!D18+'APPENDIX 11'!D18+'APPENDIX 12'!D18+'APPENDIX 13'!D18+'APPENDIX 14'!D18+'APPENDIX 15'!D18 -> 4641315 | E18: ='APPENDIX 9'!E18+'APPENDIX 10'!E18+'APPENDIX 11'!E18+'APPENDIX 12'!E18+'APPENDIX 13'!E18+'APPENDIX 14'!E18+'APPENDIX 15'!E18 -> 4600092 | F18: ='APPENDIX 9'!F18+'APPENDIX 10'!F18+'APPENDIX 11'!F18+'APPENDIX 12'!F18+'APPENDIX 13'!F18+'APPENDIX 14'!F18+'APPENDIX 15'!F18 -> 0 | G18: ='APPENDIX 9'!G18+'APPENDIX 10'!G18+'APPENDIX 11'!G18+'APPENDIX 12'!G18+'APPENDIX 13'!G18+'APPENDIX 14'!G18+'APPENDIX 15'!G18 -> 3340252 | H18: ='APPENDIX 9'!H18+'APPENDIX 10'!H18+'APPENDIX 11'!H18+'APPENDIX 12'!H18+'APPENDIX 13'!H18+'APPENDIX 14'!H18+'APPENDIX 15'!H18 -> 3361581 | I18: ='APPENDIX 9'!I18+'APPENDIX 10'!I18+'APPENDIX 11'!I18+'APPENDIX 12'!I18+'APPENDIX 13'!I18+'APPENDIX 14'!I18+'APPENDIX 15'!I18 -> 0 | J18: ='APPENDIX 9'!J18+'APPENDIX 10'!J18+'APPENDIX 11'!J18+'APPENDIX 12'!J18+'APPENDIX 13'!J18+'APPENDIX 14'!J18+'APPENDIX 15'!J18 -> 0 | K18: ='APPENDIX 9'!K18+'APPENDIX 10'!K18+'APPENDIX 11'!K18+'APPENDIX 12'!K18+'APPENDIX 13'!K18+'APPENDIX 14'!K18+'APPENDIX 15'!K18 -> 0 | L18: ='APPENDIX 9'!L18+'APPENDIX 10'!L18+'APPENDIX 11'!L18+'APPENDIX 12'!L18+'APPENDIX 13'!L18+'APPENDIX 14'!L18+'APPENDIX 15'!L18 -> 135888 | M18: ='APPENDIX 9'!M18+'APPENDIX 10'!M18+'APPENDIX 11'!M18+'APPENDIX 12'!M18+'APPENDIX 13'!M18+'APPENDIX 14'!M18+'APPENDIX 15'!M18 -> 351187 | N18: ='APPENDIX 9'!N18+'APPENDIX 10'!N18+'APPENDIX 11'!N18+'APPENDIX 12'!N18+'APPENDIX 13'!N18+'APPENDIX 14'!N18+'APPENDIX 15'!N18 -> 3424150 | O18: ='APPENDIX 9'!O18+'APPENDIX 10'!O18+'APPENDIX 11'!O18+'APPENDIX 12'!O18+'APPENDIX 13'!O18+'APPENDIX 14'!O18+'APPENDIX 15'!O18 -> 0 | P18: ='APPENDIX 9'!P18+'APPENDIX 10'!P18+'APPENDIX 11'!P18+'APPENDIX 12'!P18+'APPENDIX 13'!P18+'APPENDIX 14'!P18+'APPENDIX 15'!P18 -> 132870 | Q18: ='APPENDIX 9'!Q18+'APPENDIX 10'!Q18+'APPENDIX 11'!Q18+'APPENDIX 12'!Q18+'APPENDIX 13'!Q18+'APPENDIX 14'!Q18+'APPENDIX 15'!Q18 -> 29398990
B19: KENYA ORIENT LIFE ASSURANCE | C19: ='APPENDIX 9'!C19+'APPENDIX 10'!C19+'APPENDIX 11'!C19+'APPENDIX 12'!C19+'APPENDIX 13'!C19+'APPENDIX 14'!C19+'APPENDIX 15'!C19 -> 365154 | D19: ='APPENDIX 9'!D19+'APPENDIX 10'!D19+'APPENDIX 11'!D19+'APPENDIX 12'!D19+'APPENDIX 13'!D19+'APPENDIX 14'!D19+'APPENDIX 15'!D19 -> 422987 | E19: ='APPENDIX 9'!E19+'APPENDIX 10'!E19+'APPENDIX 11'!E19+'APPENDIX 12'!E19+'APPENDIX 13'!E19+'APPENDIX 14'!E19+'APPENDIX 15'!E19 -> 383582 | F19: ='APPENDIX 9'!F19+'APPENDIX 10'!F19+'APPENDIX 11'!F19+'APPENDIX 12'!F19+'APPENDIX 13'!F19+'APPENDIX 14'!F19+'APPENDIX 15'!F19 -> 0 | G19: ='APPENDIX 9'!G19+'APPENDIX 10'!G19+'APPENDIX 11'!G19+'APPENDIX 12'!G19+'APPENDIX 13'!G19+'APPENDIX 14'!G19+'APPENDIX 15'!G19 -> 23936 | H19: ='APPENDIX 9'!H19+'APPENDIX 10'!H19+'APPENDIX 11'!H19+'APPENDIX 12'!H19+'APPENDIX 13'!H19+'APPENDIX 14'!H19+'APPENDIX 15'!H19 -> 17476 | I19: ='APPENDIX 9'!I19+'APPENDIX 10'!I19+'APPENDIX 11'!I19+'APPENDIX 12'!I19+'APPENDIX 13'!I19+'APPENDIX 14'!I19+'APPENDIX 15'!I19 -> 0 | J19: ='APPENDIX 9'!J19+'APPENDIX 10'!J19+'APPENDIX 11'!J19+'APPENDIX 12'!J19+'APPENDIX 13'!J19+'APPENDIX 14'!J19+'APPENDIX 15'!J19 -> 0 | K19: ='APPENDIX 9'!K19+'APPENDIX 10'!K19+'APPENDIX 11'!K19+'APPENDIX 12'!K19+'APPENDIX 13'!K19+'APPENDIX 14'!K19+'APPENDIX 15'!K19 -> 6460 | L19: ='APPENDIX 9'!L19+'APPENDIX 10'!L19+'APPENDIX 11'!L19+'APPENDIX 12'!L19+'APPENDIX 13'!L19+'APPENDIX 14'!L19+'APPENDIX 15'!L19 -> 20363 | M19: ='APPENDIX 9'!M19+'APPENDIX 10'!M19+'APPENDIX 11'!M19+'APPENDIX 12'!M19+'APPENDIX 13'!M19+'APPENDIX 14'!M19+'APPENDIX 15'!M19 -> 168891 | N19: ='APPENDIX 9'!N19+'APPENDIX 10'!N19+'APPENDIX 11'!N19+'APPENDIX 12'!N19+'APPENDIX 13'!N19+'APPENDIX 14'!N19+'APPENDIX 15'!N19 -> 5364 | O19: ='APPENDIX 9'!O19+'APPENDIX 10'!O19+'APPENDIX 11'!O19+'APPENDIX 12'!O19+'APPENDIX 13'!O19+'APPENDIX 14'!O19+'APPENDIX 15'!O19 -> 0 | P19: ='APPENDIX 9'!P19+'APPENDIX 10'!P19+'APPENDIX 11'!P19+'APPENDIX 12'!P19+'APPENDIX 13'!P19+'APPENDIX 14'!P19+'APPENDIX 15'!P19 -> 0 | Q19: ='APPENDIX 9'!Q19+'APPENDIX 10'!Q19+'APPENDIX 11'!Q19+'APPENDIX 12'!Q19+'APPENDIX 13'!Q19+'APPENDIX 14'!Q19+'APPENDIX 15'!Q19 -> 540911
B20: LIBERTY LIFE ASSURANCE COMPANY | C20: ='APPENDIX 9'!C20+'APPENDIX 10'!C20+'APPENDIX 11'!C20+'APPENDIX 12'!C20+'APPENDIX 13'!C20+'APPENDIX 14'!C20+'APPENDIX 15'!C20 -> 21204941 | D20: ='APPENDIX 9'!D20+'APPENDIX 10'!D20+'APPENDIX 11'!D20+'APPENDIX 12'!D20+'APPENDIX 13'!D20+'APPENDIX 14'!D20+'APPENDIX 15'!D20 -> 4502800 | E20: ='APPENDIX 9'!E20+'APPENDIX 10'!E20+'APPENDIX 11'!E20+'APPENDIX 12'!E20+'APPENDIX 13'!E20+'APPENDIX 14'!E20+'APPENDIX 15'!E20 -> 4273820 | F20: ='APPENDIX 9'!F20+'APPENDIX 10'!F20+'APPENDIX 11'!F20+'APPENDIX 12'!F20+'APPENDIX 13'!F20+'APPENDIX 14'!F20+'APPENDIX 15'!F20 -> 0 | G20: ='APPENDIX 9'!G20+'APPENDIX 10'!G20+'APPENDIX 11'!G20+'APPENDIX 12'!G20+'APPENDIX 13'!G20+'APPENDIX 14'!G20+'APPENDIX 15'!G20 -> 4452210 | H20: ='APPENDIX 9'!H20+'APPENDIX 10'!H20+'APPENDIX 11'!H20+'APPENDIX 12'!H20+'APPENDIX 13'!H20+'APPENDIX 14'!H20+'APPENDIX 15'!H20 -> 4530971 | I20: ='APPENDIX 9'!I20+'APPENDIX 10'!I20+'APPENDIX 11'!I20+'APPENDIX 12'!I20+'APPENDIX 13'!I20+'APPENDIX 14'!I20+'APPENDIX 15'!I20 -> 0 | J20: ='APPENDIX 9'!J20+'APPENDIX 10'!J20+'APPENDIX 11'!J20+'APPENDIX 12'!J20+'APPENDIX 13'!J20+'APPENDIX 14'!J20+'APPENDIX 15'!J20 -> 0 | K20: ='APPENDIX 9'!K20+'APPENDIX 10'!K20+'APPENDIX 11'!K20+'APPENDIX 12'!K20+'APPENDIX 13'!K20+'APPENDIX 14'!K20+'APPENDIX 15'!K20 -> 0 | L20: ='APPENDIX 9'!L20+'APPENDIX 10'!L20+'APPENDIX 11'!L20+'APPENDIX 12'!L20+'APPENDIX 13'!L20+'APPENDIX 14'!L20+'APPENDIX 15'!L20 -> 196131 | M20: ='APPENDIX 9'!M20+'APPENDIX 10'!M20+'APPENDIX 11'!M20+'APPENDIX 12'!M20+'APPENDIX 13'!M20+'APPENDIX 14'!M20+'APPENDIX 15'!M20 -> 1185727 | N20: ='APPENDIX 9'!N20+'APPENDIX 10'!N20+'APPENDIX 11'!N20+'APPENDIX 12'!N20+'APPENDIX 13'!N20+'APPENDIX 14'!N20+'APPENDIX 15'!N20 -> 2515011 | O20: ='APPENDIX 9'!O20+'APPENDIX 10'!O20+'APPENDIX 11'!O20+'APPENDIX 12'!O20+'APPENDIX 13'!O20+'APPENDIX 14'!O20+'APPENDIX 15'!O20 -> 0 | P20: ='APPENDIX 9'!P20+'APPENDIX 10'!P20+'APPENDIX 11'!P20+'APPENDIX 12'!P20+'APPENDIX 13'!P20+'APPENDIX 14'!P20+'APPENDIX 15'!P20 -> 0 | Q20: ='APPENDIX 9'!Q20+'APPENDIX 10'!Q20+'APPENDIX 11'!Q20+'APPENDIX 12'!Q20+'APPENDIX 13'!Q20+'APPENDIX 14'!Q20+'APPENDIX 15'!Q20 -> 22080947
B21: MADISON INSURANCE COMPANY | C21: ='APPENDIX 9'!C21+'APPENDIX 10'!C21+'APPENDIX 11'!C21+'APPENDIX 12'!C21+'APPENDIX 13'!C21+'APPENDIX 14'!C21+'APPENDIX 15'!C21 -> 9075650 | D21: ='APPENDIX 9'!D21+'APPENDIX 10'!D21+'APPENDIX 11'!D21+'APPENDIX 12'!D21+'APPENDIX 13'!D21+'APPENDIX 14'!D21+'APPENDIX 15'!D21 -> 2604247 | E21: ='APPENDIX 9'!E21+'APPENDIX 10'!E21+'APPENDIX 11'!E21+'APPENDIX 12'!E21+'APPENDIX 13'!E21+'APPENDIX 14'!E21+'APPENDIX 15'!E21 -> 2560286 | F21: ='APPENDIX 9'!F21+'APPENDIX 10'!F21+'APPENDIX 11'!F21+'APPENDIX 12'!F21+'APPENDIX 13'!F21+'APPENDIX 14'!F21+'APPENDIX 15'!F21 -> 0 | G21: ='APPENDIX 9'!G21+'APPENDIX 10'!G21+'APPENDIX 11'!G21+'APPENDIX 12'!G21+'APPENDIX 13'!G21+'APPENDIX 14'!G21+'APPENDIX 15'!G21 -> 1268161 | H21: ='APPENDIX 9'!H21+'APPENDIX 10'!H21+'APPENDIX 11'!H21+'APPENDIX 12'!H21+'APPENDIX 13'!H21+'APPENDIX 14'!H21+'APPENDIX 15'!H21 -> 1268161 | I21: ='APPENDIX 9'!I21+'APPENDIX 10'!I21+'APPENDIX 11'!I21+'APPENDIX 12'!I21+'APPENDIX 13'!I21+'APPENDIX 14'!I21+'APPENDIX 15'!I21 -> 0 | J21: ='APPENDIX 9'!J21+'APPENDIX 10'!J21+'APPENDIX 11'!J21+'APPENDIX 12'!J21+'APPENDIX 13'!J21+'APPENDIX 14'!J21+'APPENDIX 15'!J21 -> 0 | K21: ='APPENDIX 9'!K21+'APPENDIX 10'!K21+'APPENDIX 11'!K21+'APPENDIX 12'!K21+'APPENDIX 13'!K21+'APPENDIX 14'!K21+'APPENDIX 15'!K21 -> 0 | L21: ='APPENDIX 9'!L21+'APPENDIX 10'!L21+'APPENDIX 11'!L21+'APPENDIX 12'!L21+'APPENDIX 13'!L21+'APPENDIX 14'!L21+'APPENDIX 15'!L21 -> 182806 | M21: ='APPENDIX 9'!M21+'APPENDIX 10'!M21+'APPENDIX 11'!M21+'APPENDIX 12'!M21+'APPENDIX 13'!M21+'APPENDIX 14'!M21+'APPENDIX 15'!M21 -> 610718 | N21: ='APPENDIX 9'!N21+'APPENDIX 10'!N21+'APPENDIX 11'!N21+'APPENDIX 12'!N21+'APPENDIX 13'!N21+'APPENDIX 14'!N21+'APPENDIX 15'!N21 -> 376104 | O21: ='APPENDIX 9'!O21+'APPENDIX 10'!O21+'APPENDIX 11'!O21+'APPENDIX 12'!O21+'APPENDIX 13'!O21+'APPENDIX 14'!O21+'APPENDIX 15'!O21 -> 0 | P21: ='APPENDIX 9'!P21+'APPENDIX 10'!P21+'APPENDIX 11'!P21+'APPENDIX 12'!P21+'APPENDIX 13'!P21+'APPENDIX 14'!P21+'APPENDIX 15'!P21 -> 0 | Q21: ='APPENDIX 9'!Q21+'APPENDIX 10'!Q21+'APPENDIX 11'!Q21+'APPENDIX 12'!Q21+'APPENDIX 13'!Q21+'APPENDIX 14'!Q21+'APPENDIX 15'!Q21 -> 9950357
B22: METROPOLITAN CANNON INSURANCE | C22: ='APPENDIX 9'!C22+'APPENDIX 10'!C22+'APPENDIX 11'!C22+'APPENDIX 12'!C22+'APPENDIX 13'!C22+'APPENDIX 14'!C22+'APPENDIX 15'!C22 -> 1356541 | D22: ='APPENDIX 9'!D22+'APPENDIX 10'!D22+'APPENDIX 11'!D22+'APPENDIX 12'!D22+'APPENDIX 13'!D22+'APPENDIX 14'!D22+'APPENDIX 15'!D22 -> 609958 | E22: ='APPENDIX 9'!E22+'APPENDIX 10'!E22+'APPENDIX 11'!E22+'APPENDIX 12'!E22+'APPENDIX 13'!E22+'APPENDIX 14'!E22+'APPENDIX 15'!E22 -> 529280 | F22: ='APPENDIX 9'!F22+'APPENDIX 10'!F22+'APPENDIX 11'!F22+'APPENDIX 12'!F22+'APPENDIX 13'!F22+'APPENDIX 14'!F22+'APPENDIX 15'!F22 -> 26214 | G22: ='APPENDIX 9'!G22+'APPENDIX 10'!G22+'APPENDIX 11'!G22+'APPENDIX 12'!G22+'APPENDIX 13'!G22+'APPENDIX 14'!G22+'APPENDIX 15'!G22 -> 323403 | H22: ='APPENDIX 9'!H22+'APPENDIX 10'!H22+'APPENDIX 11'!H22+'APPENDIX 12'!H22+'APPENDIX 13'!H22+'APPENDIX 14'!H22+'APPENDIX 15'!H22 -> 302395 | I22: ='APPENDIX 9'!I22+'APPENDIX 10'!I22+'APPENDIX 11'!I22+'APPENDIX 12'!I22+'APPENDIX 13'!I22+'APPENDIX 14'!I22+'APPENDIX 15'!I22 -> 21008 | J22: ='APPENDIX 9'!J22+'APPENDIX 10'!J22+'APPENDIX 11'!J22+'APPENDIX 12'!J22+'APPENDIX 13'!J22+'APPENDIX 14'!J22+'APPENDIX 15'!J22 -> 0 | K22: ='APPENDIX 9'!K22+'APPENDIX 10'!K22+'APPENDIX 11'!K22+'APPENDIX 12'!K22+'APPENDIX 13'!K22+'APPENDIX 14'!K22+'APPENDIX 15'!K22 -> 0 | L22: ='APPENDIX 9'!L22+'APPENDIX 10'!L22+'APPENDIX 11'!L22+'APPENDIX 12'!L22+'APPENDIX 13'!L22+'APPENDIX 14'!L22+'APPENDIX 15'!L22 -> 49863 | M22: ='APPENDIX 9'!M22+'APPENDIX 10'!M22+'APPENDIX 11'!M22+'APPENDIX 12'!M22+'APPENDIX 13'!M22+'APPENDIX 14'!M22+'APPENDIX 15'!M22 -> 219918 | N22: ='APPENDIX 9'!N22+'APPENDIX 10'!N22+'APPENDIX 11'!N22+'APPENDIX 12'!N22+'APPENDIX 13'!N22+'APPENDIX 14'!N22+'APPENDIX 15'!N22 -> 76433 | O22: ='APPENDIX 9'!O22+'APPENDIX 10'!O22+'APPENDIX 11'!O22+'APPENDIX 12'!O22+'APPENDIX 13'!O22+'APPENDIX 14'!O22+'APPENDIX 15'!O22 -> 0 | P22: ='APPENDIX 9'!P22+'APPENDIX 10'!P22+'APPENDIX 11'!P22+'APPENDIX 12'!P22+'APPENDIX 13'!P22+'APPENDIX 14'!P22+'APPENDIX 15'!P22 -> -169632 | Q22: ='APPENDIX 9'!Q22+'APPENDIX 10'!Q22+'APPENDIX 11'!Q22+'APPENDIX 12'!Q22+'APPENDIX 13'!Q22+'APPENDIX 14'!Q22+'APPENDIX 15'!Q22 -> 1564914
B23: OLD MUTUAL LIFE ASSURANCE | C23: ='APPENDIX 9'!C23+'APPENDIX 10'!C23+'APPENDIX 11'!C23+'APPENDIX 12'!C23+'APPENDIX 13'!C23+'APPENDIX 14'!C23+'APPENDIX 15'!C23 -> 10554248 | D23: ='APPENDIX 9'!D23+'APPENDIX 10'!D23+'APPENDIX 11'!D23+'APPENDIX 12'!D23+'APPENDIX 13'!D23+'APPENDIX 14'!D23+'APPENDIX 15'!D23 -> 1919636 | E23: ='APPENDIX 9'!E23+'APPENDIX 10'!E23+'APPENDIX 11'!E23+'APPENDIX 12'!E23+'APPENDIX 13'!E23+'APPENDIX 14'!E23+'APPENDIX 15'!E23 -> 1732093 | F23: ='APPENDIX 9'!F23+'APPENDIX 10'!F23+'APPENDIX 11'!F23+'APPENDIX 12'!F23+'APPENDIX 13'!F23+'APPENDIX 14'!F23+'APPENDIX 15'!F23 -> 477305 | G23: ='APPENDIX 9'!G23+'APPENDIX 10'!G23+'APPENDIX 11'!G23+'APPENDIX 12'!G23+'APPENDIX 13'!G23+'APPENDIX 14'!G23+'APPENDIX 15'!G23 -> 2012003 | H23: ='APPENDIX 9'!H23+'APPENDIX 10'!H23+'APPENDIX 11'!H23+'APPENDIX 12'!H23+'APPENDIX 13'!H23+'APPENDIX 14'!H23+'APPENDIX 15'!H23 -> 690256 | I23: ='APPENDIX 9'!I23+'APPENDIX 10'!I23+'APPENDIX 11'!I23+'APPENDIX 12'!I23+'APPENDIX 13'!I23+'APPENDIX 14'!I23+'APPENDIX 15'!I23 -> 1347353 | J23: ='APPENDIX 9'!J23+'APPENDIX 10'!J23+'APPENDIX 11'!J23+'APPENDIX 12'!J23+'APPENDIX 13'!J23+'APPENDIX 14'!J23+'APPENDIX 15'!J23 -> 0 | K23: ='APPENDIX 9'!K23+'APPENDIX 10'!K23+'APPENDIX 11'!K23+'APPENDIX 12'!K23+'APPENDIX 13'!K23+'APPENDIX 14'!K23+'APPENDIX 15'!K23 -> 978 | L23: ='APPENDIX 9'!L23+'APPENDIX 10'!L23+'APPENDIX 11'!L23+'APPENDIX 12'!L23+'APPENDIX 13'!L23+'APPENDIX 14'!L23+'APPENDIX 15'!L23 -> 198786 | M23: ='APPENDIX 9'!M23+'APPENDIX 10'!M23+'APPENDIX 11'!M23+'APPENDIX 12'!M23+'APPENDIX 13'!M23+'APPENDIX 14'!M23+'APPENDIX 15'!M23 -> 901721 | N23: ='APPENDIX 9'!N23+'APPENDIX 10'!N23+'APPENDIX 11'!N23+'APPENDIX 12'!N23+'APPENDIX 13'!N23+'APPENDIX 14'!N23+'APPENDIX 15'!N23 -> 1849261 | O23: ='APPENDIX 9'!O23+'APPENDIX 10'!O23+'APPENDIX 11'!O23+'APPENDIX 12'!O23+'APPENDIX 13'!O23+'APPENDIX 14'!O23+'APPENDIX 15'!O23 -> 58726 | P23: ='APPENDIX 9'!P23+'APPENDIX 10'!P23+'APPENDIX 11'!P23+'APPENDIX 12'!P23+'APPENDIX 13'!P23+'APPENDIX 14'!P23+'APPENDIX 15'!P23 -> -287670 | Q23: ='APPENDIX 9'!Q23+'APPENDIX 10'!Q23+'APPENDIX 11'!Q23+'APPENDIX 12'!Q23+'APPENDIX 13'!Q23+'APPENDIX 14'!Q23+'APPENDIX 15'!Q23 -> 11702757
B24: PIONEER ASSURANCE COMPANY | C24: ='APPENDIX 9'!C24+'APPENDIX 10'!C24+'APPENDIX 11'!C24+'APPENDIX 12'!C24+'APPENDIX 13'!C24+'APPENDIX 14'!C24+'APPENDIX 15'!C24 -> 2109509 | D24: ='APPENDIX 9'!D24+'APPENDIX 10'!D24+'APPENDIX 11'!D24+'APPENDIX 12'!D24+'APPENDIX 13'!D24+'APPENDIX 14'!D24+'APPENDIX 15'!D24 -> 5213923 | E24: ='APPENDIX 9'!E24+'APPENDIX 10'!E24+'APPENDIX 11'!E24+'APPENDIX 12'!E24+'APPENDIX 13'!E24+'APPENDIX 14'!E24+'APPENDIX 15'!E24 -> 4196951 | F24: ='APPENDIX 9'!F24+'APPENDIX 10'!F24+'APPENDIX 11'!F24+'APPENDIX 12'!F24+'APPENDIX 13'!F24+'APPENDIX 14'!F24+'APPENDIX 15'!F24 -> 0 | G24: ='APPENDIX 9'!G24+'APPENDIX 10'!G24+'APPENDIX 11'!G24+'APPENDIX 12'!G24+'APPENDIX 13'!G24+'APPENDIX 14'!G24+'APPENDIX 15'!G24 -> 2712418 | H24: ='APPENDIX 9'!H24+'APPENDIX 10'!H24+'APPENDIX 11'!H24+'APPENDIX 12'!H24+'APPENDIX 13'!H24+'APPENDIX 14'!H24+'APPENDIX 15'!H24 -> 2586474 | I24: ='APPENDIX 9'!I24+'APPENDIX 10'!I24+'APPENDIX 11'!I24+'APPENDIX 12'!I24+'APPENDIX 13'!I24+'APPENDIX 14'!I24+'APPENDIX 15'!I24 -> 48598 | J24: ='APPENDIX 9'!J24+'APPENDIX 10'!J24+'APPENDIX 11'!J24+'APPENDIX 12'!J24+'APPENDIX 13'!J24+'APPENDIX 14'!J24+'APPENDIX 15'!J24 -> 0 | K24: ='APPENDIX 9'!K24+'APPENDIX 10'!K24+'APPENDIX 11'!K24+'APPENDIX 12'!K24+'APPENDIX 13'!K24+'APPENDIX 14'!K24+'APPENDIX 15'!K24 -> 0 | L24: ='APPENDIX 9'!L24+'APPENDIX 10'!L24+'APPENDIX 11'!L24+'APPENDIX 12'!L24+'APPENDIX 13'!L24+'APPENDIX 14'!L24+'APPENDIX 15'!L24 -> 248851 | M24: ='APPENDIX 9'!M24+'APPENDIX 10'!M24+'APPENDIX 11'!M24+'APPENDIX 12'!M24+'APPENDIX 13'!M24+'APPENDIX 14'!M24+'APPENDIX 15'!M24 -> 465891 | N24: ='APPENDIX 9'!N24+'APPENDIX 10'!N24+'APPENDIX 11'!N24+'APPENDIX 12'!N24+'APPENDIX 13'!N24+'APPENDIX 14'!N24+'APPENDIX 15'!N24 -> 179524 | O24: ='APPENDIX 9'!O24+'APPENDIX 10'!O24+'APPENDIX 11'!O24+'APPENDIX 12'!O24+'APPENDIX 13'!O24+'APPENDIX 14'!O24+'APPENDIX 15'!O24 -> 0 | P24: ='APPENDIX 9'!P24+'APPENDIX 10'!P24+'APPENDIX 11'!P24+'APPENDIX 12'!P24+'APPENDIX 13'!P24+'APPENDIX 14'!P24+'APPENDIX 15'!P24 -> 56431 | Q24: ='APPENDIX 9'!Q24+'APPENDIX 10'!Q24+'APPENDIX 11'!Q24+'APPENDIX 12'!Q24+'APPENDIX 13'!Q24+'APPENDIX 14'!Q24+'APPENDIX 15'!Q24 -> 3079741
B25: PRUDENTIAL LIFE ASSURANCE | C25: ='APPENDIX 9'!C25+'APPENDIX 10'!C25+'APPENDIX 11'!C25+'APPENDIX 12'!C25+'APPENDIX 13'!C25+'APPENDIX 14'!C25+'APPENDIX 15'!C25 -> 442649 | D25: ='APPENDIX 9'!D25+'APPENDIX 10'!D25+'APPENDIX 11'!D25+'APPENDIX 12'!D25+'APPENDIX 13'!D25+'APPENDIX 14'!D25+'APPENDIX 15'!D25 -> 318189 | E25: ='APPENDIX 9'!E25+'APPENDIX 10'!E25+'APPENDIX 11'!E25+'APPENDIX 12'!E25+'APPENDIX 13'!E25+'APPENDIX 14'!E25+'APPENDIX 15'!E25 -> 265231 | F25: ='APPENDIX 9'!F25+'APPENDIX 10'!F25+'APPENDIX 11'!F25+'APPENDIX 12'!F25+'APPENDIX 13'!F25+'APPENDIX 14'!F25+'APPENDIX 15'!F25 -> 17495 | G25: ='APPENDIX 9'!G25+'APPENDIX 10'!G25+'APPENDIX 11'!G25+'APPENDIX 12'!G25+'APPENDIX 13'!G25+'APPENDIX 14'!G25+'APPENDIX 15'!G25 -> 152472 | H25: ='APPENDIX 9'!H25+'APPENDIX 10'!H25+'APPENDIX 11'!H25+'APPENDIX 12'!H25+'APPENDIX 13'!H25+'APPENDIX 14'!H25+'APPENDIX 15'!H25 -> 115211 | I25: ='APPENDIX 9'!I25+'APPENDIX 10'!I25+'APPENDIX 11'!I25+'APPENDIX 12'!I25+'APPENDIX 13'!I25+'APPENDIX 14'!I25+'APPENDIX 15'!I25 -> 0 | J25: ='APPENDIX 9'!J25+'APPENDIX 10'!J25+'APPENDIX 11'!J25+'APPENDIX 12'!J25+'APPENDIX 13'!J25+'APPENDIX 14'!J25+'APPENDIX 15'!J25 -> 0 | K25: ='APPENDIX 9'!K25+'APPENDIX 10'!K25+'APPENDIX 11'!K25+'APPENDIX 12'!K25+'APPENDIX 13'!K25+'APPENDIX 14'!K25+'APPENDIX 15'!K25 -> 0 | L25: ='APPENDIX 9'!L25+'APPENDIX 10'!L25+'APPENDIX 11'!L25+'APPENDIX 12'!L25+'APPENDIX 13'!L25+'APPENDIX 14'!L25+'APPENDIX 15'!L25 -> 64178 | M25: ='APPENDIX 9'!M25+'APPENDIX 10'!M25+'APPENDIX 11'!M25+'APPENDIX 12'!M25+'APPENDIX 13'!M25+'APPENDIX 14'!M25+'APPENDIX 15'!M25 -> 75089 | N25: ='APPENDIX 9'!N25+'APPENDIX 10'!N25+'APPENDIX 11'!N25+'APPENDIX 12'!N25+'APPENDIX 13'!N25+'APPENDIX 14'!N25+'APPENDIX 15'!N25 -> 94730 | O25: ='APPENDIX 9'!O25+'APPENDIX 10'!O25+'APPENDIX 11'!O25+'APPENDIX 12'!O25+'APPENDIX 13'!O25+'APPENDIX 14'!O25+'APPENDIX 15'!O25 -> 4434 | P25: ='APPENDIX 9'!P25+'APPENDIX 10'!P25+'APPENDIX 11'!P25+'APPENDIX 12'!P25+'APPENDIX 13'!P25+'APPENDIX 14'!P25+'APPENDIX 15'!P25 -> 0 | Q25: ='APPENDIX 9'!Q25+'APPENDIX 10'!Q25+'APPENDIX 11'!Q25+'APPENDIX 12'!Q25+'APPENDIX 13'!Q25+'APPENDIX 14'!Q25+'APPENDIX 15'!Q25 -> 561193
B26: SAHAM ASSURANCE | C26: ='APPENDIX 9'!C26+'APPENDIX 10'!C26+'APPENDIX 11'!C26+'APPENDIX 12'!C26+'APPENDIX 13'!C26+'APPENDIX 14'!C26+'APPENDIX 15'!C26 -> 1066476 | D26: ='APPENDIX 9'!D26+'APPENDIX 10'!D26+'APPENDIX 11'!D26+'APPENDIX 12'!D26+'APPENDIX 13'!D26+'APPENDIX 14'!D26+'APPENDIX 15'!D26 -> 221543 | E26: ='APPENDIX 9'!E26+'APPENDIX 10'!E26+'APPENDIX 11'!E26+'APPENDIX 12'!E26+'APPENDIX 13'!E26+'APPENDIX 14'!E26+'APPENDIX 15'!E26 -> 203365 | F26: ='APPENDIX 9'!F26+'APPENDIX 10'!F26+'APPENDIX 11'!F26+'APPENDIX 12'!F26+'APPENDIX 13'!F26+'APPENDIX 14'!F26+'APPENDIX 15'!F26 -> 0 | G26: ='APPENDIX 9'!G26+'APPENDIX 10'!G26+'APPENDIX 11'!G26+'APPENDIX 12'!G26+'APPENDIX 13'!G26+'APPENDIX 14'!G26+'APPENDIX 15'!G26 -> 210017 | H26: ='APPENDIX 9'!H26+'APPENDIX 10'!H26+'APPENDIX 11'!H26+'APPENDIX 12'!H26+'APPENDIX 13'!H26+'APPENDIX 14'!H26+'APPENDIX 15'!H26 -> 207315 | I26: ='APPENDIX 9'!I26+'APPENDIX 10'!I26+'APPENDIX 11'!I26+'APPENDIX 12'!I26+'APPENDIX 13'!I26+'APPENDIX 14'!I26+'APPENDIX 15'!I26 -> 1479 | J26: ='APPENDIX 9'!J26+'APPENDIX 10'!J26+'APPENDIX 11'!J26+'APPENDIX 12'!J26+'APPENDIX 13'!J26+'APPENDIX 14'!J26+'APPENDIX 15'!J26 -> 0 | K26: ='APPENDIX 9'!K26+'APPENDIX 10'!K26+'APPENDIX 11'!K26+'APPENDIX 12'!K26+'APPENDIX 13'!K26+'APPENDIX 14'!K26+'APPENDIX 15'!K26 -> 136 | L26: ='APPENDIX 9'!L26+'APPENDIX 10'!L26+'APPENDIX 11'!L26+'APPENDIX 12'!L26+'APPENDIX 13'!L26+'APPENDIX 14'!L26+'APPENDIX 15'!L26 -> 3869 | M26: ='APPENDIX 9'!M26+'APPENDIX 10'!M26+'APPENDIX 11'!M26+'APPENDIX 12'!M26+'APPENDIX 13'!M26+'APPENDIX 14'!M26+'APPENDIX 15'!M26 -> 68612 | N26: ='APPENDIX 9'!N26+'APPENDIX 10'!N26+'APPENDIX 11'!N26+'APPENDIX 12'!N26+'APPENDIX 13'!N26+'APPENDIX 14'!N26+'APPENDIX 15'!N26 -> 119115 | O26: ='APPENDIX 9'!O26+'APPENDIX 10'!O26+'APPENDIX 11'!O26+'APPENDIX 12'!O26+'APPENDIX 13'!O26+'APPENDIX 14'!O26+'APPENDIX 15'!O26 -> 15718 | P26: ='APPENDIX 9'!P26+'APPENDIX 10'!P26+'APPENDIX 11'!P26+'APPENDIX 12'!P26+'APPENDIX 13'!P26+'APPENDIX 14'!P26+'APPENDIX 15'!P26 -> 0 | Q26: ='APPENDIX 9'!Q26+'APPENDIX 10'!Q26+'APPENDIX 11'!Q26+'APPENDIX 12'!Q26+'APPENDIX 13'!Q26+'APPENDIX 14'!Q26+'APPENDIX 15'!Q26 -> 1091827
B27: SANLAM LIFE INSURANCE | C27: ='APPENDIX 9'!C27+'APPENDIX 10'!C27+'APPENDIX 11'!C27+'APPENDIX 12'!C27+'APPENDIX 13'!C27+'APPENDIX 14'!C27+'APPENDIX 15'!C27 -> 23112796 | D27: ='APPENDIX 9'!D27+'APPENDIX 10'!D27+'APPENDIX 11'!D27+'APPENDIX 12'!D27+'APPENDIX 13'!D27+'APPENDIX 14'!D27+'APPENDIX 15'!D27 -> 4738729 | E27: ='APPENDIX 9'!E27+'APPENDIX 10'!E27+'APPENDIX 11'!E27+'APPENDIX 12'!E27+'APPENDIX 13'!E27+'APPENDIX 14'!E27+'APPENDIX 15'!E27 -> 4339407 | F27: ='APPENDIX 9'!F27+'APPENDIX 10'!F27+'APPENDIX 11'!F27+'APPENDIX 12'!F27+'APPENDIX 13'!F27+'APPENDIX 14'!F27+'APPENDIX 15'!F27 -> 0 | G27: ='APPENDIX 9'!G27+'APPENDIX 10'!G27+'APPENDIX 11'!G27+'APPENDIX 12'!G27+'APPENDIX 13'!G27+'APPENDIX 14'!G27+'APPENDIX 15'!G27 -> 4614032 | H27: ='APPENDIX 9'!H27+'APPENDIX 10'!H27+'APPENDIX 11'!H27+'APPENDIX 12'!H27+'APPENDIX 13'!H27+'APPENDIX 14'!H27+'APPENDIX 15'!H27 -> 4616396 | I27: ='APPENDIX 9'!I27+'APPENDIX 10'!I27+'APPENDIX 11'!I27+'APPENDIX 12'!I27+'APPENDIX 13'!I27+'APPENDIX 14'!I27+'APPENDIX 15'!I27 -> 0 | J27: ='APPENDIX 9'!J27+'APPENDIX 10'!J27+'APPENDIX 11'!J27+'APPENDIX 12'!J27+'APPENDIX 13'!J27+'APPENDIX 14'!J27+'APPENDIX 15'!J27 -> 0 | K27: ='APPENDIX 9'!K27+'APPENDIX 10'!K27+'APPENDIX 11'!K27+'APPENDIX 12'!K27+'APPENDIX 13'!K27+'APPENDIX 14'!K27+'APPENDIX 15'!K27 -> 0 | L27: ='APPENDIX 9'!L27+'APPENDIX 10'!L27+'APPENDIX 11'!L27+'APPENDIX 12'!L27+'APPENDIX 13'!L27+'APPENDIX 14'!L27+'APPENDIX 15'!L27 -> 427465 | M27: ='APPENDIX 9'!M27+'APPENDIX 10'!M27+'APPENDIX 11'!M27+'APPENDIX 12'!M27+'APPENDIX 13'!M27+'APPENDIX 14'!M27+'APPENDIX 15'!M27 -> 877353 | N27: ='APPENDIX 9'!N27+'APPENDIX 10'!N27+'APPENDIX 11'!N27+'APPENDIX 12'!N27+'APPENDIX 13'!N27+'APPENDIX 14'!N27+'APPENDIX 15'!N27 -> 1733756 | O27: ='APPENDIX 9'!O27+'APPENDIX 10'!O27+'APPENDIX 11'!O27+'APPENDIX 12'!O27+'APPENDIX 13'!O27+'APPENDIX 14'!O27+'APPENDIX 15'!O27 -> 0 | P27: ='APPENDIX 9'!P27+'APPENDIX 10'!P27+'APPENDIX 11'!P27+'APPENDIX 12'!P27+'APPENDIX 13'!P27+'APPENDIX 14'!P27+'APPENDIX 15'!P27 -> 800362 | Q27: ='APPENDIX 9'!Q27+'APPENDIX 10'!Q27+'APPENDIX 11'!Q27+'APPENDIX 12'!Q27+'APPENDIX 13'!Q27+'APPENDIX 14'!Q27+'APPENDIX 15'!Q27 -> 22464383
B28: TAKAFUL INSURANCE OF AFRICA | C28: ='APPENDIX 9'!C28+'APPENDIX 10'!C28+'APPENDIX 11'!C28+'APPENDIX 12'!C28+'APPENDIX 13'!C28+'APPENDIX 14'!C28+'APPENDIX 15'!C28 -> 0 | D28: ='APPENDIX 9'!D28+'APPENDIX 10'!D28+'APPENDIX 11'!D28+'APPENDIX 12'!D28+'APPENDIX 13'!D28+'APPENDIX 14'!D28+'APPENDIX 15'!D28 -> 58896 | E28: ='APPENDIX 9'!E28+'APPENDIX 10'!E28+'APPENDIX 11'!E28+'APPENDIX 12'!E28+'APPENDIX 13'!E28+'APPENDIX 14'!E28+'APPENDIX 15'!E28 -> 37482 | F28: ='APPENDIX 9'!F28+'APPENDIX 10'!F28+'APPENDIX 11'!F28+'APPENDIX 12'!F28+'APPENDIX 13'!F28+'APPENDIX 14'!F28+'APPENDIX 15'!F28 -> 0 | G28: ='APPENDIX 9'!G28+'APPENDIX 10'!G28+'APPENDIX 11'!G28+'APPENDIX 12'!G28+'APPENDIX 13'!G28+'APPENDIX 14'!G28+'APPENDIX 15'!G28 -> 1488 | H28: ='APPENDIX 9'!H28+'APPENDIX 10'!H28+'APPENDIX 11'!H28+'APPENDIX 12'!H28+'APPENDIX 13'!H28+'APPENDIX 14'!H28+'APPENDIX 15'!H28 -> 0 | I28: ='APPENDIX 9'!I28+'APPENDIX 10'!I28+'APPENDIX 11'!I28+'APPENDIX 12'!I28+'APPENDIX 13'!I28+'APPENDIX 14'!I28+'APPENDIX 15'!I28 -> 0 | J28: ='APPENDIX 9'!J28+'APPENDIX 10'!J28+'APPENDIX 11'!J28+'APPENDIX 12'!J28+'APPENDIX 13'!J28+'APPENDIX 14'!J28+'APPENDIX 15'!J28 -> 0 | K28: ='APPENDIX 9'!K28+'APPENDIX 10'!K28+'APPENDIX 11'!K28+'APPENDIX 12'!K28+'APPENDIX 13'!K28+'APPENDIX 14'!K28+'APPENDIX 15'!K28 -> 0 | L28: ='APPENDIX 9'!L28+'APPENDIX 10'!L28+'APPENDIX 11'!L28+'APPENDIX 12'!L28+'APPENDIX 13'!L28+'APPENDIX 14'!L28+'APPENDIX 15'!L28 -> 221 | M28: ='APPENDIX 9'!M28+'APPENDIX 10'!M28+'APPENDIX 11'!M28+'APPENDIX 12'!M28+'APPENDIX 13'!M28+'APPENDIX 14'!M28+'APPENDIX 15'!M28 -> 24409 | N28: ='APPENDIX 9'!N28+'APPENDIX 10'!N28+'APPENDIX 11'!N28+'APPENDIX 12'!N28+'APPENDIX 13'!N28+'APPENDIX 14'!N28+'APPENDIX 15'!N28 -> 14580 | O28: ='APPENDIX 9'!O28+'APPENDIX 10'!O28+'APPENDIX 11'!O28+'APPENDIX 12'!O28+'APPENDIX 13'!O28+'APPENDIX 14'!O28+'APPENDIX 15'!O28 -> 0 | P28: ='APPENDIX 9'!P28+'APPENDIX 10'!P28+'APPENDIX 11'!P28+'APPENDIX 12'!P28+'APPENDIX 13'!P28+'APPENDIX 14'!P28+'APPENDIX 15'!P28 -> 0 | Q28: ='APPENDIX 9'!Q28+'APPENDIX 10'!Q28+'APPENDIX 11'!Q28+'APPENDIX 12'!Q28+'APPENDIX 13'!Q28+'APPENDIX 14'!Q28+'APPENDIX 15'!Q28 -> 27431
B29: THE KENYAN ALLIANCE INSURANCE | C29: ='APPENDIX 9'!C29+'APPENDIX 10'!C29+'APPENDIX 11'!C29+'APPENDIX 12'!C29+'APPENDIX 13'!C29+'APPENDIX 14'!C29+'APPENDIX 15'!C29 -> 1873950 | D29: ='APPENDIX 9'!D29+'APPENDIX 10'!D29+'APPENDIX 11'!D29+'APPENDIX 12'!D29+'APPENDIX 13'!D29+'APPENDIX 14'!D29+'APPENDIX 15'!D29 -> 778597 | E29: ='APPENDIX 9'!E29+'APPENDIX 10'!E29+'APPENDIX 11'!E29+'APPENDIX 12'!E29+'APPENDIX 13'!E29+'APPENDIX 14'!E29+'APPENDIX 15'!E29 -> 654521 | F29: ='APPENDIX 9'!F29+'APPENDIX 10'!F29+'APPENDIX 11'!F29+'APPENDIX 12'!F29+'APPENDIX 13'!F29+'APPENDIX 14'!F29+'APPENDIX 15'!F29 -> 0 | G29: ='APPENDIX 9'!G29+'APPENDIX 10'!G29+'APPENDIX 11'!G29+'APPENDIX 12'!G29+'APPENDIX 13'!G29+'APPENDIX 14'!G29+'APPENDIX 15'!G29 -> 294736 | H29: ='APPENDIX 9'!H29+'APPENDIX 10'!H29+'APPENDIX 11'!H29+'APPENDIX 12'!H29+'APPENDIX 13'!H29+'APPENDIX 14'!H29+'APPENDIX 15'!H29 -> 285292 | I29: ='APPENDIX 9'!I29+'APPENDIX 10'!I29+'APPENDIX 11'!I29+'APPENDIX 12'!I29+'APPENDIX 13'!I29+'APPENDIX 14'!I29+'APPENDIX 15'!I29 -> 0 | J29: ='APPENDIX 9'!J29+'APPENDIX 10'!J29+'APPENDIX 11'!J29+'APPENDIX 12'!J29+'APPENDIX 13'!J29+'APPENDIX 14'!J29+'APPENDIX 15'!J29 -> 0 | K29: ='APPENDIX 9'!K29+'APPENDIX 10'!K29+'APPENDIX 11'!K29+'APPENDIX 12'!K29+'APPENDIX 13'!K29+'APPENDIX 14'!K29+'APPENDIX 15'!K29 -> 0 | L29: ='APPENDIX 9'!L29+'APPENDIX 10'!L29+'APPENDIX 11'!L29+'APPENDIX 12'!L29+'APPENDIX 13'!L29+'APPENDIX 14'!L29+'APPENDIX 15'!L29 -> 661 | M29: ='APPENDIX 9'!M29+'APPENDIX 10'!M29+'APPENDIX 11'!M29+'APPENDIX 12'!M29+'APPENDIX 13'!M29+'APPENDIX 14'!M29+'APPENDIX 15'!M29 -> 83002 | N29: ='APPENDIX 9'!N29+'APPENDIX 10'!N29+'APPENDIX 11'!N29+'APPENDIX 12'!N29+'APPENDIX 13'!N29+'APPENDIX 14'!N29+'APPENDIX 15'!N29 -> 188669 | O29: ='APPENDIX 9'!O29+'APPENDIX 10'!O29+'APPENDIX 11'!O29+'APPENDIX 12'!O29+'APPENDIX 13'!O29+'APPENDIX 14'!O29+'APPENDIX 15'!O29 -> 0 | P29: ='APPENDIX 9'!P29+'APPENDIX 10'!P29+'APPENDIX 11'!P29+'APPENDIX 12'!P29+'APPENDIX 13'!P29+'APPENDIX 14'!P29+'APPENDIX 15'!P29 -> 0 | Q29: ='APPENDIX 9'!Q29+'APPENDIX 10'!Q29+'APPENDIX 11'!Q29+'APPENDIX 12'!Q29+'APPENDIX 13'!Q29+'APPENDIX 14'!Q29+'APPENDIX 15'!Q29 -> 2348184
